Workbook

Sheet Assumptions
A1: This sheet gives details of assumptions that are not explicit in the calculations

Sheet Issues to be solved
A5: Author | B5: date | C5: issue
A6: Bryce | B6: 2013-08-23 | C6: For some unknown reason, when running the res sector an error comes up saying there are duplicate items. We have not been able to locate the duplicate items. This comes after the RES sector was updated so it is synchronised with the new TIMESLICES sheet.
C7: The error however, doesn’t appear to affect results.
A8: Mamahloko | B8: 2013-11-20 | C8: The above issue was solved by removing the XRESELEC in the RES sheet, they were appearing in both SUP and TCH_RES Sheet
C9: Review appliance costing, disocvered that BnM cost was too high
C10: Non Electrified households do not use efficient stoves at all, this has to be rectified
C11: Changed all wick stoves to have a lifetime of 3 years, initially Low income electrified wick stoves had 3 years and for non electrified households it was 10years.
A12: Mamahloko | B12: 2014-02-17 | C12: BnM was properly costed
C13: The issue of non-electrified household not using efficient stoves is resolved

Sheet Log of Changes
C4: Date | D4: Person | E4: Sheet | F4: Change | G4: Reason | H4: Impact
C5: 2012-08-01 | D5: Alison | E5: Neat Sheet | F5: Linked Elc to MyEndUses | G5: So that updates on other sheets get carried over to RES sheet
E6: My End Uses | F6: Increased Electricity consumption | G6: To absorb some of the "other elc" | H6: Total Elc increased
E7: Neat Sheet | F7: Increased Coal consumption | G7: To push up coal consumption to 1m tons
C8: 2012-09-01 | D8: Bruno | E8: Neat Sheet | F8: Linked other fuels to MyEndUses
E9: My End Uses | F9: Adjusted woodfuel share of Electrified low income hh | G9: Was not consistent non-electrified low income hh
E10: BILL | F10: Adjusted paraffin use in middle income | G10: Was not consistent with low income hhs and high income hhs
E11: BILL | F11: Added LPG use for space heating and linked my End Uses
E12: BILL | F12: Added paraffin use for non energy use
E13: my neat sheet | F13: linked paraffin use for non energy use to BILL's sheet
E14: RES | F14: Added non-energy use (also to TIMES parameters sheets)
C16: 2013-05-09T16:44:25.760 | D16: Adrian | E16: RES | F16: Changed Final Energy Calculation for Electric Lighting so that it makes sense given the known shares of useful energy (count of bulbs) and efficiencies.
C18: 2013-08-22 | D18: Bryce | E18: RES | F18: Added LPG gas heater tech to middle income. Costs based on high income level technology.
C19: 14/02/2014 | D19: Mamahloo | E19: Made major changes in the sheet, deleted the Neat Sheet, and all data that was in that sheet can be found in New sheet called Energy_Balance

Sheet conversion factors
B2: Fuel | C2: Calorific Value (MJ/Unit) | D2: (Unit) | E2: Reference | F2: Equivalent kg
B3: Electricity | C3: 3.6 | D3: kWh | E3: 4
B4: Paraffin | C4: 37 | D4: Litre | E4: E18,4
B5: LPG | C5: 26.7 | D5: Litre | E5: 4
B6: LPG | C6: 46 | D6: kg
B7: Candles | C7: 3.45 | D7: candle | E7: =References!A8 -> 3
B8: PM9 Battery | C8: 0.081 | D8: Battery | E8: =E4 -> E18,4
B9: PM10 Battery | C9: 0.297 | D9: Battery | E9: =E8 -> E18,4
B10: R20 Battery | C10: 0.0198 | D10: Battery | E10: =E9 -> E18,4
B11: Wood - dry | C11: 17 | D11: kg | E11: =E10 -> E18,4
B12: Sun Dried dung | C12: 12 | D12: kg | E12: =E11 -> E18,4
B13: Coal | C13: 24.3 | D13: kg | E13: =E12 -> E18,4
B14: Natural Gas | C14: 41 | E14: 4

Sheet Other sources
A2: Cape Town Energy Futures Study
B3: Fuel 1 | C3: Fuel 2 | D3: Fuel 3 | E3: Annual (GJ) | H3: Reference
A4: Middle and High | B4: electricity (KWh/month) | C4: MJ (monthly) | E4: Fuel 1 | F4: Fuel 2 | G4: Fuel 3
A5: Lighting | B5: 108.3 | C5: =3.6*B5 -> 389.88 | E5: =C5*12/10^3 -> 4.67856 | H5: 5
A6: Cooking | B6: 148.2 | C6: =3.6*B6 -> 533.52 | E6: =C6*12/10^3 -> 6.40224 | H6: 5
A7: Space heating | B7: 80.9 | C7: =3.6*B7 -> 291.24 | E7: =C7*12/10^3 -> 3.49488 | H7: 5
A8: Water heating | B8: 380.8 | C8: =3.6*B8 -> 1370.88 | E8: =C8*12/10^3 -> 16.45056 | H8: 5
A9: Refrigeration | B9: 55.9 | C9: =3.6*B9 -> 201.24 | E9: =C9*12/10^3 -> 2.41488 | H9: 5
B10: =SUM(B5:B9) -> 774.1 | E10: Annual (GJ) | H10: 5
A11: Low income | B11: electricity (KWh/month) | C11: paraffin (Litres/month) | D11: LPG(kg/month) | E11: Electricity | F11: Paraffin | G11: LPG | H11: 5
A12: =A5 -> Lighting | B12: 32.4 | E12: =B12*12*3.6/1000 -> 1.39968 | F12: =C12*'conversion factors'!$C$4*12/1000 -> 0 | H12: 5
A13: =A6 -> Cooking | B13: 112.4 | C13: 3.3 | D13: 0.6 | E13: =B13*12*3.6/1000 -> 4.85568 | F13: =C13*'conversion factors'!$C$4*12/1000 -> 1.4652 | G13: =(D13*'conversion factors'!C5/0.54)/10^3 -> 0.02966666667 | H13: 5
A14: =A7 -> Space heating | B14: 63.2 | C14: 2.5 | E14: =B14*12*3.6/1000 -> 2.73024 | F14: =C14*'conversion factors'!$C$4*12/1000 -> 1.11 | H14: 5
A15: =A8 -> Water heating | B15: 20.3 | C15: 1.7 | E15: =B15*12*3.6/1000 -> 0.87696 | F15: =C15*'conversion factors'!$C$4*12/1000 -> 0.7548 | H15: 5
A16: =A9 -> Refrigeration | B16: 71.7 | E16: =B16*12*3.6/1000 -> 3.09744 | F16: =C16*'conversion factors'!$C$4*12/1000 -> 0 | H16: 5
B17: =SUM(B12:B16) -> 300 | H17: 5
H18: 5
H19: 5
A20: Non electrified housheolds | H20: 5
A21: Low income | C21: paraffin (Litres/month) | D21: Candles | H21: 5
A22: =A12 -> Lighting | C22: 3 | D22: 6 | H22: 5
A23: =A13 -> Cooking | C23: 9 | H23: 5
A24: =A14 -> Space heating | C24: 7 | H24: 5
A25: =A15 -> Water heating | C25: 4 | H25: 5
E30: Compare it Alisons worksheet for Cape Town Study in 2010
A31: Low income household | C31: Gauteng | D31: References | E31: Cape Town | F31: References
A32: End-uses | B32: Fuel type | C32: Energy-intensity (GJ/annum) | E32: GJ/annum
A33: Lighting | B33: Electricity | C33: 0.97 | D33: 6 | E33: 1.008033799 | F33: 7
A34: Cooking | B34: Electricity | C34: 1.08 | D34: 6 | E34: 2.807136 | F34: 7
A35: Refrigeration | B35: Electricity | C35: 2.41 | D35: 6 | E35: 2.117647059 | F35: 7
A36: Water Heating | B36: Kettle | C36: 0.88 | D36: 6 | E36: 2.7216 | F36: 7
A37: Space Heating | B37: Electricity | C37: 1.37 | D37: 6 | E37: 1.014481409 | F37: 7
A38: Other | B38: Electricity | C38: 0.6 | D38: 6 | E38: 1.134409573 | F38: 7
A39: Total | C39: 7.31 | D39: 6 | E39: 10.80330784 | F39: 7
A42: Middle income household | C42: Gauteng | D42: =D31 -> References | E42: =E31 -> Cape Town | F42: =F31 -> References
A43: End-uses | B43: Fuel type | C43: Energy-intensity (GJ/annum) | E43: GJ/annum
A44: Lighting | B44: Electricity | C44: 1.4 | D44: 6 | E44: 3.94573679 | F44: 7
A45: Cooking | B45: Electricity | C45: 2.6 | D45: 6 | E45: 2.988576 | F45: 7
A46: Refrigeration | B46: Electricity | C46: 2.1 | D46: 6 | E46: 3.518360769 | F46: 7
A47: Water Heating | B47: Kettle | C47: 1.4 | D47: 6
B48: geyser -electric | C48: 3.8 | D48: 6 | E48: 9.072 | F48: 7
A49: Space Heating | B49: Electricity | C49: 2.8 | D49: 6 | E49: 2.225833023 | F49: 7
A50: Other | B50: Electricity | C50: 1.1 | D50: 6 | E50: 3.631432007 | F50: 7
A53: High Income households | C53: Gauteng | D53: =D42 -> References | E53: Cape Town | F53: =F42 -> References
A54: End-uses | B54: Fuel type | C54: Energy-intensity (GJ/annum) | E54: GJ/annum
A55: Lighting | B55: Electricity | C55: 4.68 | D55: 6 | E55: 3.94573679 | F55: 7
A56: Cooking | B56: Electricity | C56: 6.4 | D56: 6 | E56: 3.957550234 | F56: 7
A57: Refrigeration | B57: Electricity | C57: 2 | D57: 6 | E57: 5.621832068 | F57: 7
A58: Water Heating | B58: Electricity | C58: 16.4 | D58: 6 | E58: 16.765056 | F58: 7
A59: Space Heating | B59: Electricity | C59: 1.75 | D59: 6 | E59: 2.410323495 | F59: 7
A60: Other | B60: Electricity | C60: 5.2 | D60: 6 | E60: 7.360222677 | F60: 7

Sheet Geyser
A1: This data is an extract from All Media Survey (AMPS) database. The University has subscrided to this data and you can can the database from the University's Library
A2: Table: Household Income by Have Hot Running Geyser Water In Home
A3: Database - PAmps2007B
A4: Autobase Off
A5: Household Income Percentages
C6: Have Hot Running Geyser Water In Home
A7: Household Income | C7: Total | D7: Have Hot Running Geyser Water | E7: No Hot Running Geyser Water
A8: Total | C8: 31109074 | D8: 11606035 | E8: 11559895 | K8: Percentages | M8: Explanation
A9: Row % | C9: 1 | D9: 0.37 | E9: 0.37 | G9: Category | H9: All | I9: Yes | J9: No | K9: Yes | L9: No
A10: R1 - R299 | C10: 447193 | D10: 43086 | E10: 184053 | G10: Low | H10: =SUM(I10:J10) -> 5280983 | I10: =SUM(D10,D12,D14,D16,D18,D20,D22,D24,D26,D28,D30,D32) -> 727576 | J10: =SUM(E10,E12,E14,E16,E18,E20,E22,E24,E26,E28,E30,E32) -> 4553407 | K10: =I10/H10 -> 0.1377728351 | L10: =J10/H10 -> 0.8622271649 | M10: 52% of low income households have tap water either in the house or in the yard and 7% of low income households had geysers in 2007
A11: % | C11: 0.01 | D11: 0 | E11: 0.02 | G11: Middle | H11: =SUM(I11:J11) -> 8922522 | I11: =SUM(D34,D36,D38,D40,D42,D44) -> 2902630 | J11: =SUM(E34,E36,E38,E40,E42,E44,E46) -> 6019892 | K11: =I11/H11 -> 0.3253149726 | L11: =J11/H11 -> 0.6746850274 | M11: 76% of middle income households have tap water either in the house or in the yard and 28% had geysers in their households
A12: R300 - R399 | C12: 371902 | D12: 7738 | E12: 148197 | G12: High | H12: =SUM(I12:J12) -> 9335313.07 | I12: =SUM(D46,D48:D50,D52,D54,D56,D58,D60,D62,D64,D66,D68,D70) -> 7975827.05 | J12: =SUM(E46,E48:E50,E52,E54,E56,E58,E60,E62,E64,E66,E68,E70) -> 1359486.02 | K12: =I12/H12 -> 0.8543716735 | L12: =J12/H12 -> 0.1456283265 | M12: 98% of high income households have tap water either in the house or in the yard and 87% of households had geysers in their households
A13: % | C13: 0.01 | D13: 0 | E13: 0.01 | H13: =SUM(H10:H12) -> 23538818.07 | I13: =SUM(I10:I12) -> 11606033.05 | J13: =SUM(J10:J12) -> 11932785.02 | K13: =I13/H13 -> 0.4930592953 | L13: =J13/H13 -> 0.5069407047 | M13: 74% of households have tap water either in the house or in the yard
A14: R400 - R499 | C14: 313084 | D14: 12387 | E14: 106995
A15: % | C15: 0.01 | D15: 0 | E15: 0.01
A16: R500 - R599 | C16: 444694 | D16: 23953 | E16: 212239
A17: % | C17: 0.01 | D17: 0 | E17: 0.02
A18: R600 - R699 | C18: 472169 | D18: 26474 | E18: 204223
A19: % | C19: 0.02 | D19: 0 | E19: 0.02
A20: R700 - R799 | C20: 581812 | D20: 24763 | E20: 277503
A21: % | C21: 0.02 | D21: 0 | E21: 0.02
A22: R800 - R899 | C22: 2563796 | D22: 142735 | E22: 1068202
A23: % | C23: 0.08 | D23: 0.01 | E23: 0.09
A24: R900 - R999 | C24: 659021 | D24: 47257 | E24: 370749
A25: % | C25: 0.02 | D25: 0 | E25: 0.03
A26: R1000 - R1099 | C26: 1228341 | D26: 99314 | E26: 551919
A27: % | C27: 0.04 | D27: 0.01 | E27: 0.05
A28: R1100 - R1199 | C28: 531342 | D28: 44581 | E28: 262871
A29: % | C29: 0.02 | D29: 0 | E29: 0.02
A30: R1200 - R1399 | C30: 1111198 | D30: 98701 | E30: 504467
A31: % | C31: 0.04 | D31: 0.01 | E31: 0.04 | F31: 1400 | G31: 1599
A32: R1400 - R1599 | C32: 1358827 | D32: 156587 | E32: 661989 | F32: =F31*12 -> 16800 | G32: =G31*12 -> 19188 | I32: Low income households cut-off points, its R19600 from Community Survey data
A33: % | C33: 0.04 | D33: 0.01 | E33: 0.06
A34: R1600 - R1999 | C34: 2217452 | D34: 263527 | E34: 1056764
A35: % | C35: 0.07 | D35: 0.02 | E35: 0.09
A36: R2000 - R2499 | C36: 1918746 | D36: 310617 | E36: 1033537
A37: % | C37: 0.06 | D37: 0.03 | E37: 0.09
A38: R2500 - R2999 | C38: 1902096 | D38: 320044 | E38: 1001232
A39: % | C39: 0.06 | D39: 0.03 | E39: 0.09
A40: R3000 - R3999 | C40: 2069775 | D40: 581971 | E40: 1048711
A41: % | C41: 0.07 | D41: 0.05 | E41: 0.09
A42: R4000 - R4999 | C42: 1743900 | D42: 680659 | E42: 824869
A43: % | C43: 0.06 | D43: 0.06 | E43: 0.07 | F43: 5000 | G43: 6000
A44: R5000 - R5999 | C44: 1625124 | D44: 745812 | E44: 681889 | F44: =F43*12 -> 60000 | G44: =G43*12 -> 72000 | I44: Middle income households cut-off points, its R76 400 in Community Survey 2007
A45: % | C45: 0.05 | D45: 0.06 | E45: 0.06
A46: R6000 - R6999 | C46: 1100282 | D46: 663007 | E46: 372890
A47: % | C47: 0.04 | D47: 0.06 | E47: 0.03
A48: R7000 - R7999 | C48: 919793 | D48: 633939 | E48: 269748
A49: % | C49: 0.03 | D49: 0.05 | E49: 0.02
A50: R8000 - R8999 | C50: 1053278 | D50: 771159 | E50: 221270
A51: % | C51: 0.03 | D51: 0.07 | E51: 0.02
A52: R9000 - R9999 | C52: 750211 | D52: 569705 | E52: 156662
A53: % | C53: 0.02 | D53: 0.05 | E53: 0.01
A54: R10000 - R10999 | C54: 1136542 | D54: 980082 | E54: 126535
A55: % | C55: 0.04 | D55: 0.08 | E55: 0.01
A56: R11000 - R11999 | C56: 479363 | D56: 411546 | E56: 67816
A57: % | C57: 0.02 | D57: 0.04 | E57: 0.01
A58: R12000 - R13999 | C58: 750764 | D58: 715542 | E58: 35222
A59: % | C59: 0.02 | D59: 0.06 | E59: 0
A60: R14000 - R15999 | C60: 833154 | D60: 775827 | E60: 48418
A61: % | C61: 0.03 | D61: 0.07 | E61: 0
A62: R16000 - R19999 | C62: 735638 | D62: 697110 | E62: 38528
A63: % | C63: 0.02 | D63: 0.06 | E63: 0
A64: R20000 - R24999 | C64: 794836 | D64: 775068 | E64: 10499
A65: % | C65: 0.03 | D65: 0.07 | E65: 0
A66: R25000 - R29999 | C66: 373900 | D66: 368566 | E66: 5334
A67: % | C67: 0.01 | D67: 0.03 | E67: 0
A68: R30000 - R39999 | C68: 284344 | D68: 278961 | E68: 5383
A69: % | C69: 0.01 | D69: 0.02 | E69: 0
A70: R40000 + | C70: 336495 | D70: 335315 | E70: 1181
A71: % | C71: 0.01 | D71: 0.03 | E71: 0

Sheet SAPIA
A1: RSA SALES 2007
C2: DIESEL | D2: IK | E2: LPG | F2: MOGAS
A3: Agricultural Co-ops | B3: EASTERN CAPE | C3: 17733422 | D3: 3621078 | F3: 1566683
A4: Agricultural Co-ops | B4: FREE STATE | C4: 31300442 | D4: 1118662 | F4: 3780664
A5: Agricultural Co-ops | B5: GAUTENG | C5: 8626404 | D5: 947233 | F5: 293862
A6: Agricultural Co-ops | B6: MPUMALANGA | C6: 20164087 | D6: 2588903 | F6: 3040051
A7: Agricultural Co-ops | B7: NATAL | C7: 34090918 | D7: 2282372 | F7: 6908937
A8: Agricultural Co-ops | B8: NORTHERN CAPE | C8: 7202784 | D8: 136235 | F8: 825628
A9: Agricultural Co-ops | B9: NORTHERN PROVINCE | C9: 12695619 | D9: 737026 | F9: 2529271
A10: Agricultural Co-ops | B10: NORTH WEST | C10: 29883178 | D10: 1128111 | F10: 5040406
A11: Agricultural Co-ops | B11: WESTERN CAPE | C11: 36341573 | D11: 1543055 | F11: 4710315
A12: Construction | B12: EASTERN CAPE | C12: 4987853 | D12: 52418
A13: Construction | B13: FREE STATE | C13: 2622597 | D13: 3090 | F13: 31627
A14: Construction | B14: GAUTENG | C14: 16852934 | D14: 157270 | E14: 19036 | F14: 66028
A15: Construction | B15: MPUMALANGA | C15: 9634555 | F15: 136967
A16: Construction | B16: NATAL | C16: 6321899 | D16: 34941 | F16: 11875
A17: Construction | B17: NORTHERN CAPE | C17: 3563427 | D17: 76711 | F17: 29680
A18: Construction | B18: NORTHERN PROVINCE | C18: 4475840 | F18: 44871
A19: Construction | B19: NORTH WEST | C19: 4361246 | D19: 12069 | F19: 11489
A20: Construction | B20: WESTERN CAPE | C20: 7674319 | D20: 128141 | F20: 83124
A21: Farmers | B21: EASTERN CAPE | C21: 1193477 | D21: 4503 | F21: 35413
A22: Farmers | B22: FREE STATE | C22: 6332103 | D22: 87543 | F22: 197901
A23: Farmers | B23: GAUTENG | C23: 3611954 | D23: 8811 | F23: 72918
A24: Farmers | B24: MPUMALANGA | C24: 6913428 | D24: 30009 | F24: 387012
A25: Farmers | B25: NATAL | C25: 5181841 | D25: 37814 | F25: 176319
A26: Farmers | B26: NORTHERN CAPE | C26: 2032346 | D26: 5829 | F26: 10391
A27: Farmers | B27: NORTHERN PROVINCE | C27: 2867039 | D27: 3291 | F27: 153953
A28: Farmers | B28: NORTH WEST | C28: 6467395 | D28: 10049 | F28: 109534
A29: Farmers | B29: WESTERN CAPE | C29: 3145797 | D29: 167188 | F29: 292883 | H29: Household consumption
A30: General Dealers | B30: EASTERN CAPE | C30: 22012818 | D30: 18613642 | F30: 7697283
A31: General Dealers | B31: FREE STATE | C31: 15687234 | D31: 4217297 | F31: 4960661 | I31: Paraffin
A32: General Dealers | B32: GAUTENG | C32: 129753441 | D32: 23787646 | F32: 35046431 | I32: Quarter 1 | J32: Quarter 2 | K32: Quarter 3 | L32: Quarter 4 | M32: Total | P32: LPG | Q32: Quarter 1 | R32: Quarter 2 | S32: Quarter 3 | T32: Quarter 4 | U32: Total
A33: General Dealers | B33: MPUMALANGA | C33: 28824780 | D33: 4277578 | F33: 12285639 | H33: General Dealers | I33: =SUM(D30:D38) -> 87173898 | J33: =SAPIA!I158 -> 107000657 | K33: =SAPIA!I263 -> 108674696 | L33: =SAPIA!I392 -> 97157052 | M33: =SUM(I33:L33)/10^6 -> 400.006303 | O33: General dealers | Q33: =SUM(E38) -> 3166257 | R33: =SUM(E163) -> 3353449 | S33: =E268 -> 5314096 | T33: =E397 -> 3119945 | U33: =SUM(Q33:T33) -> 14953747
A34: General Dealers | B34: NATAL | C34: 86192440 | D34: 22875116 | F34: 27656888 | H34: =A88 -> Remainder of General Trade | I34: =SUM(D88:D96) -> 41420454 | J34: =SAPIA!I159 -> 50172091 | K34: =SAPIA!I264 -> 75102336 | L34: =SAPIA!I393 -> 5462347 | M34: =SUM(I34:L34)/10^6 -> 172.157228 | O34: Independent LPG marketers | Q34: =SUM(E48:E52) -> 23653150 | R34: =SUM(E173:E176) -> 14216884 | S34: =SUM(E278:E282) -> 18942131 | T34: =SUM(E407:E411) -> 22962970 | U34: =SUM(Q34:T34) -> 79775135
A35: General Dealers | B35: NORTHERN CAPE | C35: 16917949 | D35: 1777267 | F35: 10178835 | H35: =A97 -> Retail - garages | I35: =SUM(D97:D105)*50% -> 2995041.5 | J35: =SAPIA!I160 -> 7215967 | K35: =SAPIA!I265 -> 7706804 | L35: =SAPIA!I394 -> 54537023 | M35: =SUM(I35:L35)/10^6 -> 72.4548355 | O35: Remainder of general trade | Q35: =SUM(E88:E96) -> 126496944
A36: General Dealers | B36: NORTHERN PROVINCE | C36: 8751818 | D36: 2428411 | F36: 17044931 | H36: Total | I36: =SUM(I33,I35) -> 90168939.5 | J36: =SUM(J33,J35) -> 114216624 | K36: =SUM(K33,K35) -> 116381500 | L36: =SUM(L33,L35) -> 151694075 | M36: =SUM(I36:L36)/10^6 -> 472.4611385 | Q36: =SUM(33,Q33) -> 3166290 | R36: =SUM(33,R33) -> 3353482 | S36: =SUM(33,S33) -> 5314129 | T36: =SUM(33,T33) -> 3119978 | U36: =SUM(U33:U35) -> 94728882
A37: General Dealers | B37: NORTH WEST | C37: 23897406 | D37: 2995785 | F37: 11317575
A38: General Dealers | B38: WESTERN CAPE | C38: 52812713 | D38: 6201156 | E38: 3166257 | F38: 14130044
A39: Government | B39: EASTERN CAPE | C39: 130465 | D39: 97409 | F39: 395885
A40: Government | B40: FREE STATE | C40: 106131 | F40: 50673
A41: Government | B41: GAUTENG | C41: 488524 | F41: 694082
A42: Government | B42: MPUMALANGA | C42: 2551053 | F42: 74479
A43: Government | B43: NATAL | C43: 738416 | D43: 286542 | F43: 78341
A44: Government | B44: NORTHERN CAPE | C44: 27087 | D44: 60131 | F44: 3490
A45: Government | B45: NORTHERN PROVINCE | C45: 134677 | F45: 330946
A46: Government | B46: NORTH WEST | C46: 1179400 | F46: 143243
A47: Government | B47: WESTERN CAPE | C47: 2184688 | D47: 161002 | F47: 48771
A48: Independant LPG Marketers | B48: EASTERN CAPE | E48: 593865
A49: Independant LPG Marketers | B49: FREE STATE | E49: 2344128
A50: Independant LPG Marketers | B50: GAUTENG | E50: 993982
A51: Independant LPG Marketers | B51: NATAL | E51: 19399501
A52: Independant LPG Marketers | B52: WESTERN CAPE | E52: 321674
A53: Local Authorities | B53: EASTERN CAPE | C53: 1089007 | D53: 9970 | F53: 374457
A54: Local Authorities | B54: FREE STATE | C54: 920340 | F54: 577477 | I54: Litres | J54: MJ | K54: TJ | M54: Litres | N54: MJ | O54: TJ
A55: Local Authorities | B55: GAUTENG | C55: 4094216 | F55: 1330190 | H55: Total | I55: =SUM(I36,SAPIA!I161,SAPIA!I266,SAPIA!I395) -> 603197912.5 | J55: 2.231832276e+10 | K55: =J55/10^6 -> 22318.32276 | M55: =SUM(Q36,SAPIA!L161,SAPIA!L266,SAPIA!L395) -> 444290393 | N55: 1.186255349e+10 | O55: =N55/10^6 -> 11862.55349
A56: Local Authorities | B56: MPUMALANGA | C56: 1216136 | F56: 385259
A57: Local Authorities | B57: NATAL | C57: 485854 | F57: 291171
A58: Local Authorities | B58: NORTHERN CAPE | C58: 155103 | F58: 38892
A59: Local Authorities | B59: NORTHERN PROVINCE | C59: 262724 | F59: 158378
A60: Local Authorities | B60: NORTH WEST | C60: 473639 | D60: 100 | F60: 357364
A61: Local Authorities | B61: WESTERN CAPE | C61: 1371066 | F61: 560443
A62: Local marine fishing | B62: EASTERN CAPE | C62: 4620984 | F62: 20143
A63: Local marine fishing | B63: FREE STATE | C63: 14900
A64: Local marine fishing | B64: NATAL | C64: 4950454 | D64: 1200
A65: Local marine fishing | B65: WESTERN CAPE | C65: 22911406 | D65: 206228 | F65: 134964
A66: Mining | B66: EASTERN CAPE | C66: 584624 | D66: 2000
A67: Mining | B67: FREE STATE | C67: 2118108 | D67: 99967 | F67: 148571
A68: Mining | B68: GAUTENG | C68: 16378751 | D68: 5320 | F68: 417942
A69: Mining | B69: MPUMALANGA | C69: 68119431 | D69: 22010 | F69: 638620
A70: Mining | B70: NATAL | C70: 3206513 | F70: 68439
A71: Mining | B71: NORTHERN CAPE | C71: 36609304 | D71: 67356 | F71: 589553
A72: Mining | B72: NORTHERN PROVINCE | C72: 32386068 | D72: 27171 | F72: 476216
A73: Mining | B73: NORTH WEST | C73: 23504308 | D73: 1321955 | F73: 466465
A74: Mining | B74: WESTERN CAPE | C74: 11576098 | D74: 1662144 | F74: 410301
A75: Public Transport (by local Auth's) | B75: EASTERN CAPE | C75: 15068 | F75: 12520
A76: Public Transport (by local Auth's) | B76: GAUTENG | C76: 1063000
A77: Public Transport (by local Auth's) | B77: MPUMALANGA | C77: 173591
A78: Public Transport (by local Auth's) | B78: NORTHERN CAPE | C78: 147486 | D78: 200 | F78: 140829
A79: Public Transport (non local Auth's) | B79: EASTERN CAPE | C79: 2186109 | F79: 8000
A80: Public Transport (non local Auth's) | B80: FREE STATE | C80: 2042801
A81: Public Transport (non local Auth's) | B81: GAUTENG | C81: 17241775 | F81: 252492
A82: Public Transport (non local Auth's) | B82: MPUMALANGA | C82: 5372825 | D82: 875 | F82: 16255
A83: Public Transport (non local Auth's) | B83: NATAL | C83: 3368968 | F83: 147
A84: Public Transport (non local Auth's) | B84: NORTHERN CAPE | C84: 317408
A85: Public Transport (non local Auth's) | B85: NORTHERN PROVINCE | C85: 3789063 | F85: 28944
A86: Public Transport (non local Auth's) | B86: NORTH WEST | C86: 2385150 | F86: 65250
A87: Public Transport (non local Auth's) | B87: WESTERN CAPE | C87: 7270180 | D87: 13366 | F87: 22224
A88: Remainder of General Trade | B88: EASTERN CAPE | C88: 13470755 | D88: 5414416 | E88: 1010042 | F88: 2948505
A89: Remainder of General Trade | B89: FREE STATE | C89: 57658212 | D89: 954850 | E89: 125478 | F89: 25728530
A90: Remainder of General Trade | B90: GAUTENG | C90: 56101290 | D90: 6369533 | E90: 3881766 | F90: 7642287
A91: Remainder of General Trade | B91: MPUMALANGA | C91: 74866406 | D91: 13925463 | E91: 37297998 | F91: 27680228
A92: Remainder of General Trade | B92: NATAL | C92: 46668763 | D92: 5098608 | E92: 27745415 | F92: 9447794
A93: Remainder of General Trade | B93: NORTHERN CAPE | C93: 5959617 | D93: 151706 | E93: 384775 | F93: 273584
A94: Remainder of General Trade | B94: NORTHERN PROVINCE | C94: 10001017 | D94: 75094 | E94: 1473828 | F94: 1144814
A95: Remainder of General Trade | B95: NORTH WEST | C95: 15702142 | D95: 1628190 | F95: 1160380
A96: Remainder of General Trade | B96: WESTERN CAPE | C96: 52418074 | D96: 7802594 | E96: 54577642 | F96: 4574008
A97: Retail - garages | B97: EASTERN CAPE | C97: 71811262 | D97: 1421604 | F97: 197242092
A98: Retail - garages | B98: FREE STATE | C98: 62881790 | D98: 186111 | F98: 128769653
A99: Retail - garages | B99: GAUTENG | C99: 232575905 | D99: 1339235 | F99: 999526355
A100: Retail - garages | B100: MPUMALANGA | C100: 61455297 | D100: 911855 | F100: 166974538
A101: Retail - garages | B101: NATAL | C101: 135117964 | D101: 564437 | F101: 403449188
A102: Retail - garages | B102: NORTHERN CAPE | C102: 20359781 | D102: 8065 | F102: 37278406
A103: Retail - garages | B103: NORTHERN PROVINCE | C103: 31583131 | D103: 766882 | F103: 107064198
A104: Retail - garages | B104: NORTH WEST | C104: 38807637 | D104: 585209 | F104: 140137197
A105: Retail - garages | B105: WESTERN CAPE | C105: 134313671 | D105: 206685 | F105: 432150448
A106: Road Haulage | B106: EASTERN CAPE | C106: 11060991 | D106: 144542 | F106: 283681
A107: Road Haulage | B107: FREE STATE | C107: 12567668 | D107: 9898 | F107: 231252
A108: Road Haulage | B108: GAUTENG | C108: 65935769 | D108: 382972 | F108: 1875365
A109: Road Haulage | B109: MPUMALANGA | C109: 15575453 | D109: 3681 | F109: 333875
A110: Road Haulage | B110: NATAL | C110: 63422505 | D110: 282375 | F110: 710356
A111: Road Haulage | B111: NORTHERN CAPE | C111: 1582750 | D111: 70574
A112: Road Haulage | B112: NORTHERN PROVINCE | C112: 2643301 | F112: 6975
A113: Road Haulage | B113: NORTH WEST | C113: 6656557 | D113: 447 | F113: 34264
A114: Road Haulage | B114: WESTERN CAPE | C114: 21711493 | D114: 739818 | F114: 466075
A115: Transnet | B115: EASTERN CAPE | C115: 32698
A116: Transnet | B116: FREE STATE | C116: 1318235
A117: Transnet | B117: GAUTENG | C117: 5853991
A118: Transnet | B118: MPUMALANGA | C118: 2729082
A119: Transnet | B119: NATAL | C119: 290123 | D119: 500
A120: Transnet | B120: NORTHERN CAPE | C120: 31788
A121: Transnet | B121: NORTH WEST | C121: 119008
A122: Transnet | B122: WESTERN CAPE | C122: 11478500 | D122: 1400
A126: 2ND QTR
C127: DIESEL | D127: IK | E127: LPG | F127: MOGAS
A128: Agricultural Co-ops | B128: EASTERN CAPE | C128: 17758859 | D128: 5029759 | F128: 1045863
A129: Agricultural Co-ops | B129: FREE STATE | C129: 23867841 | D129: 1150305 | F129: 3218780
A130: Agricultural Co-ops | B130: GAUTENG | C130: 8288124 | D130: 1117650 | F130: 132999
A131: Agricultural Co-ops | B131: MPUMALANGA | C131: 17963605 | D131: 2302652 | F131: 2634005
A132: Agricultural Co-ops | B132: NATAL | C132: 33573951 | D132: 2694334 | F132: 5475537
A133: Agricultural Co-ops | B133: NORTHERN CAPE | C133: 5798949 | D133: 116075 | F133: 820992
A134: Agricultural Co-ops | B134: NORTHERN PROVINCE | C134: 12681991 | D134: 837521 | F134: 2980276
A135: Agricultural Co-ops | B135: NORTH WEST | C135: 28263681 | D135: 819228 | F135: 3887681
A136: Agricultural Co-ops | B136: WESTERN CAPE | C136: 32471124 | D136: 1572670 | F136: 3943614
A137: Construction | B137: EASTERN CAPE | C137: 4502974 | D137: 31847
A138: Construction | B138: FREE STATE | C138: 2898349 | D138: 160 | F138: 43746
A139: Construction | B139: GAUTENG | C139: 16721533 | D139: 60420 | E139: 22442 | F139: 77322
A140: Construction | B140: MPUMALANGA | C140: 7718135 | F140: 132499
A141: Construction | B141: NATAL | C141: 6119711 | D141: 1500 | F141: 14853
A142: Construction | B142: NORTHERN CAPE | C142: 3637905 | D142: 31450 | F142: 30702
A143: Construction | B143: NORTHERN PROVINCE | C143: 4056494 | F143: 45448
A144: Construction | B144: NORTH WEST | C144: 4367082 | D144: 2256 | F144: 7947
A145: Construction | B145: WESTERN CAPE | C145: 7386302 | D145: 134335 | F145: 72315
A146: Farmers | B146: EASTERN CAPE | C146: 1016194 | D146: 800 | F146: 28748
A147: Farmers | B147: FREE STATE | C147: 5151695 | D147: 78801 | F147: 134768
A148: Farmers | B148: GAUTENG | C148: 3280438 | D148: 81740 | F148: 41737
A149: Farmers | B149: MPUMALANGA | C149: 6883490 | D149: 39264 | F149: 372161
A150: Farmers | B150: NATAL | C150: 4724134 | D150: 11834 | F150: 139875
A151: Farmers | B151: NORTHERN CAPE | C151: 1609065 | D151: 1470 | F151: 6878
A152: Farmers | B152: NORTHERN PROVINCE | C152: 2612180 | F152: 145070
A153: Farmers | B153: NORTH WEST | C153: 6086694 | D153: 17920 | F153: 107356
A154: Farmers | B154: WESTERN CAPE | C154: 2395791 | D154: 73577 | F154: 272359
A155: General Dealers | B155: EASTERN CAPE | C155: 23000251 | D155: 23526959 | F155: 8190847
A156: General Dealers | B156: FREE STATE | C156: 16031370 | D156: 6899025 | F156: 4477185
A157: General Dealers | B157: GAUTENG | C157: 113144433 | D157: 29004756 | F157: 35480104 | I157: Paraffin | L157: LPG
A158: General Dealers | B158: MPUMALANGA | C158: 34856261 | D158: 3858257 | F158: 13274637 | H158: General Dealers | I158: =SUM(D155:D163) -> 107000657 | K158: General dealers | L158: =SUM(E163) -> 3353449
A159: General Dealers | B159: NATAL | C159: 71839429 | D159: 24059504 | F159: 27515435 | H159: =A213 -> Remainder of General Trade | I159: =SUM(D211:D219) -> 50172091 | K159: Independent LPG marketers | L159: =SUM(E173:E176) -> 14216884
A160: General Dealers | B160: NORTHERN CAPE | C160: 16456153 | D160: 1979306 | F160: 9922615 | H160: =A222 -> Retail - garages | I160: =SUM(D220:D228) -> 7215967 | K160: Remainder of general trade | L160: =SUM(E211:E219) -> 127650724
A161: General Dealers | B161: NORTHERN PROVINCE | C161: 8095584 | D161: 2055280 | F161: 17969793 | I161: =SUM(I158:I160) -> 164388715 | L161: =SUM(L158:L160) -> 145221057
A162: General Dealers | B162: NORTH WEST | C162: 21667932 | D162: 3456953 | F162: 12375957
A163: General Dealers | B163: WESTERN CAPE | C163: 48782928 | D163: 12160617 | E163: 3353449 | F163: 14545269
A164: Government | B164: EASTERN CAPE | C164: 222739 | D164: 120097 | F164: 379008
A165: Government | B165: FREE STATE | C165: 70496 | F165: 40949
A166: Government | B166: GAUTENG | C166: 630330 | F166: 634563
A167: Government | B167: MPUMALANGA | C167: 2477510 | F167: 73614
A168: Government | B168: NATAL | C168: 741089 | D168: 309881 | F168: 87505
A169: Government | B169: NORTHERN CAPE | C169: 39386 | D169: 68707 | F169: 3484
A170: Government | B170: NORTHERN PROVINCE | C170: 146147 | F170: 312430
A171: Government | B171: NORTH WEST | C171: 1100629 | F171: 148450
A172: Government | B172: WESTERN CAPE | C172: 3271883 | D172: 4000 | F172: 44032
A173: Independant LPG Marketers | B173: FREE STATE | E173: 109669
A174: Independant LPG Marketers | B174: GAUTENG | E174: 28201
A175: Independant LPG Marketers | B175: NATAL | E175: 13468539
A176: Independant LPG Marketers | B176: WESTERN CAPE | E176: 610475
A177: Local Authorities | B177: EASTERN CAPE | C177: 819363 | F177: 322166
A178: Local Authorities | B178: FREE STATE | C178: 1197722 | F178: 640617
A179: Local Authorities | B179: GAUTENG | C179: 4226440 | F179: 1394247
A180: Local Authorities | B180: MPUMALANGA | C180: 913230 | F180: 353370
A181: Local Authorities | B181: NATAL | C181: 382728 | F181: 229128
A182: Local Authorities | B182: NORTHERN CAPE | C182: 163295 | F182: 54955
A183: Local Authorities | B183: NORTHERN PROVINCE | C183: 234277 | F183: 130506
A184: Local Authorities | B184: NORTH WEST | C184: 417895 | F184: 366397
A185: Local Authorities | B185: WESTERN CAPE | C185: 1060111 | D185: 1502 | F185: 331349
A186: Local marine fishing | B186: EASTERN CAPE | C186: 3076474 | F186: 14001
A187: Local marine fishing | B187: FREE STATE | C187: 11442
A188: Local marine fishing | B188: NATAL | C188: 6321441 | D188: 2200
A189: Local marine fishing | B189: WESTERN CAPE | C189: 26953484 | D189: 221816 | F189: 160992
A190: Mining | B190: EASTERN CAPE | C190: 605520
A191: Mining | B191: FREE STATE | C191: 2267761 | D191: 120455 | F191: 219639
A192: Mining | B192: GAUTENG | C192: 17158596 | D192: 2360 | F192: 482001
A193: Mining | B193: MPUMALANGA | C193: 69707307 | D193: 59544 | F193: 634006
A194: Mining | B194: NATAL | C194: 3858379 | D194: 3541 | F194: 47161
A195: Mining | B195: NORTHERN CAPE | C195: 36014063 | D195: 124567 | F195: 669355
A196: Mining | B196: NORTHERN PROVINCE | C196: 23104880 | D196: 70057 | F196: 416468
A197: Mining | B197: NORTH WEST | C197: 23865776 | D197: 1174661 | F197: 372096
A198: Mining | B198: WESTERN CAPE | C198: 9670206 | D198: 1702290 | F198: 436554
A199: Public Transport (by local Auth's) | B199: GAUTENG | C199: 1189000
A200: Public Transport (by local Auth's) | B200: MPUMALANGA | C200: 211367
A201: Public Transport (by local Auth's) | B201: NORTHERN CAPE | C201: 192339 | F201: 216346
A202: Public Transport (non local Auth's) | B202: EASTERN CAPE | C202: 2251139
A203: Public Transport (non local Auth's) | B203: FREE STATE | C203: 2075191
... 270 more rows

Sheet Fuel Supply
A1: 2007
B4: Electricity (PJ) | C4: Paraffin (PJ) | D4: LPG (PJ) | E4: Wood (PJ) | F4: Coal (PJ) | G4: Candles (PJ) | H4: Solar (PJ) | I4: Renewable and Waste | J4: Petrol (PJ) | K4: Diesel (PJ) | L4: Residual Fuel (PJ) | M4: Total (PJ)
A5: Low Income | B5: =RES!C92 -> 27.8149277 | C5: 9.787523736
A6: Middle Income | B6: =RES!C101 -> 51.2752632
A7: High Income | B7: =RES!C110 -> 79.3750714
A8: Total (this study) | B8: =#REF! ->  | C8: 21.99499004 | D8: 1.968547132 | E8: 128.8429801 | F8: 16.0932739 | G8: 0.0003178110253 | H8: 0 | M8: =SUM(C8:L8) -> 168.900109
A10: Supply Sources:
A11: DoE (Energy Balance) | B11: =142815.296875/1000 -> 142.8152969 | C11: =20301.306640625/1000 -> 20.30130664 | D11: =14859.904296875/1000 -> 14.8599043 | E11: =190400/1000 -> 190.4 | F11: 386.6768428 | H11: =3754.7998046875/1000 -> 3.754799805 | J11: =533.589294433593/1000 -> 0.5335892944 | K11: =1412.92126464843/1000 -> 1.412921265 | L11: =1.53491520881652/1000 -> 0.001534915209 | M11: =SUM(B11:L11) -> 760.7561959
A12: Eskom | B12: =M22 -> 35.0496
A13: NERSA | B13: =SUM(B27:C27) -> 140.922
A14: SAPIA | C14: 23.9616961 | D14: 15.24002102
A18: Eskom (GWh) | B18: 1996 | C18: 1997 | D18: 1998 | E18: 1999 | F18: 2000 | G18: 2001 | H18: 2002 | I18: 2003 | J18: 2004 | K18: 2005 | L18: 2006 | M18: 2007 | N18: 2008 | O18: 2009 | P18: 2010
A19: Residential | B19: 4753 | C19: 5494 | D19: 5989 | E19: 6057 | F19: 6308 | G19: 7301 | H19: 7888 | I19: 8015 | J19: =+(I19+K19)/2 -> 9080.5 | K19: 10146 | L19: 8904 | M19: 9736 | N19: 10423 | O19: 10392 | P19: 10350
A20: Redistributors | B20: 69905 | C20: 68109 | D20: 68666 | E20: 70345 | F20: 72307 | G20: 72189 | H20: 74636 | I20: 76825 | J20: =+(I20+K20)/2 -> 88243 | K20: 99661 | L20: 82108 | M20: 86908 | N20: 89941 | O20: 88345 | P20: 90712
A21: Residential (Wh) | B21: =B19*10^9 -> 4753000000000 | C21: =C19*10^9 -> 5494000000000 | D21: 5989000000000 | E21: 6057000000000 | F21: 6308000000000 | G21: 7301000000000 | H21: 7888000000000 | I21: 8015000000000 | J21: 9080500000000 | K21: 10146000000000 | L21: 8904000000000 | M21: 9736000000000 | N21: 10423000000000 | O21: 10392000000000 | P21: 10350000000000
A22: Residential (PJ) | B22: =B21*3600/10^15 -> 17.1108 | C22: =C21*3600/10^15 -> 19.7784 | D22: 21.5604 | E22: 21.8052 | F22: 22.7088 | G22: 26.2836 | H22: 28.3968 | I22: 28.854 | J22: 32.6898 | K22: 36.5256 | L22: 32.0544 | M22: 35.0496 | N22: 37.5228 | O22: 37.4112 | P22: 37.26
B24: Eskom | C24: Municipality | D24: Refernce
A25: NERSA (TWh) | B25: =110*8.8% -> 9.68 | C25: =83*35.5% -> 29.465 | D25: 9
A26: Wh | B26: =B25*10^12 -> 9.68e+12 | C26: =C25*10^12 -> 29465000000000 | D26: 9
A27: PJ | B27: =B26*3600/10^15 -> 34.848 | C27: =C26*3600/10^15 -> 106.074 | D27: 9
A30: Making SATIM energy balance for the residnetial sector, some assumptions
A31: In 2006 and 2007, SAPIA was publishing fuel sales data. We used the following assumptions to calculate
A32: illuminating parffin that is sold by service stations and resellers is taken as use by households.
A33: LPG sold by service stations and other resellers is taken as 50% household and 50% commercial

Sheet Lighting,cooking,space heating
B2: LIGTHING | C2: LIGTHING | D2: LIGTHING | E2: LIGTHING | L2: MODEL INPUTS
I3: percentage for all | J3: All
B4: R0 - R19200 | C4: low income | D4: =SUM(MyCS2007data!#REF!) ->  | E4: all | F4: electrified | G4: =MyCS2007data!$AM$2 -> 4016846.419 | H4: electricity | I4: =G4/D4 ->  | J4: =SUM(I4:I8,K5) ->  | K4: other | L4: Non-electrified
F5: non electrified | G5: =MyCS2007data!$AM$3 -> 1624839.78 | H5: gas | I5: =SUM(MyCS2007data!Q9:Q12)/'Lighting,cooking,space heating'!D4 ->  | K5: =SUM(MyCS2007data!U9:U12)/'Lighting,cooking,space heating'!D4 ->  | L5: =SUM(MyCS2007data!Q9:Q12)/G5 -> 0.006750179864 | M5: =SUM(L5:L8,N6) -> 1 | N5: =K4 -> other
H6: paraffin | I6: =+SUM(MyCS2007data!R9:R12)/'Lighting,cooking,space heating'!D4 ->  | L6: =SUM(MyCS2007data!R9:R12)/'Lighting,cooking,space heating'!G5 -> 0.2630073215 | N6: =SUM(MyCS2007data!U9:U12)/'Lighting,cooking,space heating'!G5 -> 0.02010604403
H7: candles | I7: =SUM(MyCS2007data!S9:S12)/'Lighting,cooking,space heating'!D4 ->  | L7: =SUM(MyCS2007data!S9:S12)/'Lighting,cooking,space heating'!G5 -> 0.7001577964
H8: solar | I8: =SUM(MyCS2007data!T9:T12)/'Lighting,cooking,space heating'!D4 ->  | L8: =SUM(MyCS2007data!T9:T12)/'Lighting,cooking,space heating'!G5 -> 0.009978658186
B9: R19201 - R76800 | C9: medium income | D9: =MyCS2007data!#REF! ->  | E9: all | F9: electrified | G9: =MyCS2007data!AM4 -> 3490962.908 | H9: electricity | I9: =G9/D9 ->  | J9: =SUM(I9:I13,K10) ->  | K9: other | L9: Non-electrified
F10: non electrified | G10: =MyCS2007data!AM5 -> 734472.2186 | H10: gas | I10: =SUM(MyCS2007data!Q13:Q14)/'Lighting,cooking,space heating'!D9 ->  | K10: =SUM(MyCS2007data!U13:U14)/'Lighting,cooking,space heating'!D9 ->  | L10: =SUM(MyCS2007data!Q13:Q14)/'Lighting,cooking,space heating'!G10 -> 0.00948951873 | M10: =SUM(L10:L13,N11) -> 1 | N10: =N5 -> other
H11: paraffin | I11: =SUM(MyCS2007data!R13:R14)/'Lighting,cooking,space heating'!D9 ->  | L11: =SUM(MyCS2007data!R13:R14)/'Lighting,cooking,space heating'!G10 -> 0.2699517298 | N11: =SUM(MyCS2007data!U13:U14)/'Lighting,cooking,space heating'!G10 -> 0.03070618337
H12: candles | I12: =SUM(MyCS2007data!S13:S14)/'Lighting,cooking,space heating'!D9 ->  | L12: =SUM(MyCS2007data!S13:S14)/'Lighting,cooking,space heating'!G10 -> 0.6752819103
H13: solar | I13: =SUM(MyCS2007data!T13:T14)/'Lighting,cooking,space heating'!D9 ->  | L13: =SUM(MyCS2007data!T13:T14)/'Lighting,cooking,space heating'!G10 -> 0.01457065779
B14: R76801 and more | C14: high income | D14: =MyCS2007data!$AL$18 -> 0 | E14: all | H14: elec | I14: 1
B19: COOKING | C19: COOKING | D19: COOKING | E19: COOKING
G20: percentage using electricity | H20: kWh per household
B21: =B4 -> R0 - R19200 | C21: low income | D21: =MyCS2007data!A84 -> 5641686.199 | E21: electrified | F21: electricity | G21: =MyCS2007data!D83 -> 0.53
F22: gas | G22: =MyCS2007data!D84 -> 0.01812367981
F23: paraffin | G23: =MyCS2007data!D85 -> 0.2155761087
F24: wood | G24: =MyCS2007data!D86 -> 0.2175700008
E25: non electrified | F25: coal | G25: =MyCS2007data!D87 -> 0.0141282342
B28: =B9 -> R19201 - R76800 | C28: medium income | D28: =MyCS2007data!A92 -> 4225435.127 | E28: electrified | F28: electricity | G28: =MyCS2007data!D91 -> 0.6926533445
F29: gas | G29: =MyCS2007data!D92 -> 0.0201857791
F30: paraffin | G30: =MyCS2007data!D93 -> 0.1306728477
F31: wood | G31: =MyCS2007data!D94 -> 0.1393998854
E32: non electrified | F32: coal | G32: =MyCS2007data!D95 -> 0.01420462669
B35: =B14 -> R76801 and more | C35: high income | D35: =MyCS2007data!A100 -> 2325804.952 | F35: elec | G35: =MyCS2007data!D99 -> 0.9751751572
F36: gas | G36: =MyCS2007data!D100 -> 0.02564044082
F37: paraffin | G37: =MyCS2007data!D101 -> 0.02110924705
F38: wood | G38: =MyCS2007data!D102 -> 0.0237744067
B40: SPACE HEATING | C40: SPACE HEATING | D40: SPACE HEATING | E40: SPACE HEATING
G41: percentage using electricity | H41: kWh per household
B42: =B21 -> R0 - R19200 | C42: low income | D42: =MyCS2007data!A116 -> 5641686.199 | E42: electrified | F42: electricity | G42: =MyCS2007data!D115 -> 0.439755841 | H42: =SUM(G42:G47) -> 0.9898513419
F43: gas | G43: =MyCS2007data!D116 -> 0.007269775002
F44: paraffin | G44: =MyCS2007data!D117 -> 0.1782873148
F45: wood | G45: =MyCS2007data!D118 -> 0.2852611615
E46: non electrified | F46: coal | G46: =MyCS2007data!D119 -> 0.0460680297
F47: Other | G47: =MyCS2007data!D122 -> 0.03320921986
B49: =B28 -> R19201 - R76800 | C49: medium income | D49: =MyCS2007data!A126 -> 4225435.127 | E49: electrified | F49: electricity | G49: =MyCS2007data!D125 -> 0.6036778447 | H49: =+SUM(G49:G54) -> 0.9973481163
F50: gas | G50: =MyCS2007data!D126 -> 0.009299394955
F51: paraffin | G51: =MyCS2007data!D127 -> 0.1233548708
F52: wood | G52: =MyCS2007data!D128 -> 0.1856317357
E53: non electrified | F53: coal | G53: =MyCS2007data!D129 -> 0.04638268122
F54: Other | G54: =MyCS2007data!D132 -> 0.02900158889
B56: =B35 -> R76801 and more | C56: high income | D56: =MyCS2007data!A136 -> 2325804.952 | F56: elec | G56: =MyCS2007data!D135 -> 0.9353588445 | H56: =SUM(G56:G61) -> 1.052188475
F57: gas | G57: =MyCS2007data!D136 -> 0.01931522404
F58: paraffin | G58: =MyCS2007data!D137 -> 0.03215092366
F59: wood | G59: =MyCS2007data!D138 -> 0.03761038072
F60: Coal | G60: =MyCS2007data!D139 -> 0.01102117211
F61: other | G61: =MyCS2007data!D142 -> 0.01673192963

Sheet NERSA Sales Sum
A2: Table 8.12 (a): Summary of customers and sales per economic activity by province and entity
B4: Total | D4: Domestic | F4: Agriculture | H4: Mining | J4: Manufacturing | L4: Commercial | N4: Transport | P4: General
A5: Entity / province | B5: Customers | C5: MWh | D5: Customers | E5: MWh | F5: Customers | G5: MWh | H5: Customers | I5: MWh | J5: Customers | K5: MWh | L5: Customers | M5: MWh | N5: Customers | O5: MWh | P5: Customers | Q5: MWh
A6: Eskom | B6: =D6+F6+H6+J6+L6+N6+P6+P6 -> 3962394 | C6: =E6+G6+I6+K6+M6+O6+Q6+Q6 -> 97435068.23 | D6: 3829986 | E6: 9736000 | F6: 82583 | G6: 4732000 | H6: 1127 | I6: 32421000 | J6: 2955 | K6: =47764830-C21 -> 39635068.23 | L6: 45233 | M6: 7842000 | N6: 510 | O6: 3069000 | P6: 0 | Q6: 0
A7: Municipalities | B7: =SUM(B8:B16) -> 4369023 | C7: =SUM(C8:C16) -> 82647078.64 | D7: 4033116 | E7: 29310274.26 | F7: 21135 | G7: 1109497.923 | H7: 2829 | I7: 286466.538 | J7: 27693 | K7: 23238300.09 | L7: 226644 | M7: 20869103.41 | N7: 330 | O7: 206925.083 | P7: 58863 | Q7: 7626511.345
A8: Eastern Cape | B8: 456033 | C8: 5105256.4 | D8: 419725 | E8: 1920758.3 | F8: 691 | G8: 11749.5 | H8: 0 | I8: 0 | J8: 1119 | K8: 1943221 | L8: 23467 | M8: 1067046 | N8: 4 | O8: 90 | P8: 11027 | Q8: 162391.6
A9: Free State | B9: 376031 | C9: 3154922 | D9: 359892 | E9: 1567115 | F9: 31 | G9: 185 | H9: 513 | I9: 23890 | J9: 1411 | K9: 982356 | L9: 13124 | M9: 418199 | N9: 0 | O9: 0 | P9: 1060 | Q9: 163177
A10: Gauteng | B10: 1166297 | C10: 31520586.84 | D10: 1084998 | E10: 12812310.34 | F10: 10084 | G10: 263210.73 | H10: 1 | I10: 179267 | J10: 6551 | K10: 9950485.344 | L10: 59709 | M10: 7961454.591 | N10: 115 | O10: 6011 | P10: 4839 | Q10: 347847.834
A11: KwaZulu Natal | B11: 834116 | C11: 21507806.51 | D11: 757449 | E11: 4848706.926 | F11: 55 | G11: 341546.95 | H11: 3 | I11: 2923.738 | J11: 8550 | K11: 7865963.99 | L11: 50525 | M11: 2466984.367 | N11: 158 | O11: 190906 | P11: 17376 | Q11: 5790774.542
A12: Limpopo | B12: 109845 | C12: 1333100.325 | D12: 95519 | E12: 503298.108 | F12: 4975 | G12: 156625.628 | H12: 3 | I12: 2817 | J12: 2222 | K12: 358991.309 | L12: 6692 | M12: 261515 | N12: 4 | O12: 156 | P12: 430 | Q12: 49697.28
A13: Mpumalanga | B13: 248917 | C13: 2641440.633 | D13: 231894 | E13: 938325.475 | F13: 253 | G13: 19926 | H13: 2302 | I13: 53395 | J13: 1216 | K13: 720978.445 | L13: 10828 | M13: 754658.367 | N13: 6 | O13: 745 | P13: 2418 | Q13: 153412.346
A14: Northern Cape | B14: 116696 | C14: 818690 | D14: 107119 | E14: 376072 | F14: 307 | G14: 11833 | H14: 5 | I14: 19290 | J14: 525 | K14: 173404 | L14: 8613 | M14: 167581 | N14: 32 | O14: 8461 | P14: 1682 | Q14: 62049
A15: North West | B15: 168489 | C15: 3651724.656 | D15: 154986 | E15: 1075442.85 | F15: 1765 | G15: 48978 | H15: 2 | I15: 4883.8 | J15: 2330 | K15: 296059 | L15: 8559 | M15: 2140447.283 | N15: 0 | O15: 0 | P15: 847 | Q15: 85913.723
A16: Western Cape | B16: 892599 | C16: 12913551.27 | D16: 821534 | E16: 5268245.256 | F16: 2974 | G16: 255443.115 | H16: 0 | I16: 0 | J16: 3769 | K16: 946841 | L16: 45127 | M16: 5631217.799 | N16: 11 | O16: 556.083 | P16: 19184 | Q16: 811248.02
A17: Private Distributors | B17: 489 | C17: 12274659 | D17: 0 | E17: 0 | F17: 0 | G17: 0 | H17: 3 | I17: 68781 | J17: 423 | K17: 771045 | L17: 32 | M17: 9630 | N17: 5 | O17: 197 | P17: 26 | Q17: 11425006
A18: Total | B18: =D6+B7+B17 -> 8199498 | C18: 104657737.6 | D18: 4115699 | E18: 34042274.26 | F18: 22262 | G18: 33530497.92 | H18: 5787 | I18: 39990315.77 | J18: 73349 | K18: 31851345.09 | L18: 227186 | M18: 23947733.41 | N18: 335 | O18: 207122.083 | P18: =R6+P7+P17 -> 58889 | Q18: =S6+Q7+Q17 -> 19051517.34
A19: Eskom sales to redistributors
A20: Municipalities | B20: 760 | C20: 86908000 | D20: =+E7+G7+M7+O7 -> 51495800.67 | E20: =+E7/$D$20 -> 0.56917795 | G20: =+G7/$D$20 -> 0.02154540581 | M20: =+M7/$D$20 -> 0.4052583538 | O20: =+O7/$D$20 -> 0.00401829043
A21: Private | B21: 6 | C21: 8129761.77
A24: Table 8.12 (b): Summary of revenue per economic activity by province and entity
B26: Total | D26: Domestic | F26: Agriculture | H26: Mining | J26: Manufacturing | L26: Commercial | N26: Transport | P26: General
A27: Entity / province | B27: Revenue Rk | C27: Price c/kWh | D27: Revenue Rk | E27: Price c/kWh | F27: Revenue Rk | G27: Price c/kWh | H27: Revenue Rk | I27: Price c/kWh | J27: Revenue Rk | K27: Price c/kWh | L27: Revenue Rk | M27: Price c/kWh | N27: Revenue Rk | O27: Price c/kWh | P27: Revenue Rk | Q27: Price c/kWh
A28: Total | B28: =B29+B30+B40 -> 43187899.91 | C28: =B28/B47*100 -> 27.44520875 | D28: =D29+D30+D40 -> 10854594 | E28: =D28/D47*100 -> 38.48460679 | F28: =F29+F30+F40 -> 1805729.43 | G28: =F28/F47*100 -> 33.53474757 | H28: =H29+H30+H40 -> 5505626 | I28: =H28/H47*100 -> 16.9372126 | J28: =J29+J30+J40 -> 13205101 | K28: =J28/J47*100 -> 24.12203943 | L28: =L29+L30+L40 -> 9272440.96 | M28: =L28/L47*100 -> 34.24250624 | N28: =N29+N30+N40 -> 740524 | O28: =N28/N47*100 -> 22.71948772 | P28: =P29+P30+P40 -> 413416.6 | Q28: =P28/P47*100 -> 30.1510409
A29: Eskom | B29: 24719000 | C29: =B29/C6*100 -> 25.3697159 | D29: 4064000 | E29: =D29/E6*100 -> 41.7419885 | F29: 1594000 | G29: =F29/G6*100 -> 33.68554522 | H29: 5479000 | I29: =H29/I6*100 -> 16.89954042 | J29: 9578000 | K29: =J29/K6*100 -> 24.16546868 | L29: 1843000 | M29: =L29/M6*100 -> 23.50165774 | N29: 646000 | O29: =N29/O6*100 -> 21.04920169 | P29: 0
A30: Municipalities | B30: =SUM(B31:B39) -> 18468899.91 | C30: =B30/B49*100 -> 30.81983618 | D30: =SUM(D31:D39) -> 6790594 | E30: =D30/D49*100 -> 36.76746885 | F30: =SUM(F31:F39) -> 211729.43 | G30: =F30/F49*100 -> 32.44140139 | H30: =SUM(H31:H39) -> 26626 | I30: =H30/H49*100 -> 31.29064031 | J30: =SUM(J31:J39) -> 3627101 | K30: =J30/J49*100 -> 24.00810366 | L30: =SUM(L31:L39) -> 7429440.96 | M30: =L30/L49*100 -> 38.62109179 | N30: =SUM(N31:N39) -> 94524 | O30: =N30/N49*100 -> 49.63920072 | P30: =SUM(P31:P39) -> 413416.6 | Q30: =P30/P49*100 -> 30.1510409
A31: Eastern Cape | B31: 655223.99 | C31: 35.40873926 | D31: 300072 | E31: 37.56486365 | F31: 1401.43 | G31: 32.31707598 | I31: 0 | J31: 102689 | K31: 26.7941198 | L31: 215406.96 | M31: 39.50449684 | N31: 31 | O31: 38.75 | P31: 35623.6 | Q31: 30.68814792
A32: Free State | B32: 1369278 | C32: 49.50057588 | D32: 738014 | E32: 51.20090911 | F32: 0 | H32: 9019 | I32: 37.75219757 | J32: 435966 | K32: 51.23111146 | L32: 140222 | M32: 44.45353242 | N32: 0 | P32: 46057 | Q32: 48.43312932
A33: Gauteng | B33: 6416066 | C33: 31.9206758 | D33: 1462563 | E33: 37.83891199 | F33: 69630 | G33: 37.86487769 | H33: 0 | J33: 992618 | K33: 24.71184962 | L33: 3886356 | M33: 52.93154378 | N33: 0 | P33: 4899 | Q33: 16.9481358
A34: KwaZulu Natal | B34: 4007098 | C34: 26.31556461 | D34: 1537988 | E34: 31.96107501 | F34: 518 | G34: 40.56540977 | H34: 1424 | I34: 48.7047745 | J34: 1507705 | K34: 19.71071612 | L34: 877221 | M34: 35.90398443 | N34: 40432 | O34: 21.68749665 | P34: 41810 | Q34: 35.4852683
A35: Limpopo | B35: 234095.9231 | C35: 21.74112964 | D35: 139199 | E35: 35.35275476 | F35: 42363 | G35: 28.23548174 | H35: 0 | J35: 108037 | K35: 31.11823304 | L35: 52507 | M35: 35.81626319 | N35: 42 | O35: 26.92307692 | P35: 16480 | Q35: 42.22903718
A36: Mpumalanga | B36: 762037 | C36: 31.26734084 | D36: 356467 | E36: 42.44670451 | F36: 7256 | G36: 41.93250116 | H36: 15181 | I36: 28.43150108 | J36: 96773 | K36: 14.40245863 | L36: 234226 | M36: 32.99970977 | N36: 0 | O36: 0 | P36: 52134 | Q36: 35.96291544
A37: Northern Cape | B37: 202063 | C37: 36.88243465 | D37: 128910 | E37: 47.93957628 | F37: 699 | G37: 35.12562814 | H37: 0 | J37: 30037 | K37: 20.84498636 | L37: 36208 | M37: 40.68954667 | N37: 1843 | O37: 57.59375 | P37: 4366 | Q37: 32.49479012
A38: North West | B38: 946782 | C38: 25.92698216 | D38: 385495 | E38: 35.84523343 | F38: 19598 | G38: 40.01388378 | H38: 1002 | I38: 20.51681068 | J38: 103412 | K38: 41.53642852 | L38: 412928 | M38: 19.29166877 | N38: 0 | P38: 24347 | Q38: 32.51003465
A39: Western Cape | B39: 3876256 | C39: 31.59622554 | D39: 1741886 | E39: 35.02248282 | F39: 70264 | G39: 28.69779449 | H39: 0 | J39: 249864 | K39: 31.41011378 | L39: 1574366 | M39: 28.60013729 | N39: 52176 | O39: 9382.771996 | P39: 187700 | Q39: 25.33309511
A40: Private Distributors | B40: 0 | C40: 0 | D40: 0 | E40: 0 | F40: 0 | G40: 0 | H40: 0 | I40: 0 | J40: 0 | K40: 0 | L40: 0 | M40: 0 | N40: 0 | O40: 0 | P40: 0 | Q40: 0
A42: Note
A43: Only 46% of municipal distributors provided 2006 revenue information.
A46: Sales corresponding to revenue provided
A47: Total | B47: =B48+B49 -> 157360435.1 | D47: =D48+D49 -> 28205027.68 | F47: =F48+F49 -> 5384651.923 | H47: =H48+H49 -> 32506092.54 | J47: =J48+J49 -> 54742887.87 | L47: =L48+L49 -> 27078745.04 | N47: =N48+N49 -> 3259422.083 | P47: =P48+P49 -> 1371151.999
A48: Eskom | B48: =C6 -> 97435068.23 | D48: =E6 -> 9736000 | F48: 4732000 | H48: 32421000 | J48: 39635068.23 | L48: 7842000 | N48: 3069000 | P48: 0
A49: Municipalities | B49: =SUM(B50:B58) -> 59925366.91 | C49: =SUM(C50:C58) -> 0 | D49: 18469027.68 | E49: 0 | F49: 652651.923 | G49: 0 | H49: 85092.538 | I49: 0 | J49: 15107819.64 | K49: 0 | L49: 19236745.04 | M49: 0 | N49: 190422.083 | O49: 0 | P49: 1371151.999 | Q49: 0
A50: Eastern Cape | B50: 1850458.4 | C50: 0 | D50: 798810.3 | E50: 0 | F50: 4336.5 | G50: 0 | H50: 0 | I50: 0 | J50: 383252 | K50: 0 | L50: 545272 | M50: 0 | N50: 80 | O50: 0 | P50: 116082.6 | Q50: 0
A51: Free State | B51: 2766186 | C51: 0 | D51: 1441408 | E51: 0 | F51: 0 | G51: 0 | H51: 23890 | I51: 0 | J51: 850979 | K51: 0 | L51: 315435 | M51: 0 | N51: 0 | O51: 0 | P51: 95094 | Q51: 0
A52: Gauteng | B52: 20100031.84 | C52: 0 | D52: 3865235.344 | E52: 0 | F52: 183890.73 | G52: 0 | H52: 0 | I52: 0 | J52: 4016769.344 | K52: 0 | L52: 7342230.591 | M52: 0 | N52: 0 | O52: 0 | P52: 28905.834 | Q52: 0
A53: KwaZulu Natal | B53: 15227102.51 | C53: 0 | D53: 4812065.926 | E53: 0 | F53: 1276.95 | G53: 0 | H53: 2923.738 | I53: 0 | J53: 7649163.99 | K53: 0 | L53: 2443241.367 | M53: 0 | N53: 186430 | O53: 0 | P53: 117823.542 | Q53: 0
A54: Limpopo | B54: 1076742.225 | C54: 0 | D54: 393743.008 | E54: 0 | F54: 150034.628 | G54: 0 | H54: 0 | I54: 0 | J54: 347182.309 | K54: 0 | L54: 146601 | M54: 0 | N54: 156 | O54: 0 | P54: 39025.28 | Q54: 0
A55: Mpumalanga | B55: 2437166 | C55: 0 | D55: 839799 | E55: 0 | F55: 17304 | G55: 0 | H55: 53395 | I55: 0 | J55: 671920 | K55: 0 | L55: 709782 | M55: 0 | N55: 0 | O55: 0 | P55: 144966 | Q55: 0
A56: Northern Cape | B56: 547857 | C56: 0 | D56: 268901 | E56: 0 | F56: 1990 | G56: 0 | H56: 0 | I56: 0 | J56: 144097 | K56: 0 | L56: 88986 | M56: 0 | N56: 3200 | O56: 0 | P56: 13436 | Q56: 0
A57: North West | B57: 3651724.656 | C57: 0 | D57: 1075442.85 | E57: 0 | F57: 48978 | G57: 0 | H57: 4883.8 | I57: 0 | J57: 248967 | K57: 0 | L57: 2140447.283 | M57: 0 | N57: 0 | O57: 0 | P57: 74890.723 | Q57: 0
A58: Western Cape | B58: 12268098.27 | C58: 0 | D58: 4973622.256 | E58: 0 | F58: 244841.115 | G58: 0 | H58: 0 | I58: 0 | J58: 795489 | K58: 0 | L58: 5504749.799 | M58: 0 | N58: 556.083 | O58: 0 | P58: 740928.02 | Q58: 0
A60: Source: "Copy of ESI STATS 2006" NERSA document from Alison

Sheet Appliances
A3: Hours the appliances are in standby during Weekdays
A4: Appliances | B4: Cluster1 | C4: Cluster2 | D4: Cluster3 | E4: Cluster4 | F4: Cluster5 | G4: Average standby time | H4: Operating hours in a day | I4: Reference for everything
A5: TV | B5: 14.9 | C5: 17.2 | D5: 18.4 | E5: 19.4 | F5: 21.1 | G5: =AVERAGE(B5:F5) -> 18.2 | H5: =24-G5 -> 5.8 | I5: 8
A6: MPBC | B6: 23 | C6: 23.1 | D6: 22.7 | E6: 22.8 | F6: 23.1 | G6: 22.94 | H6: =24-G6 -> 1.06 | I6: 8
A7: Microwave | B7: =23.6 -> 23.6 | C7: 23.5 | D7: 23.5 | E7: 23.5 | F7: 23.6 | G7: 23.54 | H7: 0.46 | I7: 8
A8: DVD | B8: 19.3 | C8: 21.3 | D8: 21.8 | E8: 21.7 | F8: 23.3 | G8: 21.48 | H8: 2.52 | I8: 8
A9: Hi-Fi | B9: 16 | C9: 20.7 | D9: 20.3 | E9: 20.6 | F9: 21.5 | G9: 19.82 | H9: 4.18 | I9: 8
A10: VCR | B10: 22.2 | C10: 20.3 | D10: 22.1 | E10: 22.6 | F10: 23.4 | G10: 22.12 | H10: 1.88 | I10: 8
A11: PC/Monitors | B11: 21.9 | C11: 20.8 | D11: 21.5 | E11: 20.5 | F11: 21.1 | G11: 21.16 | H11: 2.84 | I11: 8
A12: DSTV Decoders | B12: 15 | C12: 16.8 | D12: 17.3 | E12: 19.2 | F12: 21.3 | G12: 17.92 | H12: 6.08 | I12: 8
A13: Printers | B13: - | C13: 23.7 | D13: 23.7 | E13: 23.8 | F13: 23.8 | G13: 23.75 | H13: 0.25 | I13: 8
A14: MFD | B14: - | C14: 23 | D14: 23.6 | E14: 23.4 | F14: 23.7 | G14: 23.425 | H14: 0.575 | I14: 8
A15: LCD /Plasm TV
A16: Kettle | B16: 23.5
A21: Hours the appliances are in standby during Weekends
A22: Appliances | B22: Cluster1 | C22: Cluster2 | D22: Cluster3 | E22: Cluster4 | F22: Cluster5 | G22: Average standby hours | H22: Operating hours in a day | I22: Reference for power Ratings
A23: TV | B23: 15.8 | C23: 15.4 | D23: 16.2 | E23: 17.2 | F23: 19.6 | G23: =AVERAGE(B23:F23) -> 16.84 | H23: =24-G23 -> 7.16 | I23: 8
A24: MPBC | B24: 22.7 | C24: 23.1 | D24: 22.8 | E24: 22.8 | F24: 23 | G24: 22.88 | H24: 1.12 | I24: 8
A25: Microwave | B25: 23.5 | C25: 23.6 | D25: 23.4 | E25: 23.5 | F25: 23.4 | G25: 23.48 | H25: 0.52 | I25: 8
A26: DVD | B26: 16.8 | C26: 19.8 | D26: 20.6 | E26: 20.9 | F26: 21.7 | G26: 19.96 | H26: 4.04
A27: Hi-Fi | B27: 15.4 | C27: 20.2 | D27: 19.9 | E27: 19.1 | F27: 21.5 | G27: 19.22 | H27: 4.78 | I27: 8
A28: VCR | B28: 23 | C28: 20 | D28: 21.5 | E28: 22 | F28: 22.4 | G28: 21.78 | H28: 2.22 | I28: 8
A29: PC/Monitors | B29: 21 | C29: 19.9 | D29: 20.8 | E29: 22 | F29: 20.8 | G29: 20.9 | H29: 3.1 | I29: 8
A30: DSTV Decoders | B30: 15 | C30: 16.3 | D30: 16.7 | E30: 17.6 | F30: 19.3 | G30: 16.98 | H30: 7.02 | I30: 8
A31: Printers | B31: - | C31: 24 | D31: 23.4 | E31: 23.8 | F31: 23.2 | G31: 23.6 | H31: 0.4 | I31: 8
A32: MFD | B32: - | C32: 23.5 | D32: 23.8 | E32: 23.5 | F32: 23.7 | G32: 23.625 | H32: 0.375 | I32: 8
A34: Appliances | B34: Average opeation time | C34: Average annual hours in operation | D34: Measured average power consumption (Watts) | E34: Wh/annum | F34: KJ/annum | G34: MJ/annum | H34: Reference for measured power | I34: Refernces for power ratings | J34: Reference for hours in Operation
A35: TV | B35: =SUM(H5,H23)/2 -> 6.48 | C35: =B35*365 -> 2365.2 | D35: 8.2 | E35: =Table1[[#This Row],[Average annual hours in operation]]*D35 -> 19394.64 | F35: =3.6*E35 -> 69820.704 | G35: =F35/1000 -> 69.820704 | H35: 8
A36: MPBC | B36: 1.09 | C36: 397.85 | D36: 0.24 | E36: =Table1[[#This Row],[Average annual hours in operation]]*D36 -> 95.484 | F36: 343.7424 | G36: 0.3437424 | H36: 8
A37: Microwave | B37: 0.49 | C37: 178.85 | D37: 2.57 | E37: =Table1[[#This Row],[Average annual hours in operation]]*D37 -> 459.6445 | F37: 1654.7202 | G37: 1.6547202 | H37: 8
A38: DVD | B38: 3.28 | C38: 1197.2 | D38: 3.77 | E38: =Table1[[#This Row],[Average annual hours in operation]]*D38 -> 4513.444 | F38: 16248.3984 | G38: 16.2483984 | H38: 8
A39: Hi-Fi | B39: 4.48 | C39: 1635.2 | D39: 11.32 | E39: =Table1[[#This Row],[Average annual hours in operation]]*D39 -> 18510.464 | F39: 66637.6704 | G39: 66.6376704 | H39: 8
A40: VCR | B40: 2.05 | C40: 748.25 | D40: 4.76 | E40: =Table1[[#This Row],[Average annual hours in operation]]*D40 -> 3561.67 | F40: 12822.012 | G40: 12.822012 | H40: 8
A41: PCs | B41: 2.97 | C41: 1084.05 | D41: 40.17 | E41: =Table1[[#This Row],[Average annual hours in operation]]*D41 -> 43546.2885 | F41: 156766.6386 | G41: 156.7666386 | H41: 8
A42: DSTV Decoders | B42: 6.55 | C42: 2390.75 | D42: 20.78 | E42: =Table1[[#This Row],[Average annual hours in operation]]*D42 -> 49679.785 | F42: 178847.226 | G42: 178.847226 | H42: 8
A43: Printers | B43: 0.325 | C43: 118.625 | D43: 5.45 | E43: =Table1[[#This Row],[Average annual hours in operation]]*D43 -> 646.50625 | F43: 2327.4225 | G43: 2.3274225 | H43: 8
A44: MFD | B44: 0.475 | C44: 173.375 | D44: 9.93 | E44: =Table1[[#This Row],[Average annual hours in operation]]*D44 -> 1721.61375 | F44: 6197.8095 | G44: 6.1978095 | H44: 8
A45: CRT Monitor | C45: =C41 -> 1084.05 | D45: 2.95 | E45: =Table1[[#This Row],[Average annual hours in operation]]*D45 -> 3197.9475 | F45: 11512.611 | G45: 11.512611 | H45: 8
A46: LCD TVs | C46: =C35 -> 2365.2 | D46: 4.98 | E46: =Table1[[#This Row],[Average annual hours in operation]]*D46 -> 11778.696 | F46: 42403.3056 | G46: 42.4033056 | H46: 8
A47: Plasma TV | C47: =C35 -> 2365.2 | D47: 7.86 | E47: =Table1[[#This Row],[Average annual hours in operation]]*D47 -> 18590.472 | F47: 66925.6992 | G47: 66.9256992 | H47: 8
A48: home theater | E48: =Table1[[#This Row],[Average annual hours in operation]]*D48 -> 0 | F48: 0 | G48: 0
A49: PC Monitors | C49: 10.6 | E49: =Table1[[#This Row],[Average annual hours in operation]]*D49 -> 0 | F49: 0 | G49: 0
A50: Kettle | B50: =24-B16 -> 0.5 | C50: =Table1[[#This Row],[Average opeation time]] -> 0.5 | D50: 1000 | E50: =Table1[[#This Row],[Average annual hours in operation]]*D50 -> 500 | F50: 1800 | G50: 1.8 | I50: 15 | J50: 15
A51: Iron | B51: 4 | C51: =Table1[[#This Row],[Average opeation time]] -> 4 | D51: 1000 | E51: =Table1[[#This Row],[Average annual hours in operation]]*D51 -> 4000 | F51: 14400 | G51: 14.4 | I51: 15 | J51: 15
A55: List of appliances that make up other end use in Low Income households (definition in SATIM)
A56: Appliance | B56: Hrs in operation a day | C56: Power (W) | D56: energy monthly (KWh/month) | E56: Yearly (MJ)
A57: TV sets (B/W) | B57: 6 | C57: 35 | D57: =C57*B57*30/1000 -> 6.3 | E57: =D57*3.6*12 -> 272.16
A58: TV Sets(CRT) | B58: 6 | C58: 75 | D58: =C58*B58*30/1000 -> 13.5 | E58: =D58*12*3.6 -> 583.2
A59: Kettle | B59: 0.5 | C59: 1000 | D59: =B59*C59*30/1000 -> 15 | E59: =D59*3.6*12 -> 648
A60: Iron | B60: 4 | C60: 1000 | D60: =B60*C60/1000 -> 4 | E60: =D60*3.6*12 -> 172.8
C61: Those using CRTs | E61: =SUM(E58:E60) -> 1404
A62: Total | E62: =SUM(E59,E57,E60) -> 1092.96
A65: List of appliances that make up other end use in Middle Income households (definition in SATIM)
A66: Appliance | B66: Hrs in operation a day | C66: Power (W) | D66: energy monthly (KWh/month) | E66: Yearly (MJ)
A67: Iron
A75: List of appliances that make up other end use in High Income households (definition in SATIM)
A76: Appliance | B76: Appliance2 | C76: Appliance3 | D76: Appliance4 | E76: Appliance5
A85: Appliance Characteristics
A86: Appliance | B86: Efficiency | C86: Cost | D86: Reference for Efficiency | E86: Reference for Cost
A87: Microwave 1 | B87: 0.51 | D87: 12
A88: Microwave 2 | B88: 0.44 | D88: 13
A89: Microwave 3 | B89: 0.54 | D89: 14
A90: Paraffin Wick Stove | B90: 0.445 | D90: 15
A91: Paraffin Primus stove | B91: 0.565 | D91: 15
A92: Primus Stove | B92: =F119% -> 0.610625
A93: Wick Stove | B93: =E110% -> 0.5165 | C93: 30 | D93: 17 | E93: 17
A94: LPG ring | B94: 0.606 | D94: 16
A95: Coal Mbawula BnM | B95: 0.11 | D95: 16
A99: Wick Stoves | B99: Name of Stove | C99: Efficiency1-S | D99: Efficiency 2-K | E99: Average
A100: Wick STove 1 | B100: Everbrite | C100: 55 | D100: 52 | E100: =AVERAGE(C100:D100) -> 53.5
A101: Primus stove 2 | B101: Giant | C101: 58 | D101: 52 | E101: 55
A102: Primus stove 3 | B102: Man | C102: 50 | D102: 51 | E102: 50.5
A103: Primus stove 4 | B103: Panda | C103: 29 | D103: 31 | E103: 30
A104: Primus stove 5 | B104: Paraburn | C104: 28 | D104: 50 | E104: 39
A105: Primus stove 6 | B105: Sikeni Double | C105: 53 | D105: 47 | E105: 50
A106: Primus stove 7 | B106: Sikeni Power Plus | C106: 60 | D106: 61 | E106: 60.5
A107: Primus stove 8 | B107: Swastic Gold | C107: 66 | D107: 63 | E107: 64.5
A108: Primus stove 9 | B108: Swastic King | C108: 66 | D108: 55 | E108: 60.5
A109: Primus stove 10 | B109: Swastic Medium | C109: 58 | D109: 48 | E109: 53
B110: overall average eff | E110: =AVERAGE(E100:E109) -> 51.65
A111: The most used stove is the Panda stove which costs R30 in 2006 Rand value
A113: Pressure Stoves
A114: Names | B114: roarer eff1 | C114: roarer eff2 | D114: Silent eff1 | E114: Silent eff2 | F114: Average
A115: Prahbat | B115: 59 | C115: 56 | D115: 45 | E115: 61 | F115: =AVERAGE(B115:E115) -> 55.25
A116: Primus Stoves | B116: 65 | C116: 66 | D116: 40 | E116: 45 | F116: =AVERAGE(B116:E116) -> 54
A117: Glory | B117: 63 | C117: 71 | D117: 47 | E117: 49 | F117: =AVERAGE(B117:E117) -> 57.5
A118: Hippo | B118: 80 | C118: 75 | F118: =AVERAGE(B118:E118) -> 77.5
A119: overall ave efficiency | F119: =AVERAGE(F115:F118) -> 61.0625
B122: Fuel consumption (l/hr) | C122: Tank Capacity (L) | D122: Burnign Time | E122: Cost USA $
A123: Totoyomi Heater | B123: 0.279 | C123: 4.7 | D123: 16.8 | E123: 199.99
A124: Totoyomi Tove | B124: 0.206 | C124: 4 | D124: 19.5
A129: Natural Gas Appliances | B129: Price (USA dollar) | C129: References
A130: Gas Heater 1 | B130: 368.99 | C130: 18
A131: Gas Heater 2 | B131: 250 | C131: 18
A132: Gas Heater 3 | B132: 395 | C132: 18
A133: Gas Heater 4 | B133: 1150 | C133: 18
A134: Gas Heater 5 | B134: 1358.99 | C134: 18
A135: Gas Heater 6 | B135: 749.99 | C135: 18
A136: Average | B136: =AVERAGE(B130:B135) -> 712.1616667
A138: Natural Gas Stove
A139: Stove 1 | B139: 2000 | C139: 18
A140: Stove 2 | B140: 60.99 | C140: 18
A141: Stove 3 | B141: 12398
A142: Average | B142: =AVERAGE(B139:B141) -> 4819.663333
F151: =F169*8 -> 3728.560776
A153: End Use | B153: SATIM_Code | C153: Appliance | D153: Year | E153: Life | F153: Investment Cost | G153: FIXOM | H153: EFF
A154: Space heating | C154: Natural Gas heater | D154: 2006 | E154: 15 | F154: 18.11186186 | G154: 0.1811186186 | H154: 0.65
C155: Natural Gas heater coupled with solar Heater | D155: 2006 | E155: 15 | F155: 222.8791291 | G155: 4.457456505 | H155: 0.54
C156: RES: .05.NGA.WATER HEATER.NEW. | D156: 2006 | E156: 20 | F156: 30.21771772 | G156: 0.7610660881 | H156: 0.7
C157: RES: .10.NGA.WATER HEATER.ADV. | D157: 2010 | E157: 20 | F157: 30.21771772 | G157: 0.6148045788 | H157: 0.86
C158: RES: .05.NGA.CLOTH DRIERS.STD. | D158: 2006 | E158: 15 | F158: 265.49 | G158: 5.53 | H158: 1
C159: RES.COOK.R1: .05.NGA. | D159: 2006 | E159: 17 | F159: 183.971941 | G159: 4.599298524 | H159: 1
C160: RES.HEAT.R1: .05.NGA.INS-REG.BURNER.STD. | D160: 2006 | E160: 20 | F160: 55.36097616 | G160: 4.606549391 | H160: 0.8
C161: RES.HEAT.R1: .05.NGA.INS-REG.BURNER.IMP. | D161: 2006 | E161: 20 | F161: 98.858886 | G161: 7.318030664 | H161: 0.963
C162: RES.HEAT.R1: .05.NGA.INS-REG.HEAT PUMP.AIR.STD. | D162: 2006 | E162: 15 | F162: 125.5350933 | G162: 6.288292819 | H162: 2
C163: RES.HEAT.R1: .05.NGA.INS-REG.HEAT PUMP.AIR.HICOOL. | D163: 2006 | E163: 15 | F163: 225.963168 | G163: 11.26863919 | H163: 2
C164: RES.HEAT.R1: .05.NGA.INS-REG.SOLAR | D164: 2006 | E164: 20 | F164: 1403.828193 | G164: 70.25155651 | H164: 0.72
C165: RES.HEAT.R1: .05.NGA.INS-REG.BURNER.NEW. | D165: 2006 | E165: 20 | F165: 98.858886 | G165: 6.694855402 | H165: 0.88
C166: RES.COOL.R1: .05.NGA.INS-REG.HEAT PUMP.AIR.STD. | D166: 2006 | E166: 15 | F166: 310.713398 | G166: 6.214267959 | H166: 1.05
C167: RES.COOL.R1: .05.NGA.INS-REG.CENTRAL.NEW. | D167: 2006 | E167: 15 | F167: 419.4630872 | G167: 9.990894896 | H167: 4.41
C168: RES.COOL.R1: .05.ELC.INS-REG.ROOM.NEW. | D168: 2006 | E168: 15 | F168: 110.6139697 | G168: 2.23605517 | H168: 3.52
C169: RES.COOL.R1: .15.NGA.INS-REG.HEAT PUMP.AIR.HICOOL.NEW. | D169: 2015 | E169: 15 | F169: 466.0700969 | G169: 9.846551344 | H169: 1.2
C170: RES.COOL.R1: .05.NGA.INS-REG.HEAT PUMP.AIR.STD. | D170: 2006 | E170: 15 | F170: 310.713398 | G170: 6.214267959 | H170: 1.05
C171: RES.COOL.R1: .05.NGA.INS-REG.CENTRAL.NEW. | D171: 2006 | E171: 15 | F171: 419.4630872 | G171: 9.990894896 | H171: 4.41
A174: Lighting | B174: Cost | C174: Notes | D174: Reference
A175: LED 1 | B175: 285 | D175: 19
A176: LED 2 | B176: 190 | D176: 19
A177: LED 3 | B177: 70 | D177: 19
A178: LED 4 | B178: 85 | D178: 19
A179: LED 5 | B179: 130 | D179: 19
A180: LED 6 | B180: 170 | C180: downlighters | D180: 19
A181: LED 7 | B181: 265 | C181: downlighters | D181: 19
A182: LED 8 | B182: 420 | C182: downlighters | D182: 19
A183: LED 9 | B183: 140 | C183: downlighters | D183: 19
A184: LED 10 | B184: 465 | C184: downlighters | D184: 19
A185: LED 11 | B185: 100 | C185: downlighters | D185: 19
A187: Average | B187: =AVERAGE(B175:B185) -> 210.9090909
B189: failure rates in 3 years | C189: penetration level/usage levels | D189: CFL pen level | E189: Inca pen level
A190: MK study (low) | B190: =AVERAGE(#REF!)/100 ->  | C190: =(1-B190) ->  | D190: =AVERAGE(C190:C191) ->  | E190: =1-D190 ->  | F190: Low
A191: Mascha report, Khayelitsha (low) | B191: =(100-37)/100 -> 0.63 | C191: =1-B191 -> 0.37 | E191: =1-C191 -> 0.63 | F191: low
A192: middle - high (estimated) | B192: =(100-48.4)/100 -> 0.516 | C192: =1-B192 -> 0.484 | D192: =C192 -> 0.484 | E192: =B192 -> 0.516 | F192: Middle & high
B194: CFL pen rate | C194: Inca pen rate | D194: other lights
A195: Low | B195: =D190 ->  | C195: =E190 ->  | D195: 0
A196: Middle | B196: =C192 -> 0.484 | C196: =E192 -> 0.516 | D196: 0
A197: High income | B197: =C192 -> 0.484 | C197: =E192 -> 0.516 | D197: 1

Sheet Marcus Dekenah
A1: The data in this sheet is processed from a program called D-PET, Alison has the D_PET disk, she got it from Marcus while attending the Domestic Use of Energy in 2010/2009
J3: Year 10 | K3: Year 15
H4: Monthly | I4: Annual | J4: =B6 -> Energy [kWh]/month | K4: Energy [kWh]/month
A5: 500 | H5: =A5 -> 500 | I5: =H5*12 -> 6000 | J5: =B16 -> 66.94 | K5: =B21 -> 71.84 | L5: 1
A6: Year | B6: Energy [kWh]/month | C6: ADMD [kVA] | D6: alpha | E6: beta | F6: Circuit breaker | H6: =A22 -> 1000 | I6: =H6*12 -> 12000 | J6: =B34 -> 134.84 | K6: =B38 -> 142.39 | L6: 2
A7: 1 | B7: 52.03 | C7: 0.32 | D7: 0.2 | E7: 2.69 | F7: 20 | H7: =A39 -> 1500 | I7: 18000 | J7: =B50 -> 188.41 | L7: 3
A8: 2 | B8: 52.98 | C8: 0.32 | D8: 0.2 | E8: 2.66 | F8: 20 | H8: 2000 | I8: 24000 | J8: =B67 -> 242.18 | L8: 4
A9: 3 | B9: 53.26 | C9: 0.32 | D9: 0.2 | E9: 2.65 | F9: 20 | H9: 2500 | I9: 30000 | J9: =B84 -> 293.42 | L9: 5
A10: 4 | B10: 54.57 | C10: 0.32 | D10: 0.2 | E10: 2.61 | F10: 20 | H10: 3000 | I10: 36000 | J10: =B101 -> 335.88 | L10: 6
A11: 5 | B11: 55.71 | C11: 0.33 | D11: 0.2 | E11: 2.58 | F11: 20 | H11: 3500 | I11: 42000 | J11: =B118 -> 376.53 | L11: 7
A12: 6 | B12: 57.76 | C12: 0.34 | D12: 0.2 | E12: 2.52 | F12: 20 | H12: 4000 | I12: 48000 | J12: =B135 -> 421.69 | L12: 8
A13: 7 | B13: 59.37 | C13: 0.34 | D13: 0.2 | E13: 2.48 | F13: 20 | H13: 4500 | I13: 54000 | J13: =B152 -> 463.01 | L13: 9
A14: 8 | B14: 61.19 | C14: 0.35 | D14: 0.2 | E14: 2.43 | F14: 20 | H14: 5000 | I14: 60000 | J14: =B169 -> 499.54 | L14: 10
A15: 9 | B15: 63.89 | C15: 0.36 | D15: 0.2 | E15: 2.37 | F15: 20 | H15: 5500 | I15: 66000 | J15: =B186 -> 534.32 | L15: 11
A16: 10 | B16: 66.94 | C16: 0.37 | D16: 0.2 | E16: 2.3 | F16: 20 | H16: 6000 | I16: 72000 | J16: =B203 -> 562.02 | L16: 12
A17: 11 | B17: 69.32 | C17: 0.38 | D17: 0.2 | E17: 2.25 | F17: 20 | H17: 6500 | I17: 78000 | J17: =B220 -> 586.16 | L17: 13
A18: 12 | B18: 70.83 | C18: 0.38 | D18: 0.2 | E18: 2.22 | F18: 20 | H18: 7000 | I18: 84000 | J18: =B237 -> 608.94 | L18: 14
A19: 13 | B19: 71.57 | C19: 0.39 | D19: 0.2 | E19: 2.21 | F19: 20 | H19: 7500 | I19: 90000 | J19: =B254 -> 627.02 | L19: 15
A20: 14 | B20: 71.81 | C20: 0.39 | D20: 0.2 | E20: 2.2 | F20: 20 | H20: 8000 | I20: 96000 | J20: =B271 -> 642.87 | L20: 16
A21: 15 | B21: 71.84 | C21: 0.39 | D21: 0.2 | E21: 2.2 | F21: 20 | H21: 8500 | I21: 102000 | J21: =B288 -> 658.11 | L21: 17
A22: 1000 | H22: 9000 | I22: 108000 | J22: =B305 -> 670.67 | L22: 18
A23: Year | B23: Energy [kWh] | C23: ADMD [kVA] | D23: alpha | E23: beta | F23: Circuit breaker | H23: 9500 | I23: 114000 | J23: =B322 -> 683.35 | L23: 19
A24: 1 | B24: 109.69 | C24: 0.53 | D24: 0.22 | E24: 1.71 | F24: 20 | H24: 10000 | I24: 120000 | J24: =B339 -> 694.49 | L24: 20
A25: 2 | B25: 111.56 | C25: 0.53 | D25: 0.22 | E25: 1.69 | F25: 20 | H25: 10500 | I25: 126000 | J25: =B356 -> 705.63 | L25: 21
A26: 3 | B26: 113.23 | C26: 0.54 | D26: 0.22 | E26: 1.67 | F26: 20 | H26: 11000 | I26: 132000 | J26: =B373 -> 718.26 | L26: 22
A27: 4 | B27: 115.27 | C27: 0.55 | D27: 0.22 | E27: 1.66 | F27: 20 | H27: 11500 | I27: 138000 | J27: =B390 -> 730.76 | L27: 23
A28: 5 | B28: 117.32 | C28: 0.55 | D28: 0.22 | E28: 1.64 | F28: 20 | H28: 12000 | I28: 144000 | J28: =B407 -> 744.56 | L28: 24
A29: 6 | B29: 119.63 | C29: 0.56 | D29: 0.23 | E29: 1.62 | F29: 20 | H29: 12500 | I29: 150000 | J29: =B424 -> 761.63 | L29: 25
A30: 7 | B30: 121.82 | C30: 0.57 | D30: 0.23 | E30: 1.6 | F30: 20 | H30: 13000 | I30: 156000 | J30: =B441 -> 779.56 | L30: 26
A31: 8 | B31: 124.26 | C31: 0.58 | D31: 0.23 | E31: 1.58 | F31: 20 | H31: 13500 | I31: 162000 | J31: =B458 -> 799.56 | L31: 27
A32: 9 | B32: 127.3 | C32: 0.59 | D32: 0.23 | E32: 1.56 | F32: 20 | H32: 14000 | I32: 168000 | J32: =B475 -> 821.19 | L32: 28
A33: 10 | B33: 131.11 | C33: 0.6 | D33: 0.23 | E33: 1.53 | F33: 20 | H33: 14500 | I33: 174000 | J33: =B492 -> 840.59 | L33: 29
A34: 11 | B34: 134.84 | C34: 0.62 | D34: 0.23 | E34: 1.5 | F34: 20 | H34: 15000 | I34: 180000 | J34: =B509 -> 859.59 | L34: 30
A35: 12 | B35: 137.68 | C35: 0.63 | D35: 0.23 | E35: 1.48 | F35: 20 | H35: 15500 | I35: 186000 | J35: =B526 -> 879.87 | L35: 31
A36: 13 | B36: 139.73 | C36: 0.64 | D36: 0.24 | E36: 1.47 | F36: 20 | H36: 16000 | I36: 192000 | J36: =B543 -> 898.06 | K36: =+$V$38*L36^3+$W$38*L36^2+$X$38*L36+$Y$38 ->  | L36: 32
A37: 14 | B37: 141.22 | C37: 0.64 | D37: 0.24 | E37: 1.46 | F37: 20 | H37: 16500 | I37: 198000 | J37: =B560 -> 915.89 | K37: =+$V$38*L37^3+$W$38*L37^2+$X$38*L37+$Y$38 ->  | L37: 33 | N37: CS RES DATA
A38: 15 | B38: 142.39 | C38: 0.65 | D38: 0.24 | E38: 1.45 | F38: 20 | H38: 17000 | I38: 204000 | J38: =B577 -> 934.91 | L38: 34
A39: 1500 | H39: 17500 | I39: 210000 | J39: =B594 -> 951.99 | L39: 35 | P39: 3 | Q39: 6 | R39: 12 | S39: 24 | T39: 48 | U39: =+T39*2 -> 96 | V39: =+U39*2 -> 192 | W39: =+V39*2 -> 384 | X39: =+W39*2 -> 768 | Y39: =+X39*2 -> 1536
A40: Year | B40: Energy [kWh] | C40: ADMD [kVA] | D40: alpha | E40: beta | F40: Circuit breaker | H40: 18000 | I40: 216000 | L40: 36 | M40: no of hhlds | N40: 805281 | O40: 476243 | P40: 860946 | Q40: 1946539 | R40: 2123110 | S40: 1430568 | T40: 1025467 | U40: 739928 | V40: 396537 | W40: 131491 | X40: 43328 | Y40: 30837 | Z40: =SUM(N40:Y40) -> 10010275
A41: 1 | B41: 160.95 | C41: 0.71 | D41: 0.25 | E41: 1.34 | F41: 20 | H41: 18500 | I41: 222000 | L41: 37 | N41: No income | O41: R1-R4 800 | P41: R4 801-R9 600 | Q41: R9 601-R19 200 | R41: R19 201-R38 400 | S41: R38 401-R76 800 | T41: R76 801-R153 600 | U41: R153 601-R307 200 | V41: R307 201-R614 400 | W41: R614 401-R1 228 800 | X41: R1 228 801-R2 457 600 | Y41: R2 457 601 or more
A42: 2 | B42: 163.5 | C42: 0.72 | D42: 0.25 | E42: 1.32 | F42: 20 | H42: 19000 | I42: 228000 | L42: 38 | M42: median imcome | N42: 0 | O42: =4800/2 -> 2400 | P42: =+$O$42*P39 -> 7200 | Q42: =+$O$42*Q39 -> 14400 | R42: 28800 | S42: 57600 | T42: 115200 | U42: 230400 | V42: 460800 | W42: 921600 | X42: 1843200 | Y42: 3686400
A43: 3 | B43: 166.21 | C43: 0.73 | D43: 0.25 | E43: 1.31 | F43: 20 | H43: 19500 | I43: 234000 | L43: 39 | M43: corresponding MD data | N43: =+J5/2 -> 33.47 | O43: =+J5/2 -> 33.47 | P43: =+J5 -> 66.94 | Q43: =+J6+(J7-J6)*(Q42-I6)/(I7-I6) -> 156.268 | R43: =+$J8+($J9-$J8)*(R42-$I8)/($I9-$I8) -> 283.172 | S43: =+$J13+($J14-$J13)*(S42-$I13)/($I14-$I13) -> 484.928 | T43: =+$J23+($J24-$J23)*(T42-$I23)/($I24-$I23) -> 685.578 | U43: 950 | V43: 1000 | W43: 1200 | X43: 1200 | Y43: 1400
A44: 4 | B44: 168.8 | C44: 0.74 | D44: 0.25 | E44: 1.29 | F44: 20 | H44: 20000 | I44: 240000 | L44: 40 | M44: total/month | N44: =+N40*N43 -> 26952755.07 | O44: =+O40*O43 -> 15939853.21 | P44: 57631725.24 | Q44: 304181756.5 | R44: 601205304.9 | S44: 693722479.1 | T44: 703037614.9 | U44: 702931600 | V44: 396537000 | W44: 157789200 | X44: 51993600 | Y44: 43171800
A45: 5 | B45: 171.71 | C45: 0.75 | D45: 0.25 | E45: 1.28 | F45: 20 | H45: 20500 | I45: 246000 | L45: 41 | M45: total/year | N45: =+N44*12/1000000 -> 323.4330608 | O45: =+O44*12/1000000 -> 191.2782385 | P45: =+P44*12/1000000 -> 691.5807029 | Q45: 3650.181077 | R45: 7214.463659 | S45: 8324.669749 | T45: 8436.451379 | U45: 8435.1792 | V45: 4758.444 | W45: 1893.4704 | X45: 623.9232 | Y45: 518.0616 | Z45: =SUM(N45:Y45) -> 45061.13627 | AA45: =+Z45*3.6 -> 162220.0906
A46: 6 | B46: 174.34 | C46: 0.76 | D46: 0.25 | E46: 1.26 | F46: 20 | H46: 21000 | I46: 252000 | L46: 42 | Y46: total gunning for | Z46: =+#REF!/3.6 -> 
A47: 7 | B47: 177.24 | C47: 0.77 | D47: 0.25 | E47: 1.25 | F47: 20 | H47: 21500 | I47: 258000 | L47: 43 | M47: Adjusted 1
A48: 8 | B48: 180.41 | C48: 0.78 | D48: 0.25 | E48: 1.23 | F48: 20 | H48: 22000 | I48: 264000 | L48: 44 | M48: corresponding MD data | N48: =+N43*2 -> 66.94 | O48: 90 | P48: 145 | Q48: =+Q43*1.2 -> 187.5216 | R48: =+R43*1.15 -> 325.6478 | S48: =+S43*1.15 -> 557.6672 | T48: =+T43*1.2 -> 822.6936 | U48: 970 | V48: 1050 | W48: 1100 | X48: 1200 | Y48: 1200
A49: 9 | B49: 183.83 | C49: 0.8 | D49: 0.25 | E49: 1.22 | F49: 20 | H49: 22500 | I49: 270000 | L49: 45 | M49: total/month | N49: =+N40*N48 -> 53905510.14 | O49: =+O40*O48 -> 42861870 | P49: 124837170 | Q49: 365018107.7 | R49: 691386100.7 | S49: 797780851 | T49: 843645137.9 | U49: 717730160 | V49: 416363850 | W49: 144640100 | X49: 51993600 | Y49: 37004400
A50: 10 | B50: 188.41 | C50: 0.81 | D50: 0.26 | E50: 1.19 | F50: 20 | H50: 23000 | I50: 276000 | L50: 46 | M50: total/year | N50: =+N49*12/1000000 -> 646.8661217 | O50: =+O49*12/1000000 -> 514.34244 | P50: 1498.04604 | Q50: 4380.217293 | R50: 8296.633208 | S50: 9573.370212 | T50: 10123.74165 | U50: 8612.76192 | V50: 4996.3662 | W50: 1735.6812 | X50: 623.9232 | Y50: 444.0528 | Z50: =SUM(N50:Y50) -> 51446.00229 | AA50: =+Z50*3.6 -> 185205.6082
A51: 11 | B51: 193.24 | C51: 0.83 | D51: 0.26 | E51: 1.17 | F51: 20 | H51: 23500 | I51: 282000 | L51: 47 | Y51: total gunning for | Z51: =+Z46 -> 
A52: 12 | B52: 196.96 | C52: 0.84 | D52: 0.26 | E52: 1.15 | F52: 20 | H52: 24000 | I52: 288000 | L52: 48 | M52: weighted average | O52: 1 | P52: 2 | Q52: 3
A53: 13 | B53: 200.13 | C53: 0.86 | D53: 0.26 | E53: 1.14 | F53: 20 | H53: 24500 | I53: 294000 | L53: 49 | O53: =+(N49+O49+P49+Q49)/(N40+O40+P40+Q40) -> 143.4632836 | P53: =+(R49+S49)/(R40+S40) -> 419.0494895 | Q53: =+(U49+V49+W49+X49+T49)/(U40+V40+W40+X40+T40) -> 930.5111447
A54: 14 | B54: 202.88 | C54: 0.87 | D54: 0.26 | E54: 1.13 | F54: 20 | H54: 25000 | I54: 300000 | L54: 50 | M54: From Cape Town data | O54: Low | P54: Middle | Q54: High
A55: 15 | B55: 205.3 | C55: 0.88 | D55: 0.26 | E55: 1.12 | F55: 20 | H55: 25500 | I55: 306000 | L55: 51 | O55: 143 | P55: 340 | Q55: 790 | R55: used to balance electricity in RES
A56: 2000 | H56: 26000 | I56: 312000 | L56: 52 | M56: Final | O56: =19/2 -> 9.5 | P56: =(76+19)/2 -> 47.5 | Q56: 332
A57: Year | B57: Energy [kWh] | C57: ADMD [kVA] | D57: alpha | E57: beta | F57: Circuit breaker | H57: 26500 | I57: 318000 | L57: 53 | O57: 145 | P57: 350 | Q57: 725
A58: 1 | B58: 208.73 | C58: 0.89 | D58: 0.47 | E58: 6.76 | F58: 60 | H58: 27000 | I58: 324000 | L58: 54
A59: 2 | B59: 211.74 | C59: 0.9 | D59: 0.47 | E59: 6.73 | F59: 60 | H59: 27500 | I59: 330000 | L59: 55 | M59: was | O59: 143.4632836 | P59: 419.0494895 | Q59: 930.5111447
A60: 3 | B60: 215.16 | C60: 0.91 | D60: 0.47 | E60: 6.7 | F60: 60 | H60: 28000 | I60: 336000 | L60: 56 | O60: 164 | P60: 400 | Q60: 830
A61: 4 | B61: 218.19 | C61: 0.92 | D61: 0.48 | E61: 6.68 | F61: 60 | H61: 28500 | I61: 342000 | L61: 57
A62: 5 | B62: 221.95 | C62: 0.94 | D62: 0.48 | E62: 6.64 | F62: 60 | H62: 29000 | I62: 348000 | L62: 58
A63: 6 | B63: 225.07 | C63: 0.95 | D63: 0.49 | E63: 6.62 | F63: 60 | H63: 29500 | I63: 354000 | L63: 59
A64: 7 | B64: 228.88 | C64: 0.96 | D64: 0.49 | E64: 6.59 | F64: 60 | H64: 30000 | I64: =H64*12 -> 360000 | L64: 60
A65: 8 | B65: 232.94 | C65: 0.98 | D65: 0.5 | E65: 6.55 | F65: 60 | H65: 30500 | I65: 366000 | L65: 61
A66: 9 | B66: 236.85 | C66: 0.99 | D66: 0.5 | E66: 6.52 | F66: 60 | H66: 31000 | I66: 372000 | L66: 62
A67: 10 | B67: 242.18 | C67: 1.01 | D67: 0.51 | E67: 6.48 | F67: 60 | H67: 31500 | I67: 378000 | L67: 63
A68: 11 | B68: 247.75 | C68: 1.03 | D68: 0.52 | E68: 6.44 | F68: 60 | H68: 32000 | I68: 384000 | L68: 64
A69: 12 | B69: 251.94 | C69: 1.05 | D69: 0.53 | E69: 6.41 | F69: 60 | H69: 32500 | I69: 390000 | L69: 65
A70: 13 | B70: 256.06 | C70: 1.06 | D70: 0.53 | E70: 6.38 | F70: 60 | H70: 33000 | I70: 396000 | L70: 66
A71: 14 | B71: 260.03 | C71: 1.08 | D71: 0.54 | E71: 6.35 | F71: 60 | H71: 33500 | I71: 402000 | K71: =+$V$38*L71^3+$W$38*L71^2+$X$38*L71+$Y$38 ->  | L71: 67
A72: 15 | B72: 263.74 | C72: 1.09 | D72: 0.54 | E72: 6.32 | F72: 60 | H72: 34000 | I72: 408000 | L72: 68
A73: 2500 | H73: 34500 | I73: 414000 | L73: 69
A74: Year | B74: Energy [kWh] | C74: ADMD [kVA] | D74: alpha | E74: beta | F74: Circuit breaker | H74: 35000 | I74: 420000 | L74: 70
A75: 1 | B75: 253.75 | C75: 1.05 | D75: 0.53 | E75: 6.39 | F75: 60 | H75: 35500 | I75: 426000 | L75: 71
A76: 2 | B76: 257.06 | C76: 1.06 | D76: 0.53 | E76: 6.37 | F76: 60
A77: 3 | B77: 260.96 | C77: 1.08 | D77: 0.54 | E77: 6.34 | F77: 60
A78: 4 | B78: 264.61 | C78: 1.09 | D78: 0.54 | E78: 6.31 | F78: 60
A79: 5 | B79: 269.11 | C79: 1.11 | D79: 0.55 | E79: 6.28 | F79: 60
A80: 6 | B80: 273.08 | C80: 1.12 | D80: 0.55 | E80: 6.26 | F80: 60
A81: 7 | B81: 277.82 | C81: 1.14 | D81: 0.56 | E81: 6.22 | F81: 60
A82: 8 | B82: 282.81 | C82: 1.16 | D82: 0.57 | E82: 6.19 | F82: 60
A83: 9 | B83: 287.52 | C83: 1.18 | D83: 0.57 | E83: 6.16 | F83: 60
A84: 10 | B84: 293.42 | C84: 1.2 | D84: 0.58 | E84: 6.12 | F84: 60
A85: 11 | B85: 299.47 | C85: 1.22 | D85: 0.59 | E85: 6.08 | F85: 60
A86: 12 | B86: 304.2 | C86: 1.24 | D86: 0.6 | E86: 6.06 | F86: 60
A87: 13 | B87: 308.87 | C87: 1.25 | D87: 0.6 | E87: 6.03 | F87: 60
A88: 14 | B88: 313.33 | C88: 1.27 | D88: 0.61 | E88: 6 | F88: 60
A89: 15 | B89: 317.44 | C89: 1.29 | D89: 0.61 | E89: 5.98 | F89: 60
A90: 3000
A91: Year | B91: Energy [kWh] | C91: ADMD [kVA] | D91: alpha | E91: beta | F91: Circuit breaker
A92: 1 | B92: 291.04 | C92: 1.17 | D92: 0.63 | E92: 6.74 | F92: 60
A93: 2 | B93: 294.5 | C93: 1.18 | D93: 0.63 | E93: 6.72 | F93: 60
A94: 3 | B94: 298.67 | C94: 1.2 | D94: 0.64 | E94: 6.69 | F94: 60
A95: 4 | B95: 302.93 | C95: 1.21 | D95: 0.64 | E95: 6.66 | F95: 60
A96: 5 | B96: 307.98 | C96: 1.23 | D96: 0.65 | E96: 6.63 | F96: 60
A97: 6 | B97: 312.84 | C97: 1.25 | D97: 0.66 | E97: 6.6 | F97: 60
A98: 7 | B98: 318.35 | C98: 1.27 | D98: 0.67 | E98: 6.56 | F98: 60
A99: 8 | B99: 324.08 | C99: 1.29 | D99: 0.67 | E99: 6.53 | F99: 60
A100: 9 | B100: 329.61 | C100: 1.31 | D100: 0.68 | E100: 6.49 | F100: 60
A101: 10 | B101: 335.88 | C101: 1.33 | D101: 0.69 | E101: 6.45 | F101: 60
A102: 11 | B102: 342.16 | C102: 1.36 | D102: 0.7 | E102: 6.42 | F102: 60
A103: 12 | B103: 347.35 | C103: 1.37 | D103: 0.71 | E103: 6.39 | F103: 60
A104: 13 | B104: 352.21 | C104: 1.39 | D104: 0.71 | E104: 6.36 | F104: 60
A105: 14 | B105: 356.63 | C105: 1.41 | D105: 0.72 | E105: 6.33 | F105: 60
A106: 15 | B106: 360.51 | C106: 1.42 | D106: 0.72 | E106: 6.31 | F106: 60
A107: 3500
A108: Year | B108: Energy [kWh] | C108: ADMD [kVA] | D108: alpha | E108: beta | F108: Circuit breaker
A109: 1 | B109: 327.28 | C109: 1.3 | D109: 0.68 | E109: 6.51 | F109: 60
A110: 2 | B110: 330.82 | C110: 1.32 | D110: 0.68 | E110: 6.48 | F110: 60
A111: 3 | B111: 335.17 | C111: 1.33 | D111: 0.69 | E111: 6.46 | F111: 60
A112: 4 | B112: 340 | C112: 1.35 | D112: 0.7 | E112: 6.43 | F112: 60
A113: 5 | B113: 345.5 | C113: 1.37 | D113: 0.7 | E113: 6.4 | F113: 60
A114: 6 | B114: 351.21 | C114: 1.39 | D114: 0.71 | E114: 6.36 | F114: 60
A115: 7 | B115: 357.36 | C115: 1.41 | D115: 0.72 | E115: 6.33 | F115: 60
A116: 8 | B116: 363.72 | C116: 1.43 | D116: 0.73 | E116: 6.29 | F116: 60
A117: 9 | B117: 370.01 | C117: 1.46 | D117: 0.74 | E117: 6.26 | F117: 60
A118: 10 | B118: 376.53 | C118: 1.48 | D118: 0.75 | E118: 6.22 | F118: 60
A119: 11 | B119: 382.91 | C119: 1.5 | D119: 0.76 | E119: 6.19 | F119: 60
A120: 12 | B120: 388.49 | C120: 1.52 | D120: 0.76 | E120: 6.16 | F120: 60
A121: 13 | B121: 393.38 | C121: 1.54 | D121: 0.77 | E121: 6.13 | F121: 60
A122: 14 | B122: 397.57 | C122: 1.56 | D122: 0.78 | E122: 6.11 | F122: 60
A123: 15 | B123: 401.06 | C123: 1.57 | D123: 0.78 | E123: 6.09 | F123: 60
A124: 4000
A125: Year | B125: Energy [kWh] | C125: ADMD [kVA] | D125: alpha | E125: beta | F125: Circuit breaker
A126: 1 | B126: 368.75 | C126: 1.45 | D126: 0.74 | E126: 6.26 | F126: 60
A127: 2 | B127: 372.37 | C127: 1.46 | D127: 0.74 | E127: 6.24 | F127: 60
A128: 3 | B128: 376.9 | C128: 1.48 | D128: 0.75 | E128: 6.22 | F128: 60
A129: 4 | B129: 382.21 | C129: 1.5 | D129: 0.75 | E129: 6.19 | F129: 60
A130: 5 | B130: 388.13 | C130: 1.52 | D130: 0.76 | E130: 6.16 | F130: 60
A131: 6 | B131: 394.51 | C131: 1.54 | D131: 0.77 | E131: 6.12 | F131: 60
A132: 7 | B132: 401.21 | C132: 1.57 | D132: 0.78 | E132: 6.09 | F132: 60
A133: 8 | B133: 408.08 | C133: 1.59 | D133: 0.79 | E133: 6.05 | F133: 60
A134: 9 | B134: 414.95 | C134: 1.62 | D134: 0.8 | E134: 6.02 | F134: 60
A135: 10 | B135: 421.69 | C135: 1.64 | D135: 0.81 | E135: 5.98 | F135: 60
A136: 11 | B136: 428.13 | C136: 1.67 | D136: 0.82 | E136: 5.95 | F136: 60
A137: 12 | B137: 433.93 | C137: 1.69 | D137: 0.82 | E137: 5.92 | F137: 60
A138: 13 | B138: 438.85 | C138: 1.7 | D138: 0.83 | E138: 5.9 | F138: 60
A139: 14 | B139: 442.95 | C139: 1.72 | D139: 0.84 | E139: 5.88 | F139: 60
A140: 15 | B140: 446.27 | C140: 1.73 | D140: 0.84 | E140: 5.86 | F140: 60
A141: 4500
A142: Year | B142: Energy [kWh] | C142: ADMD [kVA] | D142: alpha | E142: beta | F142: Circuit breaker
A143: 1 | B143: 407.57 | C143: 1.59 | D143: 0.79 | E143: 6.05 | F143: 60
A144: 2 | B144: 411.3 | C144: 1.6 | D144: 0.79 | E144: 6.04 | F144: 60
A145: 3 | B145: 416.06 | C145: 1.62 | D145: 0.8 | E145: 6.01 | F145: 60
A146: 4 | B146: 421.66 | C146: 1.64 | D146: 0.81 | E146: 5.98 | F146: 60
A147: 5 | B147: 427.93 | C147: 1.66 | D147: 0.82 | E147: 5.95 | F147: 60
A148: 6 | B148: 434.68 | C148: 1.69 | D148: 0.83 | E148: 5.92 | F148: 60
A149: 7 | B149: 441.74 | C149: 1.71 | D149: 0.83 | E149: 5.88 | F149: 60
A150: 8 | B150: 448.94 | C150: 1.74 | D150: 0.84 | E150: 5.85 | F150: 60
A151: 9 | B151: 456.09 | C151: 1.77 | D151: 0.85 | E151: 5.81 | F151: 60
A152: 10 | B152: 463.01 | C152: 1.79 | D152: 0.86 | E152: 5.78 | F152: 60
A153: 11 | B153: 469.52 | C153: 1.81 | D153: 0.87 | E153: 5.75 | F153: 60
A154: 12 | B154: 475.36 | C154: 1.84 | D154: 0.88 | E154: 5.72 | F154: 60
A155: 13 | B155: 480.4 | C155: 1.85 | D155: 0.88 | E155: 5.7 | F155: 60
A156: 14 | B156: 484.67 | C156: 1.87 | D156: 0.89 | E156: 5.68 | F156: 60
A157: 15 | B157: 488.22 | C157: 1.88 | D157: 0.89 | E157: 5.66 | F157: 60
A158: 5000
A159: Year | B159: Energy [kWh] | C159: ADMD [kVA] | D159: alpha | E159: beta | F159: Circuit breaker
A160: 1 | B160: 441.86 | C160: 1.71 | D160: 0.83 | E160: 5.88 | F160: 60
A161: 2 | B161: 445.76 | C161: 1.73 | D161: 0.84 | E161: 5.86 | F161: 60
A162: 3 | B162: 450.74 | C162: 1.75 | D162: 0.85 | E162: 5.84 | F162: 60
A163: 4 | B163: 456.62 | C163: 1.77 | D163: 0.85 | E163: 5.81 | F163: 60
A164: 5 | B164: 463.19 | C164: 1.79 | D164: 0.86 | E164: 5.78 | F164: 60
A165: 6 | B165: 470.26 | C165: 1.82 | D165: 0.87 | E165: 5.75 | F165: 60
A166: 7 | B166: 477.62 | C166: 1.84 | D166: 0.88 | E166: 5.71 | F166: 60
A167: 8 | B167: 485.09 | C167: 1.87 | D167: 0.89 | E167: 5.68 | F167: 60
A168: 9 | B168: 492.46 | C168: 1.9 | D168: 0.9 | E168: 5.64 | F168: 60
A169: 10 | B169: 499.54 | C169: 1.92 | D169: 0.91 | E169: 5.61 | F169: 60
A170: 11 | B170: 506.13 | C170: 1.95 | D170: 0.92 | E170: 5.58 | F170: 60
A171: 12 | B171: 512.02 | C171: 1.97 | D171: 0.92 | E171: 5.56 | F171: 60
A172: 13 | B172: 517.18 | C172: 1.99 | D172: 0.93 | E172: 5.53 | F172: 60
A173: 14 | B173: 521.64 | C173: 2 | D173: 0.94 | E173: 5.51 | F173: 60
A174: 15 | B174: 525.42 | C174: 2.02 | D174: 0.94 | E174: 5.5 | F174: 60
A175: 5500
A176: Year | B176: Energy [kWh] | C176: ADMD [kVA] | D176: alpha | E176: beta | F176: Circuit breaker
A177: 1 | B177: 474.44 | C177: 1.83 | D177: 0.88 | E177: 5.73 | F177: 60
A178: 2 | B178: 478.58 | C178: 1.85 | D178: 0.88 | E178: 5.71 | F178: 60
A179: 3 | B179: 483.83 | C179: 1.87 | D179: 0.89 | E179: 5.68 | F179: 60
A180: 4 | B180: 490 | C180: 1.89 | D180: 0.9 | E180: 5.66 | F180: 60
A181: 5 | B181: 496.86 | C181: 1.91 | D181: 0.9 | E181: 5.62 | F181: 60
A182: 6 | B182: 504.21 | C182: 1.94 | D182: 0.91 | E182: 5.59 | F182: 60
A183: 7 | B183: 511.84 | C183: 1.97 | D183: 0.92 | E183: 5.56 | F183: 60
A184: 8 | B184: 519.54 | C184: 1.99 | D184: 0.93 | E184: 5.52 | F184: 60
A185: 9 | B185: 527.11 | C185: 2.02 | D185: 0.94 | E185: 5.49 | F185: 60
A186: 10 | B186: 534.32 | C186: 2.05 | D186: 0.95 | E186: 5.46 | F186: 60
A187: 11 | B187: 540.99 | C187: 2.07 | D187: 0.96 | E187: 5.43 | F187: 60
A188: 12 | B188: 546.96 | C188: 2.09 | D188: 0.97 | E188: 5.4 | F188: 60
A189: 13 | B189: 552.27 | C189: 2.11 | D189: 0.97 | E189: 5.38 | F189: 60
A190: 14 | B190: 556.93 | C190: 2.13 | D190: 0.98 | E190: 5.36 | F190: 60
A191: 15 | B191: 560.99 | C191: 2.14 | D191: 0.98 | E191: 5.35 | F191: 60
A192: 6000
A193: Year | B193: Energy [kWh] | C193: ADMD [kVA] | D193: alpha | E193: beta | F193: Circuit breaker
A194: 1 | B194: 500.34 | C194: 1.93 | D194: 0.91 | E194: 5.61 | F194: 60
A195: 2 | B195: 504.74 | C195: 1.94 | D195: 0.91 | E195: 5.59 | F195: 60
A196: 3 | B196: 510.25 | C196: 1.96 | D196: 0.92 | E196: 5.56 | F196: 60
A197: 4 | B197: 516.65 | C197: 1.98 | D197: 0.93 | E197: 5.54 | F197: 60
A198: 5 | B198: 523.74 | C198: 2.01 | D198: 0.94 | E198: 5.51 | F198: 60
A199: 6 | B199: 531.31 | C199: 2.04 | D199: 0.95 | E199: 5.47 | F199: 60
A200: 7 | B200: 539.13 | C200: 2.06 | D200: 0.96 | E200: 5.44 | F200: 60
A201: 8 | B201: 547 | C201: 2.09 | D201: 0.97 | E201: 5.4 | F201: 60
... 398 more rows

Sheet Energy_Balance
E1: Number of households | F1: Number of households | G1: Percentage of households | H1: Percentage of households | I1: GJ/hhld/annum | J1: Total (PJ) | K1: Total (PJ) | M1: Mamahloko to ask Tara to Explain here | R1: Use of electricy per household cross check with data going into the model | Y1: In previous situation it used to be high, now its lower it has to be increase, I increased the electricity consumption using the bottom-up methodology, by adjusting the number of hours the appliances operate
B2: Fuel | C2: SATIM Codes | E2: 2011 | F2: 2007 | G2: 2007 | H2: 2011 | I2: 2007 | J2: 2007 | K2: 2011 | N2: Tara - adding elec from other (unspecified) | S2: no of hhlds | T2: elec use PJ | U2: Elec use kWh/hhld | V2: PJ/hhld to balance | X2: In kWh | Z2: Difference between V3 and all low income
A3: =IF(LEFT(B3,1)="\","*","") -> * | B3: \I:Residential - Lighting - Low Income Electrified | R3: =MyCS2007data!AL2 -> Electrified | S3: =MyCS2007data!AM2 -> 4016846.419 | T3: =SUM(J4,J7,J15,J23,J31) -> 26.31469907 | U3: 160 | V3: =+S3*'Marcus Dekenah'!O55*12*3.6/10^9 -> 24.81447044 | W3: =T3-V3 -> 1.500228627 | Y3: RLE | Z3: =V3-SUM(I4,I7,I15,I23,I31,I34) -> 16.64817478
B4: Electricity | C4: RESELC | D4: RLEL | E4: =IF(SUMIFS('Census 2011'!$C$328:$C$468,'Census 2011'!$A$328:$A$468,D4,'Census 2011'!$B$328:$B$468,C4)<>0,SUMIFS('Census 2011'!$C$328:$C$468,'Census 2011'!$A$328:$A$468,D4,'Census 2011'!$B$328:$B$468,C4)," ") -> 4934106 | F4: =IF(SUMIFS(MyCS2007data!$T$83:$T$224,MyCS2007data!$S$83:$S$224,C4,MyCS2007data!$Q$83:$Q$224,D4)<>0,SUMIFS(MyCS2007data!$T$83:$T$224,MyCS2007data!$S$83:$S$224,C4,MyCS2007data!$Q$83:$Q$224,D4)," ") -> 4016846.419 | G4: =IF(SUMIFS(MyCS2007data!$V$83:$V$224,MyCS2007data!$S$83:$S$224,C4,MyCS2007data!$Q$83:$Q$224,D4)<>0,SUMIFS(MyCS2007data!$V$83:$V$224,MyCS2007data!$S$83:$S$224,C4,MyCS2007data!$Q$83:$Q$224,D4)," ") -> 1 | H4: =IF(SUMIFS('Census 2011'!$D$328:$D$468,'Census 2011'!$A$328:$A$468,D4,'Census 2011'!$B$328:$B$468,C4)<>0,SUMIFS('Census 2011'!$D$328:$D$468,'Census 2011'!$A$328:$A$468,D4,'Census 2011'!$B$328:$B$468,C4)," ") -> 1 | I4: =IF(SUMIFS('bottom-up-enduse'!$E$252:$E$357,'bottom-up-enduse'!$B$252:$B$357,D4,'bottom-up-enduse'!$A$252:$A$357,C4)<>0,SUMIFS('bottom-up-enduse'!$E$252:$E$357,'bottom-up-enduse'!$B$252:$B$357,D4,'bottom-up-enduse'!$A$252:$A$357,C4)," ") -> 1.516143733 | J4: =IFERROR(I4*F4/10^6," ") -> 6.090116527 | K4: =IFERROR(E4*I4/10^6," ") -> 7.480813892 | N4: 43.61038311 | O4: 84.42787642 | R4: =MyCS2007data!AL3 -> Non-electrified | S4: =MyCS2007data!AM3 -> 1624839.78
E5: =IF(SUMIFS('Census 2011'!$C$328:$C$468,'Census 2011'!$A$328:$A$468,D5,'Census 2011'!$B$328:$B$468,C5)<>0,SUMIFS('Census 2011'!$C$328:$C$468,'Census 2011'!$A$328:$A$468,D5,'Census 2011'!$B$328:$B$468,C5)," ") ->  | F5: =IF(SUMIFS(MyCS2007data!$T$83:$T$224,MyCS2007data!$S$83:$S$224,C5,MyCS2007data!$Q$83:$Q$224,D5)<>0,SUMIFS(MyCS2007data!$T$83:$T$224,MyCS2007data!$S$83:$S$224,C5,MyCS2007data!$Q$83:$Q$224,D5)," ") ->  | G5: =IF(SUMIFS(MyCS2007data!$V$83:$V$224,MyCS2007data!$S$83:$S$224,C5,MyCS2007data!$Q$83:$Q$224,D5)<>0,SUMIFS(MyCS2007data!$V$83:$V$224,MyCS2007data!$S$83:$S$224,C5,MyCS2007data!$Q$83:$Q$224,D5)," ") ->  | H5: =IF(SUMIFS('Census 2011'!$D$328:$D$468,'Census 2011'!$A$328:$A$468,D5,'Census 2011'!$B$328:$B$468,C5)<>0,SUMIFS('Census 2011'!$D$328:$D$468,'Census 2011'!$A$328:$A$468,D5,'Census 2011'!$B$328:$B$468,C5)," ") ->  | I5: =IF(SUMIFS('bottom-up-enduse'!$E$252:$E$357,'bottom-up-enduse'!$B$252:$B$357,D5,'bottom-up-enduse'!$A$252:$A$357,C5)<>0,SUMIFS('bottom-up-enduse'!$E$252:$E$357,'bottom-up-enduse'!$B$252:$B$357,D5,'bottom-up-enduse'!$A$252:$A$357,C5)," ") ->  | J5: =IFERROR(I5*F5/10^6," ") ->  | K5: =IFERROR(E5*I5/10^6," ") ->  | N5: 0.07562841686 | O5: =N5*(N$4+O$4) -> 9.683330866 | R5: =MyCS2007data!AL4 -> Electrified | S5: =MyCS2007data!AM4 -> 3490962.908 | T5: =SUM(J38,J41,J49,J57,J65) -> 41.02627083 | U5: 370 | V5: =+S5*'Marcus Dekenah'!P55*12*3.6/10^9 -> 51.2752632 | W5: =V5-T5 -> 10.24899237 | Y5: RME | Z5: =V5-(I38+I41+I49+I57+I65+I68) -> 37.58075271
A6: * | B6: \I:Residential - Cooking - Low Income Electrified | E6: =IF(SUMIFS('Census 2011'!$C$328:$C$468,'Census 2011'!$A$328:$A$468,D6,'Census 2011'!$B$328:$B$468,C6)<>0,SUMIFS('Census 2011'!$C$328:$C$468,'Census 2011'!$A$328:$A$468,D6,'Census 2011'!$B$328:$B$468,C6)," ") ->  | F6: =IF(SUMIFS(MyCS2007data!$T$83:$T$224,MyCS2007data!$S$83:$S$224,C6,MyCS2007data!$Q$83:$Q$224,D6)<>0,SUMIFS(MyCS2007data!$T$83:$T$224,MyCS2007data!$S$83:$S$224,C6,MyCS2007data!$Q$83:$Q$224,D6)," ") ->  | G6: =IF(SUMIFS(MyCS2007data!$V$83:$V$224,MyCS2007data!$S$83:$S$224,C6,MyCS2007data!$Q$83:$Q$224,D6)<>0,SUMIFS(MyCS2007data!$V$83:$V$224,MyCS2007data!$S$83:$S$224,C6,MyCS2007data!$Q$83:$Q$224,D6)," ") ->  | H6: =IF(SUMIFS('Census 2011'!$D$328:$D$468,'Census 2011'!$A$328:$A$468,D6,'Census 2011'!$B$328:$B$468,C6)<>0,SUMIFS('Census 2011'!$D$328:$D$468,'Census 2011'!$A$328:$A$468,D6,'Census 2011'!$B$328:$B$468,C6)," ") ->  | I6: =IF(SUMIFS('bottom-up-enduse'!$E$252:$E$357,'bottom-up-enduse'!$B$252:$B$357,D6,'bottom-up-enduse'!$A$252:$A$357,C6)<>0,SUMIFS('bottom-up-enduse'!$E$252:$E$357,'bottom-up-enduse'!$B$252:$B$357,D6,'bottom-up-enduse'!$A$252:$A$357,C6)," ") ->  | N6: 0.06809772919 | O6: 8.719114723 | R6: =MyCS2007data!AL5 -> Non-electrified | S6: =MyCS2007data!AM5 -> 734472.2186
B7: Electricity | C7: RESELC | D7: RLEK | E7: =IF(SUMIFS('Census 2011'!$C$328:$C$468,'Census 2011'!$A$328:$A$468,D7,'Census 2011'!$B$328:$B$468,C7)<>0,SUMIFS('Census 2011'!$C$328:$C$468,'Census 2011'!$A$328:$A$468,D7,'Census 2011'!$B$328:$B$468,C7)," ") -> 4087590 | F7: =IF(SUMIFS(MyCS2007data!$T$83:$T$224,MyCS2007data!$S$83:$S$224,C7,MyCS2007data!$Q$83:$Q$224,D7)<>0,SUMIFS(MyCS2007data!$T$83:$T$224,MyCS2007data!$S$83:$S$224,C7,MyCS2007data!$Q$83:$Q$224,D7)," ") -> 2990093.686 | G7: =IF(SUMIFS(MyCS2007data!$V$83:$V$224,MyCS2007data!$S$83:$S$224,C7,MyCS2007data!$Q$83:$Q$224,D7)<>0,SUMIFS(MyCS2007data!$V$83:$V$224,MyCS2007data!$S$83:$S$224,C7,MyCS2007data!$Q$83:$Q$224,D7)," ") -> 0.7125610355 | H7: =IF(SUMIFS('Census 2011'!$D$328:$D$468,'Census 2011'!$A$328:$A$468,D7,'Census 2011'!$B$328:$B$468,C7)<>0,SUMIFS('Census 2011'!$D$328:$D$468,'Census 2011'!$A$328:$A$468,D7,'Census 2011'!$B$328:$B$468,C7)," ") -> 0.829464108 | I7: =IF(SUMIFS('bottom-up-enduse'!$E$252:$E$357,'bottom-up-enduse'!$B$252:$B$357,D7,'bottom-up-enduse'!$A$252:$A$357,C7)<>0,SUMIFS('bottom-up-enduse'!$E$252:$E$357,'bottom-up-enduse'!$B$252:$B$357,D7,'bottom-up-enduse'!$A$252:$A$357,C7)," ") -> 2.209222 | J7: 6.605780752 | K7: 9.030393755 | N7: 0.05456637758 | O7: 6.986584014 | R7: =MyCS2007data!AL6 -> Electrified | S7: =MyCS2007data!AM6 -> 2325804.952 | T7: =SUM(J72,J75,J83,J91,J99) -> 64.83473189 | U7: 750 | V7: =+S7*'Marcus Dekenah'!Q55*12*3.6/10^9 -> 79.3750714 | W7: =V7-T7 -> 14.5403395 | Y7: RHE | Z7: =V7-(I72+I75+I83+I91+I99+I102+N34) -> 50.81968948
B8: Paraffin | C8: RESOKE | D8: RLEK | E8: =IF(SUMIFS('Census 2011'!$C$328:$C$468,'Census 2011'!$A$328:$A$468,D8,'Census 2011'!$B$328:$B$468,C8)<>0,SUMIFS('Census 2011'!$C$328:$C$468,'Census 2011'!$A$328:$A$468,D8,'Census 2011'!$B$328:$B$468,C8)," ") -> 109923 | F8: =IF(SUMIFS(MyCS2007data!$T$83:$T$224,MyCS2007data!$S$83:$S$224,C8,MyCS2007data!$Q$83:$Q$224,D8)<>0,SUMIFS(MyCS2007data!$T$83:$T$224,MyCS2007data!$S$83:$S$224,C8,MyCS2007data!$Q$83:$Q$224,D8)," ") -> 318211.7141 | G8: =IF(SUMIFS(MyCS2007data!$V$83:$V$224,MyCS2007data!$S$83:$S$224,C8,MyCS2007data!$Q$83:$Q$224,D8)<>0,SUMIFS(MyCS2007data!$V$83:$V$224,MyCS2007data!$S$83:$S$224,C8,MyCS2007data!$Q$83:$Q$224,D8)," ") -> 0.0758321619 | H8: =IF(SUMIFS('Census 2011'!$D$328:$D$468,'Census 2011'!$A$328:$A$468,D8,'Census 2011'!$B$328:$B$468,C8)<>0,SUMIFS('Census 2011'!$D$328:$D$468,'Census 2011'!$A$328:$A$468,D8,'Census 2011'!$B$328:$B$468,C8)," ") -> 0.02230585336 | I8: =IF(SUMIFS('bottom-up-enduse'!$E$252:$E$357,'bottom-up-enduse'!$B$252:$B$357,D8,'bottom-up-enduse'!$A$252:$A$357,C8)<>0,SUMIFS('bottom-up-enduse'!$E$252:$E$357,'bottom-up-enduse'!$B$252:$B$357,D8,'bottom-up-enduse'!$A$252:$A$357,C8)," ") -> 3.630069114 | J8: 1.155130515 | K8: 0.3990280872 | N8: 0.5187836224 | O8: 66.42415208 | R8: total kWh | U8: =+(T3+T5+T7)/3.6*1000 -> 36715.47272 | V8: =SUM(V3:V7) -> 155.464805
B9: LPG | C9: RESOLP | D9: RLEK | E9: =IF(SUMIFS('Census 2011'!$C$328:$C$468,'Census 2011'!$A$328:$A$468,D9,'Census 2011'!$B$328:$B$468,C9)<>0,SUMIFS('Census 2011'!$C$328:$C$468,'Census 2011'!$A$328:$A$468,D9,'Census 2011'!$B$328:$B$468,C9)," ") -> 77403 | F9: =IF(SUMIFS(MyCS2007data!$T$83:$T$224,MyCS2007data!$S$83:$S$224,C9,MyCS2007data!$Q$83:$Q$224,D9)<>0,SUMIFS(MyCS2007data!$T$83:$T$224,MyCS2007data!$S$83:$S$224,C9,MyCS2007data!$Q$83:$Q$224,D9)," ") -> 46117.63972 | G9: =IF(SUMIFS(MyCS2007data!$V$83:$V$224,MyCS2007data!$S$83:$S$224,C9,MyCS2007data!$Q$83:$Q$224,D9)<>0,SUMIFS(MyCS2007data!$V$83:$V$224,MyCS2007data!$S$83:$S$224,C9,MyCS2007data!$Q$83:$Q$224,D9)," ") -> 0.01099016839 | H9: =IF(SUMIFS('Census 2011'!$D$328:$D$468,'Census 2011'!$A$328:$A$468,D9,'Census 2011'!$B$328:$B$468,C9)<>0,SUMIFS('Census 2011'!$D$328:$D$468,'Census 2011'!$A$328:$A$468,D9,'Census 2011'!$B$328:$B$468,C9)," ") -> 0.01570681266 | I9: =IF(SUMIFS('bottom-up-enduse'!$E$252:$E$357,'bottom-up-enduse'!$B$252:$B$357,D9,'bottom-up-enduse'!$A$252:$A$357,C9)<>0,SUMIFS('bottom-up-enduse'!$E$252:$E$357,'bottom-up-enduse'!$B$252:$B$357,D9,'bottom-up-enduse'!$A$252:$A$357,C9)," ") -> 2.419946257 | J9: 0.1116022096 | K9: 0.1873111002 | N9: 0.1243289116 | O9: 15.91885745
B10: Wood | C10: RESBIW | D10: RLEK | E10: =IF(SUMIFS('Census 2011'!$C$328:$C$468,'Census 2011'!$A$328:$A$468,D10,'Census 2011'!$B$328:$B$468,C10)<>0,SUMIFS('Census 2011'!$C$328:$C$468,'Census 2011'!$A$328:$A$468,D10,'Census 2011'!$B$328:$B$468,C10)," ") -> 591195 | F10: =IF(SUMIFS(MyCS2007data!$T$83:$T$224,MyCS2007data!$S$83:$S$224,C10,MyCS2007data!$Q$83:$Q$224,D10)<>0,SUMIFS(MyCS2007data!$T$83:$T$224,MyCS2007data!$S$83:$S$224,C10,MyCS2007data!$Q$83:$Q$224,D10)," ") -> 765552.8193 | G10: =IF(SUMIFS(MyCS2007data!$V$83:$V$224,MyCS2007data!$S$83:$S$224,C10,MyCS2007data!$Q$83:$Q$224,D10)<>0,SUMIFS(MyCS2007data!$V$83:$V$224,MyCS2007data!$S$83:$S$224,C10,MyCS2007data!$Q$83:$Q$224,D10)," ") -> 0.1824367953 | H10: =IF(SUMIFS('Census 2011'!$D$328:$D$468,'Census 2011'!$A$328:$A$468,D10,'Census 2011'!$B$328:$B$468,C10)<>0,SUMIFS('Census 2011'!$D$328:$D$468,'Census 2011'!$A$328:$A$468,D10,'Census 2011'!$B$328:$B$468,C10)," ") -> 0.1199667856 | I10: =IF(SUMIFS('bottom-up-enduse'!$E$252:$E$357,'bottom-up-enduse'!$B$252:$B$357,D10,'bottom-up-enduse'!$A$252:$A$357,C10)<>0,SUMIFS('bottom-up-enduse'!$E$252:$E$357,'bottom-up-enduse'!$B$252:$B$357,D10,'bottom-up-enduse'!$A$252:$A$357,C10)," ") -> 39.72696 | J10: 30.41308623 | K10: 23.48638012 | N10: 0.1585949424 | O10: 20.30622039
B11: Coal | C11: RESCOA | D11: RLEK | E11: =IF(SUMIFS('Census 2011'!$C$328:$C$468,'Census 2011'!$A$328:$A$468,D11,'Census 2011'!$B$328:$B$468,C11)<>0,SUMIFS('Census 2011'!$C$328:$C$468,'Census 2011'!$A$328:$A$468,D11,'Census 2011'!$B$328:$B$468,C11)," ") -> 33258 | F11: =IF(SUMIFS(MyCS2007data!$T$83:$T$224,MyCS2007data!$S$83:$S$224,C11,MyCS2007data!$Q$83:$Q$224,D11)<>0,SUMIFS(MyCS2007data!$T$83:$T$224,MyCS2007data!$S$83:$S$224,C11,MyCS2007data!$Q$83:$Q$224,D11)," ") -> 56750.94695 | G11: =IF(SUMIFS(MyCS2007data!$V$83:$V$224,MyCS2007data!$S$83:$S$224,C11,MyCS2007data!$Q$83:$Q$224,D11)<>0,SUMIFS(MyCS2007data!$V$83:$V$224,MyCS2007data!$S$83:$S$224,C11,MyCS2007data!$Q$83:$Q$224,D11)," ") -> 0.01352416271 | H11: =IF(SUMIFS('Census 2011'!$D$328:$D$468,'Census 2011'!$A$328:$A$468,D11,'Census 2011'!$B$328:$B$468,C11)<>0,SUMIFS('Census 2011'!$D$328:$D$468,'Census 2011'!$A$328:$A$468,D11,'Census 2011'!$B$328:$B$468,C11)," ") -> 0.006748797532 | I11: =IF(SUMIFS('bottom-up-enduse'!$E$252:$E$357,'bottom-up-enduse'!$B$252:$B$357,D11,'bottom-up-enduse'!$A$252:$A$357,C11)<>0,SUMIFS('bottom-up-enduse'!$E$252:$E$357,'bottom-up-enduse'!$B$252:$B$357,D11,'bottom-up-enduse'!$A$252:$A$357,C11)," ") -> 23.328 | J11: 1.32388609 | K11: 0.775842624 | N11: 1 | O11: =N11*(O$4+N4) -> 128.0382595 | Q11: Old coal total
B12: Natural gas | C12: RESGAS | D12: RLEK | E12: =IF(SUMIFS('Census 2011'!$C$328:$C$468,'Census 2011'!$A$328:$A$468,D12,'Census 2011'!$B$328:$B$468,C12)<>0,SUMIFS('Census 2011'!$C$328:$C$468,'Census 2011'!$A$328:$A$468,D12,'Census 2011'!$B$328:$B$468,C12)," ") ->  | F12: =IF(SUMIFS(MyCS2007data!$T$83:$T$224,MyCS2007data!$S$83:$S$224,C12,MyCS2007data!$Q$83:$Q$224,D12)<>0,SUMIFS(MyCS2007data!$T$83:$T$224,MyCS2007data!$S$83:$S$224,C12,MyCS2007data!$Q$83:$Q$224,D12)," ") ->  | G12: =IF(SUMIFS(MyCS2007data!$V$83:$V$224,MyCS2007data!$S$83:$S$224,C12,MyCS2007data!$Q$83:$Q$224,D12)<>0,SUMIFS(MyCS2007data!$V$83:$V$224,MyCS2007data!$S$83:$S$224,C12,MyCS2007data!$Q$83:$Q$224,D12)," ") ->  | H12: =IF(SUMIFS('Census 2011'!$D$328:$D$468,'Census 2011'!$A$328:$A$468,D12,'Census 2011'!$B$328:$B$468,C12)<>0,SUMIFS('Census 2011'!$D$328:$D$468,'Census 2011'!$A$328:$A$468,D12,'Census 2011'!$B$328:$B$468,C12)," ") ->  | I12: =IF(SUMIFS('bottom-up-enduse'!$E$252:$E$357,'bottom-up-enduse'!$B$252:$B$357,D12,'bottom-up-enduse'!$A$252:$A$357,C12)<>0,SUMIFS('bottom-up-enduse'!$E$252:$E$357,'bottom-up-enduse'!$B$252:$B$357,D12,'bottom-up-enduse'!$A$252:$A$357,C12)," ") ->  | Q12: New coal total | R12: 16
E13: =IF(SUMIFS('Census 2011'!$C$328:$C$468,'Census 2011'!$A$328:$A$468,D13,'Census 2011'!$B$328:$B$468,C13)<>0,SUMIFS('Census 2011'!$C$328:$C$468,'Census 2011'!$A$328:$A$468,D13,'Census 2011'!$B$328:$B$468,C13)," ") ->  | F13: =IF(SUMIFS(MyCS2007data!$T$83:$T$224,MyCS2007data!$S$83:$S$224,C13,MyCS2007data!$Q$83:$Q$224,D13)<>0,SUMIFS(MyCS2007data!$T$83:$T$224,MyCS2007data!$S$83:$S$224,C13,MyCS2007data!$Q$83:$Q$224,D13)," ") ->  | G13: =IF(SUMIFS(MyCS2007data!$V$83:$V$224,MyCS2007data!$S$83:$S$224,C13,MyCS2007data!$Q$83:$Q$224,D13)<>0,SUMIFS(MyCS2007data!$V$83:$V$224,MyCS2007data!$S$83:$S$224,C13,MyCS2007data!$Q$83:$Q$224,D13)," ") ->  | H13: =IF(SUMIFS('Census 2011'!$D$328:$D$468,'Census 2011'!$A$328:$A$468,D13,'Census 2011'!$B$328:$B$468,C13)<>0,SUMIFS('Census 2011'!$D$328:$D$468,'Census 2011'!$A$328:$A$468,D13,'Census 2011'!$B$328:$B$468,C13)," ") ->  | I13: =IF(SUMIFS('bottom-up-enduse'!$E$252:$E$357,'bottom-up-enduse'!$B$252:$B$357,D13,'bottom-up-enduse'!$A$252:$A$357,C13)<>0,SUMIFS('bottom-up-enduse'!$E$252:$E$357,'bottom-up-enduse'!$B$252:$B$357,D13,'bottom-up-enduse'!$A$252:$A$357,C13)," ") ->  | Q13: Calorific value | R13: 27
A14: * | B14: \I:Residential - Space Heating - Low Income Electrified | E14: =IF(SUMIFS('Census 2011'!$C$328:$C$468,'Census 2011'!$A$328:$A$468,D14,'Census 2011'!$B$328:$B$468,C14)<>0,SUMIFS('Census 2011'!$C$328:$C$468,'Census 2011'!$A$328:$A$468,D14,'Census 2011'!$B$328:$B$468,C14)," ") ->  | F14: =IF(SUMIFS(MyCS2007data!$T$83:$T$224,MyCS2007data!$S$83:$S$224,C14,MyCS2007data!$Q$83:$Q$224,D14)<>0,SUMIFS(MyCS2007data!$T$83:$T$224,MyCS2007data!$S$83:$S$224,C14,MyCS2007data!$Q$83:$Q$224,D14)," ") ->  | G14: =IF(SUMIFS(MyCS2007data!$V$83:$V$224,MyCS2007data!$S$83:$S$224,C14,MyCS2007data!$Q$83:$Q$224,D14)<>0,SUMIFS(MyCS2007data!$V$83:$V$224,MyCS2007data!$S$83:$S$224,C14,MyCS2007data!$Q$83:$Q$224,D14)," ") ->  | H14: =IF(SUMIFS('Census 2011'!$D$328:$D$468,'Census 2011'!$A$328:$A$468,D14,'Census 2011'!$B$328:$B$468,C14)<>0,SUMIFS('Census 2011'!$D$328:$D$468,'Census 2011'!$A$328:$A$468,D14,'Census 2011'!$B$328:$B$468,C14)," ") ->  | I14: =IF(SUMIFS('bottom-up-enduse'!$E$252:$E$357,'bottom-up-enduse'!$B$252:$B$357,D14,'bottom-up-enduse'!$A$252:$A$357,C14)<>0,SUMIFS('bottom-up-enduse'!$E$252:$E$357,'bottom-up-enduse'!$B$252:$B$357,D14,'bottom-up-enduse'!$A$252:$A$357,C14)," ") -> 
B15: Electricity | C15: RESELC | D15: RLEH | E15: =IF(SUMIFS('Census 2011'!$C$328:$C$468,'Census 2011'!$A$328:$A$468,D15,'Census 2011'!$B$328:$B$468,C15)<>0,SUMIFS('Census 2011'!$C$328:$C$468,'Census 2011'!$A$328:$A$468,D15,'Census 2011'!$B$328:$B$468,C15)," ") -> 3081291 | F15: =IF(SUMIFS(MyCS2007data!$T$83:$T$224,MyCS2007data!$S$83:$S$224,C15,MyCS2007data!$Q$83:$Q$224,D15)<>0,SUMIFS(MyCS2007data!$T$83:$T$224,MyCS2007data!$S$83:$S$224,C15,MyCS2007data!$Q$83:$Q$224,D15)," ") -> 2480964.459 | G15: =IF(SUMIFS(MyCS2007data!$V$83:$V$224,MyCS2007data!$S$83:$S$224,C15,MyCS2007data!$Q$83:$Q$224,D15)<>0,SUMIFS(MyCS2007data!$V$83:$V$224,MyCS2007data!$S$83:$S$224,C15,MyCS2007data!$Q$83:$Q$224,D15)," ") -> 0.6022593751 | H15: =IF(SUMIFS('Census 2011'!$D$328:$D$468,'Census 2011'!$A$328:$A$468,D15,'Census 2011'!$B$328:$B$468,C15)<>0,SUMIFS('Census 2011'!$D$328:$D$468,'Census 2011'!$A$328:$A$468,D15,'Census 2011'!$B$328:$B$468,C15)," ") -> 0.7202961982 | I15: =IF(SUMIFS('bottom-up-enduse'!$E$252:$E$357,'bottom-up-enduse'!$B$252:$B$357,D15,'bottom-up-enduse'!$A$252:$A$357,C15)<>0,SUMIFS('bottom-up-enduse'!$E$252:$E$357,'bottom-up-enduse'!$B$252:$B$357,D15,'bottom-up-enduse'!$A$252:$A$357,C15)," ") -> 1.728 | J15: 4.287106585 | K15: 5.324470848
B16: Paraffin | C16: RESOKE | D16: RLEH | E16: =IF(SUMIFS('Census 2011'!$C$328:$C$468,'Census 2011'!$A$328:$A$468,D16,'Census 2011'!$B$328:$B$468,C16)<>0,SUMIFS('Census 2011'!$C$328:$C$468,'Census 2011'!$A$328:$A$468,D16,'Census 2011'!$B$328:$B$468,C16)," ") -> 317010 | F16: =IF(SUMIFS(MyCS2007data!$T$83:$T$224,MyCS2007data!$S$83:$S$224,C16,MyCS2007data!$Q$83:$Q$224,D16)<>0,SUMIFS(MyCS2007data!$T$83:$T$224,MyCS2007data!$S$83:$S$224,C16,MyCS2007data!$Q$83:$Q$224,D16)," ") -> 351099.4462 | G16: =IF(SUMIFS(MyCS2007data!$V$83:$V$224,MyCS2007data!$S$83:$S$224,C16,MyCS2007data!$Q$83:$Q$224,D16)<>0,SUMIFS(MyCS2007data!$V$83:$V$224,MyCS2007data!$S$83:$S$224,C16,MyCS2007data!$Q$83:$Q$224,D16)," ") -> 0.08523013391 | H16: =IF(SUMIFS('Census 2011'!$D$328:$D$468,'Census 2011'!$A$328:$A$468,D16,'Census 2011'!$B$328:$B$468,C16)<>0,SUMIFS('Census 2011'!$D$328:$D$468,'Census 2011'!$A$328:$A$468,D16,'Census 2011'!$B$328:$B$468,C16)," ") -> 0.07410565824 | I16: =IF(SUMIFS('bottom-up-enduse'!$E$252:$E$357,'bottom-up-enduse'!$B$252:$B$357,D16,'bottom-up-enduse'!$A$252:$A$357,C16)<>0,SUMIFS('bottom-up-enduse'!$E$252:$E$357,'bottom-up-enduse'!$B$252:$B$357,D16,'bottom-up-enduse'!$A$252:$A$357,C16)," ") -> 2.775 | J16: 0.9743009632 | K16: 0.87970275
B17: LPG | C17: RESOLP | D17: RLEH | E17: =IF(SUMIFS('Census 2011'!$C$328:$C$468,'Census 2011'!$A$328:$A$468,D17,'Census 2011'!$B$328:$B$468,C17)<>0,SUMIFS('Census 2011'!$C$328:$C$468,'Census 2011'!$A$328:$A$468,D17,'Census 2011'!$B$328:$B$468,C17)," ") -> 62601 | F17: =IF(SUMIFS(MyCS2007data!$T$83:$T$224,MyCS2007data!$S$83:$S$224,C17,MyCS2007data!$Q$83:$Q$224,D17)<>0,SUMIFS(MyCS2007data!$T$83:$T$224,MyCS2007data!$S$83:$S$224,C17,MyCS2007data!$Q$83:$Q$224,D17)," ") -> 24095.06003 | G17: =IF(SUMIFS(MyCS2007data!$V$83:$V$224,MyCS2007data!$S$83:$S$224,C17,MyCS2007data!$Q$83:$Q$224,D17)<>0,SUMIFS(MyCS2007data!$V$83:$V$224,MyCS2007data!$S$83:$S$224,C17,MyCS2007data!$Q$83:$Q$224,D17)," ") -> 0.005849126837 | H17: =IF(SUMIFS('Census 2011'!$D$328:$D$468,'Census 2011'!$A$328:$A$468,D17,'Census 2011'!$B$328:$B$468,C17)<>0,SUMIFS('Census 2011'!$D$328:$D$468,'Census 2011'!$A$328:$A$468,D17,'Census 2011'!$B$328:$B$468,C17)," ") -> 0.01463388635 | I17: =IF(SUMIFS('bottom-up-enduse'!$E$252:$E$357,'bottom-up-enduse'!$B$252:$B$357,D17,'bottom-up-enduse'!$A$252:$A$357,C17)<>0,SUMIFS('bottom-up-enduse'!$E$252:$E$357,'bottom-up-enduse'!$B$252:$B$357,D17,'bottom-up-enduse'!$A$252:$A$357,C17)," ") -> 
B18: Wood | C18: RESBIW | D18: RLEH | E18: =IF(SUMIFS('Census 2011'!$C$328:$C$468,'Census 2011'!$A$328:$A$468,D18,'Census 2011'!$B$328:$B$468,C18)<>0,SUMIFS('Census 2011'!$C$328:$C$468,'Census 2011'!$A$328:$A$468,D18,'Census 2011'!$B$328:$B$468,C18)," ") -> 707406 | F18: =IF(SUMIFS(MyCS2007data!$T$83:$T$224,MyCS2007data!$S$83:$S$224,C18,MyCS2007data!$Q$83:$Q$224,D18)<>0,SUMIFS(MyCS2007data!$T$83:$T$224,MyCS2007data!$S$83:$S$224,C18,MyCS2007data!$Q$83:$Q$224,D18)," ") -> 1142794.276 | G18: =IF(SUMIFS(MyCS2007data!$V$83:$V$224,MyCS2007data!$S$83:$S$224,C18,MyCS2007data!$Q$83:$Q$224,D18)<>0,SUMIFS(MyCS2007data!$V$83:$V$224,MyCS2007data!$S$83:$S$224,C18,MyCS2007data!$Q$83:$Q$224,D18)," ") -> 0.27741573 | H18: =IF(SUMIFS('Census 2011'!$D$328:$D$468,'Census 2011'!$A$328:$A$468,D18,'Census 2011'!$B$328:$B$468,C18)<>0,SUMIFS('Census 2011'!$D$328:$D$468,'Census 2011'!$A$328:$A$468,D18,'Census 2011'!$B$328:$B$468,C18)," ") -> 0.1653663521 | I18: =IF(SUMIFS('bottom-up-enduse'!$E$252:$E$357,'bottom-up-enduse'!$B$252:$B$357,D18,'bottom-up-enduse'!$A$252:$A$357,C18)<>0,SUMIFS('bottom-up-enduse'!$E$252:$E$357,'bottom-up-enduse'!$B$252:$B$357,D18,'bottom-up-enduse'!$A$252:$A$357,C18)," ") -> 13.24232 | J18: 15.1332475 | K18: 9.367696622
B19: Coal | C19: RESCOA | D19: RLEH | E19: =IF(SUMIFS('Census 2011'!$C$328:$C$468,'Census 2011'!$A$328:$A$468,D19,'Census 2011'!$B$328:$B$468,C19)<>0,SUMIFS('Census 2011'!$C$328:$C$468,'Census 2011'!$A$328:$A$468,D19,'Census 2011'!$B$328:$B$468,C19)," ") -> 85194 | F19: =IF(SUMIFS(MyCS2007data!$T$83:$T$224,MyCS2007data!$S$83:$S$224,C19,MyCS2007data!$Q$83:$Q$224,D19)<>0,SUMIFS(MyCS2007data!$T$83:$T$224,MyCS2007data!$S$83:$S$224,C19,MyCS2007data!$Q$83:$Q$224,D19)," ") -> 120475.3002 | G19: =IF(SUMIFS(MyCS2007data!$V$83:$V$224,MyCS2007data!$S$83:$S$224,C19,MyCS2007data!$Q$83:$Q$224,D19)<>0,SUMIFS(MyCS2007data!$V$83:$V$224,MyCS2007data!$S$83:$S$224,C19,MyCS2007data!$Q$83:$Q$224,D19)," ") -> 0.02924563418 | H19: =IF(SUMIFS('Census 2011'!$D$328:$D$468,'Census 2011'!$A$328:$A$468,D19,'Census 2011'!$B$328:$B$468,C19)<>0,SUMIFS('Census 2011'!$D$328:$D$468,'Census 2011'!$A$328:$A$468,D19,'Census 2011'!$B$328:$B$468,C19)," ") -> 0.01991532585 | I19: =IF(SUMIFS('bottom-up-enduse'!$E$252:$E$357,'bottom-up-enduse'!$B$252:$B$357,D19,'bottom-up-enduse'!$A$252:$A$357,C19)<>0,SUMIFS('bottom-up-enduse'!$E$252:$E$357,'bottom-up-enduse'!$B$252:$B$357,D19,'bottom-up-enduse'!$A$252:$A$357,C19)," ") -> 14.58 | J19: 1.756529876 | K19: 1.24212852
B20: Natural gas | C20: RESGAS | D20: RLEH | E20: =IF(SUMIFS('Census 2011'!$C$328:$C$468,'Census 2011'!$A$328:$A$468,D20,'Census 2011'!$B$328:$B$468,C20)<>0,SUMIFS('Census 2011'!$C$328:$C$468,'Census 2011'!$A$328:$A$468,D20,'Census 2011'!$B$328:$B$468,C20)," ") ->  | F20: =IF(SUMIFS(MyCS2007data!$T$83:$T$224,MyCS2007data!$S$83:$S$224,C20,MyCS2007data!$Q$83:$Q$224,D20)<>0,SUMIFS(MyCS2007data!$T$83:$T$224,MyCS2007data!$S$83:$S$224,C20,MyCS2007data!$Q$83:$Q$224,D20)," ") ->  | G20: =IF(SUMIFS(MyCS2007data!$V$83:$V$224,MyCS2007data!$S$83:$S$224,C20,MyCS2007data!$Q$83:$Q$224,D20)<>0,SUMIFS(MyCS2007data!$V$83:$V$224,MyCS2007data!$S$83:$S$224,C20,MyCS2007data!$Q$83:$Q$224,D20)," ") ->  | H20: =IF(SUMIFS('Census 2011'!$D$328:$D$468,'Census 2011'!$A$328:$A$468,D20,'Census 2011'!$B$328:$B$468,C20)<>0,SUMIFS('Census 2011'!$D$328:$D$468,'Census 2011'!$A$328:$A$468,D20,'Census 2011'!$B$328:$B$468,C20)," ") ->  | I20: =IF(SUMIFS('bottom-up-enduse'!$E$252:$E$357,'bottom-up-enduse'!$B$252:$B$357,D20,'bottom-up-enduse'!$A$252:$A$357,C20)<>0,SUMIFS('bottom-up-enduse'!$E$252:$E$357,'bottom-up-enduse'!$B$252:$B$357,D20,'bottom-up-enduse'!$A$252:$A$357,C20)," ") -> 
E21: =IF(SUMIFS('Census 2011'!$C$328:$C$468,'Census 2011'!$A$328:$A$468,D21,'Census 2011'!$B$328:$B$468,C21)<>0,SUMIFS('Census 2011'!$C$328:$C$468,'Census 2011'!$A$328:$A$468,D21,'Census 2011'!$B$328:$B$468,C21)," ") ->  | F21: =IF(SUMIFS(MyCS2007data!$T$83:$T$224,MyCS2007data!$S$83:$S$224,C21,MyCS2007data!$Q$83:$Q$224,D21)<>0,SUMIFS(MyCS2007data!$T$83:$T$224,MyCS2007data!$S$83:$S$224,C21,MyCS2007data!$Q$83:$Q$224,D21)," ") ->  | G21: =IF(SUMIFS(MyCS2007data!$V$83:$V$224,MyCS2007data!$S$83:$S$224,C21,MyCS2007data!$Q$83:$Q$224,D21)<>0,SUMIFS(MyCS2007data!$V$83:$V$224,MyCS2007data!$S$83:$S$224,C21,MyCS2007data!$Q$83:$Q$224,D21)," ") ->  | H21: =IF(SUMIFS('Census 2011'!$D$328:$D$468,'Census 2011'!$A$328:$A$468,D21,'Census 2011'!$B$328:$B$468,C21)<>0,SUMIFS('Census 2011'!$D$328:$D$468,'Census 2011'!$A$328:$A$468,D21,'Census 2011'!$B$328:$B$468,C21)," ") ->  | I21: =IF(SUMIFS('bottom-up-enduse'!$E$252:$E$357,'bottom-up-enduse'!$B$252:$B$357,D21,'bottom-up-enduse'!$A$252:$A$357,C21)<>0,SUMIFS('bottom-up-enduse'!$E$252:$E$357,'bottom-up-enduse'!$B$252:$B$357,D21,'bottom-up-enduse'!$A$252:$A$357,C21)," ") -> 
A22: * | B22: \I:Residential - Water Heating - Low Income Electrified | E22: =IF(SUMIFS('Census 2011'!$C$328:$C$468,'Census 2011'!$A$328:$A$468,D22,'Census 2011'!$B$328:$B$468,C22)<>0,SUMIFS('Census 2011'!$C$328:$C$468,'Census 2011'!$A$328:$A$468,D22,'Census 2011'!$B$328:$B$468,C22)," ") ->  | F22: =IF(SUMIFS(MyCS2007data!$T$83:$T$224,MyCS2007data!$S$83:$S$224,C22,MyCS2007data!$Q$83:$Q$224,D22)<>0,SUMIFS(MyCS2007data!$T$83:$T$224,MyCS2007data!$S$83:$S$224,C22,MyCS2007data!$Q$83:$Q$224,D22)," ") ->  | G22: =IF(SUMIFS(MyCS2007data!$V$83:$V$224,MyCS2007data!$S$83:$S$224,C22,MyCS2007data!$Q$83:$Q$224,D22)<>0,SUMIFS(MyCS2007data!$V$83:$V$224,MyCS2007data!$S$83:$S$224,C22,MyCS2007data!$Q$83:$Q$224,D22)," ") ->  | H22: =IF(SUMIFS('Census 2011'!$D$328:$D$468,'Census 2011'!$A$328:$A$468,D22,'Census 2011'!$B$328:$B$468,C22)<>0,SUMIFS('Census 2011'!$D$328:$D$468,'Census 2011'!$A$328:$A$468,D22,'Census 2011'!$B$328:$B$468,C22)," ") ->  | I22: =IF(SUMIFS('bottom-up-enduse'!$E$252:$E$357,'bottom-up-enduse'!$B$252:$B$357,D22,'bottom-up-enduse'!$A$252:$A$357,C22)<>0,SUMIFS('bottom-up-enduse'!$E$252:$E$357,'bottom-up-enduse'!$B$252:$B$357,D22,'bottom-up-enduse'!$A$252:$A$357,C22)," ") -> 
B23: Electricity | C23: RESELC | D23: RLEW | E23: =IF(SUMIFS('Census 2011'!$C$328:$C$468,'Census 2011'!$A$328:$A$468,D23,'Census 2011'!$B$328:$B$468,C23)<>0,SUMIFS('Census 2011'!$C$328:$C$468,'Census 2011'!$A$328:$A$468,D23,'Census 2011'!$B$328:$B$468,C23)," ") -> 4087590 | F23: =IF(SUMIFS(MyCS2007data!$T$83:$T$224,MyCS2007data!$S$83:$S$224,C23,MyCS2007data!$Q$83:$Q$224,D23)<>0,SUMIFS(MyCS2007data!$T$83:$T$224,MyCS2007data!$S$83:$S$224,C23,MyCS2007data!$Q$83:$Q$224,D23)," ") -> 2990093.686 | G23: =IF(SUMIFS(MyCS2007data!$V$83:$V$224,MyCS2007data!$S$83:$S$224,C23,MyCS2007data!$Q$83:$Q$224,D23)<>0,SUMIFS(MyCS2007data!$V$83:$V$224,MyCS2007data!$S$83:$S$224,C23,MyCS2007data!$Q$83:$Q$224,D23)," ") -> 0.7158940062 | H23: =IF(SUMIFS('Census 2011'!$D$328:$D$468,'Census 2011'!$A$328:$A$468,D23,'Census 2011'!$B$328:$B$468,C23)<>0,SUMIFS('Census 2011'!$D$328:$D$468,'Census 2011'!$A$328:$A$468,D23,'Census 2011'!$B$328:$B$468,C23)," ") -> 0.8343094794 | I23: =IF(SUMIFS('bottom-up-enduse'!$E$252:$E$357,'bottom-up-enduse'!$B$252:$B$357,D23,'bottom-up-enduse'!$A$252:$A$357,C23)<>0,SUMIFS('bottom-up-enduse'!$E$252:$E$357,'bottom-up-enduse'!$B$252:$B$357,D23,'bottom-up-enduse'!$A$252:$A$357,C23)," ") -> 1.524931579 | J23: 4.559688285 | K23: 6.233295073
B24: Paraffin | C24: RESOKE | D24: RLEW | E24: =IF(SUMIFS('Census 2011'!$C$328:$C$468,'Census 2011'!$A$328:$A$468,D24,'Census 2011'!$B$328:$B$468,C24)<>0,SUMIFS('Census 2011'!$C$328:$C$468,'Census 2011'!$A$328:$A$468,D24,'Census 2011'!$B$328:$B$468,C24)," ") -> 109923 | F24: =IF(SUMIFS(MyCS2007data!$T$83:$T$224,MyCS2007data!$S$83:$S$224,C24,MyCS2007data!$Q$83:$Q$224,D24)<>0,SUMIFS(MyCS2007data!$T$83:$T$224,MyCS2007data!$S$83:$S$224,C24,MyCS2007data!$Q$83:$Q$224,D24)," ") -> 318211.7141 | G24: =IF(SUMIFS(MyCS2007data!$V$83:$V$224,MyCS2007data!$S$83:$S$224,C24,MyCS2007data!$Q$83:$Q$224,D24)<>0,SUMIFS(MyCS2007data!$V$83:$V$224,MyCS2007data!$S$83:$S$224,C24,MyCS2007data!$Q$83:$Q$224,D24)," ") -> 0.07618686327 | H24: =IF(SUMIFS('Census 2011'!$D$328:$D$468,'Census 2011'!$A$328:$A$468,D24,'Census 2011'!$B$328:$B$468,C24)<>0,SUMIFS('Census 2011'!$D$328:$D$468,'Census 2011'!$A$328:$A$468,D24,'Census 2011'!$B$328:$B$468,C24)," ") -> 0.02243615453 | I24: =IF(SUMIFS('bottom-up-enduse'!$E$252:$E$357,'bottom-up-enduse'!$B$252:$B$357,D24,'bottom-up-enduse'!$A$252:$A$357,C24)<>0,SUMIFS('bottom-up-enduse'!$E$252:$E$357,'bottom-up-enduse'!$B$252:$B$357,D24,'bottom-up-enduse'!$A$252:$A$357,C24)," ") -> 13.16986364 | J24: 4.190804882 | K24: 1.447670921
B25: LPG | C25: RESOLP | D25: RLEW | E25: =IF(SUMIFS('Census 2011'!$C$328:$C$468,'Census 2011'!$A$328:$A$468,D25,'Census 2011'!$B$328:$B$468,C25)<>0,SUMIFS('Census 2011'!$C$328:$C$468,'Census 2011'!$A$328:$A$468,D25,'Census 2011'!$B$328:$B$468,C25)," ") -> 77403 | F25: =IF(SUMIFS(MyCS2007data!$T$83:$T$224,MyCS2007data!$S$83:$S$224,C25,MyCS2007data!$Q$83:$Q$224,D25)<>0,SUMIFS(MyCS2007data!$T$83:$T$224,MyCS2007data!$S$83:$S$224,C25,MyCS2007data!$Q$83:$Q$224,D25)," ") -> 46117.63972 | G25: =IF(SUMIFS(MyCS2007data!$V$83:$V$224,MyCS2007data!$S$83:$S$224,C25,MyCS2007data!$Q$83:$Q$224,D25)<>0,SUMIFS(MyCS2007data!$V$83:$V$224,MyCS2007data!$S$83:$S$224,C25,MyCS2007data!$Q$83:$Q$224,D25)," ") -> 0.01104157439 | H25: =IF(SUMIFS('Census 2011'!$D$328:$D$468,'Census 2011'!$A$328:$A$468,D25,'Census 2011'!$B$328:$B$468,C25)<>0,SUMIFS('Census 2011'!$D$328:$D$468,'Census 2011'!$A$328:$A$468,D25,'Census 2011'!$B$328:$B$468,C25)," ") -> 0.01579856508 | I25: =IF(SUMIFS('bottom-up-enduse'!$E$252:$E$357,'bottom-up-enduse'!$B$252:$B$357,D25,'bottom-up-enduse'!$A$252:$A$357,C25)<>0,SUMIFS('bottom-up-enduse'!$E$252:$E$357,'bottom-up-enduse'!$B$252:$B$357,D25,'bottom-up-enduse'!$A$252:$A$357,C25)," ") -> 2.390569307 | J25: 0.110247414 | K25: 0.1850372361
B26: Wood | C26: RESBIW | D26: RLEW | E26: =IF(SUMIFS('Census 2011'!$C$328:$C$468,'Census 2011'!$A$328:$A$468,D26,'Census 2011'!$B$328:$B$468,C26)<>0,SUMIFS('Census 2011'!$C$328:$C$468,'Census 2011'!$A$328:$A$468,D26,'Census 2011'!$B$328:$B$468,C26)," ") -> 591195 | F26: =IF(SUMIFS(MyCS2007data!$T$83:$T$224,MyCS2007data!$S$83:$S$224,C26,MyCS2007data!$Q$83:$Q$224,D26)<>0,SUMIFS(MyCS2007data!$T$83:$T$224,MyCS2007data!$S$83:$S$224,C26,MyCS2007data!$Q$83:$Q$224,D26)," ") -> 765552.8193 | G26: =IF(SUMIFS(MyCS2007data!$V$83:$V$224,MyCS2007data!$S$83:$S$224,C26,MyCS2007data!$Q$83:$Q$224,D26)<>0,SUMIFS(MyCS2007data!$V$83:$V$224,MyCS2007data!$S$83:$S$224,C26,MyCS2007data!$Q$83:$Q$224,D26)," ") -> 0.1832901348 | H26: =IF(SUMIFS('Census 2011'!$D$328:$D$468,'Census 2011'!$A$328:$A$468,D26,'Census 2011'!$B$328:$B$468,C26)<>0,SUMIFS('Census 2011'!$D$328:$D$468,'Census 2011'!$A$328:$A$468,D26,'Census 2011'!$B$328:$B$468,C26)," ") -> 0.1206675798 | I26: =IF(SUMIFS('bottom-up-enduse'!$E$252:$E$357,'bottom-up-enduse'!$B$252:$B$357,D26,'bottom-up-enduse'!$A$252:$A$357,C26)<>0,SUMIFS('bottom-up-enduse'!$E$252:$E$357,'bottom-up-enduse'!$B$252:$B$357,D26,'bottom-up-enduse'!$A$252:$A$357,C26)," ") -> 3.714576923 | J26: 2.843704836 | K26: 2.196039304
B27: Coal | C27: RESCOA | D27: RLEW | E27: =IF(SUMIFS('Census 2011'!$C$328:$C$468,'Census 2011'!$A$328:$A$468,D27,'Census 2011'!$B$328:$B$468,C27)<>0,SUMIFS('Census 2011'!$C$328:$C$468,'Census 2011'!$A$328:$A$468,D27,'Census 2011'!$B$328:$B$468,C27)," ") -> 33258 | F27: =IF(SUMIFS(MyCS2007data!$T$83:$T$224,MyCS2007data!$S$83:$S$224,C27,MyCS2007data!$Q$83:$Q$224,D27)<>0,SUMIFS(MyCS2007data!$T$83:$T$224,MyCS2007data!$S$83:$S$224,C27,MyCS2007data!$Q$83:$Q$224,D27)," ") -> 56750.94695 | G27: =IF(SUMIFS(MyCS2007data!$V$83:$V$224,MyCS2007data!$S$83:$S$224,C27,MyCS2007data!$Q$83:$Q$224,D27)<>0,SUMIFS(MyCS2007data!$V$83:$V$224,MyCS2007data!$S$83:$S$224,C27,MyCS2007data!$Q$83:$Q$224,D27)," ") -> 0.01358742134 | H27: =IF(SUMIFS('Census 2011'!$D$328:$D$468,'Census 2011'!$A$328:$A$468,D27,'Census 2011'!$B$328:$B$468,C27)<>0,SUMIFS('Census 2011'!$D$328:$D$468,'Census 2011'!$A$328:$A$468,D27,'Census 2011'!$B$328:$B$468,C27)," ") -> 0.006788221095 | I27: =IF(SUMIFS('bottom-up-enduse'!$E$252:$E$357,'bottom-up-enduse'!$B$252:$B$357,D27,'bottom-up-enduse'!$A$252:$A$357,C27)<>0,SUMIFS('bottom-up-enduse'!$E$252:$E$357,'bottom-up-enduse'!$B$252:$B$357,D27,'bottom-up-enduse'!$A$252:$A$357,C27)," ") -> 5.832 | J27: 0.3309715226 | K27: 0.193960656
B28: Natural gas | C28: RESGAS | D28: RLEW | E28: =IF(SUMIFS('Census 2011'!$C$328:$C$468,'Census 2011'!$A$328:$A$468,D28,'Census 2011'!$B$328:$B$468,C28)<>0,SUMIFS('Census 2011'!$C$328:$C$468,'Census 2011'!$A$328:$A$468,D28,'Census 2011'!$B$328:$B$468,C28)," ") ->  | F28: =IF(SUMIFS(MyCS2007data!$T$83:$T$224,MyCS2007data!$S$83:$S$224,C28,MyCS2007data!$Q$83:$Q$224,D28)<>0,SUMIFS(MyCS2007data!$T$83:$T$224,MyCS2007data!$S$83:$S$224,C28,MyCS2007data!$Q$83:$Q$224,D28)," ") ->  | G28: =IF(SUMIFS(MyCS2007data!$V$83:$V$224,MyCS2007data!$S$83:$S$224,C28,MyCS2007data!$Q$83:$Q$224,D28)<>0,SUMIFS(MyCS2007data!$V$83:$V$224,MyCS2007data!$S$83:$S$224,C28,MyCS2007data!$Q$83:$Q$224,D28)," ") ->  | H28: =IF(SUMIFS('Census 2011'!$D$328:$D$468,'Census 2011'!$A$328:$A$468,D28,'Census 2011'!$B$328:$B$468,C28)<>0,SUMIFS('Census 2011'!$D$328:$D$468,'Census 2011'!$A$328:$A$468,D28,'Census 2011'!$B$328:$B$468,C28)," ") ->  | I28: =IF(SUMIFS('bottom-up-enduse'!$E$252:$E$357,'bottom-up-enduse'!$B$252:$B$357,D28,'bottom-up-enduse'!$A$252:$A$357,C28)<>0,SUMIFS('bottom-up-enduse'!$E$252:$E$357,'bottom-up-enduse'!$B$252:$B$357,D28,'bottom-up-enduse'!$A$252:$A$357,C28)," ") -> 
E29: =IF(SUMIFS('Census 2011'!$C$328:$C$468,'Census 2011'!$A$328:$A$468,D29,'Census 2011'!$B$328:$B$468,C29)<>0,SUMIFS('Census 2011'!$C$328:$C$468,'Census 2011'!$A$328:$A$468,D29,'Census 2011'!$B$328:$B$468,C29)," ") ->  | F29: =IF(SUMIFS(MyCS2007data!$T$83:$T$224,MyCS2007data!$S$83:$S$224,C29,MyCS2007data!$Q$83:$Q$224,D29)<>0,SUMIFS(MyCS2007data!$T$83:$T$224,MyCS2007data!$S$83:$S$224,C29,MyCS2007data!$Q$83:$Q$224,D29)," ") ->  | G29: =IF(SUMIFS(MyCS2007data!$V$83:$V$224,MyCS2007data!$S$83:$S$224,C29,MyCS2007data!$Q$83:$Q$224,D29)<>0,SUMIFS(MyCS2007data!$V$83:$V$224,MyCS2007data!$S$83:$S$224,C29,MyCS2007data!$Q$83:$Q$224,D29)," ") ->  | H29: =IF(SUMIFS('Census 2011'!$D$328:$D$468,'Census 2011'!$A$328:$A$468,D29,'Census 2011'!$B$328:$B$468,C29)<>0,SUMIFS('Census 2011'!$D$328:$D$468,'Census 2011'!$A$328:$A$468,D29,'Census 2011'!$B$328:$B$468,C29)," ") ->  | I29: =IF(SUMIFS('bottom-up-enduse'!$E$252:$E$357,'bottom-up-enduse'!$B$252:$B$357,D29,'bottom-up-enduse'!$A$252:$A$357,C29)<>0,SUMIFS('bottom-up-enduse'!$E$252:$E$357,'bottom-up-enduse'!$B$252:$B$357,D29,'bottom-up-enduse'!$A$252:$A$357,C29)," ") -> 
A30: * | B30: \I:Residential - Refrigeration - Low Income Electrified | E30: =IF(SUMIFS('Census 2011'!$C$328:$C$468,'Census 2011'!$A$328:$A$468,D30,'Census 2011'!$B$328:$B$468,C30)<>0,SUMIFS('Census 2011'!$C$328:$C$468,'Census 2011'!$A$328:$A$468,D30,'Census 2011'!$B$328:$B$468,C30)," ") ->  | F30: =IF(SUMIFS(MyCS2007data!$T$83:$T$224,MyCS2007data!$S$83:$S$224,C30,MyCS2007data!$Q$83:$Q$224,D30)<>0,SUMIFS(MyCS2007data!$T$83:$T$224,MyCS2007data!$S$83:$S$224,C30,MyCS2007data!$Q$83:$Q$224,D30)," ") ->  | G30: =IF(SUMIFS(MyCS2007data!$V$83:$V$224,MyCS2007data!$S$83:$S$224,C30,MyCS2007data!$Q$83:$Q$224,D30)<>0,SUMIFS(MyCS2007data!$V$83:$V$224,MyCS2007data!$S$83:$S$224,C30,MyCS2007data!$Q$83:$Q$224,D30)," ") ->  | H30: =IF(SUMIFS('Census 2011'!$D$328:$D$468,'Census 2011'!$A$328:$A$468,D30,'Census 2011'!$B$328:$B$468,C30)<>0,SUMIFS('Census 2011'!$D$328:$D$468,'Census 2011'!$A$328:$A$468,D30,'Census 2011'!$B$328:$B$468,C30)," ") ->  | I30: =IF(SUMIFS('bottom-up-enduse'!$E$252:$E$357,'bottom-up-enduse'!$B$252:$B$357,D30,'bottom-up-enduse'!$A$252:$A$357,C30)<>0,SUMIFS('bottom-up-enduse'!$E$252:$E$357,'bottom-up-enduse'!$B$252:$B$357,D30,'bottom-up-enduse'!$A$252:$A$357,C30)," ") -> 
B31: Electricity | C31: RESELC | D31: RLER | E31: =IF(SUMIFS('Census 2011'!$C$328:$C$468,'Census 2011'!$A$328:$A$468,D31,'Census 2011'!$B$328:$B$468,C31)<>0,SUMIFS('Census 2011'!$C$328:$C$468,'Census 2011'!$A$328:$A$468,D31,'Census 2011'!$B$328:$B$468,C31)," ") -> 4934106 | F31: =IF(SUMIFS(MyCS2007data!$T$83:$T$224,MyCS2007data!$S$83:$S$224,C31,MyCS2007data!$Q$83:$Q$224,D31)<>0,SUMIFS(MyCS2007data!$T$83:$T$224,MyCS2007data!$S$83:$S$224,C31,MyCS2007data!$Q$83:$Q$224,D31)," ") -> 4016846.419 | G31: =IF(SUMIFS(MyCS2007data!$V$83:$V$224,MyCS2007data!$S$83:$S$224,C31,MyCS2007data!$Q$83:$Q$224,D31)<>0,SUMIFS(MyCS2007data!$V$83:$V$224,MyCS2007data!$S$83:$S$224,C31,MyCS2007data!$Q$83:$Q$224,D31)," ") -> 1 | H31: =IF(SUMIFS('Census 2011'!$D$328:$D$468,'Census 2011'!$A$328:$A$468,D31,'Census 2011'!$B$328:$B$468,C31)<>0,SUMIFS('Census 2011'!$D$328:$D$468,'Census 2011'!$A$328:$A$468,D31,'Census 2011'!$B$328:$B$468,C31)," ") -> 1 | I31: =IF(SUMIFS('bottom-up-enduse'!$E$252:$E$357,'bottom-up-enduse'!$B$252:$B$357,D31,'bottom-up-enduse'!$A$252:$A$357,C31)<>0,SUMIFS('bottom-up-enduse'!$E$252:$E$357,'bottom-up-enduse'!$B$252:$B$357,D31,'bottom-up-enduse'!$A$252:$A$357,C31)," ") -> 1.18799835 | J31: =IFERROR(I31*F31/10^6," ") -> 4.772006919 | K31: 5.861709787
E32: =IF(SUMIFS('Census 2011'!$C$328:$C$468,'Census 2011'!$A$328:$A$468,D32,'Census 2011'!$B$328:$B$468,C32)<>0,SUMIFS('Census 2011'!$C$328:$C$468,'Census 2011'!$A$328:$A$468,D32,'Census 2011'!$B$328:$B$468,C32)," ") ->  | F32: =IF(SUMIFS(MyCS2007data!$T$83:$T$224,MyCS2007data!$S$83:$S$224,C32,MyCS2007data!$Q$83:$Q$224,D32)<>0,SUMIFS(MyCS2007data!$T$83:$T$224,MyCS2007data!$S$83:$S$224,C32,MyCS2007data!$Q$83:$Q$224,D32)," ") ->  | G32: =IF(SUMIFS(MyCS2007data!$V$83:$V$224,MyCS2007data!$S$83:$S$224,C32,MyCS2007data!$Q$83:$Q$224,D32)<>0,SUMIFS(MyCS2007data!$V$83:$V$224,MyCS2007data!$S$83:$S$224,C32,MyCS2007data!$Q$83:$Q$224,D32)," ") ->  | H32: =IF(SUMIFS('Census 2011'!$D$328:$D$468,'Census 2011'!$A$328:$A$468,D32,'Census 2011'!$B$328:$B$468,C32)<>0,SUMIFS('Census 2011'!$D$328:$D$468,'Census 2011'!$A$328:$A$468,D32,'Census 2011'!$B$328:$B$468,C32)," ") ->  | I32: =IF(SUMIFS('bottom-up-enduse'!$E$252:$E$357,'bottom-up-enduse'!$B$252:$B$357,D32,'bottom-up-enduse'!$A$252:$A$357,C32)<>0,SUMIFS('bottom-up-enduse'!$E$252:$E$357,'bottom-up-enduse'!$B$252:$B$357,D32,'bottom-up-enduse'!$A$252:$A$357,C32)," ") ->  | J32: =IFERROR(I32*F32/10^6," ") ->  | K32: =IFERROR(E32*I32/10^6," ") -> 
A33: * | B33: \I:Residential - Other - Low Income Electrified | E33: =IF(SUMIFS('Census 2011'!$C$328:$C$468,'Census 2011'!$A$328:$A$468,D33,'Census 2011'!$B$328:$B$468,C33)<>0,SUMIFS('Census 2011'!$C$328:$C$468,'Census 2011'!$A$328:$A$468,D33,'Census 2011'!$B$328:$B$468,C33)," ") ->  | F33: =IF(SUMIFS(MyCS2007data!$T$83:$T$224,MyCS2007data!$S$83:$S$224,C33,MyCS2007data!$Q$83:$Q$224,D33)<>0,SUMIFS(MyCS2007data!$T$83:$T$224,MyCS2007data!$S$83:$S$224,C33,MyCS2007data!$Q$83:$Q$224,D33)," ") ->  | G33: =IF(SUMIFS(MyCS2007data!$V$83:$V$224,MyCS2007data!$S$83:$S$224,C33,MyCS2007data!$Q$83:$Q$224,D33)<>0,SUMIFS(MyCS2007data!$V$83:$V$224,MyCS2007data!$S$83:$S$224,C33,MyCS2007data!$Q$83:$Q$224,D33)," ") ->  | H33: =IF(SUMIFS('Census 2011'!$D$328:$D$468,'Census 2011'!$A$328:$A$468,D33,'Census 2011'!$B$328:$B$468,C33)<>0,SUMIFS('Census 2011'!$D$328:$D$468,'Census 2011'!$A$328:$A$468,D33,'Census 2011'!$B$328:$B$468,C33)," ") ->  | I33: =IF(SUMIFS('bottom-up-enduse'!$E$252:$E$357,'bottom-up-enduse'!$B$252:$B$357,D33,'bottom-up-enduse'!$A$252:$A$357,C33)<>0,SUMIFS('bottom-up-enduse'!$E$252:$E$357,'bottom-up-enduse'!$B$252:$B$357,D33,'bottom-up-enduse'!$A$252:$A$357,C33)," ") ->  | J33: =IFERROR(I33*F33/10^6," ") ->  | K33: =IFERROR(E33*I33/10^6," ") -> 
B34: Electricity | C34: RESELC | D34: RLEO | E34: =IF(SUMIFS('Census 2011'!$C$328:$C$468,'Census 2011'!$A$328:$A$468,D34,'Census 2011'!$B$328:$B$468,C34)<>0,SUMIFS('Census 2011'!$C$328:$C$468,'Census 2011'!$A$328:$A$468,D34,'Census 2011'!$B$328:$B$468,C34)," ")*70% -> 3453874.2 | F34: =IF(SUMIFS(MyCS2007data!$T$83:$T$224,MyCS2007data!$S$83:$S$224,C34,MyCS2007data!$Q$83:$Q$224,D34)<>0,SUMIFS(MyCS2007data!$T$83:$T$224,MyCS2007data!$S$83:$S$224,C34,MyCS2007data!$Q$83:$Q$224,D34)," ") -> 4016846.419 | G34: =IF(SUMIFS(MyCS2007data!$V$83:$V$224,MyCS2007data!$S$83:$S$224,C34,MyCS2007data!$Q$83:$Q$224,D34)<>0,SUMIFS(MyCS2007data!$V$83:$V$224,MyCS2007data!$S$83:$S$224,C34,MyCS2007data!$Q$83:$Q$224,D34)," ") -> 1 | H34: =IF(SUMIFS('Census 2011'!$D$328:$D$468,'Census 2011'!$A$328:$A$468,D34,'Census 2011'!$B$328:$B$468,C34)<>0,SUMIFS('Census 2011'!$D$328:$D$468,'Census 2011'!$A$328:$A$468,D34,'Census 2011'!$B$328:$B$468,C34)," ") -> 1 | J34: =W3 -> 1.500228627 | L34: Used to balance the electricity consumption
A35: =IF(LEFT(B35,1)="\","*","") ->  | B35: Paraffin | C35: RESOKE | D35: RLEN | E35: =IF(SUMIFS('Census 2011'!$C$328:$C$468,'Census 2011'!$A$328:$A$468,D35,'Census 2011'!$B$328:$B$468,C35)<>0,SUMIFS('Census 2011'!$C$328:$C$468,'Census 2011'!$A$328:$A$468,D35,'Census 2011'!$B$328:$B$468,C35)," ") -> 10992.3 | F35: =IF(SUMIFS(MyCS2007data!$T$83:$T$224,MyCS2007data!$S$83:$S$224,C35,MyCS2007data!$Q$83:$Q$224,D35)<>0,SUMIFS(MyCS2007data!$T$83:$T$224,MyCS2007data!$S$83:$S$224,C35,MyCS2007data!$Q$83:$Q$224,D35)," ") -> 318211.7141 | G35: =IF(SUMIFS(MyCS2007data!$V$83:$V$224,MyCS2007data!$S$83:$S$224,C35,MyCS2007data!$Q$83:$Q$224,D35)<>0,SUMIFS(MyCS2007data!$V$83:$V$224,MyCS2007data!$S$83:$S$224,C35,MyCS2007data!$Q$83:$Q$224,D35)," ") -> 1 | H35: =IF(SUMIFS('Census 2011'!$D$328:$D$468,'Census 2011'!$A$328:$A$468,D35,'Census 2011'!$B$328:$B$468,C35)<>0,SUMIFS('Census 2011'!$D$328:$D$468,'Census 2011'!$A$328:$A$468,D35,'Census 2011'!$B$328:$B$468,C35)," ") -> 1 | I35: =IF(SUMIFS('bottom-up-enduse'!$E$252:$E$357,'bottom-up-enduse'!$B$252:$B$357,D35,'bottom-up-enduse'!$A$252:$A$357,C35)<>0,SUMIFS('bottom-up-enduse'!$E$252:$E$357,'bottom-up-enduse'!$B$252:$B$357,D35,'bottom-up-enduse'!$A$252:$A$357,C35)," ") -> 0.3566959621 | J35: =IFERROR(I35*F35/10^6," ") -> 0.1135048335 | K35: 0.003920909024
E36: =IF(SUMIFS('Census 2011'!$C$328:$C$468,'Census 2011'!$A$328:$A$468,D36,'Census 2011'!$B$328:$B$468,C36)<>0,SUMIFS('Census 2011'!$C$328:$C$468,'Census 2011'!$A$328:$A$468,D36,'Census 2011'!$B$328:$B$468,C36)," ") ->  | F36: =IF(SUMIFS(MyCS2007data!$T$83:$T$224,MyCS2007data!$S$83:$S$224,C36,MyCS2007data!$Q$83:$Q$224,D36)<>0,SUMIFS(MyCS2007data!$T$83:$T$224,MyCS2007data!$S$83:$S$224,C36,MyCS2007data!$Q$83:$Q$224,D36)," ") ->  | G36: =IF(SUMIFS(MyCS2007data!$V$83:$V$224,MyCS2007data!$S$83:$S$224,C36,MyCS2007data!$Q$83:$Q$224,D36)<>0,SUMIFS(MyCS2007data!$V$83:$V$224,MyCS2007data!$S$83:$S$224,C36,MyCS2007data!$Q$83:$Q$224,D36)," ") ->  | H36: =IF(SUMIFS('Census 2011'!$D$328:$D$468,'Census 2011'!$A$328:$A$468,D36,'Census 2011'!$B$328:$B$468,C36)<>0,SUMIFS('Census 2011'!$D$328:$D$468,'Census 2011'!$A$328:$A$468,D36,'Census 2011'!$B$328:$B$468,C36)," ") ->  | I36: =IF(SUMIFS('bottom-up-enduse'!$E$252:$E$357,'bottom-up-enduse'!$B$252:$B$357,D36,'bottom-up-enduse'!$A$252:$A$357,C36)<>0,SUMIFS('bottom-up-enduse'!$E$252:$E$357,'bottom-up-enduse'!$B$252:$B$357,D36,'bottom-up-enduse'!$A$252:$A$357,C36)," ") ->  | K36: =IFERROR(E36*I36/10^6," ") -> 
A37: * | B37: \I:Residential - Lighting - Middle Income Electrified | E37: =IF(SUMIFS('Census 2011'!$C$328:$C$468,'Census 2011'!$A$328:$A$468,D37,'Census 2011'!$B$328:$B$468,C37)<>0,SUMIFS('Census 2011'!$C$328:$C$468,'Census 2011'!$A$328:$A$468,D37,'Census 2011'!$B$328:$B$468,C37)," ") ->  | F37: =IF(SUMIFS(MyCS2007data!$T$83:$T$224,MyCS2007data!$S$83:$S$224,C37,MyCS2007data!$Q$83:$Q$224,D37)<>0,SUMIFS(MyCS2007data!$T$83:$T$224,MyCS2007data!$S$83:$S$224,C37,MyCS2007data!$Q$83:$Q$224,D37)," ") ->  | G37: =IF(SUMIFS(MyCS2007data!$V$83:$V$224,MyCS2007data!$S$83:$S$224,C37,MyCS2007data!$Q$83:$Q$224,D37)<>0,SUMIFS(MyCS2007data!$V$83:$V$224,MyCS2007data!$S$83:$S$224,C37,MyCS2007data!$Q$83:$Q$224,D37)," ") ->  | H37: =IF(SUMIFS('Census 2011'!$D$328:$D$468,'Census 2011'!$A$328:$A$468,D37,'Census 2011'!$B$328:$B$468,C37)<>0,SUMIFS('Census 2011'!$D$328:$D$468,'Census 2011'!$A$328:$A$468,D37,'Census 2011'!$B$328:$B$468,C37)," ") ->  | I37: =IF(SUMIFS('bottom-up-enduse'!$E$252:$E$357,'bottom-up-enduse'!$B$252:$B$357,D37,'bottom-up-enduse'!$A$252:$A$357,C37)<>0,SUMIFS('bottom-up-enduse'!$E$252:$E$357,'bottom-up-enduse'!$B$252:$B$357,D37,'bottom-up-enduse'!$A$252:$A$357,C37)," ") -> 
B38: Electricity | C38: RESELC | D38: RMEL | E38: =IF(SUMIFS('Census 2011'!$C$328:$C$468,'Census 2011'!$A$328:$A$468,D38,'Census 2011'!$B$328:$B$468,C38)<>0,SUMIFS('Census 2011'!$C$328:$C$468,'Census 2011'!$A$328:$A$468,D38,'Census 2011'!$B$328:$B$468,C38)," ") -> 3949344 | F38: =IF(SUMIFS(MyCS2007data!$T$83:$T$224,MyCS2007data!$S$83:$S$224,C38,MyCS2007data!$Q$83:$Q$224,D38)<>0,SUMIFS(MyCS2007data!$T$83:$T$224,MyCS2007data!$S$83:$S$224,C38,MyCS2007data!$Q$83:$Q$224,D38)," ") -> 3490962.908 | G38: =IF(SUMIFS(MyCS2007data!$V$83:$V$224,MyCS2007data!$S$83:$S$224,C38,MyCS2007data!$Q$83:$Q$224,D38)<>0,SUMIFS(MyCS2007data!$V$83:$V$224,MyCS2007data!$S$83:$S$224,C38,MyCS2007data!$Q$83:$Q$224,D38)," ") -> 1 | H38: =IF(SUMIFS('Census 2011'!$D$328:$D$468,'Census 2011'!$A$328:$A$468,D38,'Census 2011'!$B$328:$B$468,C38)<>0,SUMIFS('Census 2011'!$D$328:$D$468,'Census 2011'!$A$328:$A$468,D38,'Census 2011'!$B$328:$B$468,C38)," ") -> 1 | I38: =IF(SUMIFS('bottom-up-enduse'!$E$252:$E$357,'bottom-up-enduse'!$B$252:$B$357,D38,'bottom-up-enduse'!$A$252:$A$357,C38)<>0,SUMIFS('bottom-up-enduse'!$E$252:$E$357,'bottom-up-enduse'!$B$252:$B$357,D38,'bottom-up-enduse'!$A$252:$A$357,C38)," ") -> 1.912925054 | J38: 6.677950408 | K38: 7.554799083
E39: =IF(SUMIFS('Census 2011'!$C$328:$C$468,'Census 2011'!$A$328:$A$468,D39,'Census 2011'!$B$328:$B$468,C39)<>0,SUMIFS('Census 2011'!$C$328:$C$468,'Census 2011'!$A$328:$A$468,D39,'Census 2011'!$B$328:$B$468,C39)," ") ->  | F39: =IF(SUMIFS(MyCS2007data!$T$83:$T$224,MyCS2007data!$S$83:$S$224,C39,MyCS2007data!$Q$83:$Q$224,D39)<>0,SUMIFS(MyCS2007data!$T$83:$T$224,MyCS2007data!$S$83:$S$224,C39,MyCS2007data!$Q$83:$Q$224,D39)," ") ->  | G39: =IF(SUMIFS(MyCS2007data!$V$83:$V$224,MyCS2007data!$S$83:$S$224,C39,MyCS2007data!$Q$83:$Q$224,D39)<>0,SUMIFS(MyCS2007data!$V$83:$V$224,MyCS2007data!$S$83:$S$224,C39,MyCS2007data!$Q$83:$Q$224,D39)," ") ->  | H39: =IF(SUMIFS('Census 2011'!$D$328:$D$468,'Census 2011'!$A$328:$A$468,D39,'Census 2011'!$B$328:$B$468,C39)<>0,SUMIFS('Census 2011'!$D$328:$D$468,'Census 2011'!$A$328:$A$468,D39,'Census 2011'!$B$328:$B$468,C39)," ") ->  | I39: =IF(SUMIFS('bottom-up-enduse'!$E$252:$E$357,'bottom-up-enduse'!$B$252:$B$357,D39,'bottom-up-enduse'!$A$252:$A$357,C39)<>0,SUMIFS('bottom-up-enduse'!$E$252:$E$357,'bottom-up-enduse'!$B$252:$B$357,D39,'bottom-up-enduse'!$A$252:$A$357,C39)," ") -> 
A40: * | B40: \I:Residential - Cooking - Middle Income Electrified | E40: =IF(SUMIFS('Census 2011'!$C$328:$C$468,'Census 2011'!$A$328:$A$468,D40,'Census 2011'!$B$328:$B$468,C40)<>0,SUMIFS('Census 2011'!$C$328:$C$468,'Census 2011'!$A$328:$A$468,D40,'Census 2011'!$B$328:$B$468,C40)," ") ->  | F40: =IF(SUMIFS(MyCS2007data!$T$83:$T$224,MyCS2007data!$S$83:$S$224,C40,MyCS2007data!$Q$83:$Q$224,D40)<>0,SUMIFS(MyCS2007data!$T$83:$T$224,MyCS2007data!$S$83:$S$224,C40,MyCS2007data!$Q$83:$Q$224,D40)," ") ->  | G40: =IF(SUMIFS(MyCS2007data!$V$83:$V$224,MyCS2007data!$S$83:$S$224,C40,MyCS2007data!$Q$83:$Q$224,D40)<>0,SUMIFS(MyCS2007data!$V$83:$V$224,MyCS2007data!$S$83:$S$224,C40,MyCS2007data!$Q$83:$Q$224,D40)," ") ->  | H40: =IF(SUMIFS('Census 2011'!$D$328:$D$468,'Census 2011'!$A$328:$A$468,D40,'Census 2011'!$B$328:$B$468,C40)<>0,SUMIFS('Census 2011'!$D$328:$D$468,'Census 2011'!$A$328:$A$468,D40,'Census 2011'!$B$328:$B$468,C40)," ") ->  | I40: =IF(SUMIFS('bottom-up-enduse'!$E$252:$E$357,'bottom-up-enduse'!$B$252:$B$357,D40,'bottom-up-enduse'!$A$252:$A$357,C40)<>0,SUMIFS('bottom-up-enduse'!$E$252:$E$357,'bottom-up-enduse'!$B$252:$B$357,D40,'bottom-up-enduse'!$A$252:$A$357,C40)," ") -> 
B41: Electricity | C41: RESELC | D41: RMEK | E41: =IF(SUMIFS('Census 2011'!$C$328:$C$468,'Census 2011'!$A$328:$A$468,D41,'Census 2011'!$B$328:$B$468,C41)<>0,SUMIFS('Census 2011'!$C$328:$C$468,'Census 2011'!$A$328:$A$468,D41,'Census 2011'!$B$328:$B$468,C41)," ") -> 2721207 | F41: =IF(SUMIFS(MyCS2007data!$T$83:$T$224,MyCS2007data!$S$83:$S$224,C41,MyCS2007data!$Q$83:$Q$224,D41)<>0,SUMIFS(MyCS2007data!$T$83:$T$224,MyCS2007data!$S$83:$S$224,C41,MyCS2007data!$Q$83:$Q$224,D41)," ") -> 2926761.772 | G41: =IF(SUMIFS(MyCS2007data!$V$83:$V$224,MyCS2007data!$S$83:$S$224,C41,MyCS2007data!$Q$83:$Q$224,D41)<>0,SUMIFS(MyCS2007data!$V$83:$V$224,MyCS2007data!$S$83:$S$224,C41,MyCS2007data!$Q$83:$Q$224,D41)," ") -> 0.8988620514 | H41: =IF(SUMIFS('Census 2011'!$D$328:$D$468,'Census 2011'!$A$328:$A$468,D41,'Census 2011'!$B$328:$B$468,C41)<>0,SUMIFS('Census 2011'!$D$328:$D$468,'Census 2011'!$A$328:$A$468,D41,'Census 2011'!$B$328:$B$468,C41)," ") -> 0.8427894487 | I41: =IF(SUMIFS('bottom-up-enduse'!$E$252:$E$357,'bottom-up-enduse'!$B$252:$B$357,D41,'bottom-up-enduse'!$A$252:$A$357,C41)<>0,SUMIFS('bottom-up-enduse'!$E$252:$E$357,'bottom-up-enduse'!$B$252:$B$357,D41,'bottom-up-enduse'!$A$252:$A$357,C41)," ") -> 1.480896 | J41: 4.334229802 | K41: 4.029824561
B42: Paraffin | C42: RESOKE | D42: RMEK | E42: =IF(SUMIFS('Census 2011'!$C$328:$C$468,'Census 2011'!$A$328:$A$468,D42,'Census 2011'!$B$328:$B$468,C42)<>0,SUMIFS('Census 2011'!$C$328:$C$468,'Census 2011'!$A$328:$A$468,D42,'Census 2011'!$B$328:$B$468,C42)," ") -> 50478 | F42: =IF(SUMIFS(MyCS2007data!$T$83:$T$224,MyCS2007data!$S$83:$S$224,C42,MyCS2007data!$Q$83:$Q$224,D42)<>0,SUMIFS(MyCS2007data!$T$83:$T$224,MyCS2007data!$S$83:$S$224,C42,MyCS2007data!$Q$83:$Q$224,D42)," ") -> 61149.88419 | G42: =IF(SUMIFS(MyCS2007data!$V$83:$V$224,MyCS2007data!$S$83:$S$224,C42,MyCS2007data!$Q$83:$Q$224,D42)<>0,SUMIFS(MyCS2007data!$V$83:$V$224,MyCS2007data!$S$83:$S$224,C42,MyCS2007data!$Q$83:$Q$224,D42)," ") -> 0.01878024746 | H42: =IF(SUMIFS('Census 2011'!$D$328:$D$468,'Census 2011'!$A$328:$A$468,D42,'Census 2011'!$B$328:$B$468,C42)<>0,SUMIFS('Census 2011'!$D$328:$D$468,'Census 2011'!$A$328:$A$468,D42,'Census 2011'!$B$328:$B$468,C42)," ") -> 0.01563362353 | I42: =IF(SUMIFS('bottom-up-enduse'!$E$252:$E$357,'bottom-up-enduse'!$B$252:$B$357,D42,'bottom-up-enduse'!$A$252:$A$357,C42)<>0,SUMIFS('bottom-up-enduse'!$E$252:$E$357,'bottom-up-enduse'!$B$252:$B$357,D42,'bottom-up-enduse'!$A$252:$A$357,C42)," ") -> 1.061856 | J42: 0.06493237142 | K42: 0.05360036717
B43: LPG | C43: RESOLP | D43: RMEK | E43: =IF(SUMIFS('Census 2011'!$C$328:$C$468,'Census 2011'!$A$328:$A$468,D43,'Census 2011'!$B$328:$B$468,C43)<>0,SUMIFS('Census 2011'!$C$328:$C$468,'Census 2011'!$A$328:$A$468,D43,'Census 2011'!$B$328:$B$468,C43)," ") -> 73926 | F43: =IF(SUMIFS(MyCS2007data!$T$83:$T$224,MyCS2007data!$S$83:$S$224,C43,MyCS2007data!$Q$83:$Q$224,D43)<>0,SUMIFS(MyCS2007data!$T$83:$T$224,MyCS2007data!$S$83:$S$224,C43,MyCS2007data!$Q$83:$Q$224,D43)," ") -> 30866.13202 | G43: =IF(SUMIFS(MyCS2007data!$V$83:$V$224,MyCS2007data!$S$83:$S$224,C43,MyCS2007data!$Q$83:$Q$224,D43)<>0,SUMIFS(MyCS2007data!$V$83:$V$224,MyCS2007data!$S$83:$S$224,C43,MyCS2007data!$Q$83:$Q$224,D43)," ") -> 0.00947955348 | H43: =IF(SUMIFS('Census 2011'!$D$328:$D$468,'Census 2011'!$A$328:$A$468,D43,'Census 2011'!$B$328:$B$468,C43)<>0,SUMIFS('Census 2011'!$D$328:$D$468,'Census 2011'!$A$328:$A$468,D43,'Census 2011'!$B$328:$B$468,C43)," ") -> 0.02289574177 | I43: =IF(SUMIFS('bottom-up-enduse'!$E$252:$E$357,'bottom-up-enduse'!$B$252:$B$357,D43,'bottom-up-enduse'!$A$252:$A$357,C43)<>0,SUMIFS('bottom-up-enduse'!$E$252:$E$357,'bottom-up-enduse'!$B$252:$B$357,D43,'bottom-up-enduse'!$A$252:$A$357,C43)," ") -> 1.480896 | J43: 0.04570953144 | K43: 0.1094767177
B44: Wood | C44: RESBIW | D44: RMEK | E44: =IF(SUMIFS('Census 2011'!$C$328:$C$468,'Census 2011'!$A$328:$A$468,D44,'Census 2011'!$B$328:$B$468,C44)<>0,SUMIFS('Census 2011'!$C$328:$C$468,'Census 2011'!$A$328:$A$468,D44,'Census 2011'!$B$328:$B$468,C44)," ") -> 338358 | F44: =IF(SUMIFS(MyCS2007data!$T$83:$T$224,MyCS2007data!$S$83:$S$224,C44,MyCS2007data!$Q$83:$Q$224,D44)<>0,SUMIFS(MyCS2007data!$T$83:$T$224,MyCS2007data!$S$83:$S$224,C44,MyCS2007data!$Q$83:$Q$224,D44)," ") -> 208491.9861 | G44: =IF(SUMIFS(MyCS2007data!$V$83:$V$224,MyCS2007data!$S$83:$S$224,C44,MyCS2007data!$Q$83:$Q$224,D44)<>0,SUMIFS(MyCS2007data!$V$83:$V$224,MyCS2007data!$S$83:$S$224,C44,MyCS2007data!$Q$83:$Q$224,D44)," ") -> 0.06403170086 | H44: =IF(SUMIFS('Census 2011'!$D$328:$D$468,'Census 2011'!$A$328:$A$468,D44,'Census 2011'!$B$328:$B$468,C44)<>0,SUMIFS('Census 2011'!$D$328:$D$468,'Census 2011'!$A$328:$A$468,D44,'Census 2011'!$B$328:$B$468,C44)," ") -> 0.1047934069 | I44: =IF(SUMIFS('bottom-up-enduse'!$E$252:$E$357,'bottom-up-enduse'!$B$252:$B$357,D44,'bottom-up-enduse'!$A$252:$A$357,C44)<>0,SUMIFS('bottom-up-enduse'!$E$252:$E$357,'bottom-up-enduse'!$B$252:$B$357,D44,'bottom-up-enduse'!$A$252:$A$357,C44)," ") -> 39.72696 | J44: 8.282752791 | K44: 13.44193473
B45: Coal | C45: RESCOA | D45: RMEK | E45: =IF(SUMIFS('Census 2011'!$C$328:$C$468,'Census 2011'!$A$328:$A$468,D45,'Census 2011'!$B$328:$B$468,C45)<>0,SUMIFS('Census 2011'!$C$328:$C$468,'Census 2011'!$A$328:$A$468,D45,'Census 2011'!$B$328:$B$468,C45)," ") -> 29013 | F45: =IF(SUMIFS(MyCS2007data!$T$83:$T$224,MyCS2007data!$S$83:$S$224,C45,MyCS2007data!$Q$83:$Q$224,D45)<>0,SUMIFS(MyCS2007data!$T$83:$T$224,MyCS2007data!$S$83:$S$224,C45,MyCS2007data!$Q$83:$Q$224,D45)," ") -> 23080.24251 | G45: =IF(SUMIFS(MyCS2007data!$V$83:$V$224,MyCS2007data!$S$83:$S$224,C45,MyCS2007data!$Q$83:$Q$224,D45)<>0,SUMIFS(MyCS2007data!$V$83:$V$224,MyCS2007data!$S$83:$S$224,C45,MyCS2007data!$Q$83:$Q$224,D45)," ") -> 0.007088364458 | H45: =IF(SUMIFS('Census 2011'!$D$328:$D$468,'Census 2011'!$A$328:$A$468,D45,'Census 2011'!$B$328:$B$468,C45)<>0,SUMIFS('Census 2011'!$D$328:$D$468,'Census 2011'!$A$328:$A$468,D45,'Census 2011'!$B$328:$B$468,C45)," ") -> 0.008985663449 | I45: =IF(SUMIFS('bottom-up-enduse'!$E$252:$E$357,'bottom-up-enduse'!$B$252:$B$357,D45,'bottom-up-enduse'!$A$252:$A$357,C45)<>0,SUMIFS('bottom-up-enduse'!$E$252:$E$357,'bottom-up-enduse'!$B$252:$B$357,D45,'bottom-up-enduse'!$A$252:$A$357,C45)," ") -> 23.328 | J45: 0.5384158972 | K45: 0.676815264
B46: Natural gas | C46: RESGAS | D46: RMEK | E46: =IF(SUMIFS('Census 2011'!$C$328:$C$468,'Census 2011'!$A$328:$A$468,D46,'Census 2011'!$B$328:$B$468,C46)<>0,SUMIFS('Census 2011'!$C$328:$C$468,'Census 2011'!$A$328:$A$468,D46,'Census 2011'!$B$328:$B$468,C46)," ") ->  | F46: =IF(SUMIFS(MyCS2007data!$T$83:$T$224,MyCS2007data!$S$83:$S$224,C46,MyCS2007data!$Q$83:$Q$224,D46)<>0,SUMIFS(MyCS2007data!$T$83:$T$224,MyCS2007data!$S$83:$S$224,C46,MyCS2007data!$Q$83:$Q$224,D46)," ") ->  | G46: =IF(SUMIFS(MyCS2007data!$V$83:$V$224,MyCS2007data!$S$83:$S$224,C46,MyCS2007data!$Q$83:$Q$224,D46)<>0,SUMIFS(MyCS2007data!$V$83:$V$224,MyCS2007data!$S$83:$S$224,C46,MyCS2007data!$Q$83:$Q$224,D46)," ") ->  | H46: =IF(SUMIFS('Census 2011'!$D$328:$D$468,'Census 2011'!$A$328:$A$468,D46,'Census 2011'!$B$328:$B$468,C46)<>0,SUMIFS('Census 2011'!$D$328:$D$468,'Census 2011'!$A$328:$A$468,D46,'Census 2011'!$B$328:$B$468,C46)," ") ->  | I46: =IF(SUMIFS('bottom-up-enduse'!$E$252:$E$357,'bottom-up-enduse'!$B$252:$B$357,D46,'bottom-up-enduse'!$A$252:$A$357,C46)<>0,SUMIFS('bottom-up-enduse'!$E$252:$E$357,'bottom-up-enduse'!$B$252:$B$357,D46,'bottom-up-enduse'!$A$252:$A$357,C46)," ") -> 
E47: =IF(SUMIFS('Census 2011'!$C$328:$C$468,'Census 2011'!$A$328:$A$468,D47,'Census 2011'!$B$328:$B$468,C47)<>0,SUMIFS('Census 2011'!$C$328:$C$468,'Census 2011'!$A$328:$A$468,D47,'Census 2011'!$B$328:$B$468,C47)," ") ->  | F47: =IF(SUMIFS(MyCS2007data!$T$83:$T$224,MyCS2007data!$S$83:$S$224,C47,MyCS2007data!$Q$83:$Q$224,D47)<>0,SUMIFS(MyCS2007data!$T$83:$T$224,MyCS2007data!$S$83:$S$224,C47,MyCS2007data!$Q$83:$Q$224,D47)," ") ->  | G47: =IF(SUMIFS(MyCS2007data!$V$83:$V$224,MyCS2007data!$S$83:$S$224,C47,MyCS2007data!$Q$83:$Q$224,D47)<>0,SUMIFS(MyCS2007data!$V$83:$V$224,MyCS2007data!$S$83:$S$224,C47,MyCS2007data!$Q$83:$Q$224,D47)," ") ->  | H47: =IF(SUMIFS('Census 2011'!$D$328:$D$468,'Census 2011'!$A$328:$A$468,D47,'Census 2011'!$B$328:$B$468,C47)<>0,SUMIFS('Census 2011'!$D$328:$D$468,'Census 2011'!$A$328:$A$468,D47,'Census 2011'!$B$328:$B$468,C47)," ") ->  | I47: =IF(SUMIFS('bottom-up-enduse'!$E$252:$E$357,'bottom-up-enduse'!$B$252:$B$357,D47,'bottom-up-enduse'!$A$252:$A$357,C47)<>0,SUMIFS('bottom-up-enduse'!$E$252:$E$357,'bottom-up-enduse'!$B$252:$B$357,D47,'bottom-up-enduse'!$A$252:$A$357,C47)," ") -> 
A48: * | B48: \I:Residential - Space Heating - Middle Income Electrified | E48: =IF(SUMIFS('Census 2011'!$C$328:$C$468,'Census 2011'!$A$328:$A$468,D48,'Census 2011'!$B$328:$B$468,C48)<>0,SUMIFS('Census 2011'!$C$328:$C$468,'Census 2011'!$A$328:$A$468,D48,'Census 2011'!$B$328:$B$468,C48)," ") ->  | F48: =IF(SUMIFS(MyCS2007data!$T$83:$T$224,MyCS2007data!$S$83:$S$224,C48,MyCS2007data!$Q$83:$Q$224,D48)<>0,SUMIFS(MyCS2007data!$T$83:$T$224,MyCS2007data!$S$83:$S$224,C48,MyCS2007data!$Q$83:$Q$224,D48)," ") ->  | G48: =IF(SUMIFS(MyCS2007data!$V$83:$V$224,MyCS2007data!$S$83:$S$224,C48,MyCS2007data!$Q$83:$Q$224,D48)<>0,SUMIFS(MyCS2007data!$V$83:$V$224,MyCS2007data!$S$83:$S$224,C48,MyCS2007data!$Q$83:$Q$224,D48)," ") ->  | H48: =IF(SUMIFS('Census 2011'!$D$328:$D$468,'Census 2011'!$A$328:$A$468,D48,'Census 2011'!$B$328:$B$468,C48)<>0,SUMIFS('Census 2011'!$D$328:$D$468,'Census 2011'!$A$328:$A$468,D48,'Census 2011'!$B$328:$B$468,C48)," ") ->  | I48: =IF(SUMIFS('bottom-up-enduse'!$E$252:$E$357,'bottom-up-enduse'!$B$252:$B$357,D48,'bottom-up-enduse'!$A$252:$A$357,C48)<>0,SUMIFS('bottom-up-enduse'!$E$252:$E$357,'bottom-up-enduse'!$B$252:$B$357,D48,'bottom-up-enduse'!$A$252:$A$357,C48)," ") -> 
B49: Electricity | C49: RESELC | D49: RMEH | E49: =IF(SUMIFS('Census 2011'!$C$328:$C$468,'Census 2011'!$A$328:$A$468,D49,'Census 2011'!$B$328:$B$468,C49)<>0,SUMIFS('Census 2011'!$C$328:$C$468,'Census 2011'!$A$328:$A$468,D49,'Census 2011'!$B$328:$B$468,C49)," ") -> 2656824 | F49: =IF(SUMIFS(MyCS2007data!$T$83:$T$224,MyCS2007data!$S$83:$S$224,C49,MyCS2007data!$Q$83:$Q$224,D49)<>0,SUMIFS(MyCS2007data!$T$83:$T$224,MyCS2007data!$S$83:$S$224,C49,MyCS2007data!$Q$83:$Q$224,D49)," ") -> 2550801.57 | G49: =IF(SUMIFS(MyCS2007data!$V$83:$V$224,MyCS2007data!$S$83:$S$224,C49,MyCS2007data!$Q$83:$Q$224,D49)<>0,SUMIFS(MyCS2007data!$V$83:$V$224,MyCS2007data!$S$83:$S$224,C49,MyCS2007data!$Q$83:$Q$224,D49)," ") -> 0.770569827 | H49: =IF(SUMIFS('Census 2011'!$D$328:$D$468,'Census 2011'!$A$328:$A$468,D49,'Census 2011'!$B$328:$B$468,C49)<>0,SUMIFS('Census 2011'!$D$328:$D$468,'Census 2011'!$A$328:$A$468,D49,'Census 2011'!$B$328:$B$468,C49)," ") -> 0.7641185063 | I49: =IF(SUMIFS('bottom-up-enduse'!$E$252:$E$357,'bottom-up-enduse'!$B$252:$B$357,D49,'bottom-up-enduse'!$A$252:$A$357,C49)<>0,SUMIFS('bottom-up-enduse'!$E$252:$E$357,'bottom-up-enduse'!$B$252:$B$357,D49,'bottom-up-enduse'!$A$252:$A$357,C49)," ") -> 2.7648 | J49: 7.052456181 | K49: 7.345586995
B50: Paraffin | C50: RESOKE | D50: RMEH | E50: =IF(SUMIFS('Census 2011'!$C$328:$C$468,'Census 2011'!$A$328:$A$468,D50,'Census 2011'!$B$328:$B$468,C50)<>0,SUMIFS('Census 2011'!$C$328:$C$468,'Census 2011'!$A$328:$A$468,D50,'Census 2011'!$B$328:$B$468,C50)," ") -> 247371 | F50: =IF(SUMIFS(MyCS2007data!$T$83:$T$224,MyCS2007data!$S$83:$S$224,C50,MyCS2007data!$Q$83:$Q$224,D50)<>0,SUMIFS(MyCS2007data!$T$83:$T$224,MyCS2007data!$S$83:$S$224,C50,MyCS2007data!$Q$83:$Q$224,D50)," ") -> 161020.0747 | G50: =IF(SUMIFS(MyCS2007data!$V$83:$V$224,MyCS2007data!$S$83:$S$224,C50,MyCS2007data!$Q$83:$Q$224,D50)<>0,SUMIFS(MyCS2007data!$V$83:$V$224,MyCS2007data!$S$83:$S$224,C50,MyCS2007data!$Q$83:$Q$224,D50)," ") -> 0.04864243951 | H50: =IF(SUMIFS('Census 2011'!$D$328:$D$468,'Census 2011'!$A$328:$A$468,D50,'Census 2011'!$B$328:$B$468,C50)<>0,SUMIFS('Census 2011'!$D$328:$D$468,'Census 2011'!$A$328:$A$468,D50,'Census 2011'!$B$328:$B$468,C50)," ") -> 0.07114538224 | I50: =IF(SUMIFS('bottom-up-enduse'!$E$252:$E$357,'bottom-up-enduse'!$B$252:$B$357,D50,'bottom-up-enduse'!$A$252:$A$357,C50)<>0,SUMIFS('bottom-up-enduse'!$E$252:$E$357,'bottom-up-enduse'!$B$252:$B$357,D50,'bottom-up-enduse'!$A$252:$A$357,C50)," ") -> 4.44 | J50: 0.7149291316 | K50: 1.09832724
B51: LPG | C51: RESOLP | D51: RMEH | E51: =IF(SUMIFS('Census 2011'!$C$328:$C$468,'Census 2011'!$A$328:$A$468,D51,'Census 2011'!$B$328:$B$468,C51)<>0,SUMIFS('Census 2011'!$C$328:$C$468,'Census 2011'!$A$328:$A$468,D51,'Census 2011'!$B$328:$B$468,C51)," ") -> 53307 | F51: =IF(SUMIFS(MyCS2007data!$T$83:$T$224,MyCS2007data!$S$83:$S$224,C51,MyCS2007data!$Q$83:$Q$224,D51)<>0,SUMIFS(MyCS2007data!$T$83:$T$224,MyCS2007data!$S$83:$S$224,C51,MyCS2007data!$Q$83:$Q$224,D51)," ") -> 18785.67538 | G51: =IF(SUMIFS(MyCS2007data!$V$83:$V$224,MyCS2007data!$S$83:$S$224,C51,MyCS2007data!$Q$83:$Q$224,D51)<>0,SUMIFS(MyCS2007data!$V$83:$V$224,MyCS2007data!$S$83:$S$224,C51,MyCS2007data!$Q$83:$Q$224,D51)," ") -> 0.005674951277 | H51: =IF(SUMIFS('Census 2011'!$D$328:$D$468,'Census 2011'!$A$328:$A$468,D51,'Census 2011'!$B$328:$B$468,C51)<>0,SUMIFS('Census 2011'!$D$328:$D$468,'Census 2011'!$A$328:$A$468,D51,'Census 2011'!$B$328:$B$468,C51)," ") -> 0.0153314127 | I51: =IF(SUMIFS('bottom-up-enduse'!$E$252:$E$357,'bottom-up-enduse'!$B$252:$B$357,D51,'bottom-up-enduse'!$A$252:$A$357,C51)<>0,SUMIFS('bottom-up-enduse'!$E$252:$E$357,'bottom-up-enduse'!$B$252:$B$357,D51,'bottom-up-enduse'!$A$252:$A$357,C51)," ") -> 
B52: Wood | C52: RESBIW | D52: RMEH | E52: =IF(SUMIFS('Census 2011'!$C$328:$C$468,'Census 2011'!$A$328:$A$468,D52,'Census 2011'!$B$328:$B$468,C52)<>0,SUMIFS('Census 2011'!$C$328:$C$468,'Census 2011'!$A$328:$A$468,D52,'Census 2011'!$B$328:$B$468,C52)," ") -> 428205 | F52: =IF(SUMIFS(MyCS2007data!$T$83:$T$224,MyCS2007data!$S$83:$S$224,C52,MyCS2007data!$Q$83:$Q$224,D52)<>0,SUMIFS(MyCS2007data!$T$83:$T$224,MyCS2007data!$S$83:$S$224,C52,MyCS2007data!$Q$83:$Q$224,D52)," ") -> 480376.5562 | G52: =IF(SUMIFS(MyCS2007data!$V$83:$V$224,MyCS2007data!$S$83:$S$224,C52,MyCS2007data!$Q$83:$Q$224,D52)<>0,SUMIFS(MyCS2007data!$V$83:$V$224,MyCS2007data!$S$83:$S$224,C52,MyCS2007data!$Q$83:$Q$224,D52)," ") -> 0.1451166112 | H52: =IF(SUMIFS('Census 2011'!$D$328:$D$468,'Census 2011'!$A$328:$A$468,D52,'Census 2011'!$B$328:$B$468,C52)<>0,SUMIFS('Census 2011'!$D$328:$D$468,'Census 2011'!$A$328:$A$468,D52,'Census 2011'!$B$328:$B$468,C52)," ") -> 0.1231543245 | I52: =IF(SUMIFS('bottom-up-enduse'!$E$252:$E$357,'bottom-up-enduse'!$B$252:$B$357,D52,'bottom-up-enduse'!$A$252:$A$357,C52)<>0,SUMIFS('bottom-up-enduse'!$E$252:$E$357,'bottom-up-enduse'!$B$252:$B$357,D52,'bottom-up-enduse'!$A$252:$A$357,C52)," ") -> 13.24232 | J52: 6.361300077 | K52: 5.670427636
B53: Coal | C53: RESCOA | D53: RMEH | E53: =IF(SUMIFS('Census 2011'!$C$328:$C$468,'Census 2011'!$A$328:$A$468,D53,'Census 2011'!$B$328:$B$468,C53)<>0,SUMIFS('Census 2011'!$C$328:$C$468,'Census 2011'!$A$328:$A$468,D53,'Census 2011'!$B$328:$B$468,C53)," ") -> 73701 | F53: =IF(SUMIFS(MyCS2007data!$T$83:$T$224,MyCS2007data!$S$83:$S$224,C53,MyCS2007data!$Q$83:$Q$224,D53)<>0,SUMIFS(MyCS2007data!$T$83:$T$224,MyCS2007data!$S$83:$S$224,C53,MyCS2007data!$Q$83:$Q$224,D53)," ") -> 99295.71273 | G53: =IF(SUMIFS(MyCS2007data!$V$83:$V$224,MyCS2007data!$S$83:$S$224,C53,MyCS2007data!$Q$83:$Q$224,D53)<>0,SUMIFS(MyCS2007data!$V$83:$V$224,MyCS2007data!$S$83:$S$224,C53,MyCS2007data!$Q$83:$Q$224,D53)," ") -> 0.02999617103 | H53: =IF(SUMIFS('Census 2011'!$D$328:$D$468,'Census 2011'!$A$328:$A$468,D53,'Census 2011'!$B$328:$B$468,C53)<>0,SUMIFS('Census 2011'!$D$328:$D$468,'Census 2011'!$A$328:$A$468,D53,'Census 2011'!$B$328:$B$468,C53)," ") -> 0.02119684933 | I53: =IF(SUMIFS('bottom-up-enduse'!$E$252:$E$357,'bottom-up-enduse'!$B$252:$B$357,D53,'bottom-up-enduse'!$A$252:$A$357,C53)<>0,SUMIFS('bottom-up-enduse'!$E$252:$E$357,'bottom-up-enduse'!$B$252:$B$357,D53,'bottom-up-enduse'!$A$252:$A$357,C53)," ") -> 30.1806 | J53: 2.996804188 | K53: 2.224340401
B54: Natural gas | C54: RESGAS | D54: RMEH | E54: =IF(SUMIFS('Census 2011'!$C$328:$C$468,'Census 2011'!$A$328:$A$468,D54,'Census 2011'!$B$328:$B$468,C54)<>0,SUMIFS('Census 2011'!$C$328:$C$468,'Census 2011'!$A$328:$A$468,D54,'Census 2011'!$B$328:$B$468,C54)," ") ->  | F54: =IF(SUMIFS(MyCS2007data!$T$83:$T$224,MyCS2007data!$S$83:$S$224,C54,MyCS2007data!$Q$83:$Q$224,D54)<>0,SUMIFS(MyCS2007data!$T$83:$T$224,MyCS2007data!$S$83:$S$224,C54,MyCS2007data!$Q$83:$Q$224,D54)," ") ->  | G54: =IF(SUMIFS(MyCS2007data!$V$83:$V$224,MyCS2007data!$S$83:$S$224,C54,MyCS2007data!$Q$83:$Q$224,D54)<>0,SUMIFS(MyCS2007data!$V$83:$V$224,MyCS2007data!$S$83:$S$224,C54,MyCS2007data!$Q$83:$Q$224,D54)," ") ->  | H54: =IF(SUMIFS('Census 2011'!$D$328:$D$468,'Census 2011'!$A$328:$A$468,D54,'Census 2011'!$B$328:$B$468,C54)<>0,SUMIFS('Census 2011'!$D$328:$D$468,'Census 2011'!$A$328:$A$468,D54,'Census 2011'!$B$328:$B$468,C54)," ") ->  | I54: =IF(SUMIFS('bottom-up-enduse'!$E$252:$E$357,'bottom-up-enduse'!$B$252:$B$357,D54,'bottom-up-enduse'!$A$252:$A$357,C54)<>0,SUMIFS('bottom-up-enduse'!$E$252:$E$357,'bottom-up-enduse'!$B$252:$B$357,D54,'bottom-up-enduse'!$A$252:$A$357,C54)," ") -> 
E55: =IF(SUMIFS('Census 2011'!$C$328:$C$468,'Census 2011'!$A$328:$A$468,D55,'Census 2011'!$B$328:$B$468,C55)<>0,SUMIFS('Census 2011'!$C$328:$C$468,'Census 2011'!$A$328:$A$468,D55,'Census 2011'!$B$328:$B$468,C55)," ") ->  | F55: =IF(SUMIFS(MyCS2007data!$T$83:$T$224,MyCS2007data!$S$83:$S$224,C55,MyCS2007data!$Q$83:$Q$224,D55)<>0,SUMIFS(MyCS2007data!$T$83:$T$224,MyCS2007data!$S$83:$S$224,C55,MyCS2007data!$Q$83:$Q$224,D55)," ") ->  | G55: =IF(SUMIFS(MyCS2007data!$V$83:$V$224,MyCS2007data!$S$83:$S$224,C55,MyCS2007data!$Q$83:$Q$224,D55)<>0,SUMIFS(MyCS2007data!$V$83:$V$224,MyCS2007data!$S$83:$S$224,C55,MyCS2007data!$Q$83:$Q$224,D55)," ") ->  | H55: =IF(SUMIFS('Census 2011'!$D$328:$D$468,'Census 2011'!$A$328:$A$468,D55,'Census 2011'!$B$328:$B$468,C55)<>0,SUMIFS('Census 2011'!$D$328:$D$468,'Census 2011'!$A$328:$A$468,D55,'Census 2011'!$B$328:$B$468,C55)," ") ->  | I55: =IF(SUMIFS('bottom-up-enduse'!$E$252:$E$357,'bottom-up-enduse'!$B$252:$B$357,D55,'bottom-up-enduse'!$A$252:$A$357,C55)<>0,SUMIFS('bottom-up-enduse'!$E$252:$E$357,'bottom-up-enduse'!$B$252:$B$357,D55,'bottom-up-enduse'!$A$252:$A$357,C55)," ") -> 
A56: * | B56: \I:Residential - Water Heating - Middle Income Electrified | E56: =IF(SUMIFS('Census 2011'!$C$328:$C$468,'Census 2011'!$A$328:$A$468,D56,'Census 2011'!$B$328:$B$468,C56)<>0,SUMIFS('Census 2011'!$C$328:$C$468,'Census 2011'!$A$328:$A$468,D56,'Census 2011'!$B$328:$B$468,C56)," ") ->  | F56: =IF(SUMIFS(MyCS2007data!$T$83:$T$224,MyCS2007data!$S$83:$S$224,C56,MyCS2007data!$Q$83:$Q$224,D56)<>0,SUMIFS(MyCS2007data!$T$83:$T$224,MyCS2007data!$S$83:$S$224,C56,MyCS2007data!$Q$83:$Q$224,D56)," ") ->  | G56: =IF(SUMIFS(MyCS2007data!$V$83:$V$224,MyCS2007data!$S$83:$S$224,C56,MyCS2007data!$Q$83:$Q$224,D56)<>0,SUMIFS(MyCS2007data!$V$83:$V$224,MyCS2007data!$S$83:$S$224,C56,MyCS2007data!$Q$83:$Q$224,D56)," ") ->  | H56: =IF(SUMIFS('Census 2011'!$D$328:$D$468,'Census 2011'!$A$328:$A$468,D56,'Census 2011'!$B$328:$B$468,C56)<>0,SUMIFS('Census 2011'!$D$328:$D$468,'Census 2011'!$A$328:$A$468,D56,'Census 2011'!$B$328:$B$468,C56)," ") ->  | I56: =IF(SUMIFS('bottom-up-enduse'!$E$252:$E$357,'bottom-up-enduse'!$B$252:$B$357,D56,'bottom-up-enduse'!$A$252:$A$357,C56)<>0,SUMIFS('bottom-up-enduse'!$E$252:$E$357,'bottom-up-enduse'!$B$252:$B$357,D56,'bottom-up-enduse'!$A$252:$A$357,C56)," ") -> 
B57: Electricity | C57: RESELC | D57: RMEW | E57: =IF(SUMIFS('Census 2011'!$C$328:$C$468,'Census 2011'!$A$328:$A$468,D57,'Census 2011'!$B$328:$B$468,C57)<>0,SUMIFS('Census 2011'!$C$328:$C$468,'Census 2011'!$A$328:$A$468,D57,'Census 2011'!$B$328:$B$468,C57)," ") -> 2721207 | F57: =IF(SUMIFS(MyCS2007data!$T$83:$T$224,MyCS2007data!$S$83:$S$224,C57,MyCS2007data!$Q$83:$Q$224,D57)<>0,SUMIFS(MyCS2007data!$T$83:$T$224,MyCS2007data!$S$83:$S$224,C57,MyCS2007data!$Q$83:$Q$224,D57)," ") -> 2926761.772 | G57: =IF(SUMIFS(MyCS2007data!$V$83:$V$224,MyCS2007data!$S$83:$S$224,C57,MyCS2007data!$Q$83:$Q$224,D57)<>0,SUMIFS(MyCS2007data!$V$83:$V$224,MyCS2007data!$S$83:$S$224,C57,MyCS2007data!$Q$83:$Q$224,D57)," ") -> 0.900445108 | H57: =IF(SUMIFS('Census 2011'!$D$328:$D$468,'Census 2011'!$A$328:$A$468,D57,'Census 2011'!$B$328:$B$468,C57)<>0,SUMIFS('Census 2011'!$D$328:$D$468,'Census 2011'!$A$328:$A$468,D57,'Census 2011'!$B$328:$B$468,C57)," ") -> 0.8469412527 | I57: =IF(SUMIFS('bottom-up-enduse'!$E$252:$E$357,'bottom-up-enduse'!$B$252:$B$357,D57,'bottom-up-enduse'!$A$252:$A$357,C57)<>0,SUMIFS('bottom-up-enduse'!$E$252:$E$357,'bottom-up-enduse'!$B$252:$B$357,D57,'bottom-up-enduse'!$A$252:$A$357,C57)," ") -> 5.930289474 | J57: 17.35654453 | K57: 16.13754523
B58: Paraffin | C58: RESOKE | D58: RMEW | E58: =IF(SUMIFS('Census 2011'!$C$328:$C$468,'Census 2011'!$A$328:$A$468,D58,'Census 2011'!$B$328:$B$468,C58)<>0,SUMIFS('Census 2011'!$C$328:$C$468,'Census 2011'!$A$328:$A$468,D58,'Census 2011'!$B$328:$B$468,C58)," ") -> 50478 | F58: =IF(SUMIFS(MyCS2007data!$T$83:$T$224,MyCS2007data!$S$83:$S$224,C58,MyCS2007data!$Q$83:$Q$224,D58)<>0,SUMIFS(MyCS2007data!$T$83:$T$224,MyCS2007data!$S$83:$S$224,C58,MyCS2007data!$Q$83:$Q$224,D58)," ") -> 61149.88419 | G58: =IF(SUMIFS(MyCS2007data!$V$83:$V$224,MyCS2007data!$S$83:$S$224,C58,MyCS2007data!$Q$83:$Q$224,D58)<>0,SUMIFS(MyCS2007data!$V$83:$V$224,MyCS2007data!$S$83:$S$224,C58,MyCS2007data!$Q$83:$Q$224,D58)," ") -> 0.01881332283 | H58: =IF(SUMIFS('Census 2011'!$D$328:$D$468,'Census 2011'!$A$328:$A$468,D58,'Census 2011'!$B$328:$B$468,C58)<>0,SUMIFS('Census 2011'!$D$328:$D$468,'Census 2011'!$A$328:$A$468,D58,'Census 2011'!$B$328:$B$468,C58)," ") -> 0.0157106389 | I58: =IF(SUMIFS('bottom-up-enduse'!$E$252:$E$357,'bottom-up-enduse'!$B$252:$B$357,D58,'bottom-up-enduse'!$A$252:$A$357,C58)<>0,SUMIFS('bottom-up-enduse'!$E$252:$E$357,'bottom-up-enduse'!$B$252:$B$357,D58,'bottom-up-enduse'!$A$252:$A$357,C58)," ") -> 51.21613636 | J58: 3.131860807 | K58: 2.585288131
B59: LPG | C59: RESOLP | D59: RMEW | E59: =IF(SUMIFS('Census 2011'!$C$328:$C$468,'Census 2011'!$A$328:$A$468,D59,'Census 2011'!$B$328:$B$468,C59)<>0,SUMIFS('Census 2011'!$C$328:$C$468,'Census 2011'!$A$328:$A$468,D59,'Census 2011'!$B$328:$B$468,C59)," ") -> 73926 | F59: =IF(SUMIFS(MyCS2007data!$T$83:$T$224,MyCS2007data!$S$83:$S$224,C59,MyCS2007data!$Q$83:$Q$224,D59)<>0,SUMIFS(MyCS2007data!$T$83:$T$224,MyCS2007data!$S$83:$S$224,C59,MyCS2007data!$Q$83:$Q$224,D59)," ") -> 30866.13202 | G59: =IF(SUMIFS(MyCS2007data!$V$83:$V$224,MyCS2007data!$S$83:$S$224,C59,MyCS2007data!$Q$83:$Q$224,D59)<>0,SUMIFS(MyCS2007data!$V$83:$V$224,MyCS2007data!$S$83:$S$224,C59,MyCS2007data!$Q$83:$Q$224,D59)," ") -> 0.009496248667 | H59: =IF(SUMIFS('Census 2011'!$D$328:$D$468,'Census 2011'!$A$328:$A$468,D59,'Census 2011'!$B$328:$B$468,C59)<>0,SUMIFS('Census 2011'!$D$328:$D$468,'Census 2011'!$A$328:$A$468,D59,'Census 2011'!$B$328:$B$468,C59)," ") -> 0.02300853226 | I59: =IF(SUMIFS('bottom-up-enduse'!$E$252:$E$357,'bottom-up-enduse'!$B$252:$B$357,D59,'bottom-up-enduse'!$A$252:$A$357,C59)<>0,SUMIFS('bottom-up-enduse'!$E$252:$E$357,'bottom-up-enduse'!$B$252:$B$357,D59,'bottom-up-enduse'!$A$252:$A$357,C59)," ") -> 9.296658416 | J59: 0.286951886 | K59: 0.68726477
B60: Wood | C60: RESBIW | D60: RMEW | E60: =IF(SUMIFS('Census 2011'!$C$328:$C$468,'Census 2011'!$A$328:$A$468,D60,'Census 2011'!$B$328:$B$468,C60)<>0,SUMIFS('Census 2011'!$C$328:$C$468,'Census 2011'!$A$328:$A$468,D60,'Census 2011'!$B$328:$B$468,C60)," ") -> 338358 | F60: =IF(SUMIFS(MyCS2007data!$T$83:$T$224,MyCS2007data!$S$83:$S$224,C60,MyCS2007data!$Q$83:$Q$224,D60)<>0,SUMIFS(MyCS2007data!$T$83:$T$224,MyCS2007data!$S$83:$S$224,C60,MyCS2007data!$Q$83:$Q$224,D60)," ") -> 208491.9861 | G60: =IF(SUMIFS(MyCS2007data!$V$83:$V$224,MyCS2007data!$S$83:$S$224,C60,MyCS2007data!$Q$83:$Q$224,D60)<>0,SUMIFS(MyCS2007data!$V$83:$V$224,MyCS2007data!$S$83:$S$224,C60,MyCS2007data!$Q$83:$Q$224,D60)," ") -> 0.06414447213 | H60: =IF(SUMIFS('Census 2011'!$D$328:$D$468,'Census 2011'!$A$328:$A$468,D60,'Census 2011'!$B$328:$B$468,C60)<>0,SUMIFS('Census 2011'!$D$328:$D$468,'Census 2011'!$A$328:$A$468,D60,'Census 2011'!$B$328:$B$468,C60)," ") -> 0.1053096469 | I60: =IF(SUMIFS('bottom-up-enduse'!$E$252:$E$357,'bottom-up-enduse'!$B$252:$B$357,D60,'bottom-up-enduse'!$A$252:$A$357,C60)<>0,SUMIFS('bottom-up-enduse'!$E$252:$E$357,'bottom-up-enduse'!$B$252:$B$357,D60,'bottom-up-enduse'!$A$252:$A$357,C60)," ") -> 14.44557692 | J60: 3.011787023 | K60: 4.887776517
B61: Coal | C61: RESCOA | D61: RMEW | E61: =IF(SUMIFS('Census 2011'!$C$328:$C$468,'Census 2011'!$A$328:$A$468,D61,'Census 2011'!$B$328:$B$468,C61)<>0,SUMIFS('Census 2011'!$C$328:$C$468,'Census 2011'!$A$328:$A$468,D61,'Census 2011'!$B$328:$B$468,C61)," ") -> 29013 | F61: =IF(SUMIFS(MyCS2007data!$T$83:$T$224,MyCS2007data!$S$83:$S$224,C61,MyCS2007data!$Q$83:$Q$224,D61)<>0,SUMIFS(MyCS2007data!$T$83:$T$224,MyCS2007data!$S$83:$S$224,C61,MyCS2007data!$Q$83:$Q$224,D61)," ") -> 23080.24251 | G61: =IF(SUMIFS(MyCS2007data!$V$83:$V$224,MyCS2007data!$S$83:$S$224,C61,MyCS2007data!$Q$83:$Q$224,D61)<>0,SUMIFS(MyCS2007data!$V$83:$V$224,MyCS2007data!$S$83:$S$224,C61,MyCS2007data!$Q$83:$Q$224,D61)," ") -> 0.007100848335 | H61: =IF(SUMIFS('Census 2011'!$D$328:$D$468,'Census 2011'!$A$328:$A$468,D61,'Census 2011'!$B$328:$B$468,C61)<>0,SUMIFS('Census 2011'!$D$328:$D$468,'Census 2011'!$A$328:$A$468,D61,'Census 2011'!$B$328:$B$468,C61)," ") -> 0.009029929206 | I61: =IF(SUMIFS('bottom-up-enduse'!$E$252:$E$357,'bottom-up-enduse'!$B$252:$B$357,D61,'bottom-up-enduse'!$A$252:$A$357,C61)<>0,SUMIFS('bottom-up-enduse'!$E$252:$E$357,'bottom-up-enduse'!$B$252:$B$357,D61,'bottom-up-enduse'!$A$252:$A$357,C61)," ") -> 5.832 | J61: 0.1346039743 | K61: 0.169203816
B62: Natural gas | C62: RESGAS | D62: RMEW | E62: =IF(SUMIFS('Census 2011'!$C$328:$C$468,'Census 2011'!$A$328:$A$468,D62,'Census 2011'!$B$328:$B$468,C62)<>0,SUMIFS('Census 2011'!$C$328:$C$468,'Census 2011'!$A$328:$A$468,D62,'Census 2011'!$B$328:$B$468,C62)," ") ->  | F62: =IF(SUMIFS(MyCS2007data!$T$83:$T$224,MyCS2007data!$S$83:$S$224,C62,MyCS2007data!$Q$83:$Q$224,D62)<>0,SUMIFS(MyCS2007data!$T$83:$T$224,MyCS2007data!$S$83:$S$224,C62,MyCS2007data!$Q$83:$Q$224,D62)," ") ->  | G62: =IF(SUMIFS(MyCS2007data!$V$83:$V$224,MyCS2007data!$S$83:$S$224,C62,MyCS2007data!$Q$83:$Q$224,D62)<>0,SUMIFS(MyCS2007data!$V$83:$V$224,MyCS2007data!$S$83:$S$224,C62,MyCS2007data!$Q$83:$Q$224,D62)," ") ->  | H62: =IF(SUMIFS('Census 2011'!$D$328:$D$468,'Census 2011'!$A$328:$A$468,D62,'Census 2011'!$B$328:$B$468,C62)<>0,SUMIFS('Census 2011'!$D$328:$D$468,'Census 2011'!$A$328:$A$468,D62,'Census 2011'!$B$328:$B$468,C62)," ") ->  | I62: =IF(SUMIFS('bottom-up-enduse'!$E$252:$E$357,'bottom-up-enduse'!$B$252:$B$357,D62,'bottom-up-enduse'!$A$252:$A$357,C62)<>0,SUMIFS('bottom-up-enduse'!$E$252:$E$357,'bottom-up-enduse'!$B$252:$B$357,D62,'bottom-up-enduse'!$A$252:$A$357,C62)," ") -> 
E63: =IF(SUMIFS('Census 2011'!$C$328:$C$468,'Census 2011'!$A$328:$A$468,D63,'Census 2011'!$B$328:$B$468,C63)<>0,SUMIFS('Census 2011'!$C$328:$C$468,'Census 2011'!$A$328:$A$468,D63,'Census 2011'!$B$328:$B$468,C63)," ") ->  | F63: =IF(SUMIFS(MyCS2007data!$T$83:$T$224,MyCS2007data!$S$83:$S$224,C63,MyCS2007data!$Q$83:$Q$224,D63)<>0,SUMIFS(MyCS2007data!$T$83:$T$224,MyCS2007data!$S$83:$S$224,C63,MyCS2007data!$Q$83:$Q$224,D63)," ") ->  | G63: =IF(SUMIFS(MyCS2007data!$V$83:$V$224,MyCS2007data!$S$83:$S$224,C63,MyCS2007data!$Q$83:$Q$224,D63)<>0,SUMIFS(MyCS2007data!$V$83:$V$224,MyCS2007data!$S$83:$S$224,C63,MyCS2007data!$Q$83:$Q$224,D63)," ") ->  | H63: =IF(SUMIFS('Census 2011'!$D$328:$D$468,'Census 2011'!$A$328:$A$468,D63,'Census 2011'!$B$328:$B$468,C63)<>0,SUMIFS('Census 2011'!$D$328:$D$468,'Census 2011'!$A$328:$A$468,D63,'Census 2011'!$B$328:$B$468,C63)," ") ->  | I63: =IF(SUMIFS('bottom-up-enduse'!$E$252:$E$357,'bottom-up-enduse'!$B$252:$B$357,D63,'bottom-up-enduse'!$A$252:$A$357,C63)<>0,SUMIFS('bottom-up-enduse'!$E$252:$E$357,'bottom-up-enduse'!$B$252:$B$357,D63,'bottom-up-enduse'!$A$252:$A$357,C63)," ") -> 
A64: * | B64: \I:Residential - Refrigeration - Middle Income Electrified | E64: =IF(SUMIFS('Census 2011'!$C$328:$C$468,'Census 2011'!$A$328:$A$468,D64,'Census 2011'!$B$328:$B$468,C64)<>0,SUMIFS('Census 2011'!$C$328:$C$468,'Census 2011'!$A$328:$A$468,D64,'Census 2011'!$B$328:$B$468,C64)," ") ->  | F64: =IF(SUMIFS(MyCS2007data!$T$83:$T$224,MyCS2007data!$S$83:$S$224,C64,MyCS2007data!$Q$83:$Q$224,D64)<>0,SUMIFS(MyCS2007data!$T$83:$T$224,MyCS2007data!$S$83:$S$224,C64,MyCS2007data!$Q$83:$Q$224,D64)," ") ->  | G64: =IF(SUMIFS(MyCS2007data!$V$83:$V$224,MyCS2007data!$S$83:$S$224,C64,MyCS2007data!$Q$83:$Q$224,D64)<>0,SUMIFS(MyCS2007data!$V$83:$V$224,MyCS2007data!$S$83:$S$224,C64,MyCS2007data!$Q$83:$Q$224,D64)," ") ->  | H64: =IF(SUMIFS('Census 2011'!$D$328:$D$468,'Census 2011'!$A$328:$A$468,D64,'Census 2011'!$B$328:$B$468,C64)<>0,SUMIFS('Census 2011'!$D$328:$D$468,'Census 2011'!$A$328:$A$468,D64,'Census 2011'!$B$328:$B$468,C64)," ") ->  | I64: =IF(SUMIFS('bottom-up-enduse'!$E$252:$E$357,'bottom-up-enduse'!$B$252:$B$357,D64,'bottom-up-enduse'!$A$252:$A$357,C64)<>0,SUMIFS('bottom-up-enduse'!$E$252:$E$357,'bottom-up-enduse'!$B$252:$B$357,D64,'bottom-up-enduse'!$A$252:$A$357,C64)," ") -> 
B65: Electricity | C65: RESELC | D65: RMER | E65: =IF(SUMIFS('Census 2011'!$C$328:$C$468,'Census 2011'!$A$328:$A$468,D65,'Census 2011'!$B$328:$B$468,C65)<>0,SUMIFS('Census 2011'!$C$328:$C$468,'Census 2011'!$A$328:$A$468,D65,'Census 2011'!$B$328:$B$468,C65)," ") -> 3949344 | F65: =IF(SUMIFS(MyCS2007data!$T$83:$T$224,MyCS2007data!$S$83:$S$224,C65,MyCS2007data!$Q$83:$Q$224,D65)<>0,SUMIFS(MyCS2007data!$T$83:$T$224,MyCS2007data!$S$83:$S$224,C65,MyCS2007data!$Q$83:$Q$224,D65)," ") -> 3490962.908 | G65: =IF(SUMIFS(MyCS2007data!$V$83:$V$224,MyCS2007data!$S$83:$S$224,C65,MyCS2007data!$Q$83:$Q$224,D65)<>0,SUMIFS(MyCS2007data!$V$83:$V$224,MyCS2007data!$S$83:$S$224,C65,MyCS2007data!$Q$83:$Q$224,D65)," ") -> 1 | H65: =IF(SUMIFS('Census 2011'!$D$328:$D$468,'Census 2011'!$A$328:$A$468,D65,'Census 2011'!$B$328:$B$468,C65)<>0,SUMIFS('Census 2011'!$D$328:$D$468,'Census 2011'!$A$328:$A$468,D65,'Census 2011'!$B$328:$B$468,C65)," ") -> 1 | I65: =IF(SUMIFS('bottom-up-enduse'!$E$252:$E$357,'bottom-up-enduse'!$B$252:$B$357,D65,'bottom-up-enduse'!$A$252:$A$357,C65)<>0,SUMIFS('bottom-up-enduse'!$E$252:$E$357,'bottom-up-enduse'!$B$252:$B$357,D65,'bottom-up-enduse'!$A$252:$A$357,C65)," ") -> 1.60559996 | J65: 5.605089906 | K65: 6.341066568
E66: =IF(SUMIFS('Census 2011'!$C$328:$C$468,'Census 2011'!$A$328:$A$468,D66,'Census 2011'!$B$328:$B$468,C66)<>0,SUMIFS('Census 2011'!$C$328:$C$468,'Census 2011'!$A$328:$A$468,D66,'Census 2011'!$B$328:$B$468,C66)," ") ->  | F66: =IF(SUMIFS(MyCS2007data!$T$83:$T$224,MyCS2007data!$S$83:$S$224,C66,MyCS2007data!$Q$83:$Q$224,D66)<>0,SUMIFS(MyCS2007data!$T$83:$T$224,MyCS2007data!$S$83:$S$224,C66,MyCS2007data!$Q$83:$Q$224,D66)," ") ->  | G66: =IF(SUMIFS(MyCS2007data!$V$83:$V$224,MyCS2007data!$S$83:$S$224,C66,MyCS2007data!$Q$83:$Q$224,D66)<>0,SUMIFS(MyCS2007data!$V$83:$V$224,MyCS2007data!$S$83:$S$224,C66,MyCS2007data!$Q$83:$Q$224,D66)," ") ->  | H66: =IF(SUMIFS('Census 2011'!$D$328:$D$468,'Census 2011'!$A$328:$A$468,D66,'Census 2011'!$B$328:$B$468,C66)<>0,SUMIFS('Census 2011'!$D$328:$D$468,'Census 2011'!$A$328:$A$468,D66,'Census 2011'!$B$328:$B$468,C66)," ") ->  | I66: =IF(SUMIFS('bottom-up-enduse'!$E$252:$E$357,'bottom-up-enduse'!$B$252:$B$357,D66,'bottom-up-enduse'!$A$252:$A$357,C66)<>0,SUMIFS('bottom-up-enduse'!$E$252:$E$357,'bottom-up-enduse'!$B$252:$B$357,D66,'bottom-up-enduse'!$A$252:$A$357,C66)," ") -> 
A67: =IF(LEFT(B67,1)="\","*","") -> * | B67: \I:Residential - Other - Middle Income Electrified | E67: =IF(SUMIFS('Census 2011'!$C$328:$C$468,'Census 2011'!$A$328:$A$468,D67,'Census 2011'!$B$328:$B$468,C67)<>0,SUMIFS('Census 2011'!$C$328:$C$468,'Census 2011'!$A$328:$A$468,D67,'Census 2011'!$B$328:$B$468,C67)," ") ->  | F67: =IF(SUMIFS(MyCS2007data!$T$83:$T$224,MyCS2007data!$S$83:$S$224,C67,MyCS2007data!$Q$83:$Q$224,D67)<>0,SUMIFS(MyCS2007data!$T$83:$T$224,MyCS2007data!$S$83:$S$224,C67,MyCS2007data!$Q$83:$Q$224,D67)," ") ->  | G67: =IF(SUMIFS(MyCS2007data!$V$83:$V$224,MyCS2007data!$S$83:$S$224,C67,MyCS2007data!$Q$83:$Q$224,D67)<>0,SUMIFS(MyCS2007data!$V$83:$V$224,MyCS2007data!$S$83:$S$224,C67,MyCS2007data!$Q$83:$Q$224,D67)," ") ->  | H67: =IF(SUMIFS('Census 2011'!$D$328:$D$468,'Census 2011'!$A$328:$A$468,D67,'Census 2011'!$B$328:$B$468,C67)<>0,SUMIFS('Census 2011'!$D$328:$D$468,'Census 2011'!$A$328:$A$468,D67,'Census 2011'!$B$328:$B$468,C67)," ") ->  | I67: =IF(SUMIFS('bottom-up-enduse'!$E$252:$E$357,'bottom-up-enduse'!$B$252:$B$357,D67,'bottom-up-enduse'!$A$252:$A$357,C67)<>0,SUMIFS('bottom-up-enduse'!$E$252:$E$357,'bottom-up-enduse'!$B$252:$B$357,D67,'bottom-up-enduse'!$A$252:$A$357,C67)," ") -> 
B68: Electricity | C68: RESELC | D68: RMEO | E68: =IF(SUMIFS('Census 2011'!$C$328:$C$468,'Census 2011'!$A$328:$A$468,D68,'Census 2011'!$B$328:$B$468,C68)<>0,SUMIFS('Census 2011'!$C$328:$C$468,'Census 2011'!$A$328:$A$468,D68,'Census 2011'!$B$328:$B$468,C68)," ") -> 3949344 | F68: =IF(SUMIFS(MyCS2007data!$T$83:$T$224,MyCS2007data!$S$83:$S$224,C68,MyCS2007data!$Q$83:$Q$224,D68)<>0,SUMIFS(MyCS2007data!$T$83:$T$224,MyCS2007data!$S$83:$S$224,C68,MyCS2007data!$Q$83:$Q$224,D68)," ") -> 3490962.908 | G68: =IF(SUMIFS(MyCS2007data!$V$83:$V$224,MyCS2007data!$S$83:$S$224,C68,MyCS2007data!$Q$83:$Q$224,D68)<>0,SUMIFS(MyCS2007data!$V$83:$V$224,MyCS2007data!$S$83:$S$224,C68,MyCS2007data!$Q$83:$Q$224,D68)," ") -> 1 | H68: =IF(SUMIFS('Census 2011'!$D$328:$D$468,'Census 2011'!$A$328:$A$468,D68,'Census 2011'!$B$328:$B$468,C68)<>0,SUMIFS('Census 2011'!$D$328:$D$468,'Census 2011'!$A$328:$A$468,D68,'Census 2011'!$B$328:$B$468,C68)," ") -> 1 | J68: =W5 -> 10.24899237 | L68: Used to balance the electricity consumption
B69: Paraffin | C69: RESOKE | D69: RMEN | E69: =IF(SUMIFS('Census 2011'!$C$328:$C$468,'Census 2011'!$A$328:$A$468,D69,'Census 2011'!$B$328:$B$468,C69)<>0,SUMIFS('Census 2011'!$C$328:$C$468,'Census 2011'!$A$328:$A$468,D69,'Census 2011'!$B$328:$B$468,C69)," ") -> 5047.8 | F69: =IF(SUMIFS(MyCS2007data!$T$83:$T$224,MyCS2007data!$S$83:$S$224,C69,MyCS2007data!$Q$83:$Q$224,D69)<>0,SUMIFS(MyCS2007data!$T$83:$T$224,MyCS2007data!$S$83:$S$224,C69,MyCS2007data!$Q$83:$Q$224,D69)," ") -> 61149.88419 | G69: =IF(SUMIFS(MyCS2007data!$V$83:$V$224,MyCS2007data!$S$83:$S$224,C69,MyCS2007data!$Q$83:$Q$224,D69)<>0,SUMIFS(MyCS2007data!$V$83:$V$224,MyCS2007data!$S$83:$S$224,C69,MyCS2007data!$Q$83:$Q$224,D69)," ") -> 1 | H69: =IF(SUMIFS('Census 2011'!$D$328:$D$468,'Census 2011'!$A$328:$A$468,D69,'Census 2011'!$B$328:$B$468,C69)<>0,SUMIFS('Census 2011'!$D$328:$D$468,'Census 2011'!$A$328:$A$468,D69,'Census 2011'!$B$328:$B$468,C69)," ") -> 1 | I69: =IF(SUMIFS('bottom-up-enduse'!$E$252:$E$357,'bottom-up-enduse'!$B$252:$B$357,D69,'bottom-up-enduse'!$A$252:$A$357,C69)<>0,SUMIFS('bottom-up-enduse'!$E$252:$E$357,'bottom-up-enduse'!$B$252:$B$357,D69,'bottom-up-enduse'!$A$252:$A$357,C69)," ") -> 0.06522113301 | J69: =IFERROR(I69*F69/10^6," ") -> 0.00398826473 | K69: =IFERROR(E69*I69/10^6," ") -> 0.0003292232352
E70: =IF(SUMIFS('Census 2011'!$C$328:$C$468,'Census 2011'!$A$328:$A$468,D70,'Census 2011'!$B$328:$B$468,C70)<>0,SUMIFS('Census 2011'!$C$328:$C$468,'Census 2011'!$A$328:$A$468,D70,'Census 2011'!$B$328:$B$468,C70)," ") ->  | F70: =IF(SUMIFS(MyCS2007data!$T$83:$T$224,MyCS2007data!$S$83:$S$224,C70,MyCS2007data!$Q$83:$Q$224,D70)<>0,SUMIFS(MyCS2007data!$T$83:$T$224,MyCS2007data!$S$83:$S$224,C70,MyCS2007data!$Q$83:$Q$224,D70)," ") ->  | G70: =IF(SUMIFS(MyCS2007data!$V$83:$V$224,MyCS2007data!$S$83:$S$224,C70,MyCS2007data!$Q$83:$Q$224,D70)<>0,SUMIFS(MyCS2007data!$V$83:$V$224,MyCS2007data!$S$83:$S$224,C70,MyCS2007data!$Q$83:$Q$224,D70)," ") ->  | H70: =IF(SUMIFS('Census 2011'!$D$328:$D$468,'Census 2011'!$A$328:$A$468,D70,'Census 2011'!$B$328:$B$468,C70)<>0,SUMIFS('Census 2011'!$D$328:$D$468,'Census 2011'!$A$328:$A$468,D70,'Census 2011'!$B$328:$B$468,C70)," ") ->  | I70: =IF(SUMIFS('bottom-up-enduse'!$E$252:$E$357,'bottom-up-enduse'!$B$252:$B$357,D70,'bottom-up-enduse'!$A$252:$A$357,C70)<>0,SUMIFS('bottom-up-enduse'!$E$252:$E$357,'bottom-up-enduse'!$B$252:$B$357,D70,'bottom-up-enduse'!$A$252:$A$357,C70)," ") -> 
A71: * | B71: \I:Residential - Lighting - High Income Electrified | E71: =IF(SUMIFS('Census 2011'!$C$328:$C$468,'Census 2011'!$A$328:$A$468,D71,'Census 2011'!$B$328:$B$468,C71)<>0,SUMIFS('Census 2011'!$C$328:$C$468,'Census 2011'!$A$328:$A$468,D71,'Census 2011'!$B$328:$B$468,C71)," ") ->  | F71: =IF(SUMIFS(MyCS2007data!$T$83:$T$224,MyCS2007data!$S$83:$S$224,C71,MyCS2007data!$Q$83:$Q$224,D71)<>0,SUMIFS(MyCS2007data!$T$83:$T$224,MyCS2007data!$S$83:$S$224,C71,MyCS2007data!$Q$83:$Q$224,D71)," ") ->  | G71: =IF(SUMIFS(MyCS2007data!$V$83:$V$224,MyCS2007data!$S$83:$S$224,C71,MyCS2007data!$Q$83:$Q$224,D71)<>0,SUMIFS(MyCS2007data!$V$83:$V$224,MyCS2007data!$S$83:$S$224,C71,MyCS2007data!$Q$83:$Q$224,D71)," ") ->  | H71: =IF(SUMIFS('Census 2011'!$D$328:$D$468,'Census 2011'!$A$328:$A$468,D71,'Census 2011'!$B$328:$B$468,C71)<>0,SUMIFS('Census 2011'!$D$328:$D$468,'Census 2011'!$A$328:$A$468,D71,'Census 2011'!$B$328:$B$468,C71)," ") ->  | I71: =IF(SUMIFS('bottom-up-enduse'!$E$252:$E$357,'bottom-up-enduse'!$B$252:$B$357,D71,'bottom-up-enduse'!$A$252:$A$357,C71)<>0,SUMIFS('bottom-up-enduse'!$E$252:$E$357,'bottom-up-enduse'!$B$252:$B$357,D71,'bottom-up-enduse'!$A$252:$A$357,C71)," ") -> 
B72: Electricity | C72: RESELC | D72: RHEL | E72: =IF(SUMIFS('Census 2011'!$C$328:$C$468,'Census 2011'!$A$328:$A$468,D72,'Census 2011'!$B$328:$B$468,C72)<>0,SUMIFS('Census 2011'!$C$328:$C$468,'Census 2011'!$A$328:$A$468,D72,'Census 2011'!$B$328:$B$468,C72)," ") -> 3358269 | F72: =IF(SUMIFS(MyCS2007data!$T$83:$T$224,MyCS2007data!$S$83:$S$224,C72,MyCS2007data!$Q$83:$Q$224,D72)<>0,SUMIFS(MyCS2007data!$T$83:$T$224,MyCS2007data!$S$83:$S$224,C72,MyCS2007data!$Q$83:$Q$224,D72)," ") -> 2325804.952 | G72: =IF(SUMIFS(MyCS2007data!$V$83:$V$224,MyCS2007data!$S$83:$S$224,C72,MyCS2007data!$Q$83:$Q$224,D72)<>0,SUMIFS(MyCS2007data!$V$83:$V$224,MyCS2007data!$S$83:$S$224,C72,MyCS2007data!$Q$83:$Q$224,D72)," ") -> 1 | H72: =IF(SUMIFS('Census 2011'!$D$328:$D$468,'Census 2011'!$A$328:$A$468,D72,'Census 2011'!$B$328:$B$468,C72)<>0,SUMIFS('Census 2011'!$D$328:$D$468,'Census 2011'!$A$328:$A$468,D72,'Census 2011'!$B$328:$B$468,C72)," ") -> 1 | I72: =IF(SUMIFS('bottom-up-enduse'!$E$252:$E$357,'bottom-up-enduse'!$B$252:$B$357,D72,'bottom-up-enduse'!$A$252:$A$357,C72)<>0,SUMIFS('bottom-up-enduse'!$E$252:$E$357,'bottom-up-enduse'!$B$252:$B$357,D72,'bottom-up-enduse'!$A$252:$A$357,C72)," ") -> 4.945087444 | J72: 11.50130886 | K72: 16.60693386
E73: =IF(SUMIFS('Census 2011'!$C$328:$C$468,'Census 2011'!$A$328:$A$468,D73,'Census 2011'!$B$328:$B$468,C73)<>0,SUMIFS('Census 2011'!$C$328:$C$468,'Census 2011'!$A$328:$A$468,D73,'Census 2011'!$B$328:$B$468,C73)," ") ->  | F73: =IF(SUMIFS(MyCS2007data!$T$83:$T$224,MyCS2007data!$S$83:$S$224,C73,MyCS2007data!$Q$83:$Q$224,D73)<>0,SUMIFS(MyCS2007data!$T$83:$T$224,MyCS2007data!$S$83:$S$224,C73,MyCS2007data!$Q$83:$Q$224,D73)," ") ->  | G73: =IF(SUMIFS(MyCS2007data!$V$83:$V$224,MyCS2007data!$S$83:$S$224,C73,MyCS2007data!$Q$83:$Q$224,D73)<>0,SUMIFS(MyCS2007data!$V$83:$V$224,MyCS2007data!$S$83:$S$224,C73,MyCS2007data!$Q$83:$Q$224,D73)," ") ->  | H73: =IF(SUMIFS('Census 2011'!$D$328:$D$468,'Census 2011'!$A$328:$A$468,D73,'Census 2011'!$B$328:$B$468,C73)<>0,SUMIFS('Census 2011'!$D$328:$D$468,'Census 2011'!$A$328:$A$468,D73,'Census 2011'!$B$328:$B$468,C73)," ") ->  | I73: =IF(SUMIFS('bottom-up-enduse'!$E$252:$E$357,'bottom-up-enduse'!$B$252:$B$357,D73,'bottom-up-enduse'!$A$252:$A$357,C73)<>0,SUMIFS('bottom-up-enduse'!$E$252:$E$357,'bottom-up-enduse'!$B$252:$B$357,D73,'bottom-up-enduse'!$A$252:$A$357,C73)," ") -> 
A74: * | B74: \I:Residential - Cooking - Middle Income Electrified | E74: =IF(SUMIFS('Census 2011'!$C$328:$C$468,'Census 2011'!$A$328:$A$468,D74,'Census 2011'!$B$328:$B$468,C74)<>0,SUMIFS('Census 2011'!$C$328:$C$468,'Census 2011'!$A$328:$A$468,D74,'Census 2011'!$B$328:$B$468,C74)," ") ->  | F74: =IF(SUMIFS(MyCS2007data!$T$83:$T$224,MyCS2007data!$S$83:$S$224,C74,MyCS2007data!$Q$83:$Q$224,D74)<>0,SUMIFS(MyCS2007data!$T$83:$T$224,MyCS2007data!$S$83:$S$224,C74,MyCS2007data!$Q$83:$Q$224,D74)," ") ->  | G74: =IF(SUMIFS(MyCS2007data!$V$83:$V$224,MyCS2007data!$S$83:$S$224,C74,MyCS2007data!$Q$83:$Q$224,D74)<>0,SUMIFS(MyCS2007data!$V$83:$V$224,MyCS2007data!$S$83:$S$224,C74,MyCS2007data!$Q$83:$Q$224,D74)," ") ->  | H74: =IF(SUMIFS('Census 2011'!$D$328:$D$468,'Census 2011'!$A$328:$A$468,D74,'Census 2011'!$B$328:$B$468,C74)<>0,SUMIFS('Census 2011'!$D$328:$D$468,'Census 2011'!$A$328:$A$468,D74,'Census 2011'!$B$328:$B$468,C74)," ") ->  | I74: =IF(SUMIFS('bottom-up-enduse'!$E$252:$E$357,'bottom-up-enduse'!$B$252:$B$357,D74,'bottom-up-enduse'!$A$252:$A$357,C74)<>0,SUMIFS('bottom-up-enduse'!$E$252:$E$357,'bottom-up-enduse'!$B$252:$B$357,D74,'bottom-up-enduse'!$A$252:$A$357,C74)," ") -> 
B75: Electricity | C75: RESELC | D75: RHEK | E75: =IF(SUMIFS('Census 2011'!$C$328:$C$468,'Census 2011'!$A$328:$A$468,D75,'Census 2011'!$B$328:$B$468,C75)<>0,SUMIFS('Census 2011'!$C$328:$C$468,'Census 2011'!$A$328:$A$468,D75,'Census 2011'!$B$328:$B$468,C75)," ") -> 3087642 | F75: =IF(SUMIFS(MyCS2007data!$T$83:$T$224,MyCS2007data!$S$83:$S$224,C75,MyCS2007data!$Q$83:$Q$224,D75)<>0,SUMIFS(MyCS2007data!$T$83:$T$224,MyCS2007data!$S$83:$S$224,C75,MyCS2007data!$Q$83:$Q$224,D75)," ") -> 2268067.21 | G75: =IF(SUMIFS(MyCS2007data!$V$83:$V$224,MyCS2007data!$S$83:$S$224,C75,MyCS2007data!$Q$83:$Q$224,D75)<>0,SUMIFS(MyCS2007data!$V$83:$V$224,MyCS2007data!$S$83:$S$224,C75,MyCS2007data!$Q$83:$Q$224,D75)," ") -> 0.9230253912 | H75: =IF(SUMIFS('Census 2011'!$D$328:$D$468,'Census 2011'!$A$328:$A$468,D75,'Census 2011'!$B$328:$B$468,C75)<>0,SUMIFS('Census 2011'!$D$328:$D$468,'Census 2011'!$A$328:$A$468,D75,'Census 2011'!$B$328:$B$468,C75)," ") -> 0.919796811 | I75: =IF(SUMIFS('bottom-up-enduse'!$E$252:$E$357,'bottom-up-enduse'!$B$252:$B$357,D75,'bottom-up-enduse'!$A$252:$A$357,C75)<>0,SUMIFS('bottom-up-enduse'!$E$252:$E$357,'bottom-up-enduse'!$B$252:$B$357,D75,'bottom-up-enduse'!$A$252:$A$357,C75)," ") -> 2.00448 | J75: 4.54629536 | K75: 6.189116636
B76: Paraffin | C76: RESOKE | D76: RHEK | E76: =IF(SUMIFS('Census 2011'!$C$328:$C$468,'Census 2011'!$A$328:$A$468,D76,'Census 2011'!$B$328:$B$468,C76)<>0,SUMIFS('Census 2011'!$C$328:$C$468,'Census 2011'!$A$328:$A$468,D76,'Census 2011'!$B$328:$B$468,C76)," ") -> 7767 | F76: =IF(SUMIFS(MyCS2007data!$T$83:$T$224,MyCS2007data!$S$83:$S$224,C76,MyCS2007data!$Q$83:$Q$224,D76)<>0,SUMIFS(MyCS2007data!$T$83:$T$224,MyCS2007data!$S$83:$S$224,C76,MyCS2007data!$Q$83:$Q$224,D76)," ") -> 10595.92233 | G76: =IF(SUMIFS(MyCS2007data!$V$83:$V$224,MyCS2007data!$S$83:$S$224,C76,MyCS2007data!$Q$83:$Q$224,D76)<>0,SUMIFS(MyCS2007data!$V$83:$V$224,MyCS2007data!$S$83:$S$224,C76,MyCS2007data!$Q$83:$Q$224,D76)," ") -> 0.004312176163 | H76: =IF(SUMIFS('Census 2011'!$D$328:$D$468,'Census 2011'!$A$328:$A$468,D76,'Census 2011'!$B$328:$B$468,C76)<>0,SUMIFS('Census 2011'!$D$328:$D$468,'Census 2011'!$A$328:$A$468,D76,'Census 2011'!$B$328:$B$468,C76)," ") -> 0.002313759766 | I76: =IF(SUMIFS('bottom-up-enduse'!$E$252:$E$357,'bottom-up-enduse'!$B$252:$B$357,D76,'bottom-up-enduse'!$A$252:$A$357,C76)<>0,SUMIFS('bottom-up-enduse'!$E$252:$E$357,'bottom-up-enduse'!$B$252:$B$357,D76,'bottom-up-enduse'!$A$252:$A$357,C76)," ") -> 3.843504 | J76: 0.04072546987 | K76: 0.02985249557
B77: LPG | C77: RESOLP | D77: RHEK | E77: =IF(SUMIFS('Census 2011'!$C$328:$C$468,'Census 2011'!$A$328:$A$468,D77,'Census 2011'!$B$328:$B$468,C77)<>0,SUMIFS('Census 2011'!$C$328:$C$468,'Census 2011'!$A$328:$A$468,D77,'Census 2011'!$B$328:$B$468,C77)," ") -> 194439 | F77: =IF(SUMIFS(MyCS2007data!$T$83:$T$224,MyCS2007data!$S$83:$S$224,C77,MyCS2007data!$Q$83:$Q$224,D77)<>0,SUMIFS(MyCS2007data!$T$83:$T$224,MyCS2007data!$S$83:$S$224,C77,MyCS2007data!$Q$83:$Q$224,D77)," ") -> 100661.2622 | G77: =IF(SUMIFS(MyCS2007data!$V$83:$V$224,MyCS2007data!$S$83:$S$224,C77,MyCS2007data!$Q$83:$Q$224,D77)<>0,SUMIFS(MyCS2007data!$V$83:$V$224,MyCS2007data!$S$83:$S$224,C77,MyCS2007data!$Q$83:$Q$224,D77)," ") -> 0.04096567354 | H77: =IF(SUMIFS('Census 2011'!$D$328:$D$468,'Census 2011'!$A$328:$A$468,D77,'Census 2011'!$B$328:$B$468,C77)<>0,SUMIFS('Census 2011'!$D$328:$D$468,'Census 2011'!$A$328:$A$468,D77,'Census 2011'!$B$328:$B$468,C77)," ") -> 0.05792263874 | I77: =IF(SUMIFS('bottom-up-enduse'!$E$252:$E$357,'bottom-up-enduse'!$B$252:$B$357,D77,'bottom-up-enduse'!$A$252:$A$357,C77)<>0,SUMIFS('bottom-up-enduse'!$E$252:$E$357,'bottom-up-enduse'!$B$252:$B$357,D77,'bottom-up-enduse'!$A$252:$A$357,C77)," ") -> 3.214512 | J77: 0.3235768351 | K77: 0.6250264988
B78: Wood | C78: RESBIW | D78: RHEK | E78: =IF(SUMIFS('Census 2011'!$C$328:$C$468,'Census 2011'!$A$328:$A$468,D78,'Census 2011'!$B$328:$B$468,C78)<>0,SUMIFS('Census 2011'!$C$328:$C$468,'Census 2011'!$A$328:$A$468,D78,'Census 2011'!$B$328:$B$468,C78)," ") -> 41226 | F78: =IF(SUMIFS(MyCS2007data!$T$83:$T$224,MyCS2007data!$S$83:$S$224,C78,MyCS2007data!$Q$83:$Q$224,D78)<>0,SUMIFS(MyCS2007data!$T$83:$T$224,MyCS2007data!$S$83:$S$224,C78,MyCS2007data!$Q$83:$Q$224,D78)," ") -> 68873.49516 | G78: =IF(SUMIFS(MyCS2007data!$V$83:$V$224,MyCS2007data!$S$83:$S$224,C78,MyCS2007data!$Q$83:$Q$224,D78)<>0,SUMIFS(MyCS2007data!$V$83:$V$224,MyCS2007data!$S$83:$S$224,C78,MyCS2007data!$Q$83:$Q$224,D78)," ") -> 0.02802914506 | H78: =IF(SUMIFS('Census 2011'!$D$328:$D$468,'Census 2011'!$A$328:$A$468,D78,'Census 2011'!$B$328:$B$468,C78)<>0,SUMIFS('Census 2011'!$D$328:$D$468,'Census 2011'!$A$328:$A$468,D78,'Census 2011'!$B$328:$B$468,C78)," ") -> 0.01228106864 | I78: =IF(SUMIFS('bottom-up-enduse'!$E$252:$E$357,'bottom-up-enduse'!$B$252:$B$357,D78,'bottom-up-enduse'!$A$252:$A$357,C78)<>0,SUMIFS('bottom-up-enduse'!$E$252:$E$357,'bottom-up-enduse'!$B$252:$B$357,D78,'bottom-up-enduse'!$A$252:$A$357,C78)," ") -> 21.28315 | J78: 1.465844928 | K78: 0.8774191419
B79: Coal | C79: RESCOA | D79: RHEK | E79: =IF(SUMIFS('Census 2011'!$C$328:$C$468,'Census 2011'!$A$328:$A$468,D79,'Census 2011'!$B$328:$B$468,C79)<>0,SUMIFS('Census 2011'!$C$328:$C$468,'Census 2011'!$A$328:$A$468,D79,'Census 2011'!$B$328:$B$468,C79)," ") -> 6714 | F79: =IF(SUMIFS(MyCS2007data!$T$83:$T$224,MyCS2007data!$S$83:$S$224,C79,MyCS2007data!$Q$83:$Q$224,D79)<>0,SUMIFS(MyCS2007data!$T$83:$T$224,MyCS2007data!$S$83:$S$224,C79,MyCS2007data!$Q$83:$Q$224,D79)," ") -> 7304.769927 | G79: =IF(SUMIFS(MyCS2007data!$V$83:$V$224,MyCS2007data!$S$83:$S$224,C79,MyCS2007data!$Q$83:$Q$224,D79)<>0,SUMIFS(MyCS2007data!$V$83:$V$224,MyCS2007data!$S$83:$S$224,C79,MyCS2007data!$Q$83:$Q$224,D79)," ") -> 0.002972790265 | H79: =IF(SUMIFS('Census 2011'!$D$328:$D$468,'Census 2011'!$A$328:$A$468,D79,'Census 2011'!$B$328:$B$468,C79)<>0,SUMIFS('Census 2011'!$D$328:$D$468,'Census 2011'!$A$328:$A$468,D79,'Census 2011'!$B$328:$B$468,C79)," ") -> 0.00200007507 | I79: =IF(SUMIFS('bottom-up-enduse'!$E$252:$E$357,'bottom-up-enduse'!$B$252:$B$357,D79,'bottom-up-enduse'!$A$252:$A$357,C79)<>0,SUMIFS('bottom-up-enduse'!$E$252:$E$357,'bottom-up-enduse'!$B$252:$B$357,D79,'bottom-up-enduse'!$A$252:$A$357,C79)," ") -> 
B80: Natural gas | C80: RESGAS | D80: RHEK | E80: =IF(SUMIFS('Census 2011'!$C$328:$C$468,'Census 2011'!$A$328:$A$468,D80,'Census 2011'!$B$328:$B$468,C80)<>0,SUMIFS('Census 2011'!$C$328:$C$468,'Census 2011'!$A$328:$A$468,D80,'Census 2011'!$B$328:$B$468,C80)," ") ->  | F80: =IF(SUMIFS(MyCS2007data!$T$83:$T$224,MyCS2007data!$S$83:$S$224,C80,MyCS2007data!$Q$83:$Q$224,D80)<>0,SUMIFS(MyCS2007data!$T$83:$T$224,MyCS2007data!$S$83:$S$224,C80,MyCS2007data!$Q$83:$Q$224,D80)," ") ->  | G80: =IF(SUMIFS(MyCS2007data!$V$83:$V$224,MyCS2007data!$S$83:$S$224,C80,MyCS2007data!$Q$83:$Q$224,D80)<>0,SUMIFS(MyCS2007data!$V$83:$V$224,MyCS2007data!$S$83:$S$224,C80,MyCS2007data!$Q$83:$Q$224,D80)," ") ->  | H80: =IF(SUMIFS('Census 2011'!$D$328:$D$468,'Census 2011'!$A$328:$A$468,D80,'Census 2011'!$B$328:$B$468,C80)<>0,SUMIFS('Census 2011'!$D$328:$D$468,'Census 2011'!$A$328:$A$468,D80,'Census 2011'!$B$328:$B$468,C80)," ") ->  | I80: =IF(SUMIFS('bottom-up-enduse'!$E$252:$E$357,'bottom-up-enduse'!$B$252:$B$357,D80,'bottom-up-enduse'!$A$252:$A$357,C80)<>0,SUMIFS('bottom-up-enduse'!$E$252:$E$357,'bottom-up-enduse'!$B$252:$B$357,D80,'bottom-up-enduse'!$A$252:$A$357,C80)," ") -> 
E81: =IF(SUMIFS('Census 2011'!$C$328:$C$468,'Census 2011'!$A$328:$A$468,D81,'Census 2011'!$B$328:$B$468,C81)<>0,SUMIFS('Census 2011'!$C$328:$C$468,'Census 2011'!$A$328:$A$468,D81,'Census 2011'!$B$328:$B$468,C81)," ") ->  | F81: =IF(SUMIFS(MyCS2007data!$T$83:$T$224,MyCS2007data!$S$83:$S$224,C81,MyCS2007data!$Q$83:$Q$224,D81)<>0,SUMIFS(MyCS2007data!$T$83:$T$224,MyCS2007data!$S$83:$S$224,C81,MyCS2007data!$Q$83:$Q$224,D81)," ") ->  | G81: =IF(SUMIFS(MyCS2007data!$V$83:$V$224,MyCS2007data!$S$83:$S$224,C81,MyCS2007data!$Q$83:$Q$224,D81)<>0,SUMIFS(MyCS2007data!$V$83:$V$224,MyCS2007data!$S$83:$S$224,C81,MyCS2007data!$Q$83:$Q$224,D81)," ") ->  | H81: =IF(SUMIFS('Census 2011'!$D$328:$D$468,'Census 2011'!$A$328:$A$468,D81,'Census 2011'!$B$328:$B$468,C81)<>0,SUMIFS('Census 2011'!$D$328:$D$468,'Census 2011'!$A$328:$A$468,D81,'Census 2011'!$B$328:$B$468,C81)," ") ->  | I81: =IF(SUMIFS('bottom-up-enduse'!$E$252:$E$357,'bottom-up-enduse'!$B$252:$B$357,D81,'bottom-up-enduse'!$A$252:$A$357,C81)<>0,SUMIFS('bottom-up-enduse'!$E$252:$E$357,'bottom-up-enduse'!$B$252:$B$357,D81,'bottom-up-enduse'!$A$252:$A$357,C81)," ") -> 
A82: * | B82: \I:Residential - Space Heating - Middle Income Electrified | E82: =IF(SUMIFS('Census 2011'!$C$328:$C$468,'Census 2011'!$A$328:$A$468,D82,'Census 2011'!$B$328:$B$468,C82)<>0,SUMIFS('Census 2011'!$C$328:$C$468,'Census 2011'!$A$328:$A$468,D82,'Census 2011'!$B$328:$B$468,C82)," ") ->  | F82: =IF(SUMIFS(MyCS2007data!$T$83:$T$224,MyCS2007data!$S$83:$S$224,C82,MyCS2007data!$Q$83:$Q$224,D82)<>0,SUMIFS(MyCS2007data!$T$83:$T$224,MyCS2007data!$S$83:$S$224,C82,MyCS2007data!$Q$83:$Q$224,D82)," ") ->  | G82: =IF(SUMIFS(MyCS2007data!$V$83:$V$224,MyCS2007data!$S$83:$S$224,C82,MyCS2007data!$Q$83:$Q$224,D82)<>0,SUMIFS(MyCS2007data!$V$83:$V$224,MyCS2007data!$S$83:$S$224,C82,MyCS2007data!$Q$83:$Q$224,D82)," ") ->  | H82: =IF(SUMIFS('Census 2011'!$D$328:$D$468,'Census 2011'!$A$328:$A$468,D82,'Census 2011'!$B$328:$B$468,C82)<>0,SUMIFS('Census 2011'!$D$328:$D$468,'Census 2011'!$A$328:$A$468,D82,'Census 2011'!$B$328:$B$468,C82)," ") ->  | I82: =IF(SUMIFS('bottom-up-enduse'!$E$252:$E$357,'bottom-up-enduse'!$B$252:$B$357,D82,'bottom-up-enduse'!$A$252:$A$357,C82)<>0,SUMIFS('bottom-up-enduse'!$E$252:$E$357,'bottom-up-enduse'!$B$252:$B$357,D82,'bottom-up-enduse'!$A$252:$A$357,C82)," ") -> 
B83: Electricity | C83: RESELC | D83: RHEH | E83: =IF(SUMIFS('Census 2011'!$C$328:$C$468,'Census 2011'!$A$328:$A$468,D83,'Census 2011'!$B$328:$B$468,C83)<>0,SUMIFS('Census 2011'!$C$328:$C$468,'Census 2011'!$A$328:$A$468,D83,'Census 2011'!$B$328:$B$468,C83)," ") -> 2716527 | F83: =IF(SUMIFS(MyCS2007data!$T$83:$T$224,MyCS2007data!$S$83:$S$224,C83,MyCS2007data!$Q$83:$Q$224,D83)<>0,SUMIFS(MyCS2007data!$T$83:$T$224,MyCS2007data!$S$83:$S$224,C83,MyCS2007data!$Q$83:$Q$224,D83)," ") -> 2175462.232 | G83: =IF(SUMIFS(MyCS2007data!$V$83:$V$224,MyCS2007data!$S$83:$S$224,C83,MyCS2007data!$Q$83:$Q$224,D83)<>0,SUMIFS(MyCS2007data!$V$83:$V$224,MyCS2007data!$S$83:$S$224,C83,MyCS2007data!$Q$83:$Q$224,D83)," ") -> 0.9270598804 | H83: =IF(SUMIFS('Census 2011'!$D$328:$D$468,'Census 2011'!$A$328:$A$468,D83,'Census 2011'!$B$328:$B$468,C83)<>0,SUMIFS('Census 2011'!$D$328:$D$468,'Census 2011'!$A$328:$A$468,D83,'Census 2011'!$B$328:$B$468,C83)," ") -> 0.8652010151 | I83: =IF(SUMIFS('bottom-up-enduse'!$E$252:$E$357,'bottom-up-enduse'!$B$252:$B$357,D83,'bottom-up-enduse'!$A$252:$A$357,C83)<>0,SUMIFS('bottom-up-enduse'!$E$252:$E$357,'bottom-up-enduse'!$B$252:$B$357,D83,'bottom-up-enduse'!$A$252:$A$357,C83)," ") -> 4.1472 | J83: 9.02207697 | K83: 11.26598077
B84: Paraffin | C84: RESOKE | D84: RHEH | E84: =IF(SUMIFS('Census 2011'!$C$328:$C$468,'Census 2011'!$A$328:$A$468,D84,'Census 2011'!$B$328:$B$468,C84)<>0,SUMIFS('Census 2011'!$C$328:$C$468,'Census 2011'!$A$328:$A$468,D84,'Census 2011'!$B$328:$B$468,C84)," ") -> 104619 | F84: =IF(SUMIFS(MyCS2007data!$T$83:$T$224,MyCS2007data!$S$83:$S$224,C84,MyCS2007data!$Q$83:$Q$224,D84)<>0,SUMIFS(MyCS2007data!$T$83:$T$224,MyCS2007data!$S$83:$S$224,C84,MyCS2007data!$Q$83:$Q$224,D84)," ") -> 53698.23843 | G84: =IF(SUMIFS(MyCS2007data!$V$83:$V$224,MyCS2007data!$S$83:$S$224,C84,MyCS2007data!$Q$83:$Q$224,D84)<>0,SUMIFS(MyCS2007data!$V$83:$V$224,MyCS2007data!$S$83:$S$224,C84,MyCS2007data!$Q$83:$Q$224,D84)," ") -> 0.02288317478 | H84: =IF(SUMIFS('Census 2011'!$D$328:$D$468,'Census 2011'!$A$328:$A$468,D84,'Census 2011'!$B$328:$B$468,C84)<>0,SUMIFS('Census 2011'!$D$328:$D$468,'Census 2011'!$A$328:$A$468,D84,'Census 2011'!$B$328:$B$468,C84)," ") -> 0.03332065722 | I84: =IF(SUMIFS('bottom-up-enduse'!$E$252:$E$357,'bottom-up-enduse'!$B$252:$B$357,D84,'bottom-up-enduse'!$A$252:$A$357,C84)<>0,SUMIFS('bottom-up-enduse'!$E$252:$E$357,'bottom-up-enduse'!$B$252:$B$357,D84,'bottom-up-enduse'!$A$252:$A$357,C84)," ") -> 0.555 | J84: 0.02980252233 | K84: 0.058063545
B85: LPG | C85: RESOLP | D85: RHEH | E85: =IF(SUMIFS('Census 2011'!$C$328:$C$468,'Census 2011'!$A$328:$A$468,D85,'Census 2011'!$B$328:$B$468,C85)<>0,SUMIFS('Census 2011'!$C$328:$C$468,'Census 2011'!$A$328:$A$468,D85,'Census 2011'!$B$328:$B$468,C85)," ") -> 181107 | F85: =IF(SUMIFS(MyCS2007data!$T$83:$T$224,MyCS2007data!$S$83:$S$224,C85,MyCS2007data!$Q$83:$Q$224,D85)<>0,SUMIFS(MyCS2007data!$T$83:$T$224,MyCS2007data!$S$83:$S$224,C85,MyCS2007data!$Q$83:$Q$224,D85)," ") -> 30205.25912 | G85: =IF(SUMIFS(MyCS2007data!$V$83:$V$224,MyCS2007data!$S$83:$S$224,C85,MyCS2007data!$Q$83:$Q$224,D85)<>0,SUMIFS(MyCS2007data!$V$83:$V$224,MyCS2007data!$S$83:$S$224,C85,MyCS2007data!$Q$83:$Q$224,D85)," ") -> 0.01287178581 | H85: =IF(SUMIFS('Census 2011'!$D$328:$D$468,'Census 2011'!$A$328:$A$468,D85,'Census 2011'!$B$328:$B$468,C85)<>0,SUMIFS('Census 2011'!$D$328:$D$468,'Census 2011'!$A$328:$A$468,D85,'Census 2011'!$B$328:$B$468,C85)," ") -> 0.05768172385 | I85: =IF(SUMIFS('bottom-up-enduse'!$E$252:$E$357,'bottom-up-enduse'!$B$252:$B$357,D85,'bottom-up-enduse'!$A$252:$A$357,C85)<>0,SUMIFS('bottom-up-enduse'!$E$252:$E$357,'bottom-up-enduse'!$B$252:$B$357,D85,'bottom-up-enduse'!$A$252:$A$357,C85)," ") -> 
B86: Wood | C86: RESBIW | D86: RHEH | E86: =IF(SUMIFS('Census 2011'!$C$328:$C$468,'Census 2011'!$A$328:$A$468,D86,'Census 2011'!$B$328:$B$468,C86)<>0,SUMIFS('Census 2011'!$C$328:$C$468,'Census 2011'!$A$328:$A$468,D86,'Census 2011'!$B$328:$B$468,C86)," ") -> 94983 | F86: =IF(SUMIFS(MyCS2007data!$T$83:$T$224,MyCS2007data!$S$83:$S$224,C86,MyCS2007data!$Q$83:$Q$224,D86)<>0,SUMIFS(MyCS2007data!$T$83:$T$224,MyCS2007data!$S$83:$S$224,C86,MyCS2007data!$Q$83:$Q$224,D86)," ") -> 65444.72808 | G86: =IF(SUMIFS(MyCS2007data!$V$83:$V$224,MyCS2007data!$S$83:$S$224,C86,MyCS2007data!$Q$83:$Q$224,D86)<>0,SUMIFS(MyCS2007data!$V$83:$V$224,MyCS2007data!$S$83:$S$224,C86,MyCS2007data!$Q$83:$Q$224,D86)," ") -> 0.02788886927 | H86: =IF(SUMIFS('Census 2011'!$D$328:$D$468,'Census 2011'!$A$328:$A$468,D86,'Census 2011'!$B$328:$B$468,C86)<>0,SUMIFS('Census 2011'!$D$328:$D$468,'Census 2011'!$A$328:$A$468,D86,'Census 2011'!$B$328:$B$468,C86)," ") -> 0.03025163675 | I86: =IF(SUMIFS('bottom-up-enduse'!$E$252:$E$357,'bottom-up-enduse'!$B$252:$B$357,D86,'bottom-up-enduse'!$A$252:$A$357,C86)<>0,SUMIFS('bottom-up-enduse'!$E$252:$E$357,'bottom-up-enduse'!$B$252:$B$357,D86,'bottom-up-enduse'!$A$252:$A$357,C86)," ") -> 4.126325 | J86: 0.2700462176 | K86: 0.3919307275
B87: Coal | C87: RESCOA | D87: RHEH | E87: =IF(SUMIFS('Census 2011'!$C$328:$C$468,'Census 2011'!$A$328:$A$468,D87,'Census 2011'!$B$328:$B$468,C87)<>0,SUMIFS('Census 2011'!$C$328:$C$468,'Census 2011'!$A$328:$A$468,D87,'Census 2011'!$B$328:$B$468,C87)," ") -> 24783 | F87: =IF(SUMIFS(MyCS2007data!$T$83:$T$224,MyCS2007data!$S$83:$S$224,C87,MyCS2007data!$Q$83:$Q$224,D87)<>0,SUMIFS(MyCS2007data!$T$83:$T$224,MyCS2007data!$S$83:$S$224,C87,MyCS2007data!$Q$83:$Q$224,D87)," ") -> 21814.90936 | G87: =IF(SUMIFS(MyCS2007data!$V$83:$V$224,MyCS2007data!$S$83:$S$224,C87,MyCS2007data!$Q$83:$Q$224,D87)<>0,SUMIFS(MyCS2007data!$V$83:$V$224,MyCS2007data!$S$83:$S$224,C87,MyCS2007data!$Q$83:$Q$224,D87)," ") -> 0.009296289755 | H87: =IF(SUMIFS('Census 2011'!$D$328:$D$468,'Census 2011'!$A$328:$A$468,D87,'Census 2011'!$B$328:$B$468,C87)<>0,SUMIFS('Census 2011'!$D$328:$D$468,'Census 2011'!$A$328:$A$468,D87,'Census 2011'!$B$328:$B$468,C87)," ") -> 0.007893268411 | I87: =IF(SUMIFS('bottom-up-enduse'!$E$252:$E$357,'bottom-up-enduse'!$B$252:$B$357,D87,'bottom-up-enduse'!$A$252:$A$357,C87)<>0,SUMIFS('bottom-up-enduse'!$E$252:$E$357,'bottom-up-enduse'!$B$252:$B$357,D87,'bottom-up-enduse'!$A$252:$A$357,C87)," ") -> 30.1806 | J87: 0.6583870535 | K87: 0.7479658098
B88: Natural gas | C88: RESGAS | D88: RHEH | E88: =IF(SUMIFS('Census 2011'!$C$328:$C$468,'Census 2011'!$A$328:$A$468,D88,'Census 2011'!$B$328:$B$468,C88)<>0,SUMIFS('Census 2011'!$C$328:$C$468,'Census 2011'!$A$328:$A$468,D88,'Census 2011'!$B$328:$B$468,C88)," ") ->  | F88: =IF(SUMIFS(MyCS2007data!$T$83:$T$224,MyCS2007data!$S$83:$S$224,C88,MyCS2007data!$Q$83:$Q$224,D88)<>0,SUMIFS(MyCS2007data!$T$83:$T$224,MyCS2007data!$S$83:$S$224,C88,MyCS2007data!$Q$83:$Q$224,D88)," ") ->  | G88: =IF(SUMIFS(MyCS2007data!$V$83:$V$224,MyCS2007data!$S$83:$S$224,C88,MyCS2007data!$Q$83:$Q$224,D88)<>0,SUMIFS(MyCS2007data!$V$83:$V$224,MyCS2007data!$S$83:$S$224,C88,MyCS2007data!$Q$83:$Q$224,D88)," ") ->  | H88: =IF(SUMIFS('Census 2011'!$D$328:$D$468,'Census 2011'!$A$328:$A$468,D88,'Census 2011'!$B$328:$B$468,C88)<>0,SUMIFS('Census 2011'!$D$328:$D$468,'Census 2011'!$A$328:$A$468,D88,'Census 2011'!$B$328:$B$468,C88)," ") ->  | I88: =IF(SUMIFS('bottom-up-enduse'!$E$252:$E$357,'bottom-up-enduse'!$B$252:$B$357,D88,'bottom-up-enduse'!$A$252:$A$357,C88)<>0,SUMIFS('bottom-up-enduse'!$E$252:$E$357,'bottom-up-enduse'!$B$252:$B$357,D88,'bottom-up-enduse'!$A$252:$A$357,C88)," ") -> 
E89: =IF(SUMIFS('Census 2011'!$C$328:$C$468,'Census 2011'!$A$328:$A$468,D89,'Census 2011'!$B$328:$B$468,C89)<>0,SUMIFS('Census 2011'!$C$328:$C$468,'Census 2011'!$A$328:$A$468,D89,'Census 2011'!$B$328:$B$468,C89)," ") ->  | F89: =IF(SUMIFS(MyCS2007data!$T$83:$T$224,MyCS2007data!$S$83:$S$224,C89,MyCS2007data!$Q$83:$Q$224,D89)<>0,SUMIFS(MyCS2007data!$T$83:$T$224,MyCS2007data!$S$83:$S$224,C89,MyCS2007data!$Q$83:$Q$224,D89)," ") ->  | G89: =IF(SUMIFS(MyCS2007data!$V$83:$V$224,MyCS2007data!$S$83:$S$224,C89,MyCS2007data!$Q$83:$Q$224,D89)<>0,SUMIFS(MyCS2007data!$V$83:$V$224,MyCS2007data!$S$83:$S$224,C89,MyCS2007data!$Q$83:$Q$224,D89)," ") ->  | H89: =IF(SUMIFS('Census 2011'!$D$328:$D$468,'Census 2011'!$A$328:$A$468,D89,'Census 2011'!$B$328:$B$468,C89)<>0,SUMIFS('Census 2011'!$D$328:$D$468,'Census 2011'!$A$328:$A$468,D89,'Census 2011'!$B$328:$B$468,C89)," ") ->  | I89: =IF(SUMIFS('bottom-up-enduse'!$E$252:$E$357,'bottom-up-enduse'!$B$252:$B$357,D89,'bottom-up-enduse'!$A$252:$A$357,C89)<>0,SUMIFS('bottom-up-enduse'!$E$252:$E$357,'bottom-up-enduse'!$B$252:$B$357,D89,'bottom-up-enduse'!$A$252:$A$357,C89)," ") -> 
A90: * | B90: \I:Residential - Water Heating - Middle Income Electrified | E90: =IF(SUMIFS('Census 2011'!$C$328:$C$468,'Census 2011'!$A$328:$A$468,D90,'Census 2011'!$B$328:$B$468,C90)<>0,SUMIFS('Census 2011'!$C$328:$C$468,'Census 2011'!$A$328:$A$468,D90,'Census 2011'!$B$328:$B$468,C90)," ") ->  | F90: =IF(SUMIFS(MyCS2007data!$T$83:$T$224,MyCS2007data!$S$83:$S$224,C90,MyCS2007data!$Q$83:$Q$224,D90)<>0,SUMIFS(MyCS2007data!$T$83:$T$224,MyCS2007data!$S$83:$S$224,C90,MyCS2007data!$Q$83:$Q$224,D90)," ") ->  | G90: =IF(SUMIFS(MyCS2007data!$V$83:$V$224,MyCS2007data!$S$83:$S$224,C90,MyCS2007data!$Q$83:$Q$224,D90)<>0,SUMIFS(MyCS2007data!$V$83:$V$224,MyCS2007data!$S$83:$S$224,C90,MyCS2007data!$Q$83:$Q$224,D90)," ") ->  | H90: =IF(SUMIFS('Census 2011'!$D$328:$D$468,'Census 2011'!$A$328:$A$468,D90,'Census 2011'!$B$328:$B$468,C90)<>0,SUMIFS('Census 2011'!$D$328:$D$468,'Census 2011'!$A$328:$A$468,D90,'Census 2011'!$B$328:$B$468,C90)," ") ->  | I90: =IF(SUMIFS('bottom-up-enduse'!$E$252:$E$357,'bottom-up-enduse'!$B$252:$B$357,D90,'bottom-up-enduse'!$A$252:$A$357,C90)<>0,SUMIFS('bottom-up-enduse'!$E$252:$E$357,'bottom-up-enduse'!$B$252:$B$357,D90,'bottom-up-enduse'!$A$252:$A$357,C90)," ") -> 
B91: Electricity | C91: RESELC | D91: RHEW | E91: =IF(SUMIFS('Census 2011'!$C$328:$C$468,'Census 2011'!$A$328:$A$468,D91,'Census 2011'!$B$328:$B$468,C91)<>0,SUMIFS('Census 2011'!$C$328:$C$468,'Census 2011'!$A$328:$A$468,D91,'Census 2011'!$B$328:$B$468,C91)," ") -> 3358269 | F91: =IF(SUMIFS(MyCS2007data!$T$83:$T$224,MyCS2007data!$S$83:$S$224,C91,MyCS2007data!$Q$83:$Q$224,D91)<>0,SUMIFS(MyCS2007data!$T$83:$T$224,MyCS2007data!$S$83:$S$224,C91,MyCS2007data!$Q$83:$Q$224,D91)," ") -> 2268067.21 | G91: =IF(SUMIFS(MyCS2007data!$V$83:$V$224,MyCS2007data!$S$83:$S$224,C91,MyCS2007data!$Q$83:$Q$224,D91)<>0,SUMIFS(MyCS2007data!$V$83:$V$224,MyCS2007data!$S$83:$S$224,C91,MyCS2007data!$Q$83:$Q$224,D91)," ") -> 0.9236671771 | H91: =IF(SUMIFS('Census 2011'!$D$328:$D$468,'Census 2011'!$A$328:$A$468,D91,'Census 2011'!$B$328:$B$468,C91)<>0,SUMIFS('Census 2011'!$D$328:$D$468,'Census 2011'!$A$328:$A$468,D91,'Census 2011'!$B$328:$B$468,C91)," ") -> 1 | I91: =IF(SUMIFS('bottom-up-enduse'!$E$252:$E$357,'bottom-up-enduse'!$B$252:$B$357,D91,'bottom-up-enduse'!$A$252:$A$357,C91)<>0,SUMIFS('bottom-up-enduse'!$E$252:$E$357,'bottom-up-enduse'!$B$252:$B$357,D91,'bottom-up-enduse'!$A$252:$A$357,C91)," ") -> 14.55341447 | J91: 33.00812215 | K91: 48.87428067
B92: Paraffin | C92: RESOKE | D92: RHEW | E92: =IF(SUMIFS('Census 2011'!$C$328:$C$468,'Census 2011'!$A$328:$A$468,D92,'Census 2011'!$B$328:$B$468,C92)<>0,SUMIFS('Census 2011'!$C$328:$C$468,'Census 2011'!$A$328:$A$468,D92,'Census 2011'!$B$328:$B$468,C92)," ") ->  | F92: =IF(SUMIFS(MyCS2007data!$T$83:$T$224,MyCS2007data!$S$83:$S$224,C92,MyCS2007data!$Q$83:$Q$224,D92)<>0,SUMIFS(MyCS2007data!$T$83:$T$224,MyCS2007data!$S$83:$S$224,C92,MyCS2007data!$Q$83:$Q$224,D92)," ") -> 10595.92233 | G92: =IF(SUMIFS(MyCS2007data!$V$83:$V$224,MyCS2007data!$S$83:$S$224,C92,MyCS2007data!$Q$83:$Q$224,D92)<>0,SUMIFS(MyCS2007data!$V$83:$V$224,MyCS2007data!$S$83:$S$224,C92,MyCS2007data!$Q$83:$Q$224,D92)," ") -> 0.004315174448 | H92: =IF(SUMIFS('Census 2011'!$D$328:$D$468,'Census 2011'!$A$328:$A$468,D92,'Census 2011'!$B$328:$B$468,C92)<>0,SUMIFS('Census 2011'!$D$328:$D$468,'Census 2011'!$A$328:$A$468,D92,'Census 2011'!$B$328:$B$468,C92)," ") ->  | I92: =IF(SUMIFS('bottom-up-enduse'!$E$252:$E$357,'bottom-up-enduse'!$B$252:$B$357,D92,'bottom-up-enduse'!$A$252:$A$357,C92)<>0,SUMIFS('bottom-up-enduse'!$E$252:$E$357,'bottom-up-enduse'!$B$252:$B$357,D92,'bottom-up-enduse'!$A$252:$A$357,C92)," ") -> 
B93: LPG | C93: RESOLP | D93: RHEW | E93: =IF(SUMIFS('Census 2011'!$C$328:$C$468,'Census 2011'!$A$328:$A$468,D93,'Census 2011'!$B$328:$B$468,C93)<>0,SUMIFS('Census 2011'!$C$328:$C$468,'Census 2011'!$A$328:$A$468,D93,'Census 2011'!$B$328:$B$468,C93)," ") ->  | F93: =IF(SUMIFS(MyCS2007data!$T$83:$T$224,MyCS2007data!$S$83:$S$224,C93,MyCS2007data!$Q$83:$Q$224,D93)<>0,SUMIFS(MyCS2007data!$T$83:$T$224,MyCS2007data!$S$83:$S$224,C93,MyCS2007data!$Q$83:$Q$224,D93)," ") -> 100661.2622 | G93: =IF(SUMIFS(MyCS2007data!$V$83:$V$224,MyCS2007data!$S$83:$S$224,C93,MyCS2007data!$Q$83:$Q$224,D93)<>0,SUMIFS(MyCS2007data!$V$83:$V$224,MyCS2007data!$S$83:$S$224,C93,MyCS2007data!$Q$83:$Q$224,D93)," ") -> 0.04099415726 | H93: =IF(SUMIFS('Census 2011'!$D$328:$D$468,'Census 2011'!$A$328:$A$468,D93,'Census 2011'!$B$328:$B$468,C93)<>0,SUMIFS('Census 2011'!$D$328:$D$468,'Census 2011'!$A$328:$A$468,D93,'Census 2011'!$B$328:$B$468,C93)," ") ->  | I93: =IF(SUMIFS('bottom-up-enduse'!$E$252:$E$357,'bottom-up-enduse'!$B$252:$B$357,D93,'bottom-up-enduse'!$A$252:$A$357,C93)<>0,SUMIFS('bottom-up-enduse'!$E$252:$E$357,'bottom-up-enduse'!$B$252:$B$357,D93,'bottom-up-enduse'!$A$252:$A$357,C93)," ") -> 
B94: Wood | C94: RESBIW | D94: RHEW | E94: =IF(SUMIFS('Census 2011'!$C$328:$C$468,'Census 2011'!$A$328:$A$468,D94,'Census 2011'!$B$328:$B$468,C94)<>0,SUMIFS('Census 2011'!$C$328:$C$468,'Census 2011'!$A$328:$A$468,D94,'Census 2011'!$B$328:$B$468,C94)," ") ->  | F94: =IF(SUMIFS(MyCS2007data!$T$83:$T$224,MyCS2007data!$S$83:$S$224,C94,MyCS2007data!$Q$83:$Q$224,D94)<>0,SUMIFS(MyCS2007data!$T$83:$T$224,MyCS2007data!$S$83:$S$224,C94,MyCS2007data!$Q$83:$Q$224,D94)," ") -> 68873.49516 | G94: =IF(SUMIFS(MyCS2007data!$V$83:$V$224,MyCS2007data!$S$83:$S$224,C94,MyCS2007data!$Q$83:$Q$224,D94)<>0,SUMIFS(MyCS2007data!$V$83:$V$224,MyCS2007data!$S$83:$S$224,C94,MyCS2007data!$Q$83:$Q$224,D94)," ") -> 0.02804863391 | H94: =IF(SUMIFS('Census 2011'!$D$328:$D$468,'Census 2011'!$A$328:$A$468,D94,'Census 2011'!$B$328:$B$468,C94)<>0,SUMIFS('Census 2011'!$D$328:$D$468,'Census 2011'!$A$328:$A$468,D94,'Census 2011'!$B$328:$B$468,C94)," ") ->  | I94: =IF(SUMIFS('bottom-up-enduse'!$E$252:$E$357,'bottom-up-enduse'!$B$252:$B$357,D94,'bottom-up-enduse'!$A$252:$A$357,C94)<>0,SUMIFS('bottom-up-enduse'!$E$252:$E$357,'bottom-up-enduse'!$B$252:$B$357,D94,'bottom-up-enduse'!$A$252:$A$357,C94)," ") -> 
B95: Coal | C95: RESCOA | D95: RHEW | E95: =IF(SUMIFS('Census 2011'!$C$328:$C$468,'Census 2011'!$A$328:$A$468,D95,'Census 2011'!$B$328:$B$468,C95)<>0,SUMIFS('Census 2011'!$C$328:$C$468,'Census 2011'!$A$328:$A$468,D95,'Census 2011'!$B$328:$B$468,C95)," ") ->  | F95: =IF(SUMIFS(MyCS2007data!$T$83:$T$224,MyCS2007data!$S$83:$S$224,C95,MyCS2007data!$Q$83:$Q$224,D95)<>0,SUMIFS(MyCS2007data!$T$83:$T$224,MyCS2007data!$S$83:$S$224,C95,MyCS2007data!$Q$83:$Q$224,D95)," ") -> 7304.769927 | G95: =IF(SUMIFS(MyCS2007data!$V$83:$V$224,MyCS2007data!$S$83:$S$224,C95,MyCS2007data!$Q$83:$Q$224,D95)<>0,SUMIFS(MyCS2007data!$V$83:$V$224,MyCS2007data!$S$83:$S$224,C95,MyCS2007data!$Q$83:$Q$224,D95)," ") -> 0.002974857266 | H95: =IF(SUMIFS('Census 2011'!$D$328:$D$468,'Census 2011'!$A$328:$A$468,D95,'Census 2011'!$B$328:$B$468,C95)<>0,SUMIFS('Census 2011'!$D$328:$D$468,'Census 2011'!$A$328:$A$468,D95,'Census 2011'!$B$328:$B$468,C95)," ") ->  | I95: =IF(SUMIFS('bottom-up-enduse'!$E$252:$E$357,'bottom-up-enduse'!$B$252:$B$357,D95,'bottom-up-enduse'!$A$252:$A$357,C95)<>0,SUMIFS('bottom-up-enduse'!$E$252:$E$357,'bottom-up-enduse'!$B$252:$B$357,D95,'bottom-up-enduse'!$A$252:$A$357,C95)," ") -> 
B96: Natural gas | C96: RESGAS | D96: RHEW | E96: =IF(SUMIFS('Census 2011'!$C$328:$C$468,'Census 2011'!$A$328:$A$468,D96,'Census 2011'!$B$328:$B$468,C96)<>0,SUMIFS('Census 2011'!$C$328:$C$468,'Census 2011'!$A$328:$A$468,D96,'Census 2011'!$B$328:$B$468,C96)," ") ->  | F96: =IF(SUMIFS(MyCS2007data!$T$83:$T$224,MyCS2007data!$S$83:$S$224,C96,MyCS2007data!$Q$83:$Q$224,D96)<>0,SUMIFS(MyCS2007data!$T$83:$T$224,MyCS2007data!$S$83:$S$224,C96,MyCS2007data!$Q$83:$Q$224,D96)," ") ->  | G96: =IF(SUMIFS(MyCS2007data!$V$83:$V$224,MyCS2007data!$S$83:$S$224,C96,MyCS2007data!$Q$83:$Q$224,D96)<>0,SUMIFS(MyCS2007data!$V$83:$V$224,MyCS2007data!$S$83:$S$224,C96,MyCS2007data!$Q$83:$Q$224,D96)," ") ->  | H96: =IF(SUMIFS('Census 2011'!$D$328:$D$468,'Census 2011'!$A$328:$A$468,D96,'Census 2011'!$B$328:$B$468,C96)<>0,SUMIFS('Census 2011'!$D$328:$D$468,'Census 2011'!$A$328:$A$468,D96,'Census 2011'!$B$328:$B$468,C96)," ") ->  | I96: =IF(SUMIFS('bottom-up-enduse'!$E$252:$E$357,'bottom-up-enduse'!$B$252:$B$357,D96,'bottom-up-enduse'!$A$252:$A$357,C96)<>0,SUMIFS('bottom-up-enduse'!$E$252:$E$357,'bottom-up-enduse'!$B$252:$B$357,D96,'bottom-up-enduse'!$A$252:$A$357,C96)," ") -> 
E97: =IF(SUMIFS('Census 2011'!$C$328:$C$468,'Census 2011'!$A$328:$A$468,D97,'Census 2011'!$B$328:$B$468,C97)<>0,SUMIFS('Census 2011'!$C$328:$C$468,'Census 2011'!$A$328:$A$468,D97,'Census 2011'!$B$328:$B$468,C97)," ") ->  | F97: =IF(SUMIFS(MyCS2007data!$T$83:$T$224,MyCS2007data!$S$83:$S$224,C97,MyCS2007data!$Q$83:$Q$224,D97)<>0,SUMIFS(MyCS2007data!$T$83:$T$224,MyCS2007data!$S$83:$S$224,C97,MyCS2007data!$Q$83:$Q$224,D97)," ") ->  | G97: =IF(SUMIFS(MyCS2007data!$V$83:$V$224,MyCS2007data!$S$83:$S$224,C97,MyCS2007data!$Q$83:$Q$224,D97)<>0,SUMIFS(MyCS2007data!$V$83:$V$224,MyCS2007data!$S$83:$S$224,C97,MyCS2007data!$Q$83:$Q$224,D97)," ") ->  | H97: =IF(SUMIFS('Census 2011'!$D$328:$D$468,'Census 2011'!$A$328:$A$468,D97,'Census 2011'!$B$328:$B$468,C97)<>0,SUMIFS('Census 2011'!$D$328:$D$468,'Census 2011'!$A$328:$A$468,D97,'Census 2011'!$B$328:$B$468,C97)," ") ->  | I97: =IF(SUMIFS('bottom-up-enduse'!$E$252:$E$357,'bottom-up-enduse'!$B$252:$B$357,D97,'bottom-up-enduse'!$A$252:$A$357,C97)<>0,SUMIFS('bottom-up-enduse'!$E$252:$E$357,'bottom-up-enduse'!$B$252:$B$357,D97,'bottom-up-enduse'!$A$252:$A$357,C97)," ") -> 
A98: * | B98: \I:Residential - Refrigeration - Middle Income Electrified | E98: =IF(SUMIFS('Census 2011'!$C$328:$C$468,'Census 2011'!$A$328:$A$468,D98,'Census 2011'!$B$328:$B$468,C98)<>0,SUMIFS('Census 2011'!$C$328:$C$468,'Census 2011'!$A$328:$A$468,D98,'Census 2011'!$B$328:$B$468,C98)," ") ->  | F98: =IF(SUMIFS(MyCS2007data!$T$83:$T$224,MyCS2007data!$S$83:$S$224,C98,MyCS2007data!$Q$83:$Q$224,D98)<>0,SUMIFS(MyCS2007data!$T$83:$T$224,MyCS2007data!$S$83:$S$224,C98,MyCS2007data!$Q$83:$Q$224,D98)," ") ->  | G98: =IF(SUMIFS(MyCS2007data!$V$83:$V$224,MyCS2007data!$S$83:$S$224,C98,MyCS2007data!$Q$83:$Q$224,D98)<>0,SUMIFS(MyCS2007data!$V$83:$V$224,MyCS2007data!$S$83:$S$224,C98,MyCS2007data!$Q$83:$Q$224,D98)," ") ->  | H98: =IF(SUMIFS('Census 2011'!$D$328:$D$468,'Census 2011'!$A$328:$A$468,D98,'Census 2011'!$B$328:$B$468,C98)<>0,SUMIFS('Census 2011'!$D$328:$D$468,'Census 2011'!$A$328:$A$468,D98,'Census 2011'!$B$328:$B$468,C98)," ") ->  | I98: =IF(SUMIFS('bottom-up-enduse'!$E$252:$E$357,'bottom-up-enduse'!$B$252:$B$357,D98,'bottom-up-enduse'!$A$252:$A$357,C98)<>0,SUMIFS('bottom-up-enduse'!$E$252:$E$357,'bottom-up-enduse'!$B$252:$B$357,D98,'bottom-up-enduse'!$A$252:$A$357,C98)," ") -> 
A99: =IF(LEFT(B99,1)="\","*","") ->  | B99: Electricity | C99: RESELC | D99: RHER | E99: =IF(SUMIFS('Census 2011'!$C$328:$C$468,'Census 2011'!$A$328:$A$468,D99,'Census 2011'!$B$328:$B$468,C99)<>0,SUMIFS('Census 2011'!$C$328:$C$468,'Census 2011'!$A$328:$A$468,D99,'Census 2011'!$B$328:$B$468,C99)," ") -> 3358269 | F99: =IF(SUMIFS(MyCS2007data!$T$83:$T$224,MyCS2007data!$S$83:$S$224,C99,MyCS2007data!$Q$83:$Q$224,D99)<>0,SUMIFS(MyCS2007data!$T$83:$T$224,MyCS2007data!$S$83:$S$224,C99,MyCS2007data!$Q$83:$Q$224,D99)," ") -> 2325804.952 | G99: =IF(SUMIFS(MyCS2007data!$V$83:$V$224,MyCS2007data!$S$83:$S$224,C99,MyCS2007data!$Q$83:$Q$224,D99)<>0,SUMIFS(MyCS2007data!$V$83:$V$224,MyCS2007data!$S$83:$S$224,C99,MyCS2007data!$Q$83:$Q$224,D99)," ") -> 1 | H99: =IF(SUMIFS('Census 2011'!$D$328:$D$468,'Census 2011'!$A$328:$A$468,D99,'Census 2011'!$B$328:$B$468,C99)<>0,SUMIFS('Census 2011'!$D$328:$D$468,'Census 2011'!$A$328:$A$468,D99,'Census 2011'!$B$328:$B$468,C99)," ") -> 1 | I99: =IF(SUMIFS('bottom-up-enduse'!$E$252:$E$357,'bottom-up-enduse'!$B$252:$B$357,D99,'bottom-up-enduse'!$A$252:$A$357,C99)<>0,SUMIFS('bottom-up-enduse'!$E$252:$E$357,'bottom-up-enduse'!$B$252:$B$357,D99,'bottom-up-enduse'!$A$252:$A$357,C99)," ") -> 2.9052 | J99: 6.756928546 | K99: 9.756443099
E100: =IF(SUMIFS('Census 2011'!$C$328:$C$468,'Census 2011'!$A$328:$A$468,D100,'Census 2011'!$B$328:$B$468,C100)<>0,SUMIFS('Census 2011'!$C$328:$C$468,'Census 2011'!$A$328:$A$468,D100,'Census 2011'!$B$328:$B$468,C100)," ") ->  | F100: =IF(SUMIFS(MyCS2007data!$T$83:$T$224,MyCS2007data!$S$83:$S$224,C100,MyCS2007data!$Q$83:$Q$224,D100)<>0,SUMIFS(MyCS2007data!$T$83:$T$224,MyCS2007data!$S$83:$S$224,C100,MyCS2007data!$Q$83:$Q$224,D100)," ") ->  | G100: =IF(SUMIFS(MyCS2007data!$V$83:$V$224,MyCS2007data!$S$83:$S$224,C100,MyCS2007data!$Q$83:$Q$224,D100)<>0,SUMIFS(MyCS2007data!$V$83:$V$224,MyCS2007data!$S$83:$S$224,C100,MyCS2007data!$Q$83:$Q$224,D100)," ") ->  | H100: =IF(SUMIFS('Census 2011'!$D$328:$D$468,'Census 2011'!$A$328:$A$468,D100,'Census 2011'!$B$328:$B$468,C100)<>0,SUMIFS('Census 2011'!$D$328:$D$468,'Census 2011'!$A$328:$A$468,D100,'Census 2011'!$B$328:$B$468,C100)," ") ->  | I100: =IF(SUMIFS('bottom-up-enduse'!$E$252:$E$357,'bottom-up-enduse'!$B$252:$B$357,D100,'bottom-up-enduse'!$A$252:$A$357,C100)<>0,SUMIFS('bottom-up-enduse'!$E$252:$E$357,'bottom-up-enduse'!$B$252:$B$357,D100,'bottom-up-enduse'!$A$252:$A$357,C100)," ") ->  | K100: =IFERROR(E100*I100/10^6," ") -> 
A101: * | B101: \I:Residential - Other - Middle Income Electrified | E101: =IF(SUMIFS('Census 2011'!$C$328:$C$468,'Census 2011'!$A$328:$A$468,D101,'Census 2011'!$B$328:$B$468,C101)<>0,SUMIFS('Census 2011'!$C$328:$C$468,'Census 2011'!$A$328:$A$468,D101,'Census 2011'!$B$328:$B$468,C101)," ") ->  | F101: =IF(SUMIFS(MyCS2007data!$T$83:$T$224,MyCS2007data!$S$83:$S$224,C101,MyCS2007data!$Q$83:$Q$224,D101)<>0,SUMIFS(MyCS2007data!$T$83:$T$224,MyCS2007data!$S$83:$S$224,C101,MyCS2007data!$Q$83:$Q$224,D101)," ") ->  | G101: =IF(SUMIFS(MyCS2007data!$V$83:$V$224,MyCS2007data!$S$83:$S$224,C101,MyCS2007data!$Q$83:$Q$224,D101)<>0,SUMIFS(MyCS2007data!$V$83:$V$224,MyCS2007data!$S$83:$S$224,C101,MyCS2007data!$Q$83:$Q$224,D101)," ") ->  | H101: =IF(SUMIFS('Census 2011'!$D$328:$D$468,'Census 2011'!$A$328:$A$468,D101,'Census 2011'!$B$328:$B$468,C101)<>0,SUMIFS('Census 2011'!$D$328:$D$468,'Census 2011'!$A$328:$A$468,D101,'Census 2011'!$B$328:$B$468,C101)," ") ->  | I101: =IF(SUMIFS('bottom-up-enduse'!$E$252:$E$357,'bottom-up-enduse'!$B$252:$B$357,D101,'bottom-up-enduse'!$A$252:$A$357,C101)<>0,SUMIFS('bottom-up-enduse'!$E$252:$E$357,'bottom-up-enduse'!$B$252:$B$357,D101,'bottom-up-enduse'!$A$252:$A$357,C101)," ") -> 
B102: Electricity | C102: RESELC | D102: RHEO | E102: =IF(SUMIFS('Census 2011'!$C$328:$C$468,'Census 2011'!$A$328:$A$468,D102,'Census 2011'!$B$328:$B$468,C102)<>0,SUMIFS('Census 2011'!$C$328:$C$468,'Census 2011'!$A$328:$A$468,D102,'Census 2011'!$B$328:$B$468,C102)," ") -> 3358269 | F102: =IF(SUMIFS(MyCS2007data!$T$83:$T$224,MyCS2007data!$S$83:$S$224,C102,MyCS2007data!$Q$83:$Q$224,D102)<>0,SUMIFS(MyCS2007data!$T$83:$T$224,MyCS2007data!$S$83:$S$224,C102,MyCS2007data!$Q$83:$Q$224,D102)," ") -> 2325804.952 | G102: =IF(SUMIFS(MyCS2007data!$V$83:$V$224,MyCS2007data!$S$83:$S$224,C102,MyCS2007data!$Q$83:$Q$224,D102)<>0,SUMIFS(MyCS2007data!$V$83:$V$224,MyCS2007data!$S$83:$S$224,C102,MyCS2007data!$Q$83:$Q$224,D102)," ") -> 1 | H102: =IF(SUMIFS('Census 2011'!$D$328:$D$468,'Census 2011'!$A$328:$A$468,D102,'Census 2011'!$B$328:$B$468,C102)<>0,SUMIFS('Census 2011'!$D$328:$D$468,'Census 2011'!$A$328:$A$468,D102,'Census 2011'!$B$328:$B$468,C102)," ") -> 1 | J102: =W7 -> 14.5403395 | K102: 0 | L102: Used to balance the electricity consumption
B103: Paraffin | C103: RESOKE | D103: RHEN | E103: =IF(SUMIFS('Census 2011'!$C$328:$C$468,'Census 2011'!$A$328:$A$468,D103,'Census 2011'!$B$328:$B$468,C103)<>0,SUMIFS('Census 2011'!$C$328:$C$468,'Census 2011'!$A$328:$A$468,D103,'Census 2011'!$B$328:$B$468,C103)," ") -> 776.7 | F103: =IF(SUMIFS(MyCS2007data!$T$83:$T$224,MyCS2007data!$S$83:$S$224,C103,MyCS2007data!$Q$83:$Q$224,D103)<>0,SUMIFS(MyCS2007data!$T$83:$T$224,MyCS2007data!$S$83:$S$224,C103,MyCS2007data!$Q$83:$Q$224,D103)," ") -> 1059.592233 | G103: =IF(SUMIFS(MyCS2007data!$V$83:$V$224,MyCS2007data!$S$83:$S$224,C103,MyCS2007data!$Q$83:$Q$224,D103)<>0,SUMIFS(MyCS2007data!$V$83:$V$224,MyCS2007data!$S$83:$S$224,C103,MyCS2007data!$Q$83:$Q$224,D103)," ") -> 1 | H103: =IF(SUMIFS('Census 2011'!$D$328:$D$468,'Census 2011'!$A$328:$A$468,D103,'Census 2011'!$B$328:$B$468,C103)<>0,SUMIFS('Census 2011'!$D$328:$D$468,'Census 2011'!$A$328:$A$468,D103,'Census 2011'!$B$328:$B$468,C103)," ") -> 1 | I103: =IF(SUMIFS('bottom-up-enduse'!$E$252:$E$357,'bottom-up-enduse'!$B$252:$B$357,D103,'bottom-up-enduse'!$A$252:$A$357,C103)<>0,SUMIFS('bottom-up-enduse'!$E$252:$E$357,'bottom-up-enduse'!$B$252:$B$357,D103,'bottom-up-enduse'!$A$252:$A$357,C103)," ") -> 0.2065314797 | J103: 0.0002188391518 | K103: 0.0001604130003
E104: =IF(SUMIFS('Census 2011'!$C$328:$C$468,'Census 2011'!$A$328:$A$468,D104,'Census 2011'!$B$328:$B$468,C104)<>0,SUMIFS('Census 2011'!$C$328:$C$468,'Census 2011'!$A$328:$A$468,D104,'Census 2011'!$B$328:$B$468,C104)," ") ->  | F104: =IF(SUMIFS(MyCS2007data!$T$83:$T$224,MyCS2007data!$S$83:$S$224,C104,MyCS2007data!$Q$83:$Q$224,D104)<>0,SUMIFS(MyCS2007data!$T$83:$T$224,MyCS2007data!$S$83:$S$224,C104,MyCS2007data!$Q$83:$Q$224,D104)," ") ->  | G104: =IF(SUMIFS(MyCS2007data!$V$83:$V$224,MyCS2007data!$S$83:$S$224,C104,MyCS2007data!$Q$83:$Q$224,D104)<>0,SUMIFS(MyCS2007data!$V$83:$V$224,MyCS2007data!$S$83:$S$224,C104,MyCS2007data!$Q$83:$Q$224,D104)," ") ->  | H104: =IF(SUMIFS('Census 2011'!$D$328:$D$468,'Census 2011'!$A$328:$A$468,D104,'Census 2011'!$B$328:$B$468,C104)<>0,SUMIFS('Census 2011'!$D$328:$D$468,'Census 2011'!$A$328:$A$468,D104,'Census 2011'!$B$328:$B$468,C104)," ") ->  | I104: =IF(SUMIFS('bottom-up-enduse'!$E$252:$E$357,'bottom-up-enduse'!$B$252:$B$357,D104,'bottom-up-enduse'!$A$252:$A$357,C104)<>0,SUMIFS('bottom-up-enduse'!$E$252:$E$357,'bottom-up-enduse'!$B$252:$B$357,D104,'bottom-up-enduse'!$A$252:$A$357,C104)," ") -> 
A105: * | B105: \I:Residential - Lighting - Low Income Non-Electrified | E105: =IF(SUMIFS('Census 2011'!$C$328:$C$468,'Census 2011'!$A$328:$A$468,D105,'Census 2011'!$B$328:$B$468,C105)<>0,SUMIFS('Census 2011'!$C$328:$C$468,'Census 2011'!$A$328:$A$468,D105,'Census 2011'!$B$328:$B$468,C105)," ") ->  | F105: =IF(SUMIFS(MyCS2007data!$T$83:$T$224,MyCS2007data!$S$83:$S$224,C105,MyCS2007data!$Q$83:$Q$224,D105)<>0,SUMIFS(MyCS2007data!$T$83:$T$224,MyCS2007data!$S$83:$S$224,C105,MyCS2007data!$Q$83:$Q$224,D105)," ") ->  | G105: =IF(SUMIFS(MyCS2007data!$V$83:$V$224,MyCS2007data!$S$83:$S$224,C105,MyCS2007data!$Q$83:$Q$224,D105)<>0,SUMIFS(MyCS2007data!$V$83:$V$224,MyCS2007data!$S$83:$S$224,C105,MyCS2007data!$Q$83:$Q$224,D105)," ") ->  | H105: =IF(SUMIFS('Census 2011'!$D$328:$D$468,'Census 2011'!$A$328:$A$468,D105,'Census 2011'!$B$328:$B$468,C105)<>0,SUMIFS('Census 2011'!$D$328:$D$468,'Census 2011'!$A$328:$A$468,D105,'Census 2011'!$B$328:$B$468,C105)," ") ->  | I105: =IF(SUMIFS('bottom-up-enduse'!$E$252:$E$357,'bottom-up-enduse'!$B$252:$B$357,D105,'bottom-up-enduse'!$A$252:$A$357,C105)<>0,SUMIFS('bottom-up-enduse'!$E$252:$E$357,'bottom-up-enduse'!$B$252:$B$357,D105,'bottom-up-enduse'!$A$252:$A$357,C105)," ") -> 
B106: Paraffin | C106: RESOKE | D106: RLNL | E106: =IF(SUMIFS('Census 2011'!$C$328:$C$468,'Census 2011'!$A$328:$A$468,D106,'Census 2011'!$B$328:$B$468,C106)<>0,SUMIFS('Census 2011'!$C$328:$C$468,'Census 2011'!$A$328:$A$468,D106,'Census 2011'!$B$328:$B$468,C106)," ") -> 274314 | F106: =IF(SUMIFS(MyCS2007data!$T$83:$T$224,MyCS2007data!$S$83:$S$224,C106,MyCS2007data!$Q$83:$Q$224,D106)<>0,SUMIFS(MyCS2007data!$T$83:$T$224,MyCS2007data!$S$83:$S$224,C106,MyCS2007data!$Q$83:$Q$224,D106)," ") -> 427344.7584 | G106: =IF(SUMIFS(MyCS2007data!$V$83:$V$224,MyCS2007data!$S$83:$S$224,C106,MyCS2007data!$Q$83:$Q$224,D106)<>0,SUMIFS(MyCS2007data!$V$83:$V$224,MyCS2007data!$S$83:$S$224,C106,MyCS2007data!$Q$83:$Q$224,D106)," ") -> 1 | H106: =IF(SUMIFS('Census 2011'!$D$328:$D$468,'Census 2011'!$A$328:$A$468,D106,'Census 2011'!$B$328:$B$468,C106)<>0,SUMIFS('Census 2011'!$D$328:$D$468,'Census 2011'!$A$328:$A$468,D106,'Census 2011'!$B$328:$B$468,C106)," ") -> 1 | I106: =IF(SUMIFS('bottom-up-enduse'!$E$252:$E$357,'bottom-up-enduse'!$B$252:$B$357,D106,'bottom-up-enduse'!$A$252:$A$357,C106)<>0,SUMIFS('bottom-up-enduse'!$E$252:$E$357,'bottom-up-enduse'!$B$252:$B$357,D106,'bottom-up-enduse'!$A$252:$A$357,C106)," ") -> 2.442 | J106: 1.0435759 | K106: 0.669874788
E107: =IF(SUMIFS('Census 2011'!$C$328:$C$468,'Census 2011'!$A$328:$A$468,D107,'Census 2011'!$B$328:$B$468,C107)<>0,SUMIFS('Census 2011'!$C$328:$C$468,'Census 2011'!$A$328:$A$468,D107,'Census 2011'!$B$328:$B$468,C107)," ") ->  | F107: =IF(SUMIFS(MyCS2007data!$T$83:$T$224,MyCS2007data!$S$83:$S$224,C107,MyCS2007data!$Q$83:$Q$224,D107)<>0,SUMIFS(MyCS2007data!$T$83:$T$224,MyCS2007data!$S$83:$S$224,C107,MyCS2007data!$Q$83:$Q$224,D107)," ") ->  | G107: =IF(SUMIFS(MyCS2007data!$V$83:$V$224,MyCS2007data!$S$83:$S$224,C107,MyCS2007data!$Q$83:$Q$224,D107)<>0,SUMIFS(MyCS2007data!$V$83:$V$224,MyCS2007data!$S$83:$S$224,C107,MyCS2007data!$Q$83:$Q$224,D107)," ") ->  | H107: =IF(SUMIFS('Census 2011'!$D$328:$D$468,'Census 2011'!$A$328:$A$468,D107,'Census 2011'!$B$328:$B$468,C107)<>0,SUMIFS('Census 2011'!$D$328:$D$468,'Census 2011'!$A$328:$A$468,D107,'Census 2011'!$B$328:$B$468,C107)," ") ->  | I107: =IF(SUMIFS('bottom-up-enduse'!$E$252:$E$357,'bottom-up-enduse'!$B$252:$B$357,D107,'bottom-up-enduse'!$A$252:$A$357,C107)<>0,SUMIFS('bottom-up-enduse'!$E$252:$E$357,'bottom-up-enduse'!$B$252:$B$357,D107,'bottom-up-enduse'!$A$252:$A$357,C107)," ") -> 
A108: * | B108: \I:Residential - Cooking - Low Income Non- Electrified | E108: =IF(SUMIFS('Census 2011'!$C$328:$C$468,'Census 2011'!$A$328:$A$468,D108,'Census 2011'!$B$328:$B$468,C108)<>0,SUMIFS('Census 2011'!$C$328:$C$468,'Census 2011'!$A$328:$A$468,D108,'Census 2011'!$B$328:$B$468,C108)," ") ->  | F108: =IF(SUMIFS(MyCS2007data!$T$83:$T$224,MyCS2007data!$S$83:$S$224,C108,MyCS2007data!$Q$83:$Q$224,D108)<>0,SUMIFS(MyCS2007data!$T$83:$T$224,MyCS2007data!$S$83:$S$224,C108,MyCS2007data!$Q$83:$Q$224,D108)," ") ->  | G108: =IF(SUMIFS(MyCS2007data!$V$83:$V$224,MyCS2007data!$S$83:$S$224,C108,MyCS2007data!$Q$83:$Q$224,D108)<>0,SUMIFS(MyCS2007data!$V$83:$V$224,MyCS2007data!$S$83:$S$224,C108,MyCS2007data!$Q$83:$Q$224,D108)," ") ->  | H108: =IF(SUMIFS('Census 2011'!$D$328:$D$468,'Census 2011'!$A$328:$A$468,D108,'Census 2011'!$B$328:$B$468,C108)<>0,SUMIFS('Census 2011'!$D$328:$D$468,'Census 2011'!$A$328:$A$468,D108,'Census 2011'!$B$328:$B$468,C108)," ") ->  | I108: =IF(SUMIFS('bottom-up-enduse'!$E$252:$E$357,'bottom-up-enduse'!$B$252:$B$357,D108,'bottom-up-enduse'!$A$252:$A$357,C108)<>0,SUMIFS('bottom-up-enduse'!$E$252:$E$357,'bottom-up-enduse'!$B$252:$B$357,D108,'bottom-up-enduse'!$A$252:$A$357,C108)," ") -> 
B109: Paraffin | C109: RESOKE | D109: RLNK | E109: =IF(SUMIFS('Census 2011'!$C$328:$C$468,'Census 2011'!$A$328:$A$468,D109,'Census 2011'!$B$328:$B$468,C109)<>0,SUMIFS('Census 2011'!$C$328:$C$468,'Census 2011'!$A$328:$A$468,D109,'Census 2011'!$B$328:$B$468,C109)," ") -> 702561 | F109: =IF(SUMIFS(MyCS2007data!$T$83:$T$224,MyCS2007data!$S$83:$S$224,C109,MyCS2007data!$Q$83:$Q$224,D109)<>0,SUMIFS(MyCS2007data!$T$83:$T$224,MyCS2007data!$S$83:$S$224,C109,MyCS2007data!$Q$83:$Q$224,D109)," ") -> 898001.0436 | G109: =IF(SUMIFS(MyCS2007data!$V$83:$V$224,MyCS2007data!$S$83:$S$224,C109,MyCS2007data!$Q$83:$Q$224,D109)<>0,SUMIFS(MyCS2007data!$V$83:$V$224,MyCS2007data!$S$83:$S$224,C109,MyCS2007data!$Q$83:$Q$224,D109)," ") -> 0.6240467241 | H109: =IF(SUMIFS('Census 2011'!$D$328:$D$468,'Census 2011'!$A$328:$A$468,D109,'Census 2011'!$B$328:$B$468,C109)<>0,SUMIFS('Census 2011'!$D$328:$D$468,'Census 2011'!$A$328:$A$468,D109,'Census 2011'!$B$328:$B$468,C109)," ") -> 0.5131673518 | I109: =IF(SUMIFS('bottom-up-enduse'!$E$252:$E$357,'bottom-up-enduse'!$B$252:$B$357,D109,'bottom-up-enduse'!$A$252:$A$357,C109)<>0,SUMIFS('bottom-up-enduse'!$E$252:$E$357,'bottom-up-enduse'!$B$252:$B$357,D109,'bottom-up-enduse'!$A$252:$A$357,C109)," ") -> 3.630069114 | J109: 3.259805852 | K109: 2.550344987
B110: LPG | C110: RESOLP | D110: RLNK | E110: =IF(SUMIFS('Census 2011'!$C$328:$C$468,'Census 2011'!$A$328:$A$468,D110,'Census 2011'!$B$328:$B$468,C110)<>0,SUMIFS('Census 2011'!$C$328:$C$468,'Census 2011'!$A$328:$A$468,D110,'Census 2011'!$B$328:$B$468,C110)," ") -> 82827 | F110: =IF(SUMIFS(MyCS2007data!$T$83:$T$224,MyCS2007data!$S$83:$S$224,C110,MyCS2007data!$Q$83:$Q$224,D110)<>0,SUMIFS(MyCS2007data!$T$83:$T$224,MyCS2007data!$S$83:$S$224,C110,MyCS2007data!$Q$83:$Q$224,D110)," ") -> 56130.47457 | G110: =IF(SUMIFS(MyCS2007data!$V$83:$V$224,MyCS2007data!$S$83:$S$224,C110,MyCS2007data!$Q$83:$Q$224,D110)<>0,SUMIFS(MyCS2007data!$V$83:$V$224,MyCS2007data!$S$83:$S$224,C110,MyCS2007data!$Q$83:$Q$224,D110)," ") -> 0.03900667937 | H110: =IF(SUMIFS('Census 2011'!$D$328:$D$468,'Census 2011'!$A$328:$A$468,D110,'Census 2011'!$B$328:$B$468,C110)<>0,SUMIFS('Census 2011'!$D$328:$D$468,'Census 2011'!$A$328:$A$468,D110,'Census 2011'!$B$328:$B$468,C110)," ") -> 0.0604988211 | I110: =IF(SUMIFS('bottom-up-enduse'!$E$252:$E$357,'bottom-up-enduse'!$B$252:$B$357,D110,'bottom-up-enduse'!$A$252:$A$357,C110)<>0,SUMIFS('bottom-up-enduse'!$E$252:$E$357,'bottom-up-enduse'!$B$252:$B$357,D110,'bottom-up-enduse'!$A$252:$A$357,C110)," ") -> 2.419946257 | J110: 0.1358327319 | K110: 0.2004368887
B111: Wood | C111: RESBIW | D111: RLNK | E111: =IF(SUMIFS('Census 2011'!$C$328:$C$468,'Census 2011'!$A$328:$A$468,D111,'Census 2011'!$B$328:$B$468,C111)<>0,SUMIFS('Census 2011'!$C$328:$C$468,'Census 2011'!$A$328:$A$468,D111,'Census 2011'!$B$328:$B$468,C111)," ") -> 562674 | F111: =IF(SUMIFS(MyCS2007data!$T$83:$T$224,MyCS2007data!$S$83:$S$224,C111,MyCS2007data!$Q$83:$Q$224,D111)<>0,SUMIFS(MyCS2007data!$T$83:$T$224,MyCS2007data!$S$83:$S$224,C111,MyCS2007data!$Q$83:$Q$224,D111)," ") -> 461908.8517 | G111: =IF(SUMIFS(MyCS2007data!$V$83:$V$224,MyCS2007data!$S$83:$S$224,C111,MyCS2007data!$Q$83:$Q$224,D111)<>0,SUMIFS(MyCS2007data!$V$83:$V$224,MyCS2007data!$S$83:$S$224,C111,MyCS2007data!$Q$83:$Q$224,D111)," ") -> 0.3209937314 | H111: =IF(SUMIFS('Census 2011'!$D$328:$D$468,'Census 2011'!$A$328:$A$468,D111,'Census 2011'!$B$328:$B$468,C111)<>0,SUMIFS('Census 2011'!$D$328:$D$468,'Census 2011'!$A$328:$A$468,D111,'Census 2011'!$B$328:$B$468,C111)," ") -> 0.4109905425 | I111: =IF(SUMIFS('bottom-up-enduse'!$E$252:$E$357,'bottom-up-enduse'!$B$252:$B$357,D111,'bottom-up-enduse'!$A$252:$A$357,C111)<>0,SUMIFS('bottom-up-enduse'!$E$252:$E$357,'bottom-up-enduse'!$B$252:$B$357,D111,'bottom-up-enduse'!$A$252:$A$357,C111)," ") -> 47.7785 | J111: 22.06931207 | K111: 26.88371971
B112: Coal | C112: RESCOA | D112: RLNK | E112: =IF(SUMIFS('Census 2011'!$C$328:$C$468,'Census 2011'!$A$328:$A$468,D112,'Census 2011'!$B$328:$B$468,C112)<>0,SUMIFS('Census 2011'!$C$328:$C$468,'Census 2011'!$A$328:$A$468,D112,'Census 2011'!$B$328:$B$468,C112)," ") -> 21006 | F112: =IF(SUMIFS(MyCS2007data!$T$83:$T$224,MyCS2007data!$S$83:$S$224,C112,MyCS2007data!$Q$83:$Q$224,D112)<>0,SUMIFS(MyCS2007data!$T$83:$T$224,MyCS2007data!$S$83:$S$224,C112,MyCS2007data!$Q$83:$Q$224,D112)," ") -> 22956.11694 | G112: =IF(SUMIFS(MyCS2007data!$V$83:$V$224,MyCS2007data!$S$83:$S$224,C112,MyCS2007data!$Q$83:$Q$224,D112)<>0,SUMIFS(MyCS2007data!$V$83:$V$224,MyCS2007data!$S$83:$S$224,C112,MyCS2007data!$Q$83:$Q$224,D112)," ") -> 0.01595286518 | H112: =IF(SUMIFS('Census 2011'!$D$328:$D$468,'Census 2011'!$A$328:$A$468,D112,'Census 2011'!$B$328:$B$468,C112)<>0,SUMIFS('Census 2011'!$D$328:$D$468,'Census 2011'!$A$328:$A$468,D112,'Census 2011'!$B$328:$B$468,C112)," ") -> 0.01534328463 | I112: =IF(SUMIFS('bottom-up-enduse'!$E$252:$E$357,'bottom-up-enduse'!$B$252:$B$357,D112,'bottom-up-enduse'!$A$252:$A$357,C112)<>0,SUMIFS('bottom-up-enduse'!$E$252:$E$357,'bottom-up-enduse'!$B$252:$B$357,D112,'bottom-up-enduse'!$A$252:$A$357,C112)," ") -> 23.328 | J112: 0.5355202961 | K112: 0.490027968
B113: Natural gas | C113: RESGAS | D113: RLNK | E113: =IF(SUMIFS('Census 2011'!$C$328:$C$468,'Census 2011'!$A$328:$A$468,D113,'Census 2011'!$B$328:$B$468,C113)<>0,SUMIFS('Census 2011'!$C$328:$C$468,'Census 2011'!$A$328:$A$468,D113,'Census 2011'!$B$328:$B$468,C113)," ") ->  | F113: =IF(SUMIFS(MyCS2007data!$T$83:$T$224,MyCS2007data!$S$83:$S$224,C113,MyCS2007data!$Q$83:$Q$224,D113)<>0,SUMIFS(MyCS2007data!$T$83:$T$224,MyCS2007data!$S$83:$S$224,C113,MyCS2007data!$Q$83:$Q$224,D113)," ") ->  | G113: =IF(SUMIFS(MyCS2007data!$V$83:$V$224,MyCS2007data!$S$83:$S$224,C113,MyCS2007data!$Q$83:$Q$224,D113)<>0,SUMIFS(MyCS2007data!$V$83:$V$224,MyCS2007data!$S$83:$S$224,C113,MyCS2007data!$Q$83:$Q$224,D113)," ") ->  | H113: =IF(SUMIFS('Census 2011'!$D$328:$D$468,'Census 2011'!$A$328:$A$468,D113,'Census 2011'!$B$328:$B$468,C113)<>0,SUMIFS('Census 2011'!$D$328:$D$468,'Census 2011'!$A$328:$A$468,D113,'Census 2011'!$B$328:$B$468,C113)," ") ->  | I113: =IF(SUMIFS('bottom-up-enduse'!$E$252:$E$357,'bottom-up-enduse'!$B$252:$B$357,D113,'bottom-up-enduse'!$A$252:$A$357,C113)<>0,SUMIFS('bottom-up-enduse'!$E$252:$E$357,'bottom-up-enduse'!$B$252:$B$357,D113,'bottom-up-enduse'!$A$252:$A$357,C113)," ") -> 
E114: =IF(SUMIFS('Census 2011'!$C$328:$C$468,'Census 2011'!$A$328:$A$468,D114,'Census 2011'!$B$328:$B$468,C114)<>0,SUMIFS('Census 2011'!$C$328:$C$468,'Census 2011'!$A$328:$A$468,D114,'Census 2011'!$B$328:$B$468,C114)," ") ->  | F114: =IF(SUMIFS(MyCS2007data!$T$83:$T$224,MyCS2007data!$S$83:$S$224,C114,MyCS2007data!$Q$83:$Q$224,D114)<>0,SUMIFS(MyCS2007data!$T$83:$T$224,MyCS2007data!$S$83:$S$224,C114,MyCS2007data!$Q$83:$Q$224,D114)," ") ->  | G114: =IF(SUMIFS(MyCS2007data!$V$83:$V$224,MyCS2007data!$S$83:$S$224,C114,MyCS2007data!$Q$83:$Q$224,D114)<>0,SUMIFS(MyCS2007data!$V$83:$V$224,MyCS2007data!$S$83:$S$224,C114,MyCS2007data!$Q$83:$Q$224,D114)," ") ->  | H114: =IF(SUMIFS('Census 2011'!$D$328:$D$468,'Census 2011'!$A$328:$A$468,D114,'Census 2011'!$B$328:$B$468,C114)<>0,SUMIFS('Census 2011'!$D$328:$D$468,'Census 2011'!$A$328:$A$468,D114,'Census 2011'!$B$328:$B$468,C114)," ") ->  | I114: =IF(SUMIFS('bottom-up-enduse'!$E$252:$E$357,'bottom-up-enduse'!$B$252:$B$357,D114,'bottom-up-enduse'!$A$252:$A$357,C114)<>0,SUMIFS('bottom-up-enduse'!$E$252:$E$357,'bottom-up-enduse'!$B$252:$B$357,D114,'bottom-up-enduse'!$A$252:$A$357,C114)," ") -> 
A115: * | B115: \I:Residential - Space Heating - Low Income Non-Electrified | E115: =IF(SUMIFS('Census 2011'!$C$328:$C$468,'Census 2011'!$A$328:$A$468,D115,'Census 2011'!$B$328:$B$468,C115)<>0,SUMIFS('Census 2011'!$C$328:$C$468,'Census 2011'!$A$328:$A$468,D115,'Census 2011'!$B$328:$B$468,C115)," ") ->  | F115: =IF(SUMIFS(MyCS2007data!$T$83:$T$224,MyCS2007data!$S$83:$S$224,C115,MyCS2007data!$Q$83:$Q$224,D115)<>0,SUMIFS(MyCS2007data!$T$83:$T$224,MyCS2007data!$S$83:$S$224,C115,MyCS2007data!$Q$83:$Q$224,D115)," ") ->  | G115: =IF(SUMIFS(MyCS2007data!$V$83:$V$224,MyCS2007data!$S$83:$S$224,C115,MyCS2007data!$Q$83:$Q$224,D115)<>0,SUMIFS(MyCS2007data!$V$83:$V$224,MyCS2007data!$S$83:$S$224,C115,MyCS2007data!$Q$83:$Q$224,D115)," ") ->  | H115: =IF(SUMIFS('Census 2011'!$D$328:$D$468,'Census 2011'!$A$328:$A$468,D115,'Census 2011'!$B$328:$B$468,C115)<>0,SUMIFS('Census 2011'!$D$328:$D$468,'Census 2011'!$A$328:$A$468,D115,'Census 2011'!$B$328:$B$468,C115)," ") ->  | I115: =IF(SUMIFS('bottom-up-enduse'!$E$252:$E$357,'bottom-up-enduse'!$B$252:$B$357,D115,'bottom-up-enduse'!$A$252:$A$357,C115)<>0,SUMIFS('bottom-up-enduse'!$E$252:$E$357,'bottom-up-enduse'!$B$252:$B$357,D115,'bottom-up-enduse'!$A$252:$A$357,C115)," ") -> 
B116: Paraffin | C116: RESOKE | D116: RLNH | E116: =IF(SUMIFS('Census 2011'!$C$328:$C$468,'Census 2011'!$A$328:$A$468,D116,'Census 2011'!$B$328:$B$468,C116)<>0,SUMIFS('Census 2011'!$C$328:$C$468,'Census 2011'!$A$328:$A$468,D116,'Census 2011'!$B$328:$B$468,C116)," ") -> 368682 | F116: =IF(SUMIFS(MyCS2007data!$T$83:$T$224,MyCS2007data!$S$83:$S$224,C116,MyCS2007data!$Q$83:$Q$224,D116)<>0,SUMIFS(MyCS2007data!$T$83:$T$224,MyCS2007data!$S$83:$S$224,C116,MyCS2007data!$Q$83:$Q$224,D116)," ") -> 654741.6374 | G116: =IF(SUMIFS(MyCS2007data!$V$83:$V$224,MyCS2007data!$S$83:$S$224,C116,MyCS2007data!$Q$83:$Q$224,D116)<>0,SUMIFS(MyCS2007data!$V$83:$V$224,MyCS2007data!$S$83:$S$224,C116,MyCS2007data!$Q$83:$Q$224,D116)," ") -> 0.5124593025 | H116: =IF(SUMIFS('Census 2011'!$D$328:$D$468,'Census 2011'!$A$328:$A$468,D116,'Census 2011'!$B$328:$B$468,C116)<>0,SUMIFS('Census 2011'!$D$328:$D$468,'Census 2011'!$A$328:$A$468,D116,'Census 2011'!$B$328:$B$468,C116)," ") -> 0.3308645166 | I116: =IF(SUMIFS('bottom-up-enduse'!$E$252:$E$357,'bottom-up-enduse'!$B$252:$B$357,D116,'bottom-up-enduse'!$A$252:$A$357,C116)<>0,SUMIFS('bottom-up-enduse'!$E$252:$E$357,'bottom-up-enduse'!$B$252:$B$357,D116,'bottom-up-enduse'!$A$252:$A$357,C116)," ") -> 2.775 | J116: 1.816908044 | K116: 1.02309255
B117: LPG | C117: RESOLP | D117: RLNH | E117: =IF(SUMIFS('Census 2011'!$C$328:$C$468,'Census 2011'!$A$328:$A$468,D117,'Census 2011'!$B$328:$B$468,C117)<>0,SUMIFS('Census 2011'!$C$328:$C$468,'Census 2011'!$A$328:$A$468,D117,'Census 2011'!$B$328:$B$468,C117)," ") -> 31491 | F117: =IF(SUMIFS(MyCS2007data!$T$83:$T$224,MyCS2007data!$S$83:$S$224,C117,MyCS2007data!$Q$83:$Q$224,D117)<>0,SUMIFS(MyCS2007data!$T$83:$T$224,MyCS2007data!$S$83:$S$224,C117,MyCS2007data!$Q$83:$Q$224,D117)," ") -> 16918.72927 | G117: =IF(SUMIFS(MyCS2007data!$V$83:$V$224,MyCS2007data!$S$83:$S$224,C117,MyCS2007data!$Q$83:$Q$224,D117)<>0,SUMIFS(MyCS2007data!$V$83:$V$224,MyCS2007data!$S$83:$S$224,C117,MyCS2007data!$Q$83:$Q$224,D117)," ") -> 0.01324210911 | H117: =IF(SUMIFS('Census 2011'!$D$328:$D$468,'Census 2011'!$A$328:$A$468,D117,'Census 2011'!$B$328:$B$468,C117)<>0,SUMIFS('Census 2011'!$D$328:$D$468,'Census 2011'!$A$328:$A$468,D117,'Census 2011'!$B$328:$B$468,C117)," ") -> 0.02826081689 | I117: =IF(SUMIFS('bottom-up-enduse'!$E$252:$E$357,'bottom-up-enduse'!$B$252:$B$357,D117,'bottom-up-enduse'!$A$252:$A$357,C117)<>0,SUMIFS('bottom-up-enduse'!$E$252:$E$357,'bottom-up-enduse'!$B$252:$B$357,D117,'bottom-up-enduse'!$A$252:$A$357,C117)," ") -> 
B118: Wood | C118: RESBIW | D118: RLNH | E118: =IF(SUMIFS('Census 2011'!$C$328:$C$468,'Census 2011'!$A$328:$A$468,D118,'Census 2011'!$B$328:$B$468,C118)<>0,SUMIFS('Census 2011'!$C$328:$C$468,'Census 2011'!$A$328:$A$468,D118,'Census 2011'!$B$328:$B$468,C118)," ") -> 647640 | F118: =IF(SUMIFS(MyCS2007data!$T$83:$T$224,MyCS2007data!$S$83:$S$224,C118,MyCS2007data!$Q$83:$Q$224,D118)<>0,SUMIFS(MyCS2007data!$T$83:$T$224,MyCS2007data!$S$83:$S$224,C118,MyCS2007data!$Q$83:$Q$224,D118)," ") -> 466559.6821 | G118: =IF(SUMIFS(MyCS2007data!$V$83:$V$224,MyCS2007data!$S$83:$S$224,C118,MyCS2007data!$Q$83:$Q$224,D118)<>0,SUMIFS(MyCS2007data!$V$83:$V$224,MyCS2007data!$S$83:$S$224,C118,MyCS2007data!$Q$83:$Q$224,D118)," ") -> 0.3651712914 | H118: =IF(SUMIFS('Census 2011'!$D$328:$D$468,'Census 2011'!$A$328:$A$468,D118,'Census 2011'!$B$328:$B$468,C118)<>0,SUMIFS('Census 2011'!$D$328:$D$468,'Census 2011'!$A$328:$A$468,D118,'Census 2011'!$B$328:$B$468,C118)," ") -> 0.5812084548 | I118: =IF(SUMIFS('bottom-up-enduse'!$E$252:$E$357,'bottom-up-enduse'!$B$252:$B$357,D118,'bottom-up-enduse'!$A$252:$A$357,C118)<>0,SUMIFS('bottom-up-enduse'!$E$252:$E$357,'bottom-up-enduse'!$B$252:$B$357,D118,'bottom-up-enduse'!$A$252:$A$357,C118)," ") -> 13.24232 | J118: 6.178332609 | K118: 8.576256125
B119: Coal | C119: RESCOA | D119: RLNH | E119: =IF(SUMIFS('Census 2011'!$C$328:$C$468,'Census 2011'!$A$328:$A$468,D119,'Census 2011'!$B$328:$B$468,C119)<>0,SUMIFS('Census 2011'!$C$328:$C$468,'Census 2011'!$A$328:$A$468,D119,'Census 2011'!$B$328:$B$468,C119)," ") -> 66486 | F119: =IF(SUMIFS(MyCS2007data!$T$83:$T$224,MyCS2007data!$S$83:$S$224,C119,MyCS2007data!$Q$83:$Q$224,D119)<>0,SUMIFS(MyCS2007data!$T$83:$T$224,MyCS2007data!$S$83:$S$224,C119,MyCS2007data!$Q$83:$Q$224,D119)," ") -> 139426.0672 | G119: =IF(SUMIFS(MyCS2007data!$V$83:$V$224,MyCS2007data!$S$83:$S$224,C119,MyCS2007data!$Q$83:$Q$224,D119)<>0,SUMIFS(MyCS2007data!$V$83:$V$224,MyCS2007data!$S$83:$S$224,C119,MyCS2007data!$Q$83:$Q$224,D119)," ") -> 0.109127297 | H119: =IF(SUMIFS('Census 2011'!$D$328:$D$468,'Census 2011'!$A$328:$A$468,D119,'Census 2011'!$B$328:$B$468,C119)<>0,SUMIFS('Census 2011'!$D$328:$D$468,'Census 2011'!$A$328:$A$468,D119,'Census 2011'!$B$328:$B$468,C119)," ") -> 0.05966621167 | I119: =IF(SUMIFS('bottom-up-enduse'!$E$252:$E$357,'bottom-up-enduse'!$B$252:$B$357,D119,'bottom-up-enduse'!$A$252:$A$357,C119)<>0,SUMIFS('bottom-up-enduse'!$E$252:$E$357,'bottom-up-enduse'!$B$252:$B$357,D119,'bottom-up-enduse'!$A$252:$A$357,C119)," ") -> 14.58 | J119: 2.03283206 | K119: 0.96936588
B120: Natural gas | C120: RESGAS | D120: RLNH | E120: =IF(SUMIFS('Census 2011'!$C$328:$C$468,'Census 2011'!$A$328:$A$468,D120,'Census 2011'!$B$328:$B$468,C120)<>0,SUMIFS('Census 2011'!$C$328:$C$468,'Census 2011'!$A$328:$A$468,D120,'Census 2011'!$B$328:$B$468,C120)," ") ->  | F120: =IF(SUMIFS(MyCS2007data!$T$83:$T$224,MyCS2007data!$S$83:$S$224,C120,MyCS2007data!$Q$83:$Q$224,D120)<>0,SUMIFS(MyCS2007data!$T$83:$T$224,MyCS2007data!$S$83:$S$224,C120,MyCS2007data!$Q$83:$Q$224,D120)," ") ->  | G120: =IF(SUMIFS(MyCS2007data!$V$83:$V$224,MyCS2007data!$S$83:$S$224,C120,MyCS2007data!$Q$83:$Q$224,D120)<>0,SUMIFS(MyCS2007data!$V$83:$V$224,MyCS2007data!$S$83:$S$224,C120,MyCS2007data!$Q$83:$Q$224,D120)," ") ->  | H120: =IF(SUMIFS('Census 2011'!$D$328:$D$468,'Census 2011'!$A$328:$A$468,D120,'Census 2011'!$B$328:$B$468,C120)<>0,SUMIFS('Census 2011'!$D$328:$D$468,'Census 2011'!$A$328:$A$468,D120,'Census 2011'!$B$328:$B$468,C120)," ") ->  | I120: =IF(SUMIFS('bottom-up-enduse'!$E$252:$E$357,'bottom-up-enduse'!$B$252:$B$357,D120,'bottom-up-enduse'!$A$252:$A$357,C120)<>0,SUMIFS('bottom-up-enduse'!$E$252:$E$357,'bottom-up-enduse'!$B$252:$B$357,D120,'bottom-up-enduse'!$A$252:$A$357,C120)," ") -> 
E121: =IF(SUMIFS('Census 2011'!$C$328:$C$468,'Census 2011'!$A$328:$A$468,D121,'Census 2011'!$B$328:$B$468,C121)<>0,SUMIFS('Census 2011'!$C$328:$C$468,'Census 2011'!$A$328:$A$468,D121,'Census 2011'!$B$328:$B$468,C121)," ") ->  | F121: =IF(SUMIFS(MyCS2007data!$T$83:$T$224,MyCS2007data!$S$83:$S$224,C121,MyCS2007data!$Q$83:$Q$224,D121)<>0,SUMIFS(MyCS2007data!$T$83:$T$224,MyCS2007data!$S$83:$S$224,C121,MyCS2007data!$Q$83:$Q$224,D121)," ") ->  | G121: =IF(SUMIFS(MyCS2007data!$V$83:$V$224,MyCS2007data!$S$83:$S$224,C121,MyCS2007data!$Q$83:$Q$224,D121)<>0,SUMIFS(MyCS2007data!$V$83:$V$224,MyCS2007data!$S$83:$S$224,C121,MyCS2007data!$Q$83:$Q$224,D121)," ") ->  | H121: =IF(SUMIFS('Census 2011'!$D$328:$D$468,'Census 2011'!$A$328:$A$468,D121,'Census 2011'!$B$328:$B$468,C121)<>0,SUMIFS('Census 2011'!$D$328:$D$468,'Census 2011'!$A$328:$A$468,D121,'Census 2011'!$B$328:$B$468,C121)," ") ->  | I121: =IF(SUMIFS('bottom-up-enduse'!$E$252:$E$357,'bottom-up-enduse'!$B$252:$B$357,D121,'bottom-up-enduse'!$A$252:$A$357,C121)<>0,SUMIFS('bottom-up-enduse'!$E$252:$E$357,'bottom-up-enduse'!$B$252:$B$357,D121,'bottom-up-enduse'!$A$252:$A$357,C121)," ") -> 
A122: * | B122: \I:Residential - Water Heating - Low Income Non-Electrified | E122: =IF(SUMIFS('Census 2011'!$C$328:$C$468,'Census 2011'!$A$328:$A$468,D122,'Census 2011'!$B$328:$B$468,C122)<>0,SUMIFS('Census 2011'!$C$328:$C$468,'Census 2011'!$A$328:$A$468,D122,'Census 2011'!$B$328:$B$468,C122)," ") ->  | F122: =IF(SUMIFS(MyCS2007data!$T$83:$T$224,MyCS2007data!$S$83:$S$224,C122,MyCS2007data!$Q$83:$Q$224,D122)<>0,SUMIFS(MyCS2007data!$T$83:$T$224,MyCS2007data!$S$83:$S$224,C122,MyCS2007data!$Q$83:$Q$224,D122)," ") ->  | G122: =IF(SUMIFS(MyCS2007data!$V$83:$V$224,MyCS2007data!$S$83:$S$224,C122,MyCS2007data!$Q$83:$Q$224,D122)<>0,SUMIFS(MyCS2007data!$V$83:$V$224,MyCS2007data!$S$83:$S$224,C122,MyCS2007data!$Q$83:$Q$224,D122)," ") ->  | H122: =IF(SUMIFS('Census 2011'!$D$328:$D$468,'Census 2011'!$A$328:$A$468,D122,'Census 2011'!$B$328:$B$468,C122)<>0,SUMIFS('Census 2011'!$D$328:$D$468,'Census 2011'!$A$328:$A$468,D122,'Census 2011'!$B$328:$B$468,C122)," ") ->  | I122: =IF(SUMIFS('bottom-up-enduse'!$E$252:$E$357,'bottom-up-enduse'!$B$252:$B$357,D122,'bottom-up-enduse'!$A$252:$A$357,C122)<>0,SUMIFS('bottom-up-enduse'!$E$252:$E$357,'bottom-up-enduse'!$B$252:$B$357,D122,'bottom-up-enduse'!$A$252:$A$357,C122)," ") -> 
B123: Paraffin | C123: RESOKE | D123: RLNW | E123: =IF(SUMIFS('Census 2011'!$C$328:$C$468,'Census 2011'!$A$328:$A$468,D123,'Census 2011'!$B$328:$B$468,C123)<>0,SUMIFS('Census 2011'!$C$328:$C$468,'Census 2011'!$A$328:$A$468,D123,'Census 2011'!$B$328:$B$468,C123)," ") -> 702561 | F123: =IF(SUMIFS(MyCS2007data!$T$83:$T$224,MyCS2007data!$S$83:$S$224,C123,MyCS2007data!$Q$83:$Q$224,D123)<>0,SUMIFS(MyCS2007data!$T$83:$T$224,MyCS2007data!$S$83:$S$224,C123,MyCS2007data!$Q$83:$Q$224,D123)," ") -> 898001.0436 | G123: =IF(SUMIFS(MyCS2007data!$V$83:$V$224,MyCS2007data!$S$83:$S$224,C123,MyCS2007data!$Q$83:$Q$224,D123)<>0,SUMIFS(MyCS2007data!$V$83:$V$224,MyCS2007data!$S$83:$S$224,C123,MyCS2007data!$Q$83:$Q$224,D123)," ") -> 0.6240467241 | H123: =IF(SUMIFS('Census 2011'!$D$328:$D$468,'Census 2011'!$A$328:$A$468,D123,'Census 2011'!$B$328:$B$468,C123)<>0,SUMIFS('Census 2011'!$D$328:$D$468,'Census 2011'!$A$328:$A$468,D123,'Census 2011'!$B$328:$B$468,C123)," ") -> 0.5131673518 | I123: =IF(SUMIFS('bottom-up-enduse'!$E$252:$E$357,'bottom-up-enduse'!$B$252:$B$357,D123,'bottom-up-enduse'!$A$252:$A$357,C123)<>0,SUMIFS('bottom-up-enduse'!$E$252:$E$357,'bottom-up-enduse'!$B$252:$B$357,D123,'bottom-up-enduse'!$A$252:$A$357,C123)," ") -> 13.16986364 | J123: 11.82655129 | K123: 9.252632566
B124: LPG | C124: RESOLP | D124: RLNW | E124: =IF(SUMIFS('Census 2011'!$C$328:$C$468,'Census 2011'!$A$328:$A$468,D124,'Census 2011'!$B$328:$B$468,C124)<>0,SUMIFS('Census 2011'!$C$328:$C$468,'Census 2011'!$A$328:$A$468,D124,'Census 2011'!$B$328:$B$468,C124)," ") -> 82827 | F124: =IF(SUMIFS(MyCS2007data!$T$83:$T$224,MyCS2007data!$S$83:$S$224,C124,MyCS2007data!$Q$83:$Q$224,D124)<>0,SUMIFS(MyCS2007data!$T$83:$T$224,MyCS2007data!$S$83:$S$224,C124,MyCS2007data!$Q$83:$Q$224,D124)," ") -> 56130.47457 | G124: =IF(SUMIFS(MyCS2007data!$V$83:$V$224,MyCS2007data!$S$83:$S$224,C124,MyCS2007data!$Q$83:$Q$224,D124)<>0,SUMIFS(MyCS2007data!$V$83:$V$224,MyCS2007data!$S$83:$S$224,C124,MyCS2007data!$Q$83:$Q$224,D124)," ") -> 0.03900667937 | H124: =IF(SUMIFS('Census 2011'!$D$328:$D$468,'Census 2011'!$A$328:$A$468,D124,'Census 2011'!$B$328:$B$468,C124)<>0,SUMIFS('Census 2011'!$D$328:$D$468,'Census 2011'!$A$328:$A$468,D124,'Census 2011'!$B$328:$B$468,C124)," ") -> 0.0604988211 | I124: =IF(SUMIFS('bottom-up-enduse'!$E$252:$E$357,'bottom-up-enduse'!$B$252:$B$357,D124,'bottom-up-enduse'!$A$252:$A$357,C124)<>0,SUMIFS('bottom-up-enduse'!$E$252:$E$357,'bottom-up-enduse'!$B$252:$B$357,D124,'bottom-up-enduse'!$A$252:$A$357,C124)," ") -> 2.390569307 | J124: 0.1341837897 | K124: 0.198003684
B125: Wood | C125: RESBIW | D125: RLNW | E125: =IF(SUMIFS('Census 2011'!$C$328:$C$468,'Census 2011'!$A$328:$A$468,D125,'Census 2011'!$B$328:$B$468,C125)<>0,SUMIFS('Census 2011'!$C$328:$C$468,'Census 2011'!$A$328:$A$468,D125,'Census 2011'!$B$328:$B$468,C125)," ") -> 562674 | F125: =IF(SUMIFS(MyCS2007data!$T$83:$T$224,MyCS2007data!$S$83:$S$224,C125,MyCS2007data!$Q$83:$Q$224,D125)<>0,SUMIFS(MyCS2007data!$T$83:$T$224,MyCS2007data!$S$83:$S$224,C125,MyCS2007data!$Q$83:$Q$224,D125)," ") -> 461908.8517 | G125: =IF(SUMIFS(MyCS2007data!$V$83:$V$224,MyCS2007data!$S$83:$S$224,C125,MyCS2007data!$Q$83:$Q$224,D125)<>0,SUMIFS(MyCS2007data!$V$83:$V$224,MyCS2007data!$S$83:$S$224,C125,MyCS2007data!$Q$83:$Q$224,D125)," ") -> 0.3209937314 | H125: =IF(SUMIFS('Census 2011'!$D$328:$D$468,'Census 2011'!$A$328:$A$468,D125,'Census 2011'!$B$328:$B$468,C125)<>0,SUMIFS('Census 2011'!$D$328:$D$468,'Census 2011'!$A$328:$A$468,D125,'Census 2011'!$B$328:$B$468,C125)," ") -> 0.4109905425 | I125: =IF(SUMIFS('bottom-up-enduse'!$E$252:$E$357,'bottom-up-enduse'!$B$252:$B$357,D125,'bottom-up-enduse'!$A$252:$A$357,C125)<>0,SUMIFS('bottom-up-enduse'!$E$252:$E$357,'bottom-up-enduse'!$B$252:$B$357,D125,'bottom-up-enduse'!$A$252:$A$357,C125)," ") -> 3.714576923 | J125: 1.715795961 | K125: 2.090095856
B126: Coal | C126: RESCOA | D126: RLNW | E126: =IF(SUMIFS('Census 2011'!$C$328:$C$468,'Census 2011'!$A$328:$A$468,D126,'Census 2011'!$B$328:$B$468,C126)<>0,SUMIFS('Census 2011'!$C$328:$C$468,'Census 2011'!$A$328:$A$468,D126,'Census 2011'!$B$328:$B$468,C126)," ") -> 21006 | F126: =IF(SUMIFS(MyCS2007data!$T$83:$T$224,MyCS2007data!$S$83:$S$224,C126,MyCS2007data!$Q$83:$Q$224,D126)<>0,SUMIFS(MyCS2007data!$T$83:$T$224,MyCS2007data!$S$83:$S$224,C126,MyCS2007data!$Q$83:$Q$224,D126)," ") -> 22956.11694 | G126: =IF(SUMIFS(MyCS2007data!$V$83:$V$224,MyCS2007data!$S$83:$S$224,C126,MyCS2007data!$Q$83:$Q$224,D126)<>0,SUMIFS(MyCS2007data!$V$83:$V$224,MyCS2007data!$S$83:$S$224,C126,MyCS2007data!$Q$83:$Q$224,D126)," ") -> 0.01595286518 | H126: =IF(SUMIFS('Census 2011'!$D$328:$D$468,'Census 2011'!$A$328:$A$468,D126,'Census 2011'!$B$328:$B$468,C126)<>0,SUMIFS('Census 2011'!$D$328:$D$468,'Census 2011'!$A$328:$A$468,D126,'Census 2011'!$B$328:$B$468,C126)," ") -> 0.01534328463 | I126: =IF(SUMIFS('bottom-up-enduse'!$E$252:$E$357,'bottom-up-enduse'!$B$252:$B$357,D126,'bottom-up-enduse'!$A$252:$A$357,C126)<>0,SUMIFS('bottom-up-enduse'!$E$252:$E$357,'bottom-up-enduse'!$B$252:$B$357,D126,'bottom-up-enduse'!$A$252:$A$357,C126)," ") -> 5.832 | J126: 0.133880074 | K126: 0.122506992
B127: Natural gas | C127: RESGAS | D127: RLNW | E127: =IF(SUMIFS('Census 2011'!$C$328:$C$468,'Census 2011'!$A$328:$A$468,D127,'Census 2011'!$B$328:$B$468,C127)<>0,SUMIFS('Census 2011'!$C$328:$C$468,'Census 2011'!$A$328:$A$468,D127,'Census 2011'!$B$328:$B$468,C127)," ") ->  | F127: =IF(SUMIFS(MyCS2007data!$T$83:$T$224,MyCS2007data!$S$83:$S$224,C127,MyCS2007data!$Q$83:$Q$224,D127)<>0,SUMIFS(MyCS2007data!$T$83:$T$224,MyCS2007data!$S$83:$S$224,C127,MyCS2007data!$Q$83:$Q$224,D127)," ") ->  | G127: =IF(SUMIFS(MyCS2007data!$V$83:$V$224,MyCS2007data!$S$83:$S$224,C127,MyCS2007data!$Q$83:$Q$224,D127)<>0,SUMIFS(MyCS2007data!$V$83:$V$224,MyCS2007data!$S$83:$S$224,C127,MyCS2007data!$Q$83:$Q$224,D127)," ") ->  | H127: =IF(SUMIFS('Census 2011'!$D$328:$D$468,'Census 2011'!$A$328:$A$468,D127,'Census 2011'!$B$328:$B$468,C127)<>0,SUMIFS('Census 2011'!$D$328:$D$468,'Census 2011'!$A$328:$A$468,D127,'Census 2011'!$B$328:$B$468,C127)," ") ->  | I127: =IF(SUMIFS('bottom-up-enduse'!$E$252:$E$357,'bottom-up-enduse'!$B$252:$B$357,D127,'bottom-up-enduse'!$A$252:$A$357,C127)<>0,SUMIFS('bottom-up-enduse'!$E$252:$E$357,'bottom-up-enduse'!$B$252:$B$357,D127,'bottom-up-enduse'!$A$252:$A$357,C127)," ") -> 
E128: =IF(SUMIFS('Census 2011'!$C$328:$C$468,'Census 2011'!$A$328:$A$468,D128,'Census 2011'!$B$328:$B$468,C128)<>0,SUMIFS('Census 2011'!$C$328:$C$468,'Census 2011'!$A$328:$A$468,D128,'Census 2011'!$B$328:$B$468,C128)," ") ->  | F128: =IF(SUMIFS(MyCS2007data!$T$83:$T$224,MyCS2007data!$S$83:$S$224,C128,MyCS2007data!$Q$83:$Q$224,D128)<>0,SUMIFS(MyCS2007data!$T$83:$T$224,MyCS2007data!$S$83:$S$224,C128,MyCS2007data!$Q$83:$Q$224,D128)," ") ->  | G128: =IF(SUMIFS(MyCS2007data!$V$83:$V$224,MyCS2007data!$S$83:$S$224,C128,MyCS2007data!$Q$83:$Q$224,D128)<>0,SUMIFS(MyCS2007data!$V$83:$V$224,MyCS2007data!$S$83:$S$224,C128,MyCS2007data!$Q$83:$Q$224,D128)," ") ->  | H128: =IF(SUMIFS('Census 2011'!$D$328:$D$468,'Census 2011'!$A$328:$A$468,D128,'Census 2011'!$B$328:$B$468,C128)<>0,SUMIFS('Census 2011'!$D$328:$D$468,'Census 2011'!$A$328:$A$468,D128,'Census 2011'!$B$328:$B$468,C128)," ") ->  | I128: =IF(SUMIFS('bottom-up-enduse'!$E$252:$E$357,'bottom-up-enduse'!$B$252:$B$357,D128,'bottom-up-enduse'!$A$252:$A$357,C128)<>0,SUMIFS('bottom-up-enduse'!$E$252:$E$357,'bottom-up-enduse'!$B$252:$B$357,D128,'bottom-up-enduse'!$A$252:$A$357,C128)," ") -> 
A129: * | B129: \I:Residential - Other - Low Income Non-Electrified | E129: =IF(SUMIFS('Census 2011'!$C$328:$C$468,'Census 2011'!$A$328:$A$468,D129,'Census 2011'!$B$328:$B$468,C129)<>0,SUMIFS('Census 2011'!$C$328:$C$468,'Census 2011'!$A$328:$A$468,D129,'Census 2011'!$B$328:$B$468,C129)," ") ->  | F129: =IF(SUMIFS(MyCS2007data!$T$83:$T$224,MyCS2007data!$S$83:$S$224,C129,MyCS2007data!$Q$83:$Q$224,D129)<>0,SUMIFS(MyCS2007data!$T$83:$T$224,MyCS2007data!$S$83:$S$224,C129,MyCS2007data!$Q$83:$Q$224,D129)," ") ->  | G129: =IF(SUMIFS(MyCS2007data!$V$83:$V$224,MyCS2007data!$S$83:$S$224,C129,MyCS2007data!$Q$83:$Q$224,D129)<>0,SUMIFS(MyCS2007data!$V$83:$V$224,MyCS2007data!$S$83:$S$224,C129,MyCS2007data!$Q$83:$Q$224,D129)," ") ->  | H129: =IF(SUMIFS('Census 2011'!$D$328:$D$468,'Census 2011'!$A$328:$A$468,D129,'Census 2011'!$B$328:$B$468,C129)<>0,SUMIFS('Census 2011'!$D$328:$D$468,'Census 2011'!$A$328:$A$468,D129,'Census 2011'!$B$328:$B$468,C129)," ") ->  | I129: =IF(SUMIFS('bottom-up-enduse'!$E$252:$E$357,'bottom-up-enduse'!$B$252:$B$357,D129,'bottom-up-enduse'!$A$252:$A$357,C129)<>0,SUMIFS('bottom-up-enduse'!$E$252:$E$357,'bottom-up-enduse'!$B$252:$B$357,D129,'bottom-up-enduse'!$A$252:$A$357,C129)," ") -> 
B130: Paraffin | C130: RESOKE | D130: RLNN | E130: =IF(SUMIFS('Census 2011'!$C$328:$C$468,'Census 2011'!$A$328:$A$468,D130,'Census 2011'!$B$328:$B$468,C130)<>0,SUMIFS('Census 2011'!$C$328:$C$468,'Census 2011'!$A$328:$A$468,D130,'Census 2011'!$B$328:$B$468,C130)," ") -> 70256.1 | F130: =IF(SUMIFS(MyCS2007data!$T$83:$T$224,MyCS2007data!$S$83:$S$224,C130,MyCS2007data!$Q$83:$Q$224,D130)<>0,SUMIFS(MyCS2007data!$T$83:$T$224,MyCS2007data!$S$83:$S$224,C130,MyCS2007data!$Q$83:$Q$224,D130)," ") -> 89800.10436 | G130: =IF(SUMIFS(MyCS2007data!$V$83:$V$224,MyCS2007data!$S$83:$S$224,C130,MyCS2007data!$Q$83:$Q$224,D130)<>0,SUMIFS(MyCS2007data!$V$83:$V$224,MyCS2007data!$S$83:$S$224,C130,MyCS2007data!$Q$83:$Q$224,D130)," ") -> 1 | H130: =IF(SUMIFS('Census 2011'!$D$328:$D$468,'Census 2011'!$A$328:$A$468,D130,'Census 2011'!$B$328:$B$468,C130)<>0,SUMIFS('Census 2011'!$D$328:$D$468,'Census 2011'!$A$328:$A$468,D130,'Census 2011'!$B$328:$B$468,C130)," ") -> 1 | I130: =IF(SUMIFS('bottom-up-enduse'!$E$252:$E$357,'bottom-up-enduse'!$B$252:$B$357,D130,'bottom-up-enduse'!$A$252:$A$357,C130)<>0,SUMIFS('bottom-up-enduse'!$E$252:$E$357,'bottom-up-enduse'!$B$252:$B$357,D130,'bottom-up-enduse'!$A$252:$A$357,C130)," ") -> 0.3566959621 | J130: 0.03203133462 | K130: 0.02506006718
A131: =IF(LEFT(B131,1)="\","*","") ->  | E131: =IF(SUMIFS('Census 2011'!$C$328:$C$468,'Census 2011'!$A$328:$A$468,D131,'Census 2011'!$B$328:$B$468,C131)<>0,SUMIFS('Census 2011'!$C$328:$C$468,'Census 2011'!$A$328:$A$468,D131,'Census 2011'!$B$328:$B$468,C131)," ") ->  | F131: =IF(SUMIFS(MyCS2007data!$T$83:$T$224,MyCS2007data!$S$83:$S$224,C131,MyCS2007data!$Q$83:$Q$224,D131)<>0,SUMIFS(MyCS2007data!$T$83:$T$224,MyCS2007data!$S$83:$S$224,C131,MyCS2007data!$Q$83:$Q$224,D131)," ") ->  | G131: =IF(SUMIFS(MyCS2007data!$V$83:$V$224,MyCS2007data!$S$83:$S$224,C131,MyCS2007data!$Q$83:$Q$224,D131)<>0,SUMIFS(MyCS2007data!$V$83:$V$224,MyCS2007data!$S$83:$S$224,C131,MyCS2007data!$Q$83:$Q$224,D131)," ") ->  | H131: =IF(SUMIFS('Census 2011'!$D$328:$D$468,'Census 2011'!$A$328:$A$468,D131,'Census 2011'!$B$328:$B$468,C131)<>0,SUMIFS('Census 2011'!$D$328:$D$468,'Census 2011'!$A$328:$A$468,D131,'Census 2011'!$B$328:$B$468,C131)," ") ->  | I131: =IF(SUMIFS('bottom-up-enduse'!$E$252:$E$357,'bottom-up-enduse'!$B$252:$B$357,D131,'bottom-up-enduse'!$A$252:$A$357,C131)<>0,SUMIFS('bottom-up-enduse'!$E$252:$E$357,'bottom-up-enduse'!$B$252:$B$357,D131,'bottom-up-enduse'!$A$252:$A$357,C131)," ") -> 
A132: * | B132: \I:Residential - Lighting - Middle Income Non-Electrified | E132: =IF(SUMIFS('Census 2011'!$C$328:$C$468,'Census 2011'!$A$328:$A$468,D132,'Census 2011'!$B$328:$B$468,C132)<>0,SUMIFS('Census 2011'!$C$328:$C$468,'Census 2011'!$A$328:$A$468,D132,'Census 2011'!$B$328:$B$468,C132)," ") ->  | F132: =IF(SUMIFS(MyCS2007data!$T$83:$T$224,MyCS2007data!$S$83:$S$224,C132,MyCS2007data!$Q$83:$Q$224,D132)<>0,SUMIFS(MyCS2007data!$T$83:$T$224,MyCS2007data!$S$83:$S$224,C132,MyCS2007data!$Q$83:$Q$224,D132)," ") ->  | G132: =IF(SUMIFS(MyCS2007data!$V$83:$V$224,MyCS2007data!$S$83:$S$224,C132,MyCS2007data!$Q$83:$Q$224,D132)<>0,SUMIFS(MyCS2007data!$V$83:$V$224,MyCS2007data!$S$83:$S$224,C132,MyCS2007data!$Q$83:$Q$224,D132)," ") ->  | H132: =IF(SUMIFS('Census 2011'!$D$328:$D$468,'Census 2011'!$A$328:$A$468,D132,'Census 2011'!$B$328:$B$468,C132)<>0,SUMIFS('Census 2011'!$D$328:$D$468,'Census 2011'!$A$328:$A$468,D132,'Census 2011'!$B$328:$B$468,C132)," ") ->  | I132: =IF(SUMIFS('bottom-up-enduse'!$E$252:$E$357,'bottom-up-enduse'!$B$252:$B$357,D132,'bottom-up-enduse'!$A$252:$A$357,C132)<>0,SUMIFS('bottom-up-enduse'!$E$252:$E$357,'bottom-up-enduse'!$B$252:$B$357,D132,'bottom-up-enduse'!$A$252:$A$357,C132)," ") ->  | K132: =IFERROR(E132*I132/10^6," ") -> 
B133: Paraffin | C133: RESOKE | D133: RMNL | E133: =IF(SUMIFS('Census 2011'!$C$328:$C$468,'Census 2011'!$A$328:$A$468,D133,'Census 2011'!$B$328:$B$468,C133)<>0,SUMIFS('Census 2011'!$C$328:$C$468,'Census 2011'!$A$328:$A$468,D133,'Census 2011'!$B$328:$B$468,C133)," ") -> 132993 | F133: =IF(SUMIFS(MyCS2007data!$T$83:$T$224,MyCS2007data!$S$83:$S$224,C133,MyCS2007data!$Q$83:$Q$224,D133)<>0,SUMIFS(MyCS2007data!$T$83:$T$224,MyCS2007data!$S$83:$S$224,C133,MyCS2007data!$Q$83:$Q$224,D133)," ") -> 734472.2186 | G133: =IF(SUMIFS(MyCS2007data!$V$83:$V$224,MyCS2007data!$S$83:$S$224,C133,MyCS2007data!$Q$83:$Q$224,D133)<>0,SUMIFS(MyCS2007data!$V$83:$V$224,MyCS2007data!$S$83:$S$224,C133,MyCS2007data!$Q$83:$Q$224,D133)," ") -> 1 | H133: =IF(SUMIFS('Census 2011'!$D$328:$D$468,'Census 2011'!$A$328:$A$468,D133,'Census 2011'!$B$328:$B$468,C133)<>0,SUMIFS('Census 2011'!$D$328:$D$468,'Census 2011'!$A$328:$A$468,D133,'Census 2011'!$B$328:$B$468,C133)," ") -> 1 | I133: =IF(SUMIFS('bottom-up-enduse'!$E$252:$E$357,'bottom-up-enduse'!$B$252:$B$357,D133,'bottom-up-enduse'!$A$252:$A$357,C133)<>0,SUMIFS('bottom-up-enduse'!$E$252:$E$357,'bottom-up-enduse'!$B$252:$B$357,D133,'bottom-up-enduse'!$A$252:$A$357,C133)," ") -> 3.108 | J133: =IFERROR(I133*F133/10^6," ") -> 2.282739655 | K133: 0.413342244
E134: =IF(SUMIFS('Census 2011'!$C$328:$C$468,'Census 2011'!$A$328:$A$468,D134,'Census 2011'!$B$328:$B$468,C134)<>0,SUMIFS('Census 2011'!$C$328:$C$468,'Census 2011'!$A$328:$A$468,D134,'Census 2011'!$B$328:$B$468,C134)," ") ->  | F134: =IF(SUMIFS(MyCS2007data!$T$83:$T$224,MyCS2007data!$S$83:$S$224,C134,MyCS2007data!$Q$83:$Q$224,D134)<>0,SUMIFS(MyCS2007data!$T$83:$T$224,MyCS2007data!$S$83:$S$224,C134,MyCS2007data!$Q$83:$Q$224,D134)," ") ->  | G134: =IF(SUMIFS(MyCS2007data!$V$83:$V$224,MyCS2007data!$S$83:$S$224,C134,MyCS2007data!$Q$83:$Q$224,D134)<>0,SUMIFS(MyCS2007data!$V$83:$V$224,MyCS2007data!$S$83:$S$224,C134,MyCS2007data!$Q$83:$Q$224,D134)," ") ->  | H134: =IF(SUMIFS('Census 2011'!$D$328:$D$468,'Census 2011'!$A$328:$A$468,D134,'Census 2011'!$B$328:$B$468,C134)<>0,SUMIFS('Census 2011'!$D$328:$D$468,'Census 2011'!$A$328:$A$468,D134,'Census 2011'!$B$328:$B$468,C134)," ") ->  | I134: =IF(SUMIFS('bottom-up-enduse'!$E$252:$E$357,'bottom-up-enduse'!$B$252:$B$357,D134,'bottom-up-enduse'!$A$252:$A$357,C134)<>0,SUMIFS('bottom-up-enduse'!$E$252:$E$357,'bottom-up-enduse'!$B$252:$B$357,D134,'bottom-up-enduse'!$A$252:$A$357,C134)," ") -> 
A135: * | B135: \I:Residential - Cooking - Middle Income Non- Electrified | E135: =IF(SUMIFS('Census 2011'!$C$328:$C$468,'Census 2011'!$A$328:$A$468,D135,'Census 2011'!$B$328:$B$468,C135)<>0,SUMIFS('Census 2011'!$C$328:$C$468,'Census 2011'!$A$328:$A$468,D135,'Census 2011'!$B$328:$B$468,C135)," ") ->  | F135: =IF(SUMIFS(MyCS2007data!$T$83:$T$224,MyCS2007data!$S$83:$S$224,C135,MyCS2007data!$Q$83:$Q$224,D135)<>0,SUMIFS(MyCS2007data!$T$83:$T$224,MyCS2007data!$S$83:$S$224,C135,MyCS2007data!$Q$83:$Q$224,D135)," ") ->  | G135: =IF(SUMIFS(MyCS2007data!$V$83:$V$224,MyCS2007data!$S$83:$S$224,C135,MyCS2007data!$Q$83:$Q$224,D135)<>0,SUMIFS(MyCS2007data!$V$83:$V$224,MyCS2007data!$S$83:$S$224,C135,MyCS2007data!$Q$83:$Q$224,D135)," ") ->  | H135: =IF(SUMIFS('Census 2011'!$D$328:$D$468,'Census 2011'!$A$328:$A$468,D135,'Census 2011'!$B$328:$B$468,C135)<>0,SUMIFS('Census 2011'!$D$328:$D$468,'Census 2011'!$A$328:$A$468,D135,'Census 2011'!$B$328:$B$468,C135)," ") ->  | I135: =IF(SUMIFS('bottom-up-enduse'!$E$252:$E$357,'bottom-up-enduse'!$B$252:$B$357,D135,'bottom-up-enduse'!$A$252:$A$357,C135)<>0,SUMIFS('bottom-up-enduse'!$E$252:$E$357,'bottom-up-enduse'!$B$252:$B$357,D135,'bottom-up-enduse'!$A$252:$A$357,C135)," ") -> 
B136: Paraffin | C136: RESOKE | D136: RMNK | E136: =IF(SUMIFS('Census 2011'!$C$328:$C$468,'Census 2011'!$A$328:$A$468,D136,'Census 2011'!$B$328:$B$468,C136)<>0,SUMIFS('Census 2011'!$C$328:$C$468,'Census 2011'!$A$328:$A$468,D136,'Census 2011'!$B$328:$B$468,C136)," ") -> 317718 | F136: =IF(SUMIFS(MyCS2007data!$T$83:$T$224,MyCS2007data!$S$83:$S$224,C136,MyCS2007data!$Q$83:$Q$224,D136)<>0,SUMIFS(MyCS2007data!$T$83:$T$224,MyCS2007data!$S$83:$S$224,C136,MyCS2007data!$Q$83:$Q$224,D136)," ") -> 491831.892 | G136: =IF(SUMIFS(MyCS2007data!$V$83:$V$224,MyCS2007data!$S$83:$S$224,C136,MyCS2007data!$Q$83:$Q$224,D136)<>0,SUMIFS(MyCS2007data!$V$83:$V$224,MyCS2007data!$S$83:$S$224,C136,MyCS2007data!$Q$83:$Q$224,D136)," ") -> 0.4830188511 | H136: =IF(SUMIFS('Census 2011'!$D$328:$D$468,'Census 2011'!$A$328:$A$468,D136,'Census 2011'!$B$328:$B$468,C136)<>0,SUMIFS('Census 2011'!$D$328:$D$468,'Census 2011'!$A$328:$A$468,D136,'Census 2011'!$B$328:$B$468,C136)," ") -> 0.4984304331 | I136: =IF(SUMIFS('bottom-up-enduse'!$E$252:$E$357,'bottom-up-enduse'!$B$252:$B$357,D136,'bottom-up-enduse'!$A$252:$A$357,C136)<>0,SUMIFS('bottom-up-enduse'!$E$252:$E$357,'bottom-up-enduse'!$B$252:$B$357,D136,'bottom-up-enduse'!$A$252:$A$357,C136)," ") -> 1.061856 | J136: 0.5222546455 | K136: 0.3373707646
B137: LPG | C137: RESOLP | D137: RMNK | E137: =IF(SUMIFS('Census 2011'!$C$328:$C$468,'Census 2011'!$A$328:$A$468,D137,'Census 2011'!$B$328:$B$468,C137)<>0,SUMIFS('Census 2011'!$C$328:$C$468,'Census 2011'!$A$328:$A$468,D137,'Census 2011'!$B$328:$B$468,C137)," ") -> 57750 | F137: =IF(SUMIFS(MyCS2007data!$T$83:$T$224,MyCS2007data!$S$83:$S$224,C137,MyCS2007data!$Q$83:$Q$224,D137)<>0,SUMIFS(MyCS2007data!$T$83:$T$224,MyCS2007data!$S$83:$S$224,C137,MyCS2007data!$Q$83:$Q$224,D137)," ") -> 63891.92924 | G137: =IF(SUMIFS(MyCS2007data!$V$83:$V$224,MyCS2007data!$S$83:$S$224,C137,MyCS2007data!$Q$83:$Q$224,D137)<>0,SUMIFS(MyCS2007data!$V$83:$V$224,MyCS2007data!$S$83:$S$224,C137,MyCS2007data!$Q$83:$Q$224,D137)," ") -> 0.06274706208 | H137: =IF(SUMIFS('Census 2011'!$D$328:$D$468,'Census 2011'!$A$328:$A$468,D137,'Census 2011'!$B$328:$B$468,C137)<>0,SUMIFS('Census 2011'!$D$328:$D$468,'Census 2011'!$A$328:$A$468,D137,'Census 2011'!$B$328:$B$468,C137)," ") -> 0.09059718843 | I137: =IF(SUMIFS('bottom-up-enduse'!$E$252:$E$357,'bottom-up-enduse'!$B$252:$B$357,D137,'bottom-up-enduse'!$A$252:$A$357,C137)<>0,SUMIFS('bottom-up-enduse'!$E$252:$E$357,'bottom-up-enduse'!$B$252:$B$357,D137,'bottom-up-enduse'!$A$252:$A$357,C137)," ") -> 1.480896 | J137: 0.09461730245 | K137: 0.085521744
B138: Wood | C138: RESBIW | D138: RMNK | E138: =IF(SUMIFS('Census 2011'!$C$328:$C$468,'Census 2011'!$A$328:$A$468,D138,'Census 2011'!$B$328:$B$468,C138)<>0,SUMIFS('Census 2011'!$C$328:$C$468,'Census 2011'!$A$328:$A$468,D138,'Census 2011'!$B$328:$B$468,C138)," ") -> 249654 | F138: =IF(SUMIFS(MyCS2007data!$T$83:$T$224,MyCS2007data!$S$83:$S$224,C138,MyCS2007data!$Q$83:$Q$224,D138)<>0,SUMIFS(MyCS2007data!$T$83:$T$224,MyCS2007data!$S$83:$S$224,C138,MyCS2007data!$Q$83:$Q$224,D138)," ") -> 418276.6722 | G138: =IF(SUMIFS(MyCS2007data!$V$83:$V$224,MyCS2007data!$S$83:$S$224,C138,MyCS2007data!$Q$83:$Q$224,D138)<>0,SUMIFS(MyCS2007data!$V$83:$V$224,MyCS2007data!$S$83:$S$224,C138,MyCS2007data!$Q$83:$Q$224,D138)," ") -> 0.4107816531 | H138: =IF(SUMIFS('Census 2011'!$D$328:$D$468,'Census 2011'!$A$328:$A$468,D138,'Census 2011'!$B$328:$B$468,C138)<>0,SUMIFS('Census 2011'!$D$328:$D$468,'Census 2011'!$A$328:$A$468,D138,'Census 2011'!$B$328:$B$468,C138)," ") -> 0.3916528222 | I138: =IF(SUMIFS('bottom-up-enduse'!$E$252:$E$357,'bottom-up-enduse'!$B$252:$B$357,D138,'bottom-up-enduse'!$A$252:$A$357,C138)<>0,SUMIFS('bottom-up-enduse'!$E$252:$E$357,'bottom-up-enduse'!$B$252:$B$357,D138,'bottom-up-enduse'!$A$252:$A$357,C138)," ") -> 47.7785 | J138: 19.98463198 | K138: 11.92809364
B139: Coal | C139: RESCOA | D139: RMNK | E139: =IF(SUMIFS('Census 2011'!$C$328:$C$468,'Census 2011'!$A$328:$A$468,D139,'Census 2011'!$B$328:$B$468,C139)<>0,SUMIFS('Census 2011'!$C$328:$C$468,'Census 2011'!$A$328:$A$468,D139,'Census 2011'!$B$328:$B$468,C139)," ") -> 12315 | F139: =IF(SUMIFS(MyCS2007data!$T$83:$T$224,MyCS2007data!$S$83:$S$224,C139,MyCS2007data!$Q$83:$Q$224,D139)<>0,SUMIFS(MyCS2007data!$T$83:$T$224,MyCS2007data!$S$83:$S$224,C139,MyCS2007data!$Q$83:$Q$224,D139)," ") -> 44245.25601 | G139: =IF(SUMIFS(MyCS2007data!$V$83:$V$224,MyCS2007data!$S$83:$S$224,C139,MyCS2007data!$Q$83:$Q$224,D139)<>0,SUMIFS(MyCS2007data!$V$83:$V$224,MyCS2007data!$S$83:$S$224,C139,MyCS2007data!$Q$83:$Q$224,D139)," ") -> 0.04345243379 | H139: =IF(SUMIFS('Census 2011'!$D$328:$D$468,'Census 2011'!$A$328:$A$468,D139,'Census 2011'!$B$328:$B$468,C139)<>0,SUMIFS('Census 2011'!$D$328:$D$468,'Census 2011'!$A$328:$A$468,D139,'Census 2011'!$B$328:$B$468,C139)," ") -> 0.01931955629 | I139: =IF(SUMIFS('bottom-up-enduse'!$E$252:$E$357,'bottom-up-enduse'!$B$252:$B$357,D139,'bottom-up-enduse'!$A$252:$A$357,C139)<>0,SUMIFS('bottom-up-enduse'!$E$252:$E$357,'bottom-up-enduse'!$B$252:$B$357,D139,'bottom-up-enduse'!$A$252:$A$357,C139)," ") -> 23.328 | J139: 1.032153332 | K139: 0.28728432
B140: Natural gas | C140: RESGAS | D140: RMNK | E140: =IF(SUMIFS('Census 2011'!$C$328:$C$468,'Census 2011'!$A$328:$A$468,D140,'Census 2011'!$B$328:$B$468,C140)<>0,SUMIFS('Census 2011'!$C$328:$C$468,'Census 2011'!$A$328:$A$468,D140,'Census 2011'!$B$328:$B$468,C140)," ") ->  | F140: =IF(SUMIFS(MyCS2007data!$T$83:$T$224,MyCS2007data!$S$83:$S$224,C140,MyCS2007data!$Q$83:$Q$224,D140)<>0,SUMIFS(MyCS2007data!$T$83:$T$224,MyCS2007data!$S$83:$S$224,C140,MyCS2007data!$Q$83:$Q$224,D140)," ") ->  | G140: =IF(SUMIFS(MyCS2007data!$V$83:$V$224,MyCS2007data!$S$83:$S$224,C140,MyCS2007data!$Q$83:$Q$224,D140)<>0,SUMIFS(MyCS2007data!$V$83:$V$224,MyCS2007data!$S$83:$S$224,C140,MyCS2007data!$Q$83:$Q$224,D140)," ") ->  | H140: =IF(SUMIFS('Census 2011'!$D$328:$D$468,'Census 2011'!$A$328:$A$468,D140,'Census 2011'!$B$328:$B$468,C140)<>0,SUMIFS('Census 2011'!$D$328:$D$468,'Census 2011'!$A$328:$A$468,D140,'Census 2011'!$B$328:$B$468,C140)," ") ->  | I140: =IF(SUMIFS('bottom-up-enduse'!$E$252:$E$357,'bottom-up-enduse'!$B$252:$B$357,D140,'bottom-up-enduse'!$A$252:$A$357,C140)<>0,SUMIFS('bottom-up-enduse'!$E$252:$E$357,'bottom-up-enduse'!$B$252:$B$357,D140,'bottom-up-enduse'!$A$252:$A$357,C140)," ") -> 
E141: =IF(SUMIFS('Census 2011'!$C$328:$C$468,'Census 2011'!$A$328:$A$468,D141,'Census 2011'!$B$328:$B$468,C141)<>0,SUMIFS('Census 2011'!$C$328:$C$468,'Census 2011'!$A$328:$A$468,D141,'Census 2011'!$B$328:$B$468,C141)," ") ->  | F141: =IF(SUMIFS(MyCS2007data!$T$83:$T$224,MyCS2007data!$S$83:$S$224,C141,MyCS2007data!$Q$83:$Q$224,D141)<>0,SUMIFS(MyCS2007data!$T$83:$T$224,MyCS2007data!$S$83:$S$224,C141,MyCS2007data!$Q$83:$Q$224,D141)," ") ->  | G141: =IF(SUMIFS(MyCS2007data!$V$83:$V$224,MyCS2007data!$S$83:$S$224,C141,MyCS2007data!$Q$83:$Q$224,D141)<>0,SUMIFS(MyCS2007data!$V$83:$V$224,MyCS2007data!$S$83:$S$224,C141,MyCS2007data!$Q$83:$Q$224,D141)," ") ->  | H141: =IF(SUMIFS('Census 2011'!$D$328:$D$468,'Census 2011'!$A$328:$A$468,D141,'Census 2011'!$B$328:$B$468,C141)<>0,SUMIFS('Census 2011'!$D$328:$D$468,'Census 2011'!$A$328:$A$468,D141,'Census 2011'!$B$328:$B$468,C141)," ") ->  | I141: =IF(SUMIFS('bottom-up-enduse'!$E$252:$E$357,'bottom-up-enduse'!$B$252:$B$357,D141,'bottom-up-enduse'!$A$252:$A$357,C141)<>0,SUMIFS('bottom-up-enduse'!$E$252:$E$357,'bottom-up-enduse'!$B$252:$B$357,D141,'bottom-up-enduse'!$A$252:$A$357,C141)," ") -> 
A142: * | B142: \I:Residential - Space Heating - Middle Income Non-Electrified | E142: =IF(SUMIFS('Census 2011'!$C$328:$C$468,'Census 2011'!$A$328:$A$468,D142,'Census 2011'!$B$328:$B$468,C142)<>0,SUMIFS('Census 2011'!$C$328:$C$468,'Census 2011'!$A$328:$A$468,D142,'Census 2011'!$B$328:$B$468,C142)," ") ->  | F142: =IF(SUMIFS(MyCS2007data!$T$83:$T$224,MyCS2007data!$S$83:$S$224,C142,MyCS2007data!$Q$83:$Q$224,D142)<>0,SUMIFS(MyCS2007data!$T$83:$T$224,MyCS2007data!$S$83:$S$224,C142,MyCS2007data!$Q$83:$Q$224,D142)," ") ->  | G142: =IF(SUMIFS(MyCS2007data!$V$83:$V$224,MyCS2007data!$S$83:$S$224,C142,MyCS2007data!$Q$83:$Q$224,D142)<>0,SUMIFS(MyCS2007data!$V$83:$V$224,MyCS2007data!$S$83:$S$224,C142,MyCS2007data!$Q$83:$Q$224,D142)," ") ->  | H142: =IF(SUMIFS('Census 2011'!$D$328:$D$468,'Census 2011'!$A$328:$A$468,D142,'Census 2011'!$B$328:$B$468,C142)<>0,SUMIFS('Census 2011'!$D$328:$D$468,'Census 2011'!$A$328:$A$468,D142,'Census 2011'!$B$328:$B$468,C142)," ") ->  | I142: =IF(SUMIFS('bottom-up-enduse'!$E$252:$E$357,'bottom-up-enduse'!$B$252:$B$357,D142,'bottom-up-enduse'!$A$252:$A$357,C142)<>0,SUMIFS('bottom-up-enduse'!$E$252:$E$357,'bottom-up-enduse'!$B$252:$B$357,D142,'bottom-up-enduse'!$A$252:$A$357,C142)," ") -> 
B143: Paraffin | C143: RESOKE | D143: RMNH | E143: =IF(SUMIFS('Census 2011'!$C$328:$C$468,'Census 2011'!$A$328:$A$468,D143,'Census 2011'!$B$328:$B$468,C143)<>0,SUMIFS('Census 2011'!$C$328:$C$468,'Census 2011'!$A$328:$A$468,D143,'Census 2011'!$B$328:$B$468,C143)," ") -> 167592 | F143: =IF(SUMIFS(MyCS2007data!$T$83:$T$224,MyCS2007data!$S$83:$S$224,C143,MyCS2007data!$Q$83:$Q$224,D143)<>0,SUMIFS(MyCS2007data!$T$83:$T$224,MyCS2007data!$S$83:$S$224,C143,MyCS2007data!$Q$83:$Q$224,D143)," ") -> 5172.052962 | G143: =IF(SUMIFS(MyCS2007data!$V$83:$V$224,MyCS2007data!$S$83:$S$224,C143,MyCS2007data!$Q$83:$Q$224,D143)<>0,SUMIFS(MyCS2007data!$V$83:$V$224,MyCS2007data!$S$83:$S$224,C143,MyCS2007data!$Q$83:$Q$224,D143)," ") -> 0.009324451588 | H143: =IF(SUMIFS('Census 2011'!$D$328:$D$468,'Census 2011'!$A$328:$A$468,D143,'Census 2011'!$B$328:$B$468,C143)<>0,SUMIFS('Census 2011'!$D$328:$D$468,'Census 2011'!$A$328:$A$468,D143,'Census 2011'!$B$328:$B$468,C143)," ") -> 0.2432105323 | I143: =IF(SUMIFS('bottom-up-enduse'!$E$252:$E$357,'bottom-up-enduse'!$B$252:$B$357,D143,'bottom-up-enduse'!$A$252:$A$357,C143)<>0,SUMIFS('bottom-up-enduse'!$E$252:$E$357,'bottom-up-enduse'!$B$252:$B$357,D143,'bottom-up-enduse'!$A$252:$A$357,C143)," ") -> 4.44 | J143: 0.02296391515 | K143: 0.74410848
B144: LPG | C144: RESOLP | D144: RMNH | E144: =IF(SUMIFS('Census 2011'!$C$328:$C$468,'Census 2011'!$A$328:$A$468,D144,'Census 2011'!$B$328:$B$468,C144)<>0,SUMIFS('Census 2011'!$C$328:$C$468,'Census 2011'!$A$328:$A$468,D144,'Census 2011'!$B$328:$B$468,C144)," ") -> 19584 | F144: =IF(SUMIFS(MyCS2007data!$T$83:$T$224,MyCS2007data!$S$83:$S$224,C144,MyCS2007data!$Q$83:$Q$224,D144)<>0,SUMIFS(MyCS2007data!$T$83:$T$224,MyCS2007data!$S$83:$S$224,C144,MyCS2007data!$Q$83:$Q$224,D144)," ") -> 6628.423909 | G144: =IF(SUMIFS(MyCS2007data!$V$83:$V$224,MyCS2007data!$S$83:$S$224,C144,MyCS2007data!$Q$83:$Q$224,D144)<>0,SUMIFS(MyCS2007data!$V$83:$V$224,MyCS2007data!$S$83:$S$224,C144,MyCS2007data!$Q$83:$Q$224,D144)," ") -> 0.01195007443 | H144: =IF(SUMIFS('Census 2011'!$D$328:$D$468,'Census 2011'!$A$328:$A$468,D144,'Census 2011'!$B$328:$B$468,C144)<>0,SUMIFS('Census 2011'!$D$328:$D$468,'Census 2011'!$A$328:$A$468,D144,'Census 2011'!$B$328:$B$468,C144)," ") -> 0.02842042021 | I144: =IF(SUMIFS('bottom-up-enduse'!$E$252:$E$357,'bottom-up-enduse'!$B$252:$B$357,D144,'bottom-up-enduse'!$A$252:$A$357,C144)<>0,SUMIFS('bottom-up-enduse'!$E$252:$E$357,'bottom-up-enduse'!$B$252:$B$357,D144,'bottom-up-enduse'!$A$252:$A$357,C144)," ") -> 
B145: Wood | C145: RESBIW | D145: RMNH | E145: =IF(SUMIFS('Census 2011'!$C$328:$C$468,'Census 2011'!$A$328:$A$468,D145,'Census 2011'!$B$328:$B$468,C145)<>0,SUMIFS('Census 2011'!$C$328:$C$468,'Census 2011'!$A$328:$A$468,D145,'Census 2011'!$B$328:$B$468,C145)," ") -> 428205 | F145: =IF(SUMIFS(MyCS2007data!$T$83:$T$224,MyCS2007data!$S$83:$S$224,C145,MyCS2007data!$Q$83:$Q$224,D145)<>0,SUMIFS(MyCS2007data!$T$83:$T$224,MyCS2007data!$S$83:$S$224,C145,MyCS2007data!$Q$83:$Q$224,D145)," ") -> 537041.6605 | G145: =IF(SUMIFS(MyCS2007data!$V$83:$V$224,MyCS2007data!$S$83:$S$224,C145,MyCS2007data!$Q$83:$Q$224,D145)<>0,SUMIFS(MyCS2007data!$V$83:$V$224,MyCS2007data!$S$83:$S$224,C145,MyCS2007data!$Q$83:$Q$224,D145)," ") -> 0.9682072092 | H145: =IF(SUMIFS('Census 2011'!$D$328:$D$468,'Census 2011'!$A$328:$A$468,D145,'Census 2011'!$B$328:$B$468,C145)<>0,SUMIFS('Census 2011'!$D$328:$D$468,'Census 2011'!$A$328:$A$468,D145,'Census 2011'!$B$328:$B$468,C145)," ") -> 0.6214137069 | I145: =IF(SUMIFS('bottom-up-enduse'!$E$252:$E$357,'bottom-up-enduse'!$B$252:$B$357,D145,'bottom-up-enduse'!$A$252:$A$357,C145)<>0,SUMIFS('bottom-up-enduse'!$E$252:$E$357,'bottom-up-enduse'!$B$252:$B$357,D145,'bottom-up-enduse'!$A$252:$A$357,C145)," ") -> 13.24232 | J145: 7.111677522 | K145: 5.670427636
B146: Coal | C146: RESCOA | D146: RMNH | E146: =IF(SUMIFS('Census 2011'!$C$328:$C$468,'Census 2011'!$A$328:$A$468,D146,'Census 2011'!$B$328:$B$468,C146)<>0,SUMIFS('Census 2011'!$C$328:$C$468,'Census 2011'!$A$328:$A$468,D146,'Census 2011'!$B$328:$B$468,C146)," ") -> 73701 | F146: =IF(SUMIFS(MyCS2007data!$T$83:$T$224,MyCS2007data!$S$83:$S$224,C146,MyCS2007data!$Q$83:$Q$224,D146)<>0,SUMIFS(MyCS2007data!$T$83:$T$224,MyCS2007data!$S$83:$S$224,C146,MyCS2007data!$Q$83:$Q$224,D146)," ") -> 5834.232948 | G146: =IF(SUMIFS(MyCS2007data!$V$83:$V$224,MyCS2007data!$S$83:$S$224,C146,MyCS2007data!$Q$83:$Q$224,D146)<>0,SUMIFS(MyCS2007data!$V$83:$V$224,MyCS2007data!$S$83:$S$224,C146,MyCS2007data!$Q$83:$Q$224,D146)," ") -> 0.01051826481 | H146: =IF(SUMIFS('Census 2011'!$D$328:$D$468,'Census 2011'!$A$328:$A$468,D146,'Census 2011'!$B$328:$B$468,C146)<>0,SUMIFS('Census 2011'!$D$328:$D$468,'Census 2011'!$A$328:$A$468,D146,'Census 2011'!$B$328:$B$468,C146)," ") -> 0.1069553406 | I146: =IF(SUMIFS('bottom-up-enduse'!$E$252:$E$357,'bottom-up-enduse'!$B$252:$B$357,D146,'bottom-up-enduse'!$A$252:$A$357,C146)<>0,SUMIFS('bottom-up-enduse'!$E$252:$E$357,'bottom-up-enduse'!$B$252:$B$357,D146,'bottom-up-enduse'!$A$252:$A$357,C146)," ") -> 30.1806 | J146: 0.1760806509 | K146: 2.224340401
B147: Natural gas | C147: RESGAS | D147: RMNH | E147: =IF(SUMIFS('Census 2011'!$C$328:$C$468,'Census 2011'!$A$328:$A$468,D147,'Census 2011'!$B$328:$B$468,C147)<>0,SUMIFS('Census 2011'!$C$328:$C$468,'Census 2011'!$A$328:$A$468,D147,'Census 2011'!$B$328:$B$468,C147)," ") ->  | F147: =IF(SUMIFS(MyCS2007data!$T$83:$T$224,MyCS2007data!$S$83:$S$224,C147,MyCS2007data!$Q$83:$Q$224,D147)<>0,SUMIFS(MyCS2007data!$T$83:$T$224,MyCS2007data!$S$83:$S$224,C147,MyCS2007data!$Q$83:$Q$224,D147)," ") ->  | G147: =IF(SUMIFS(MyCS2007data!$V$83:$V$224,MyCS2007data!$S$83:$S$224,C147,MyCS2007data!$Q$83:$Q$224,D147)<>0,SUMIFS(MyCS2007data!$V$83:$V$224,MyCS2007data!$S$83:$S$224,C147,MyCS2007data!$Q$83:$Q$224,D147)," ") ->  | H147: =IF(SUMIFS('Census 2011'!$D$328:$D$468,'Census 2011'!$A$328:$A$468,D147,'Census 2011'!$B$328:$B$468,C147)<>0,SUMIFS('Census 2011'!$D$328:$D$468,'Census 2011'!$A$328:$A$468,D147,'Census 2011'!$B$328:$B$468,C147)," ") ->  | I147: =IF(SUMIFS('bottom-up-enduse'!$E$252:$E$357,'bottom-up-enduse'!$B$252:$B$357,D147,'bottom-up-enduse'!$A$252:$A$357,C147)<>0,SUMIFS('bottom-up-enduse'!$E$252:$E$357,'bottom-up-enduse'!$B$252:$B$357,D147,'bottom-up-enduse'!$A$252:$A$357,C147)," ") -> 
E148: =IF(SUMIFS('Census 2011'!$C$328:$C$468,'Census 2011'!$A$328:$A$468,D148,'Census 2011'!$B$328:$B$468,C148)<>0,SUMIFS('Census 2011'!$C$328:$C$468,'Census 2011'!$A$328:$A$468,D148,'Census 2011'!$B$328:$B$468,C148)," ") ->  | F148: =IF(SUMIFS(MyCS2007data!$T$83:$T$224,MyCS2007data!$S$83:$S$224,C148,MyCS2007data!$Q$83:$Q$224,D148)<>0,SUMIFS(MyCS2007data!$T$83:$T$224,MyCS2007data!$S$83:$S$224,C148,MyCS2007data!$Q$83:$Q$224,D148)," ") ->  | G148: =IF(SUMIFS(MyCS2007data!$V$83:$V$224,MyCS2007data!$S$83:$S$224,C148,MyCS2007data!$Q$83:$Q$224,D148)<>0,SUMIFS(MyCS2007data!$V$83:$V$224,MyCS2007data!$S$83:$S$224,C148,MyCS2007data!$Q$83:$Q$224,D148)," ") ->  | H148: =IF(SUMIFS('Census 2011'!$D$328:$D$468,'Census 2011'!$A$328:$A$468,D148,'Census 2011'!$B$328:$B$468,C148)<>0,SUMIFS('Census 2011'!$D$328:$D$468,'Census 2011'!$A$328:$A$468,D148,'Census 2011'!$B$328:$B$468,C148)," ") ->  | I148: =IF(SUMIFS('bottom-up-enduse'!$E$252:$E$357,'bottom-up-enduse'!$B$252:$B$357,D148,'bottom-up-enduse'!$A$252:$A$357,C148)<>0,SUMIFS('bottom-up-enduse'!$E$252:$E$357,'bottom-up-enduse'!$B$252:$B$357,D148,'bottom-up-enduse'!$A$252:$A$357,C148)," ") -> 
A149: * | B149: \I:Residential - Water Heating - Middle Income Non-Electrified | E149: =IF(SUMIFS('Census 2011'!$C$328:$C$468,'Census 2011'!$A$328:$A$468,D149,'Census 2011'!$B$328:$B$468,C149)<>0,SUMIFS('Census 2011'!$C$328:$C$468,'Census 2011'!$A$328:$A$468,D149,'Census 2011'!$B$328:$B$468,C149)," ") ->  | F149: =IF(SUMIFS(MyCS2007data!$T$83:$T$224,MyCS2007data!$S$83:$S$224,C149,MyCS2007data!$Q$83:$Q$224,D149)<>0,SUMIFS(MyCS2007data!$T$83:$T$224,MyCS2007data!$S$83:$S$224,C149,MyCS2007data!$Q$83:$Q$224,D149)," ") ->  | G149: =IF(SUMIFS(MyCS2007data!$V$83:$V$224,MyCS2007data!$S$83:$S$224,C149,MyCS2007data!$Q$83:$Q$224,D149)<>0,SUMIFS(MyCS2007data!$V$83:$V$224,MyCS2007data!$S$83:$S$224,C149,MyCS2007data!$Q$83:$Q$224,D149)," ") ->  | H149: =IF(SUMIFS('Census 2011'!$D$328:$D$468,'Census 2011'!$A$328:$A$468,D149,'Census 2011'!$B$328:$B$468,C149)<>0,SUMIFS('Census 2011'!$D$328:$D$468,'Census 2011'!$A$328:$A$468,D149,'Census 2011'!$B$328:$B$468,C149)," ") ->  | I149: =IF(SUMIFS('bottom-up-enduse'!$E$252:$E$357,'bottom-up-enduse'!$B$252:$B$357,D149,'bottom-up-enduse'!$A$252:$A$357,C149)<>0,SUMIFS('bottom-up-enduse'!$E$252:$E$357,'bottom-up-enduse'!$B$252:$B$357,D149,'bottom-up-enduse'!$A$252:$A$357,C149)," ") -> 
B150: Paraffin | C150: RESOKE | D150: RMNW | E150: =IF(SUMIFS('Census 2011'!$C$328:$C$468,'Census 2011'!$A$328:$A$468,D150,'Census 2011'!$B$328:$B$468,C150)<>0,SUMIFS('Census 2011'!$C$328:$C$468,'Census 2011'!$A$328:$A$468,D150,'Census 2011'!$B$328:$B$468,C150)," ") -> 317718 | F150: =IF(SUMIFS(MyCS2007data!$T$83:$T$224,MyCS2007data!$S$83:$S$224,C150,MyCS2007data!$Q$83:$Q$224,D150)<>0,SUMIFS(MyCS2007data!$T$83:$T$224,MyCS2007data!$S$83:$S$224,C150,MyCS2007data!$Q$83:$Q$224,D150)," ") -> 491831.892 | G150: =IF(SUMIFS(MyCS2007data!$V$83:$V$224,MyCS2007data!$S$83:$S$224,C150,MyCS2007data!$Q$83:$Q$224,D150)<>0,SUMIFS(MyCS2007data!$V$83:$V$224,MyCS2007data!$S$83:$S$224,C150,MyCS2007data!$Q$83:$Q$224,D150)," ") -> 0.4830188511 | H150: =IF(SUMIFS('Census 2011'!$D$328:$D$468,'Census 2011'!$A$328:$A$468,D150,'Census 2011'!$B$328:$B$468,C150)<>0,SUMIFS('Census 2011'!$D$328:$D$468,'Census 2011'!$A$328:$A$468,D150,'Census 2011'!$B$328:$B$468,C150)," ") -> 0.4984304331 | I150: =IF(SUMIFS('bottom-up-enduse'!$E$252:$E$357,'bottom-up-enduse'!$B$252:$B$357,D150,'bottom-up-enduse'!$A$252:$A$357,C150)<>0,SUMIFS('bottom-up-enduse'!$E$252:$E$357,'bottom-up-enduse'!$B$252:$B$357,D150,'bottom-up-enduse'!$A$252:$A$357,C150)," ") -> 14.04785455 | J150: 6.909182879 | K150: 4.46325625
B151: LPG | C151: RESOLP | D151: RMNW | E151: =IF(SUMIFS('Census 2011'!$C$328:$C$468,'Census 2011'!$A$328:$A$468,D151,'Census 2011'!$B$328:$B$468,C151)<>0,SUMIFS('Census 2011'!$C$328:$C$468,'Census 2011'!$A$328:$A$468,D151,'Census 2011'!$B$328:$B$468,C151)," ") -> 57750 | F151: =IF(SUMIFS(MyCS2007data!$T$83:$T$224,MyCS2007data!$S$83:$S$224,C151,MyCS2007data!$Q$83:$Q$224,D151)<>0,SUMIFS(MyCS2007data!$T$83:$T$224,MyCS2007data!$S$83:$S$224,C151,MyCS2007data!$Q$83:$Q$224,D151)," ") -> 63891.92924 | G151: =IF(SUMIFS(MyCS2007data!$V$83:$V$224,MyCS2007data!$S$83:$S$224,C151,MyCS2007data!$Q$83:$Q$224,D151)<>0,SUMIFS(MyCS2007data!$V$83:$V$224,MyCS2007data!$S$83:$S$224,C151,MyCS2007data!$Q$83:$Q$224,D151)," ") -> 0.06274706208 | H151: =IF(SUMIFS('Census 2011'!$D$328:$D$468,'Census 2011'!$A$328:$A$468,D151,'Census 2011'!$B$328:$B$468,C151)<>0,SUMIFS('Census 2011'!$D$328:$D$468,'Census 2011'!$A$328:$A$468,D151,'Census 2011'!$B$328:$B$468,C151)," ") -> 0.09059718843 | I151: =IF(SUMIFS('bottom-up-enduse'!$E$252:$E$357,'bottom-up-enduse'!$B$252:$B$357,D151,'bottom-up-enduse'!$A$252:$A$357,C151)<>0,SUMIFS('bottom-up-enduse'!$E$252:$E$357,'bottom-up-enduse'!$B$252:$B$357,D151,'bottom-up-enduse'!$A$252:$A$357,C151)," ") -> 2.549940594 | J151: 0.162920624 | K151: 0.1472590693
B152: Wood | C152: RESBIW | D152: RMNW | E152: =IF(SUMIFS('Census 2011'!$C$328:$C$468,'Census 2011'!$A$328:$A$468,D152,'Census 2011'!$B$328:$B$468,C152)<>0,SUMIFS('Census 2011'!$C$328:$C$468,'Census 2011'!$A$328:$A$468,D152,'Census 2011'!$B$328:$B$468,C152)," ") -> 249654 | F152: =IF(SUMIFS(MyCS2007data!$T$83:$T$224,MyCS2007data!$S$83:$S$224,C152,MyCS2007data!$Q$83:$Q$224,D152)<>0,SUMIFS(MyCS2007data!$T$83:$T$224,MyCS2007data!$S$83:$S$224,C152,MyCS2007data!$Q$83:$Q$224,D152)," ") -> 418276.6722 | G152: =IF(SUMIFS(MyCS2007data!$V$83:$V$224,MyCS2007data!$S$83:$S$224,C152,MyCS2007data!$Q$83:$Q$224,D152)<>0,SUMIFS(MyCS2007data!$V$83:$V$224,MyCS2007data!$S$83:$S$224,C152,MyCS2007data!$Q$83:$Q$224,D152)," ") -> 0.4107816531 | H152: =IF(SUMIFS('Census 2011'!$D$328:$D$468,'Census 2011'!$A$328:$A$468,D152,'Census 2011'!$B$328:$B$468,C152)<>0,SUMIFS('Census 2011'!$D$328:$D$468,'Census 2011'!$A$328:$A$468,D152,'Census 2011'!$B$328:$B$468,C152)," ") -> 0.3916528222 | I152: =IF(SUMIFS('bottom-up-enduse'!$E$252:$E$357,'bottom-up-enduse'!$B$252:$B$357,D152,'bottom-up-enduse'!$A$252:$A$357,C152)<>0,SUMIFS('bottom-up-enduse'!$E$252:$E$357,'bottom-up-enduse'!$B$252:$B$357,D152,'bottom-up-enduse'!$A$252:$A$357,C152)," ") -> 3.962215385 | J152: 1.657302266 | K152: 0.9891829196
B153: Coal | C153: RESCOA | D153: RMNW | E153: =IF(SUMIFS('Census 2011'!$C$328:$C$468,'Census 2011'!$A$328:$A$468,D153,'Census 2011'!$B$328:$B$468,C153)<>0,SUMIFS('Census 2011'!$C$328:$C$468,'Census 2011'!$A$328:$A$468,D153,'Census 2011'!$B$328:$B$468,C153)," ") -> 12315 | F153: =IF(SUMIFS(MyCS2007data!$T$83:$T$224,MyCS2007data!$S$83:$S$224,C153,MyCS2007data!$Q$83:$Q$224,D153)<>0,SUMIFS(MyCS2007data!$T$83:$T$224,MyCS2007data!$S$83:$S$224,C153,MyCS2007data!$Q$83:$Q$224,D153)," ") -> 44245.25601 | G153: =IF(SUMIFS(MyCS2007data!$V$83:$V$224,MyCS2007data!$S$83:$S$224,C153,MyCS2007data!$Q$83:$Q$224,D153)<>0,SUMIFS(MyCS2007data!$V$83:$V$224,MyCS2007data!$S$83:$S$224,C153,MyCS2007data!$Q$83:$Q$224,D153)," ") -> 0.04345243379 | H153: =IF(SUMIFS('Census 2011'!$D$328:$D$468,'Census 2011'!$A$328:$A$468,D153,'Census 2011'!$B$328:$B$468,C153)<>0,SUMIFS('Census 2011'!$D$328:$D$468,'Census 2011'!$A$328:$A$468,D153,'Census 2011'!$B$328:$B$468,C153)," ") -> 0.01931955629 | I153: =IF(SUMIFS('bottom-up-enduse'!$E$252:$E$357,'bottom-up-enduse'!$B$252:$B$357,D153,'bottom-up-enduse'!$A$252:$A$357,C153)<>0,SUMIFS('bottom-up-enduse'!$E$252:$E$357,'bottom-up-enduse'!$B$252:$B$357,D153,'bottom-up-enduse'!$A$252:$A$357,C153)," ") -> 30.1806 | J153: 1.335348373 | K153: 0.371674089
B154: Natural gas | C154: RESGAS | D154: RMNW | E154: =IF(SUMIFS('Census 2011'!$C$328:$C$468,'Census 2011'!$A$328:$A$468,D154,'Census 2011'!$B$328:$B$468,C154)<>0,SUMIFS('Census 2011'!$C$328:$C$468,'Census 2011'!$A$328:$A$468,D154,'Census 2011'!$B$328:$B$468,C154)," ") ->  | F154: =IF(SUMIFS(MyCS2007data!$T$83:$T$224,MyCS2007data!$S$83:$S$224,C154,MyCS2007data!$Q$83:$Q$224,D154)<>0,SUMIFS(MyCS2007data!$T$83:$T$224,MyCS2007data!$S$83:$S$224,C154,MyCS2007data!$Q$83:$Q$224,D154)," ") ->  | G154: =IF(SUMIFS(MyCS2007data!$V$83:$V$224,MyCS2007data!$S$83:$S$224,C154,MyCS2007data!$Q$83:$Q$224,D154)<>0,SUMIFS(MyCS2007data!$V$83:$V$224,MyCS2007data!$S$83:$S$224,C154,MyCS2007data!$Q$83:$Q$224,D154)," ") ->  | H154: =IF(SUMIFS('Census 2011'!$D$328:$D$468,'Census 2011'!$A$328:$A$468,D154,'Census 2011'!$B$328:$B$468,C154)<>0,SUMIFS('Census 2011'!$D$328:$D$468,'Census 2011'!$A$328:$A$468,D154,'Census 2011'!$B$328:$B$468,C154)," ") ->  | I154: =IF(SUMIFS('bottom-up-enduse'!$E$252:$E$357,'bottom-up-enduse'!$B$252:$B$357,D154,'bottom-up-enduse'!$A$252:$A$357,C154)<>0,SUMIFS('bottom-up-enduse'!$E$252:$E$357,'bottom-up-enduse'!$B$252:$B$357,D154,'bottom-up-enduse'!$A$252:$A$357,C154)," ") -> 
E155: =IF(SUMIFS('Census 2011'!$C$328:$C$468,'Census 2011'!$A$328:$A$468,D155,'Census 2011'!$B$328:$B$468,C155)<>0,SUMIFS('Census 2011'!$C$328:$C$468,'Census 2011'!$A$328:$A$468,D155,'Census 2011'!$B$328:$B$468,C155)," ") ->  | F155: =IF(SUMIFS(MyCS2007data!$T$83:$T$224,MyCS2007data!$S$83:$S$224,C155,MyCS2007data!$Q$83:$Q$224,D155)<>0,SUMIFS(MyCS2007data!$T$83:$T$224,MyCS2007data!$S$83:$S$224,C155,MyCS2007data!$Q$83:$Q$224,D155)," ") ->  | G155: =IF(SUMIFS(MyCS2007data!$V$83:$V$224,MyCS2007data!$S$83:$S$224,C155,MyCS2007data!$Q$83:$Q$224,D155)<>0,SUMIFS(MyCS2007data!$V$83:$V$224,MyCS2007data!$S$83:$S$224,C155,MyCS2007data!$Q$83:$Q$224,D155)," ") ->  | H155: =IF(SUMIFS('Census 2011'!$D$328:$D$468,'Census 2011'!$A$328:$A$468,D155,'Census 2011'!$B$328:$B$468,C155)<>0,SUMIFS('Census 2011'!$D$328:$D$468,'Census 2011'!$A$328:$A$468,D155,'Census 2011'!$B$328:$B$468,C155)," ") ->  | I155: =IF(SUMIFS('bottom-up-enduse'!$E$252:$E$357,'bottom-up-enduse'!$B$252:$B$357,D155,'bottom-up-enduse'!$A$252:$A$357,C155)<>0,SUMIFS('bottom-up-enduse'!$E$252:$E$357,'bottom-up-enduse'!$B$252:$B$357,D155,'bottom-up-enduse'!$A$252:$A$357,C155)," ") -> 
A156: * | B156: \I:Residential - Other - Middle Income Non-Electrified | E156: =IF(SUMIFS('Census 2011'!$C$328:$C$468,'Census 2011'!$A$328:$A$468,D156,'Census 2011'!$B$328:$B$468,C156)<>0,SUMIFS('Census 2011'!$C$328:$C$468,'Census 2011'!$A$328:$A$468,D156,'Census 2011'!$B$328:$B$468,C156)," ") ->  | F156: =IF(SUMIFS(MyCS2007data!$T$83:$T$224,MyCS2007data!$S$83:$S$224,C156,MyCS2007data!$Q$83:$Q$224,D156)<>0,SUMIFS(MyCS2007data!$T$83:$T$224,MyCS2007data!$S$83:$S$224,C156,MyCS2007data!$Q$83:$Q$224,D156)," ") ->  | G156: =IF(SUMIFS(MyCS2007data!$V$83:$V$224,MyCS2007data!$S$83:$S$224,C156,MyCS2007data!$Q$83:$Q$224,D156)<>0,SUMIFS(MyCS2007data!$V$83:$V$224,MyCS2007data!$S$83:$S$224,C156,MyCS2007data!$Q$83:$Q$224,D156)," ") ->  | H156: =IF(SUMIFS('Census 2011'!$D$328:$D$468,'Census 2011'!$A$328:$A$468,D156,'Census 2011'!$B$328:$B$468,C156)<>0,SUMIFS('Census 2011'!$D$328:$D$468,'Census 2011'!$A$328:$A$468,D156,'Census 2011'!$B$328:$B$468,C156)," ") ->  | I156: =IF(SUMIFS('bottom-up-enduse'!$E$252:$E$357,'bottom-up-enduse'!$B$252:$B$357,D156,'bottom-up-enduse'!$A$252:$A$357,C156)<>0,SUMIFS('bottom-up-enduse'!$E$252:$E$357,'bottom-up-enduse'!$B$252:$B$357,D156,'bottom-up-enduse'!$A$252:$A$357,C156)," ") -> 
B157: Paraffin | C157: RESOKE | D157: RMNN | E157: =IF(SUMIFS('Census 2011'!$C$328:$C$468,'Census 2011'!$A$328:$A$468,D157,'Census 2011'!$B$328:$B$468,C157)<>0,SUMIFS('Census 2011'!$C$328:$C$468,'Census 2011'!$A$328:$A$468,D157,'Census 2011'!$B$328:$B$468,C157)," ") -> 31771.8 | F157: =IF(SUMIFS(MyCS2007data!$T$83:$T$224,MyCS2007data!$S$83:$S$224,C157,MyCS2007data!$Q$83:$Q$224,D157)<>0,SUMIFS(MyCS2007data!$T$83:$T$224,MyCS2007data!$S$83:$S$224,C157,MyCS2007data!$Q$83:$Q$224,D157)," ") -> 49183.1892 | G157: =IF(SUMIFS(MyCS2007data!$V$83:$V$224,MyCS2007data!$S$83:$S$224,C157,MyCS2007data!$Q$83:$Q$224,D157)<>0,SUMIFS(MyCS2007data!$V$83:$V$224,MyCS2007data!$S$83:$S$224,C157,MyCS2007data!$Q$83:$Q$224,D157)," ") -> 1 | H157: =IF(SUMIFS('Census 2011'!$D$328:$D$468,'Census 2011'!$A$328:$A$468,D157,'Census 2011'!$B$328:$B$468,C157)<>0,SUMIFS('Census 2011'!$D$328:$D$468,'Census 2011'!$A$328:$A$468,D157,'Census 2011'!$B$328:$B$468,C157)," ") -> 1 | I157: =IF(SUMIFS('bottom-up-enduse'!$E$252:$E$357,'bottom-up-enduse'!$B$252:$B$357,D157,'bottom-up-enduse'!$A$252:$A$357,C157)<>0,SUMIFS('bottom-up-enduse'!$E$252:$E$357,'bottom-up-enduse'!$B$252:$B$357,D157,'bottom-up-enduse'!$A$252:$A$357,C157)," ") -> 0.06522113301 | J157: 0.003207783324 | K157: 0.002072192794
F158: End Uses | G158: Fuels | H158: Middle | J158: Low
C159: TJ | D159: Physical Units (GWh) | H159: 2007 | I159: 2011 | J159: 2007 | K159: 2011
B160: RESELC | C160: =SUMIF($C$4:$C$157,B160,$J$4:$J$157) -> 158.4652623 | D160: =C160/3.6 -> 44.01812841 | F160: Cooking | G160: =C150 -> RESOKE | H160: =G150 -> 0.4830188511 | I160: 0.4984304331 | J160: =IF(SUMIFS(MyCS2007data!$V$83:$V$224,MyCS2007data!$S$83:$S$224,D169,MyCS2007data!$Q$83:$Q$224,E169)<>0,SUMIFS(MyCS2007data!$V$83:$V$224,MyCS2007data!$S$83:$S$224,D169,MyCS2007data!$Q$83:$Q$224,E169)," ") ->  | K160: =IF(SUMIFS('Census 2011'!$D$328:$D$468,'Census 2011'!$A$328:$A$468,E169,'Census 2011'!$B$328:$B$468,D169)<>0,SUMIFS('Census 2011'!$D$328:$D$468,'Census 2011'!$A$328:$A$468,E169,'Census 2011'!$B$328:$B$468,D169)," ") -> 
B161: RESOKE | C161: 38.1394199 | D161: =C161*'conversion factors'!C4 -> 1411.158536 | G161: =C151 -> RESOLP | H161: 0.06274706208 | I161: 0.09059718843 | J161: =IF(SUMIFS(MyCS2007data!$V$83:$V$224,MyCS2007data!$S$83:$S$224,D170,MyCS2007data!$Q$83:$Q$224,E170)<>0,SUMIFS(MyCS2007data!$V$83:$V$224,MyCS2007data!$S$83:$S$224,D170,MyCS2007data!$Q$83:$Q$224,E170)," ") ->  | K161: =IF(SUMIFS('Census 2011'!$D$328:$D$468,'Census 2011'!$A$328:$A$468,E170,'Census 2011'!$B$328:$B$468,D170)<>0,SUMIFS('Census 2011'!$D$328:$D$468,'Census 2011'!$A$328:$A$468,E170,'Census 2011'!$B$328:$B$468,D170)," ") -> 
B162: RESOLP | C162: 1.405642324 | G162: =C152 -> RESBIW | H162: 0.4107816531 | I162: 0.3916528222 | J162: =IF(SUMIFS(MyCS2007data!$V$83:$V$224,MyCS2007data!$S$83:$S$224,D171,MyCS2007data!$Q$83:$Q$224,E171)<>0,SUMIFS(MyCS2007data!$V$83:$V$224,MyCS2007data!$S$83:$S$224,D171,MyCS2007data!$Q$83:$Q$224,E171)," ") ->  | K162: =IF(SUMIFS('Census 2011'!$D$328:$D$468,'Census 2011'!$A$328:$A$468,E171,'Census 2011'!$B$328:$B$468,D171)<>0,SUMIFS('Census 2011'!$D$328:$D$468,'Census 2011'!$A$328:$A$468,E171,'Census 2011'!$B$328:$B$468,D171)," ") -> 
B163: RESBIW | C163: 126.498822 | G163: =C153 -> RESCOA | H163: 0.04345243379 | I163: 0.01931955629 | J163: =IF(SUMIFS(MyCS2007data!$V$83:$V$224,MyCS2007data!$S$83:$S$224,D172,MyCS2007data!$Q$83:$Q$224,E172)<>0,SUMIFS(MyCS2007data!$V$83:$V$224,MyCS2007data!$S$83:$S$224,D172,MyCS2007data!$Q$83:$Q$224,E172)," ") ->  | K163: =IF(SUMIFS('Census 2011'!$D$328:$D$468,'Census 2011'!$A$328:$A$468,E172,'Census 2011'!$B$328:$B$468,D172)<>0,SUMIFS('Census 2011'!$D$328:$D$468,'Census 2011'!$A$328:$A$468,E172,'Census 2011'!$B$328:$B$468,D172)," ") -> 
B164: RESCOA | C164: 12.98541339 | F164: Space heating | G164: =C143 -> RESOKE | H164: =G143 -> 0.009324451588 | I164: 0.2432105323 | J164: =IF(SUMIFS(MyCS2007data!$V$83:$V$224,MyCS2007data!$S$83:$S$224,#REF!,MyCS2007data!$Q$83:$Q$224,#REF!)<>0,SUMIFS(MyCS2007data!$V$83:$V$224,MyCS2007data!$S$83:$S$224,#REF!,MyCS2007data!$Q$83:$Q$224,#REF!)," ") ->  | K164: =IF(SUMIFS('Census 2011'!$D$328:$D$468,'Census 2011'!$A$328:$A$468,#REF!,'Census 2011'!$B$328:$B$468,#REF!)<>0,SUMIFS('Census 2011'!$D$328:$D$468,'Census 2011'!$A$328:$A$468,#REF!,'Census 2011'!$B$328:$B$468,#REF!)," ") -> 
B165: RESGAS | C165: 0 | G165: =C144 -> RESOLP | H165: 0.01195007443 | I165: 0.02842042021 | J165: =IF(SUMIFS(MyCS2007data!$V$83:$V$224,MyCS2007data!$S$83:$S$224,#REF!,MyCS2007data!$Q$83:$Q$224,#REF!)<>0,SUMIFS(MyCS2007data!$V$83:$V$224,MyCS2007data!$S$83:$S$224,#REF!,MyCS2007data!$Q$83:$Q$224,#REF!)," ") ->  | K165: =IF(SUMIFS('Census 2011'!$D$328:$D$468,'Census 2011'!$A$328:$A$468,#REF!,'Census 2011'!$B$328:$B$468,#REF!)<>0,SUMIFS('Census 2011'!$D$328:$D$468,'Census 2011'!$A$328:$A$468,#REF!,'Census 2011'!$B$328:$B$468,#REF!)," ") -> 
G166: =C145 -> RESBIW | H166: 0.9682072092 | I166: 0.6214137069 | J166: =IF(SUMIFS(MyCS2007data!$V$83:$V$224,MyCS2007data!$S$83:$S$224,#REF!,MyCS2007data!$Q$83:$Q$224,#REF!)<>0,SUMIFS(MyCS2007data!$V$83:$V$224,MyCS2007data!$S$83:$S$224,#REF!,MyCS2007data!$Q$83:$Q$224,#REF!)," ") ->  | K166: =IF(SUMIFS('Census 2011'!$D$328:$D$468,'Census 2011'!$A$328:$A$468,#REF!,'Census 2011'!$B$328:$B$468,#REF!)<>0,SUMIFS('Census 2011'!$D$328:$D$468,'Census 2011'!$A$328:$A$468,#REF!,'Census 2011'!$B$328:$B$468,#REF!)," ") -> 
G167: =C146 -> RESCOA | H167: 0.01051826481 | I167: 0.1069553406 | J167: =IF(SUMIFS(MyCS2007data!$V$83:$V$224,MyCS2007data!$S$83:$S$224,#REF!,MyCS2007data!$Q$83:$Q$224,#REF!)<>0,SUMIFS(MyCS2007data!$V$83:$V$224,MyCS2007data!$S$83:$S$224,#REF!,MyCS2007data!$Q$83:$Q$224,#REF!)," ") ->  | K167: =IF(SUMIFS('Census 2011'!$D$328:$D$468,'Census 2011'!$A$328:$A$468,#REF!,'Census 2011'!$B$328:$B$468,#REF!)<>0,SUMIFS('Census 2011'!$D$328:$D$468,'Census 2011'!$A$328:$A$468,#REF!,'Census 2011'!$B$328:$B$468,#REF!)," ") -> 
H173: =IF(SUMIFS(MyCS2007data!$V$83:$V$224,MyCS2007data!$S$83:$S$224,D173,MyCS2007data!$Q$83:$Q$224,E173)<>0,SUMIFS(MyCS2007data!$V$83:$V$224,MyCS2007data!$S$83:$S$224,D173,MyCS2007data!$Q$83:$Q$224,E173)," ") ->  | I173: =IF(SUMIFS('Census 2011'!$D$328:$D$468,'Census 2011'!$A$328:$A$468,E173,'Census 2011'!$B$328:$B$468,D173)<>0,SUMIFS('Census 2011'!$D$328:$D$468,'Census 2011'!$A$328:$A$468,E173,'Census 2011'!$B$328:$B$468,D173)," ") -> 
H174: =IF(SUMIFS(MyCS2007data!$V$83:$V$224,MyCS2007data!$S$83:$S$224,D174,MyCS2007data!$Q$83:$Q$224,E174)<>0,SUMIFS(MyCS2007data!$V$83:$V$224,MyCS2007data!$S$83:$S$224,D174,MyCS2007data!$Q$83:$Q$224,E174)," ") ->  | I174: =IF(SUMIFS('Census 2011'!$D$328:$D$468,'Census 2011'!$A$328:$A$468,E174,'Census 2011'!$B$328:$B$468,D174)<>0,SUMIFS('Census 2011'!$D$328:$D$468,'Census 2011'!$A$328:$A$468,E174,'Census 2011'!$B$328:$B$468,D174)," ") -> 
H175: =IF(SUMIFS(MyCS2007data!$V$83:$V$224,MyCS2007data!$S$83:$S$224,D175,MyCS2007data!$Q$83:$Q$224,E175)<>0,SUMIFS(MyCS2007data!$V$83:$V$224,MyCS2007data!$S$83:$S$224,D175,MyCS2007data!$Q$83:$Q$224,E175)," ") ->  | I175: =IF(SUMIFS('Census 2011'!$D$328:$D$468,'Census 2011'!$A$328:$A$468,E175,'Census 2011'!$B$328:$B$468,D175)<>0,SUMIFS('Census 2011'!$D$328:$D$468,'Census 2011'!$A$328:$A$468,E175,'Census 2011'!$B$328:$B$468,D175)," ") -> 

Sheet bottom-up-enduse
A2: Calculating Energy Used within Households
A3: Energy use in households comes from extensive calculations from several surveys. This sheet shows detailed electricity, paraffin, wood and LPG consumption for heating and cooking
D4: Food assumed to be cooked (An analyst can increase or decrease the list)
A5: Fuel Codes | B5: Fuel | C5: Household Classification | D5: mielie meal | E5: Rice | F5: Pasta | G5: Stew | H5: Stew medium length | I5: Stew long | J5: Long vegetable (Beans) | K5: very slow cooking meat dishes | L5: Meat Grilling | M5: Baking Bread, cakes and Pastry | N5: Using Microwave (KJ) | O5: Column2 | P5: Reference | Q5: Tea
A6: RESELC | B6: Electricity | C6: RLEK | D6: 0.45 | E6: 0.24 | F6: 0.51 | G6: 0.33 | H6: 0.47 | I6: 1.11 | J6: 0.84 | K6: 3 | N6: =Appliances!F37 -> 1654.7202 | P6: 11 | Q6: One Household
A7: RESOKE | B7: Paraffin | C7: RLEK | D7: 0.84 | E7: 0.45 | F7: 0.91 | G7: 0.76 | H7: 0.87 | I7: 2.09 | J7: 1.57 | K7: 4.5 | P7: 11 | Q7: Heat capacity of water (J/g = kJ/l) | R7: 4.2
A8: RESOLP | B8: LPG | C8: RLEK | D8: 0.79 | E8: 0.35 | F8: 0.71 | G8: 0.68 | H8: 0.74 | I8: 1.75 | J8: 1.29 | K8: 4.3 | P8: 11 | Q8: Paraffin energy density (MJ/l) | R8: 35.288
B10: Low Income 1 | C10: R700/month this is R8400 annually | D10: Assumed Number of times that a particular meal is cooked in a month (An analysts can play around these number to calibrate fuel sales data with consumption data and the list of what is cooked can be added also) | Q10: Litres per day of heated water | R10: 3
A11: Fuel Codes | B11: Fuel | C11: Household Classification | D11: mielie meal | E11: Rice | F11: Pasta | G11: Stew | H11: Stew medium length | I11: Stew long | J11: Long veg | K11: very slow cooking meat dishes | L11: Meat Grilling | M11: Baking Bread, cakes and Pastry | N11: Column1 | O11: Column14 | P11: Reference | Q11: delta temperature (deg C) | R11: 85
A12: RESELC | B12: =B6 -> Electricity | C12: RLEK | D12: 15 | E12: 5 | F12: 5 | G12: 7 | H12: 7 | I12: 5 | J12: 5 | K12: 4 | P12: 11 | R12: Low non
A13: RESOKE | B13: =B7 -> Paraffin | C13: RLEK | D13: 15 | E13: 5 | F13: 5 | G13: 7 | H13: 7 | I13: 5 | J13: 5 | K13: 4 | P13: 11 | Q13: Number of days - with water heating | R13: 365
A14: RESOLP | B14: =B8 -> LPG | C14: RLEK | D14: 15 | E14: 5 | F14: 5 | G14: 7 | H14: 7 | I14: 5 | J14: 5 | K14: 4 | P14: 11 | Q14: Useful Energy (GJ/yr) | R14: =$R$10*R13*$R$11*$R$7/1000000 -> 0.390915
R15: Paraffin | S15: LPG | T15: Electricity
B16: Low Income 2 | C16: Above R8400 | Q16: Efficiency | R16: =RES!E167 -> 0.79 | S16: =RES!E149 -> 0.606 | T16: 0.9
A17: Fuel Codes | B17: Fuel | C17: Household Classification | D17: mielie meal | E17: Rice | F17: Pasta | G17: Stew | H17: Stew medium length | I17: Stew long | J17: Long veg | K17: very slow cooking meat dishes | L17: Meat Grilling | M17: Baking Bread, cakes and Pastry | N17: Column1 | O17: Column2 | P17: Reference | Q17: Paraffin (GJ/yr) | R17: =R14/R16 -> 0.4948291139 | S17: =R14/S16 -> 0.6450742574 | T17: =R14/T16 -> 0.43435
A18: RESELC | B18: Electricity | C18: RLEK | D18: 10 | E18: 11 | F18: 7 | G18: 7 | H18: 5 | I18: 5 | J18: 10 | K18: 5 | P18: 11 | Q18: Check (l/ heating day) | R18: =R17*1000/$R$8/R13 -> 0.03841805153
A19: RESOKE | B19: Paraffin | C19: RLEK | D19: 10 | E19: 11 | F19: 7 | G19: 7 | H19: 5 | I19: 5 | J19: 10 | K19: 5 | P19: 11 | Q19: l/heating month | R19: =R18*30 -> 1.152541546
A20: RESOLP | B20: LPG | C20: RLEK | D20: 10 | E20: 11 | F20: 7 | G20: 7 | H20: 5 | I20: 5 | J20: 10 | K20: 5 | P20: 11 | Q20: Power (input) | R20: 1.5
Q21: Time (hrs) | R21: =R17/R13*1000/3.6/R20 -> 0.2510548523
A22: Low Income households | C22: Average
A23: Fuel Codes | B23: Fuel | C23: Household Classification | D23: mielie meal | E23: Rice | F23: Pasta | G23: Stew | H23: Stew medium length | I23: Stew long | J23: Long veg | K23: very slow cooking meat dishes | L23: Meat Grilling | M23: Baking Bread, cakes and Pastry | N23: Column2 | O23: Column3 | P23: Reference | Q23: Electricity | R23: =T17 -> 0.43435
A24: RESELC | B24: Electricity | C24: RLEK | D24: =AVERAGE(D12,D18) -> 12.5 | E24: =AVERAGE(E12,E18) -> 8 | F24: 6 | G24: 7 | H24: 6 | I24: 5 | J24: 7.5 | K24: 4.5 | P24: 11 | Q24: Paraffin | R24: =R17 -> 0.4948291139
A25: RESOKE | B25: Paraffin | C25: RLEK | D25: 12.5 | E25: 8 | F25: 6 | G25: 7 | H25: 6 | I25: 5 | J25: 7.5 | K25: 4.5 | P25: 11 | Q25: LPG | R25: =S17 -> 0.6450742574
A26: RESOLP | B26: LPG | C26: RLEK | D26: 12.5 | E26: 8 | F26: 6 | G26: 7 | H26: 6 | I26: 5 | J26: 7.5 | K26: 4.5 | P26: 11
A28: Middle Income Households | D28: Assumed Number of times that a particular meal is cooked in a month (An analysts can play around these number to calibrate fuel sales data with consumption data and the list of what is cooked can be added also)
A29: Fuel Codes | B29: Middle Income households | C29: Household Classification | D29: mielie meal | E29: Rice | F29: Pasta | G29: Stew | H29: Stew medium length | I29: Stew long | J29: Long veg | K29: very slow cooking meat dishes | L29: Meat Grilling | M29: Baking Bread, cakes and Pastry | N29: Column2 | P29: Reference
A30: RESELC | B30: =B24 -> Electricity | C30: RMEK | D30: 12 | E30: 12 | F30: 12 | G30: 30 | H30: 1 | I30: 1 | J30: 10 | P30: 11
A31: RESOKE | B31: =B25 -> Paraffin | C31: RMEK | D31: 2 | E31: 2 | F31: 2 | G31: 2 | H31: 1 | I31: 1 | J31: 10 | P31: 11
A32: RESOLP | B32: =B26 -> LPG | C32: RMEK | D32: 12 | E32: 12 | F32: 12 | G32: 30 | H32: 1 | I32: 1 | J32: 10 | P32: 11
A34: High Income households | D34: Assumed Number of times that a particular meal is cooked in a month (An analysts can play around these number to calibrate fuel sales data with consumption data and the list of what is cooked can be added also)
A35: Fuel Codes | B35: Middle Income households | C35: Household Classification | D35: mielie meal | E35: Rice | F35: Pasta | G35: Stew | H35: Stew medium length | I35: Stew long | J35: Long veg | K35: very slow cooking meat dishes | L35: Meat Grilling | M35: Baking Bread, cakes and Pastry | P35: Reference
A36: RESELC | B36: Electricity | C36: RHEK | D36: 7 | E36: 14 | F36: 15 | G36: 20 | H36: 7 | I36: 5 | J36: 20 | P36: 11
A37: RESOKE | B37: Paraffin | C37: RHEK | D37: 7 | E37: 14 | F37: 15 | G37: 20 | H37: 7 | I37: 5 | J37: 20 | P37: 11
A38: RESOLP | B38: LPG | C38: RHEK | D38: 7 | E38: 14 | F38: 15 | G38: 20 | H38: 7 | I38: 5 | J38: 20 | P38: 11
A41: Mean income is 1700 (2007 CPI index was 89.7 and in 2009 CPI was 107.1)
B42: =1700*12 -> 20400 | C42: Middle Income hhld | D42: =B42*107.1/89 -> 24548.76404
A44: Non electrified hhld (main fuel wood) used an approximate amount of 11 kg per day
C45: Measured wood used in a day (kg/day) | D45: kg/month | E45: kg/annum
A46: Average wood consumption | C46: =11 -> 11 | D46: =C46*30 -> 330 | E46: =D46*12 -> 3960
A47: Cooking | B47: 0.7 | C47: =B47*C46 -> 7.7 | D47: =C47*30 -> 231 | E47: =D47*12 -> 2772
A48: Space heating | B48: 0.1 | C48: =B48*C46 -> 1.1 | D48: =C48*30 -> 33 | E48: =D48*12 -> 396
A49: Water heating | B49: 0.2 | C49: =B49*C46 -> 2.2 | D49: =C49*30 -> 66 | E49: =D49*12 -> 792
A51: Electrified hhld (main fuel wood) used an approximate amount of 10.7 kg per day
B52: Raw data | C52: kg/day | D52: kg/month | E52: kg/annum
A53: Average wood consumption | C53: =10.7 -> 10.7 | D53: =C53*30 -> 321 | E53: =D53*12 -> 3852
A54: Cooking | B54: 0.6 | C54: =B54*C53 -> 6.42 | D54: =C54*30*80% -> 154.08 | E54: =D54*12 -> 1848.96
A55: Space heating | B55: =1-B54-B56 -> 0.2 | C55: =B55*C53 -> 2.14 | D55: =C55*30 -> 64.2 | E55: =D55*12 -> 770.4
A56: Water heating | B56: 0.2 | C56: =B56*C53 -> 2.14 | D56: =C56*30 -> 64.2 | E56: =D56*12 -> 770.4
A57: Mean income is 2090 | B57: =2090*12 -> 25080 | C57: Middle Income hhld | D57: =B57*107.1/89.7 -> 29945.01672
A60: IF MULTIPLE FUEL USE IS GOING TO BE CONSIDERED
A61: Electrified household (main fuel electricity) | B61: Raw data | C61: kg/day | D61: kg/month | E61: kg/annum
A62: Average wood consumption | B62: 3.5kg/day | C62: 3.5 | D62: =C62*30 -> 105 | E62: =D62*12 -> 1260
A63: Cooking | B63: 0.98 | C63: =C62*B63 -> 3.43 | D63: =C63*30 -> 102.9 | E63: =D63*12 -> 1234.8
A64: Space heating | B64: 0.19 | C64: =C62*B64 -> 0.665 | D64: =C64*30 -> 19.95 | E64: =D64*12 -> 239.4
A65: Water heating | B65: 0.01 | C65: =C62*B65 -> 0.035 | D65: =C65*30 -> 1.05 | E65: =D65*12 -> 12.6
A66: Mean income is 2200 | B66: =2200*12 -> 26400 | C66: Middle Income | D66: =(107.1/89.7)*B66 -> 31521.07023
A68: Wood consumption data is based on Alison Hughes' data, that was gathered from Mpumalanga in 2009.
A70: Non electrified
A71: Household Classification | B71: End Use | C71: MJ/day | D71: GJ/annum
A72: All | B72: Cooking | C72: =C47*'conversion factors'!$C$11 -> 130.9 | D72: =C72*365/1000 -> 47.7785
A73: All | B73: Space heating | C73: =C48*'conversion factors'!$C$11 -> 18.7 | D73: =C73*365/1000 -> 6.8255
A74: All | B74: Water heating | C74: =C49*'conversion factors'!$C$11 -> 37.4 | D74: =C74*365/1000 -> 13.651
A75: Total | C75: =SUM(C72:C74) -> 187 | D75: =SUM(D72:D74) -> 68.255
A78: Electrified
A79: Household Classification | B79: End Use | C79: MJ/day | D79: GJ/annum
A80: All | B80: Cooking | C80: =C54*'conversion factors'!$C$11 -> 109.14 | D80: =C80*364/1000 -> 39.72696
A81: All | B81: Space heating | C81: =C55*'conversion factors'!$C$11 -> 36.38 | D81: =C81*364/1000 -> 13.24232
A82: All | B82: Water heating | C82: =C56*'conversion factors'!$C$11 -> 36.38 | D82: =C82*364/1000 -> 13.24232
A83: Total | C83: =SUM(C80:C82) -> 181.9 | D83: =SUM(D80:D82) -> 66.2116
A85: For households that use wood occasionally | H85: Assume 95% of the lights are on 4 hours a day and 5% of lights is on for the remaining 2 hours in low income households. For middle and high income households it is assumed that 85% of lights are on for 4 hours and 15% is on for 2 hrs. It is also assumed that there is one 100W inca lamp operating for 6 hours in middle income households and 2 of such for high income households. | I85: Previous assumptions in RES.xls beofere the GAS and UNEP study
A86: Household Classification | B86: End Use | C86: MJ/day | D86: GJ/annum
A87: All | B87: Cooking | C87: =C63*'conversion factors'!$C$11 -> 58.31 | D87: =C87*365/1000 -> 21.28315
A88: All | B88: Space heating | C88: =C64*'conversion factors'!$C$11 -> 11.305 | D88: =C88*365/1000 -> 4.126325
A89: All | B89: Water heating | C89: =C65*'conversion factors'!$C$11 -> 0.595 | D89: =C89*365/1000 -> 0.217175
A90: Total | C90: =SUM(C87:C89) -> 70.21 | D90: =SUM(D87:D89) -> 25.62665
M93: Outside hours in operation for | N93: 2
L94: Outside bulb
A95: Lighting | B95: Column1 | C95: Fuel | D95: Hours in operation | E95: Average number of rooms | F95: Number of lights per room | G95: Total Lights | H95: Percentage CFL | I95: Percentage INC | J95: Percentage LED | K95: Power rating (INC)- Watts | L95: Power rating (INC)- Watts2 | M95: Power rating (CFL)- Watts2 | N95: Power rating (CFL)- Watts22 | O95: Energy Intensity (GJ/hhld/annum) | P95: Reference No of rooms | Q95: Reference for hours of operation | R95: Column32
A96: RESELC | B96: RLEL | C96: Electricity | D96: 4.5 | E96: 3.218892964 | F96: 1.5 | G96: =E96*F96 -> 4.828339447 | H96: 0.35 | I96: =1-Table14[[#This Row],[Percentage CFL]]-Table14[[#This Row],[Percentage LED]] -> 0.65 | K96: 60 | L96: 100 | M96: 14 | O96: =(D96*365*G96*(M96*H96+K96*I96)+L96*$N$93*365)/1000000*3.6 -> 1.516143733 | P96: 21 | Q96: 22
A97: RESELC | B97: RMEL | C97: Electricity | D97: 4.5 | E97: 3.771179978 | F97: 2 | G97: =F97*E97 -> 7.542359956 | H97: 0.5 | I97: =1-Table14[[#This Row],[Percentage CFL]]-Table14[[#This Row],[Percentage LED]] -> 0.5 | K97: 60 | L97: 100 | M97: 14 | O97: =(D97*365*G97*(M97*H97+K97*I97)+L97*$N$93*365)/1000000*3.6 -> 1.912925054 | P97: 21 | Q97: 22
A98: RESELC | B98: RHEL | C98: Electricity | D98: 4.5 | E98: 5.350427418 | F98: 4 | G98: =F98*E98 -> 21.40170967 | H98: 0.5 | I98: =1-Table14[[#This Row],[Percentage CFL]]-Table14[[#This Row],[Percentage LED]] -> 0.5 | K98: 60 | L98: 100 | M98: 14 | O98: =(D98*365*G98*(M98*H98+K98*I98)+L98*$N$93*365)/1000000*3.6 -> 4.945087444 | P98: 21 | Q98: 22
A99: RESOKE | B99: RLNL | C99: Paraffin | E99: =E96 -> 3.218892964 | I99: =1-Table14[[#This Row],[Percentage CFL]]-Table14[[#This Row],[Percentage LED]] -> 1 | K99: 5.5 | O99: =K99*12*'conversion factors'!C4/1000 -> 2.442
A100: RESOKE | B100: RMNL | C100: Paraffin | E100: =E97 -> 3.771179978 | I100: =1-Table14[[#This Row],[Percentage CFL]]-Table14[[#This Row],[Percentage LED]] -> 1 | K100: 7 | O100: =K100*12*'conversion factors'!C4/1000 -> 3.108
A102: COAL USE mainly from Mamahloko's thesis
A103: Middle income | B103: kg | C103: MJ/month | D103: annual (GJ)
A104: cooking | B104: 80 | C104: =B104*'conversion factors'!$C$13 -> 1944 | D104: =C104*12/10^3 -> 23.328
A105: space heating | B105: 207 | C105: =B105*'conversion factors'!$C$13 -> 5030.1 | D105: =C105*6/10^3 -> 30.1806
A106: water heating | B106: 20 | C106: =B106*'conversion factors'!$C$13 -> 486 | D106: =C106*12/1000 -> 5.832
A107: Low income
A108: cooking | B108: 80 | C108: =B108*'conversion factors'!$C$13 -> 1944 | D108: =C108*12/1000 -> 23.328
A109: space heating | B109: 100 | C109: =B109*'conversion factors'!$C$13 -> 2430 | D109: =C109*6/1000 -> 14.58
A110: water heating | B110: 20 | C110: =B110*'conversion factors'!$C$13 -> 486 | D110: =C110*12/1000 -> 5.832
A112: Water Heating
A113: One Household
A114: Heat capacity of water (J/g = kJ/l) | B114: 4.2
A115: Paraffin energy density (MJ/l) | B115: ='conversion factors'!C4 -> 37
A117: Litres per day of heated water | B117: 18 | C117: 18 | D117: 18 | E117: =70 -> 70 | F117: 150
A118: delta temperature (deg C) | B118: 70 | C118: =B118 -> 70 | D118: =C118 -> 70 | E118: 70 | F118: 20
B119: Low non | C119: Low Elec | D119: Middle non | E119: Middle Elec | F119: High
A120: Number of days - with water heating | B120: =365*0.75 -> 273.75 | C120: =365*0.75 -> 273.75 | D120: =365*0.8 -> 292 | E120: =365*0.75 -> 273.75 | F120: =E120 -> 273.75
A121: Useful Energy (GJ/yr) | B121: =$B$117*B120*$B$118*$B$114/1000000 -> 1.448685 | C121: =$B$117*C120*$B$118*$B$114/1000000 -> 1.448685 | D121: =$B$117*D120*$B$118*$B$114/1000000 -> 1.545264 | E121: =$E$117*E120*$E$118*$B$114/1000000 -> 5.633775 | F121: =$F$117*F120*(80-45)*$B$114/1000000 -> 6.0361875
A122: Paraffin
A123: Efficiency | B123: =RES!E153 -> 0.11 | C123: =B123 -> 0.11 | D123: =C123 -> 0.11 | E123: =D123 -> 0.11 | F123: =E123 -> 0.11
A124: Paraffin (GJ/yr) | B124: =B121/B123 -> 13.16986364 | C124: =C121/C123 -> 13.16986364 | D124: =D121/D123 -> 14.04785455 | E124: =E121/E123 -> 51.21613636 | F124: =F121/F123 -> 54.87443182
A125: Check (l/ heating day) | B125: =B124*1000/$B$115/B120 -> 1.3002457 | C125: =C124*1000/$B$115/C120 -> 1.3002457 | D125: =D124*1000/$B$115/D120 -> 1.3002457 | E125: =E124*1000/$B$115/E120 -> 5.056511057 | F125: =F124*1000/$B$115/F120 -> 5.417690418
A126: l/heating month | B126: =B125*30*B120/365 -> 29.25552826 | C126: =C125*30*C120/365 -> 29.25552826 | D126: =D125*30*D120/365 -> 31.20589681 | E126: =E125*30*E120/365 -> 113.7714988 | F126: =F125*30*F120/365 -> 121.8980344
A127: Power (input) | B127: 1.5
A128: Time (hrs) | B128: =B124/B120*1000/3.6/B127 -> 8.909090909
A129: LPG
A130: Efficiency | B130: =RES!E149 -> 0.606 | C130: =B130 -> 0.606 | D130: =C130 -> 0.606 | E130: =D130 -> 0.606 | F130: =E130 -> 0.606
A131: LPG GJ/yr | B131: =B$121/B130 -> 2.390569307 | C131: =C$121/C130 -> 2.390569307 | D131: =D$121/D130 -> 2.549940594 | E131: =E$121/E130 -> 9.296658416
A132: Power (input) | B132: 2
A133: Time (hrs) | B133: =B131/B120*1000/3.6/B132 -> 1.212871287
A134: Wood
A135: Efficiency | B135: =RES!E203 -> 0.39 | C135: =B135 -> 0.39 | D135: =C135 -> 0.39 | E135: =D135 -> 0.39 | F135: =E135 -> 0.39
A136: Wood GJ/yr | B136: =B$121/B135 -> 3.714576923 | C136: =C$121/C135 -> 3.714576923 | D136: =D$121/D135 -> 3.962215385 | E136: =E$121/E135 -> 14.44557692 | F136: =F$121/F135 -> 15.47740385
A137: Kettle
A138: Efficiency | B138: 0.95 | C138: 0.95 | D138: =B138 -> 0.95 | E138: =C138 -> 0.95 | F138: 0.7
A139: Kettle GJ/yr | B139: =B$121/B138 -> 1.524931579 | C139: =C$121/C138 -> 1.524931579 | D139: =D$121/D138 -> 1.626593684 | E139: =E$121/E138 -> 5.930289474 | F139: =F$121/F138 -> 8.623125
A140: Kettle GJ/yr | F140: =B114*F117*F118*3000/1000/1000 -> 37.8
A143: Paraffin consumption for floor polish and other uses
A144: 1l/month for low income for 20% of hh
A145: l/month | B145: 1
A146: GJ/annum | B146: =B145*'conversion factors'!C4*12/1000 -> 0.444
B148: hh | C148: % hh using paraffin | D148: Total PJ
A149: =MyCS2007data!AK2 -> Low | B149: =MyCS2007data!AM2 -> 4016846.419 | C149: 0.2 | D149: =B149*$B$146*C149/1000000 -> 0.3566959621
A150: =MyCS2007data!AK3 -> Low | B150: =MyCS2007data!AM3 -> 1624839.78 | C150: 0.2 | D150: =B150*$B$146*C150/1000000 -> 0.1442857724
A151: =MyCS2007data!AK4 -> Middle | B151: =MyCS2007data!AM4 -> 3490962.908 | C151: 0.2 | D151: =B151*$B$146*C151/1000000 -> 0.3099975062
A152: =MyCS2007data!AK5 -> Middle | B152: =MyCS2007data!AM5 -> 734472.2186 | C152: 0.2 | D152: =B152*$B$146*C152/1000000 -> 0.06522113301
A153: =MyCS2007data!AK6 -> High | B153: =MyCS2007data!AM6 -> 2325804.952 | C153: 0.2 | D153: =B153*$B$146*C153/1000000 -> 0.2065314797
A154: =MyCS2007data!AK7 -> 0 | B154: =MyCS2007data!AM7 -> 87073.722 | D154: =SUM(D149:D153) -> 1.082731853
A157: OTHER END USES
B158: Any appliance that has a saturation rate that is greater or equal to 45%, was included in the other end uses (FROM AMPS) of each household category
D159: Saturation level - AMPS | E159: no.households | F159: MJ/annum | G159: GJ/annum
A160: Low Income | B160: TV | C160: electricity | D160: 0.67 | E160: =D160*MyCS2007data!AM2 -> 2691287.101 | F160: =E205 -> 571.59 | G160: =F160/1000 -> 0.57159 | H160: =G160*E160/10^6 -> 1.538312794
B161: Hi-Fis | C161: electricity | D161: 0.4683333333 | E161: =D161*MyCS2007data!AM2 -> 1881223.073 | F161: =E207 -> 274.626 | G161: =F161/1000 -> 0.274626 | H161: =G161*E161/10^6 -> 0.5166327677
B162: Irons | C162: electricity | D162: 1 | E162: =D162*MyCS2007data!AM2 -> 4016846.419 | F162: =E196 -> 259.2 | G162: =F162/1000 -> 0.2592 | H162: =G162*E162/10^6 -> 1.041166592
G163: =SUM(G160:G162) -> 1.105416 | H163: =SUM(H160:H162) -> 3.096112154
D166: Saturation level - AMPS | E166: no. househlds | F166: MJ/annum | G166: GJ/annum
A167: Middle Income | B167: TV | C167: electricity | D167: 0.9171428571 | E167: =MyCS2007data!AM4*D167 -> 3201711.696 | F167: =E204 -> 1539.4824 | G167: =F167/1000 -> 1.5394824 | H167: =G167*E167/10^6 -> 4.928978806
B168: Hi-Fi | C168: electricity | D168: 0.6357142857 | E168: =MyCS2007data!AM4*D168 -> 2219254.992 | F168: =E208 -> 1098.504 | G168: 1.098504 | H168: 2.437860485
B169: DVD Player | C169: electricity | D169: 0.5485714286 | E169: =MyCS2007data!AM4*D169 -> 1915042.51 | F169: =E210 -> 99.3384 | G169: 0.0993384 | H169: 0.1902372588
B170: Irons | C170: electricity | D170: 1 | E170: =MyCS2007data!AM4*D170 -> 3490962.908 | F170: =E196 -> 259.2 | G170: 0.2592 | H170: 0.9048575858
B171: Microwave | C171: electricity | D171: 1 | E171: =MyCS2007data!AM4*D171 -> 3490962.908 | F171: =E195 -> 985.5 | G171: 0.9855 | H171: 3.440343946
B172: Home theatre system | C172: electricity | D172: 0.98 | E172: =MyCS2007data!AM4*D172 -> 3421143.65 | F172: =F183 -> 1681.92 | G172: 1.68192 | H172: 5.754089928
G173: =SUM(G167:G172) -> 5.6639448 | H173: =SUM(H167:H172) -> 17.65636801
D175: Saturation level - AMPS | E175: No.hhlds | F175: MJ | G175: GJ/annum/hhld
